Workbook

Sheet Cover Sheet
A1: Condom Needs Estimation Tool (CNET)
B2: CNET Version 5.0 [2023-2027] - (20 February 2023 - Excel for Office 365)
A3: For the latest CNET version, please check the HIV Prevention Coalition website:
A4: https://hivpreventioncoalition.unaids.org/resources/condom-needs-estimation-tool
A5: Designing and Implementing Robust Condom Programs
A6: The CNET tool was developed by UNAIDS, in collaboration with UNFPA and the Global condom working group, to support countries in their efforts to develop and implement robust, comprehensive and people-centred condom programmes to prevent HIV, other sexually transmitted infections (STIs), as well as unintended pregnancies. The CNET allows countries, in partnership with communities, starting from baseline year 2022, to estimate the Total Annual Male and Female condom and Lubricant needs for the 2023-2027 period using a standardised and data-driven methodology. The tool uses condom use baselines and targets to estimate the specific condom needs of PLHIV, sex workers, MSM, young people and other populations at higher risk for HIV, STIs and unintended pregnancy. Commodity costs are calculated using the UNFPA Procurement Services pricelist for condoms and lubricant. the tool also allows to develop a 5-year condom distribution scenario using the 3 pillars of Total Market Approach (free distribution, social marketing subsidised sales, for-profit sales). The tool provides a standardized methodology to estimate programme costs based on UNFPA's Comprehensive Condom Program (CCP) framework (leadership and coordination, demand creation, commodity security, support), andalso allows the mapping of available funds against the estimated total programme costs, creating an estimate of the financial gap.
A7: Reduce new HIV infections to under 370 000 by 2025.
A15: Acknowledgments: The development of this joint tool was carried out by Henk Van Renterghem (UNAIDS) and Eva Weissman (independant consultant) and supported by Bidia Deperthes (UNFPA) and Gina Dallabetta (Gates Foundation). The tool draws upon: (i) the people-centred condom target setting and needs estimate methodology and the TMA scenario module of the UNAIDS Condom Fast-Track Tool (2015) developed by Henk Van Renterghem (UNAIDS) and Clemens Benedikt (UNAIDS)and (ii) for the costing modules on UNFPA's Comprehensive Condom Programming (CCP) Costing Tool developed by Eva Weissman and Howard Friedman (UNFPA). Valuable inputs were provided by Chris Jones (Global Insights), Kuyosh Kadirov (USAID) and Clancy Broxton (USAID).
A16: For questions and support: Henk Van Renterghem | C16: vanrenterghemh@unaids.org
A17: Clemens Benedict | C17: benediktc@unaids.org

Sheet Instruction Sheet

Sheet Dashboard
E1: Condom Needs Estimation Tool | J1: ='Cover Sheet'!$B$2 -> CNET Version 5.0 [2023-2027] - (20 February 2023 - Excel for Office 365)
O2: Data Availability
F4: =INDEX(Translation!$B$1:$E$581,Translation!$A$20,Language) -> Country | G4: Zambia | K4: English | L4: 1 | O4: Dataset | P4: Source
K5: Français | L5: 2 | O5: People Living with HIV | P5: =VLOOKUP(Country,'Data Availability'!$A$3:$H$82,2,FALSE) -> AIDSInfo 2023 Data
F6: =INDEX(Translation!$B$1:$E$581,Translation!$A$21,Language) -> Start Year | H6: 2023 | K6: Español | L6: 3 | O6: Couples LHIV | P6: =VLOOKUP(Country,'Data Availability'!$A$3:$H$82,3,FALSE) -> 2018 DHS
F7: =INDEX(Translation!$B$1:$E$581,Translation!$A$22,Language) -> End Year | H7: 2027 | K7: Português | L7: 4 | O7: Sexual Activity | P7: =VLOOKUP(Country,'Data Availability'!$A$3:$H$82,4,FALSE) -> 2018 DHS
O8: High Risk Partners | P8: =VLOOKUP(Country,'Data Availability'!$A$3:$H$82,5,FALSE) -> 2018 DHS
F9: =INDEX(Translation!$B$1:$E$581,Translation!$A$23,Language) -> Language | H9: English | J9: =INDEX(K4:L7,MATCH(H9,K4:K7,0),2) -> 1 | O9: Family Planning | P9: =VLOOKUP(Country,'Data Availability'!$A$3:$H$82,6,FALSE) -> Zambia 2018 Demographic and Health Survey (DHS)
O10: =VLOOKUP(Country,'Data Availability'!$A$3:$H$82,8,FALSE) -> Full dataset available
F12: Baseline year | H12: 2022
B120: =INDEX(Translation!$B$1:$E$485,Translation!$A$27,Language) -> Input Sheets | G120: =INDEX(Translation!$B$1:$E$485,Translation!$A$28,Language) -> Result Sheets | K120: =INDEX(Translation!$B$1:$E$485,Translation!$A$29,Language) -> Auxiliary Sheets | L120: =INDEX(Translation!$B$1:$E$485,Translation!$A$28,Language) -> Result Sheets

Sheet Target Populations
A1: =INDEX(Translation!$B$1:$E$581,Translation!$A$32,Language) -> Populations at Risk
A2: =INDEX(Translation!$B$1:$E$581,Translation!$A$33,Language) -> Description | B2: =INDEX(Translation!$B$1:$E$581,Translation!$A$49,Language) -> Name in the Model | C2: =INDEX(Translation!$B$1:$E$581,Translation!$A$63,Language) -> Comments
A3: =INDEX(Translation!$B$1:$E$581,Translation!$A$34,Language) -> Key Populations
A4: =INDEX(Translation!$B$1:$E$581,Translation!$A$35,Language) -> Couples Married or in Union in which at least one Partners is HIV+ (age 15-64) | B4: =INDEX(Translation!$B$1:$E$581,Translation!$A$50,Language) -> PLHIV Couples
A5: =INDEX(Translation!$B$1:$E$581,36,Language) -> Sex Workers and their clients (age 18-49) | B5: =INDEX(Translation!$B$1:$E$581,Translation!$A$51,Language) -> Sex workers | C5: =INDEX(Translation!$B$1:$E$581,Translation!$A$65,Language) -> Includes sex workers' regular partners. Implicitly includes male and TG sex workers
A6: =INDEX(Translation!$B$1:$E$581,Translation!$A$37,Language) -> Gay men and other Men Having Sex with Men (age 15-64) and their partners | B6: =INDEX(Translation!$B$1:$E$581,Translation!$A$52,Language) -> Men Having Sex with Men (MSM) | C6: =INDEX(Translation!$B$1:$E$581,Translation!$A$66,Language) -> Includes MSMs' regular and non-regular partners.
A7: =INDEX(Translation!$B$1:$E$581,Translation!$A$38,Language) -> People who have Sex with Non-Regular Partners [PAIRS]
A8: =INDEX(Translation!$B$1:$E$581,Translation!$A$39,Language) -> Young People (age 15-24) who had sex with a non-regular partner over the past 12 months | B8: =INDEX(Translation!$B$1:$E$581,Translation!$A$53,Language) -> Young People (15-24) with NR Partners (pairs) | C8: =INDEX(Translation!$B$1:$E$581,Translation!$A$67,Language) -> Non regular partner is defined as sex with a non-marital, non-cohabiting partner. Excludes MSM - already covered above. Adjusted for men having sex with sex workers - already covered above.
A9: =INDEX(Translation!$B$1:$E$581,Translation!$A$40,Language) -> People (age 25-34) who had sex with a non-regular partner over the past 12 months | B9: =INDEX(Translation!$B$1:$E$581,Translation!$A$54,Language) -> Men&Women (25-34) with NR Partners (pairs)
A10: =INDEX(Translation!$B$1:$E$581,Translation!$A$41,Language) -> People (age 35-49) who had sex with a non-regular partner over the past 12 months | B10: =INDEX(Translation!$B$1:$E$581,Translation!$A$55,Language) -> Men&Women (35-49) with NR Partners (pairs)
A11: =INDEX(Translation!$B$1:$E$581,Translation!$A$42,Language) -> People (age 50-64) who had sex with a non-regular partner over the past 12 months | B11: =INDEX(Translation!$B$1:$E$581,Translation!$A$56,Language) -> Men&Women (50-64) with NR Partners (pairs)
A12: =INDEX(Translation!$B$1:$E$581,Translation!$A$43,Language) -> Couples Using Condoms for Family Planning
A13: =INDEX(Translation!$B$1:$E$581,Translation!$A$44,Language) -> Couples Married or in Union that currently use Condoms as their Preferred Method of Family Planning (age 15-49) | B13: =INDEX(Translation!$B$1:$E$581,Translation!$A$57,Language) -> Couples Using Condoms for FP | C13: =INDEX(Translation!$B$1:$E$581,Translation!$A$68,Language) -> Excludes Couples Affected by HIV (included under PLHIV couples above)
A14: =INDEX(Translation!$B$1:$E$581,Translation!$A$45,Language) -> Couples Married or in Union that currently have an Unmet Need for Family Planning Condoms (age 15-49) | B14: =INDEX(Translation!$B$1:$E$581,Translation!$A$58,Language) -> Couples With Unmet Need for FP Condoms | C14: =INDEX(Translation!$B$1:$E$581,Translation!$A$69,Language) -> Couples that would use Condoms as their Preferred Method of Family Planning if they had Access to them Also excludes Couples Affected by HIV
A15: =INDEX(Translation!$B$1:$E$581,Translation!$A$46,Language) -> Other Key Populations and Populations at High Risk
A16: =INDEX(Translation!$B$1:$E$581,Translation!$A$47,Language) -> People who Inject Drugs (PWID) (age 15-64) | B16: =INDEX(Translation!$B$1:$E$581,Translation!$A$59,Language) -> People who inject Drugs (PWID) | C16: =INDEX(Translation!$B$1:$E$581,Translation!$A$70,Language) -> Includes PWIDs' regular and non-regular partners.
A17: =INDEX(Translation!$B$1:$E$581,Translation!$A$48,Language) -> Transgender (TG) (age 15-64) | B17: =INDEX(Translation!$B$1:$E$581,Translation!$A$60,Language) -> Transgender (TG) | C17: =INDEX(Translation!$B$1:$E$581,Translation!$A$71,Language) -> Includes regular and non-regular partners.
A19: Other user-defined populations can be added on the 2. Demographic Data sheet

Sheet 1. Condom Availability
A1: =INDEX(Translation!$B$1:$E$581,Translation!$A$74,Language) -> Condom Availability Baseline | B1: ='Cover Sheet'!$B$2 -> CNET Version 5.0 [2023-2027] - (20 February 2023 - Excel for Office 365)
A3: =Country -> Zambia | B3: =INDEX(Translation!$B$1:$E$581,Translation!$A$75,Language) -> Current No. of Condoms Available | C3: =INDEX(Translation!$B$1:$E$581,Translation!$A$76,Language) -> % of Total
A4: =INDEX(Translation!$B$1:$E$581,Translation!$A$77,Language) -> Public/ Free Distribution | B4: =H35 ->  | C4: =B4/B7 -> 
A5: =INDEX(Translation!$B$1:$E$581,Translation!$A$78,Language) -> Social Marketing | B5: =L35 ->  | C5: =B5/B7 -> 
A6: =INDEX(Translation!$B$1:$E$581,Translation!$A$79,Language) -> Private Sector | B6: =(B4+B5)/(100%-C6)*C6 ->  | C6: 0.05
A7: =INDEX(Translation!$B$1:$E$581,Translation!$A$80,Language) -> TOTAL | B7: =SUM(B4:B6) ->  | C7: =SUM(C4:C6) -> 
B9: =INDEX(Translation!$B$1:$E$581,Translation!$A$81,Language) -> Current No. Availlable | C9: =INDEX(Translation!$B$1:$E$581,Translation!$A$82,Language) -> % of Total Condoms | E9: Default baseline values
A10: =INDEX(Translation!$B$1:$E$581,Translation!$A$83,Language) -> No. of Female Condoms | B10: =$B$7*E10 ->  | C10: =B10/$B$7 ->  | E10: 0.01
A11: =INDEX(Translation!$B$1:$E$581,Translation!$A$84,Language) -> No. of Speciality Condoms | B11: =$B$7*E11 ->  | C11: =B11/$B$7 ->  | E11: 0.01
A12: =INDEX(Translation!$B$1:$E$581,Translation!$A$85,Language) -> No. of Lubricant Sachets Available | B12: =$B$7*E12 ->  | C12: =B12/$B$7 ->  | E12: 0.01
A15: =INDEX(Translation!$B$1:$E$581,Translation!$A$86,Language) -> Year for which most recent condom data available: | B15: 2022
A16: =INDEX(Translation!$B$1:$E$581,Translation!$A$87,Language) -> Source of Data
E19: Condom availability from reported data (RH Exchange, DKT, UNAIDS GAM)
E20: Please note that for most coutries data on Public/Free condoms tend to be incomplete
E21: Public/ Free Distribution | I21: Social Marketing Condoms (DKT Database) | M21: Lubricant (Public/ Free Distribution - UNAIDS NCPI data)
F22: Male Condoms | G22: Female Condoms | H22: =INDEX(Translation!$B$1:$E$581,Translation!$A$80,Language) -> TOTAL | J22: Male Condoms | K22: Female Condoms | L22: =INDEX(Translation!$B$1:$E$581,Translation!$A$80,Language) -> TOTAL | N22: Lubricant
E23: 2010 | F23: =VLOOKUP(Country,'11. Condom Availability'!$A$5:$AO$204,6,FALSE)+VLOOKUP(Country,'11b. SocMark Condoms'!$A$6:$AS$133,24,FALSE) -> 25597860 | G23: =VLOOKUP(Country,'11. Condom Availability'!$A$5:$AO$204,18,FALSE)+VLOOKUP(Country,'11b. SocMark Condoms'!$A$6:$AS$133,35,FALSE) -> 1168000 | H23: =F23+G23 -> 26765860 | I23: 2010 | J23: =VLOOKUP(Country,'11b. SocMark Condoms'!$A$6:$AS$133,2,FALSE) -> 20380536 | K23: =VLOOKUP(Country,'11b. SocMark Condoms'!$A$6:$AS$133,13,FALSE) -> 413424 | L23: =SUM(J23:K23) -> 20793960 | M23: 2010
E24: 2011 | F24: =VLOOKUP(Country,'11. Condom Availability'!$A$5:$AO$204,7,FALSE)+VLOOKUP(Country,'11b. SocMark Condoms'!$A$6:$AS$133,25,FALSE) -> 67251036 | G24: =VLOOKUP(Country,'11. Condom Availability'!$A$5:$AO$204,19,FALSE)+VLOOKUP(Country,'11b. SocMark Condoms'!$A$6:$AS$133,36,FALSE) -> 612000 | H24: =F24+G24 -> 67863036 | I24: 2011 | J24: =VLOOKUP(Country,'11b. SocMark Condoms'!$A$6:$AS$133,3,FALSE) -> 22860828 | K24: =VLOOKUP(Country,'11b. SocMark Condoms'!$A$6:$AS$133,14,FALSE) -> 208560 | L24: 23069388 | M24: 2011
E25: 2012 | F25: =VLOOKUP(Country,'11. Condom Availability'!$A$5:$AO$204,8,FALSE)+VLOOKUP(Country,'11b. SocMark Condoms'!$A$6:$AS$133,26,FALSE) -> 37921672 | G25: =VLOOKUP(Country,'11. Condom Availability'!$A$5:$AO$204,20,FALSE)+VLOOKUP(Country,'11b. SocMark Condoms'!$A$6:$AS$133,37,FALSE) -> 2307700 | H25: 40229372 | I25: 2012 | J25: =VLOOKUP(Country,'11b. SocMark Condoms'!$A$6:$AS$133,4,FALSE) -> 27870255 | K25: =VLOOKUP(Country,'11b. SocMark Condoms'!$A$6:$AS$133,15,FALSE) -> 289625 | L25: 28159880 | M25: 2012
E26: 2013 | F26: =VLOOKUP(Country,'11. Condom Availability'!$A$5:$AO$204,9,FALSE)+VLOOKUP(Country,'11b. SocMark Condoms'!$A$6:$AS$133,27,FALSE) -> 86827500 | G26: =VLOOKUP(Country,'11. Condom Availability'!$A$5:$AO$204,21,FALSE)+VLOOKUP(Country,'11b. SocMark Condoms'!$A$6:$AS$133,38,FALSE) -> 596000 | H26: 87423500 | I26: 2013 | J26: =VLOOKUP(Country,'11b. SocMark Condoms'!$A$6:$AS$133,5,FALSE) -> 32809792 | K26: =VLOOKUP(Country,'11b. SocMark Condoms'!$A$6:$AS$133,16,FALSE) -> 297776 | L26: 33107568 | M26: 2013
E27: 2014 | F27: =VLOOKUP(Country,'11. Condom Availability'!$A$5:$AO$204,10,FALSE)+VLOOKUP(Country,'11b. SocMark Condoms'!$A$6:$AS$133,28,FALSE) -> 54791300 | G27: =VLOOKUP(Country,'11. Condom Availability'!$A$5:$AO$204,22,FALSE)+VLOOKUP(Country,'11b. SocMark Condoms'!$A$6:$AS$133,39,FALSE) -> 436000 | H27: 55227300 | I27: 2014 | J27: =VLOOKUP(Country,'11b. SocMark Condoms'!$A$6:$AS$133,6,FALSE) -> 16332349 | K27: =VLOOKUP(Country,'11b. SocMark Condoms'!$A$6:$AS$133,17,FALSE) -> 484232 | L27: 16816581 | M27: 2014
E28: 2015 | F28: =VLOOKUP(Country,'11. Condom Availability'!$A$5:$AO$204,11,FALSE)+VLOOKUP(Country,'11b. SocMark Condoms'!$A$6:$AS$133,29,FALSE) -> 66822609 | G28: =VLOOKUP(Country,'11. Condom Availability'!$A$5:$AO$204,23,FALSE)+VLOOKUP(Country,'11b. SocMark Condoms'!$A$6:$AS$133,40,FALSE) -> 2111000 | H28: 68933609 | I28: 2015 | J28: =VLOOKUP(Country,'11b. SocMark Condoms'!$A$6:$AS$133,7,FALSE) -> 6220368 | K28: =VLOOKUP(Country,'11b. SocMark Condoms'!$A$6:$AS$133,18,FALSE) -> 3600 | L28: 6223968 | M28: 2015
E29: 2016 | F29: =VLOOKUP(Country,'11. Condom Availability'!$A$5:$AO$204,12,FALSE)+VLOOKUP(Country,'11b. SocMark Condoms'!$A$6:$AS$133,30,FALSE) -> 32262600 | G29: =VLOOKUP(Country,'11. Condom Availability'!$A$5:$AO$204,24,FALSE)+VLOOKUP(Country,'11b. SocMark Condoms'!$A$6:$AS$133,41,FALSE) -> 0 | H29: 32262600 | I29: 2016 | J29: =VLOOKUP(Country,'11b. SocMark Condoms'!$A$6:$AS$133,8,FALSE) -> 836352 | K29: =VLOOKUP(Country,'11b. SocMark Condoms'!$A$6:$AS$133,19,FALSE) -> 9600 | L29: 845952 | M29: 2016
E30: 2017 | F30: =VLOOKUP(Country,'11. Condom Availability'!$A$5:$AO$204,13,FALSE)+VLOOKUP(Country,'11b. SocMark Condoms'!$A$6:$AS$133,31,FALSE) -> 49950502 | G30: =VLOOKUP(Country,'11. Condom Availability'!$A$5:$AO$204,25,FALSE)+VLOOKUP(Country,'11b. SocMark Condoms'!$A$6:$AS$133,42,FALSE) -> 963148 | H30: 50913650 | I30: 2017 | J30: =VLOOKUP(Country,'11b. SocMark Condoms'!$A$6:$AS$133,9,FALSE) -> 7721912 | K30: =VLOOKUP(Country,'11b. SocMark Condoms'!$A$6:$AS$133,20,FALSE) -> 32232 | L30: =SUM(J30:K30) -> 7754144 | M30: 2017 | N30: =VLOOKUP(Country,'11. Condom Availability'!$A$5:$AO$209,2,FALSE) -> 0
E31: 2018 | F31: =VLOOKUP(Country,'11. Condom Availability'!$A$5:$AO$204,14,FALSE)+VLOOKUP(Country,'11b. SocMark Condoms'!$A$6:$AS$133,32,FALSE) -> 0 | G31: =VLOOKUP(Country,'11. Condom Availability'!$A$5:$AO$204,26,FALSE)+VLOOKUP(Country,'11b. SocMark Condoms'!$A$6:$AS$133,43,FALSE) -> 3020 | H31: 3020 | I31: 2018 | J31: =VLOOKUP(Country,'11b. SocMark Condoms'!$A$6:$AS$133,10,FALSE) -> 19290096 | K31: =VLOOKUP(Country,'11b. SocMark Condoms'!$A$6:$AS$133,21,FALSE) -> 97728 | L31: 19387824 | M31: 2018 | N31: =VLOOKUP(Country,'11. Condom Availability'!$A$5:$AO$209,3,FALSE) -> 0
E32: 2019 | F32: =VLOOKUP(Country,'11. Condom Availability'!$A$5:$AO$204,15,FALSE)+VLOOKUP(Country,'11b. SocMark Condoms'!$A$6:$AS$133,33,FALSE) -> 11754000 | G32: =VLOOKUP(Country,'11. Condom Availability'!$A$5:$AO$204,27,FALSE)+VLOOKUP(Country,'11b. SocMark Condoms'!$A$6:$AS$133,44,FALSE) -> 0 | H32: 11754000 | I32: 2019 | J32: =VLOOKUP(Country,'11b. SocMark Condoms'!$A$6:$AS$133,11,FALSE) -> 22082976 | K32: =VLOOKUP(Country,'11b. SocMark Condoms'!$A$6:$AS$133,22,FALSE) -> 1920 | L32: 22084896 | M32: 2019 | N32: =VLOOKUP(Country,'11. Condom Availability'!$A$5:$AO$209,4,FALSE) -> 0
E33: 2020 | F33: =VLOOKUP(Country,'11. Condom Availability'!$A$5:$AO$204,16,FALSE)+VLOOKUP(Country,'11b. SocMark Condoms'!$A$6:$AS$133,34,FALSE) -> 0 | G33: =VLOOKUP(Country,'11. Condom Availability'!$A$5:$AO$204,28,FALSE)+VLOOKUP(Country,'11b. SocMark Condoms'!$A$6:$AS$133,45,FALSE) -> 0 | H33: 0 | I33: 2020 | J33: =VLOOKUP(Country,'11b. SocMark Condoms'!$A$6:$AS$133,12,FALSE) -> 13516416 | K33: =VLOOKUP(Country,'11b. SocMark Condoms'!$A$6:$AS$133,23,FALSE) -> 0 | L33: 13516416 | M33: 2020 | N33: =VLOOKUP(Country,'11. Condom Availability'!$A$5:$AO$209,5,FALSE) -> 0
E34: 2021 | I34: 2021 | M34: 2021 | N34: =VLOOKUP(Country,'11. Condom Availability'!$A$5:$AO$209,5,FALSE) -> 0
E35: 2022 | I35: 2022 | M35: 2022 | N35: =VLOOKUP(Country,'11. Condom Availability'!$A$5:$AO$209,5,FALSE) -> 0
E36: 2023 | I36: 2023 | M36: 2023
E37: 2024 | I37: 2024 | M37: 2024
A41: BASELINE GAP ANALYSIS - FOR REFENCE ONLY - ALSO SEE Sheets 3. Condom Requirements & 3b. Alternative scenarios
A44: Fig 1. Comparing Condom Availability baseline (reported data) with Estimated condom consumption baseline
A46: ALTERNATIVE SCENARIO'S CONDOM CONSUMPTION/USE BASELINE [for comparison only] | E46: GAP (availability) | F46: GAP (Consumption)
A47: Condom Need Estimate 2022 | B47: 35% condom use scenario | C47: ='3a. Alternative Scenarios'!Q114 -> 66504955.28 | E47: =C52-C47 ->  | F47: =C53-C47 -> 13404950.44
B48: 60% condom use scenario | C48: ='3a. Alternative Scenarios'!Q45 -> 104384383.4 | E48: =C52-C48 ->  | F48: =C53-C48 -> -24474477.64
B49: 75% condom use scenario | C49: ='3a. Alternative Scenarios'!Q137 -> 127112040.2 | E49: =C52-C49 ->  | F49: =C53-C49 -> -47202134.48
B50: 90% condom use scenario | C50: ='3a. Alternative Scenarios'!Q68 -> 147612062.6 | E50: =C52-C50 ->  | F50: =C53-C50 -> -67702156.87
A51: BASELINE 2022
B52: Condom availabilty baseline (country reporting) | C52: =B7 ->  | E52: =C52-C53 -> 
B53: Condom availability baseline estimate (consumption) | C53: ='3. Condom Requirements'!H21 -> 79909905.72
A94: BACKUP
B95: =INDEX(Translation!$B$1:$E$581,Translation!$A$75,Language) -> Current No. of Condoms Available | C95: =INDEX(Translation!$B$1:$E$581,Translation!$A$76,Language) -> % of Total
A96: =INDEX(Translation!$B$1:$E$581,Translation!$A$77,Language) -> Public/ Free Distribution | B96: =H35 ->  | C96: =B96/B99 -> 
A97: =INDEX(Translation!$B$1:$E$581,Translation!$A$78,Language) -> Social Marketing | B97: =L35 ->  | C97: =B97/B99 -> 
A98: =INDEX(Translation!$B$1:$E$581,Translation!$A$79,Language) -> Private Sector | B98: =(B96+B97)/(100%-C98)*C98 ->  | C98: 0.05
A99: =INDEX(Translation!$B$1:$E$581,Translation!$A$80,Language) -> TOTAL | B99: =SUM(B96:B98) ->  | C99: =SUM(C96:C98) -> 
B101: =INDEX(Translation!$B$1:$E$581,Translation!$A$81,Language) -> Current No. Availlable | C101: =INDEX(Translation!$B$1:$E$581,Translation!$A$82,Language) -> % of Total Condoms
A102: =INDEX(Translation!$B$1:$E$581,Translation!$A$83,Language) -> No. of Female Condoms | B102: =$B$7*1% ->  | C102: =B102/$B$7 -> 
A103: =INDEX(Translation!$B$1:$E$581,Translation!$A$84,Language) -> No. of Speciality Condoms | B103: =$B$7*1% ->  | C103: =B103/$B$7 -> 
A104: =INDEX(Translation!$B$1:$E$581,Translation!$A$85,Language) -> No. of Lubricant Sachets Available | B104: =$B$7*1% ->  | C104: =B104/$B$7 -> 
A107: =INDEX(Translation!$B$1:$E$581,Translation!$A$86,Language) -> Year for which most recent condom data available: | B107: 2022
A108: =INDEX(Translation!$B$1:$E$581,Translation!$A$87,Language) -> Source of Data
A109: =INDEX(Translation!$B$1:$E$581,Translation!$A$88,Language) -> Overall Quality of Availability Data | B109: Poor
A111: =INDEX(Translation!$B$1:$E$581,Translation!$A$88,Language) -> Overall Quality of Availability Data | B111: Poor

Sheet 2. Demographic Data
A1: =INDEX(Translation!$B$1:$E$582,Translation!$A$89,Language) -> 2. Key Demographic Data Sheet | G1: ='Cover Sheet'!$B$2 -> CNET Version 5.0 [2023-2027] - (20 February 2023 - Excel for Office 365)
A2: =INDEX(Translation!$B$1:$E$582,Translation!$A$93,Language) -> Key Demographic Data | B2: =INDEX(Translation!$B$1:$E$582,Translation!$A$90,Language) -> Default Data | C2: =INDEX(Translation!$B$1:$E$582,Translation!$A$91,Language) -> Source/Comments | D2: =INDEX(Translation!$B$1:$E$582,Translation!$A$92,Language) -> Country Data | E2: =INDEX(Translation!$B$1:$E$582,Translation!$A$91,Language) -> Source/Comments
A3: =INDEX(Translation!$B$1:$E$582,Translation!$A$94,Language) -> 1. Population Data 2022
A4: =INDEX(Translation!$B$1:$E$582,Translation!$A$95,Language) -> Total Population 2022 | B4: =VLOOKUP(Country,'1. Total Population'!$A$6:$Q$272,Start_Year-2014,FALSE)*1000 -> 19470238 | C4: UNPD, Population Projections, Medium Variant, 2019 Revision | D4: =VLOOKUP(Country,'1. Total Population'!$A$6:$Q$272,Start_Year-2014,FALSE)*1000 -> 19470238 | E4: UNPD, Population Projections, Medium Variant, 2019 Revision
A5: =INDEX(Translation!$B$1:$E$582,Translation!$A$96,Language) -> Total Population 2027 | B5: =VLOOKUP(Country,'1. Total Population'!$A$6:$Q$272,Start_Year-2009,FALSE)*1000 -> 22412310 | C5: UNPD, Population Projections, Medium Variant, 2019 Revision | D5: =VLOOKUP(Country,'1. Total Population'!$A$6:$Q$272,Start_Year-2009,FALSE)*1000 -> 22412310 | E5: UNPD, Population Projections, Medium Variant, 2019 Revision
A6: =INDEX(Translation!$B$1:$E$582,Translation!$A$98,Language) -> Population Growth from 2022 to 2027 | B6: =(B5/B4)-1 -> 0.1511061139 | C6: UNPD, Population Projections, Medium Variant, 2019 Revision | D6: =(D5/D4)-1 -> 0.1511061139 | E6: UNPD, Population Projections, Medium Variant, 2019 Revision
A7: =INDEX(Translation!$B$1:$E$582,Translation!$A$97,Language) -> Annual Population Growth | B7: =VLOOKUP(Country,'1. Total Population'!$A$6:$V$272,21,FALSE)/100 -> 0.02847 | C7: UNPD, Population Projections, Medium Variant, 2019 Revision | D7: =VLOOKUP(Country,'1. Total Population'!$A$6:$V$272,21,FALSE)/100 -> 0.02847 | E7: UNPD, Population Projections, Medium Variant, 2019 Revision
A8: =INDEX(Translation!$B$1:$E$582,Translation!$A$99,Language) -> Women (15-49) | B8: =VLOOKUP(Country,Women_Age_15_49,Start_Year-2014,FALSE)*1000 -> 4828956 | C8: UNPD, Population Projections, Medium Variant, 2019 Revision | D8: =VLOOKUP(Country,Women_Age_15_49,Start_Year-2014,FALSE)*1000 -> 4828956 | E8: UNPD, Population Projections, Medium Variant, 2019 Revision
A9: =INDEX(Translation!$B$1:$E$582,Translation!$A$100,Language) -> Men (15-49) | B9: =VLOOKUP(Country,Men_Age_15_49,Start_Year-2014,FALSE)*1000 -> 4710787 | C9: UNPD, Population Projections, Medium Variant, 2019 Revision | D9: =VLOOKUP(Country,Men_Age_15_49,Start_Year-2014,FALSE)*1000 -> 4710787 | E9: UNPD, Population Projections, Medium Variant, 2019 Revision
A10: =INDEX(Translation!$B$1:$E$582,Translation!$A$101,Language) -> Women (15-64) | B10: =VLOOKUP(Country,Women_Age_15_64,Start_Year-2014,FALSE)*1000 -> 5405718 | C10: UNPD, Population Projections, Medium Variant, 2019 Revision | D10: =VLOOKUP(Country,Women_Age_15_64,Start_Year-2014,FALSE)*1000 -> 5405718 | E10: UNPD, Population Projections, Medium Variant, 2019 Revision
A11: =INDEX(Translation!$B$1:$E$582,Translation!$A$102,Language) -> Men (15-64) | B11: =VLOOKUP(Country,Men_Age_15_64,Start_Year-2014,FALSE)*1000 -> 5231708 | C11: UNPD, Population Projections, Medium Variant, 2019 Revision | D11: =VLOOKUP(Country,Men_Age_15_64,Start_Year-2014,FALSE)*1000 -> 5231708 | E11: UNPD, Population Projections, Medium Variant, 2019 Revision
A12: =INDEX(Translation!$B$1:$E$582,Translation!$A$103,Language) -> Young Women (15-24) | B12: =VLOOKUP(Country,Women_Age_15_24,Start_Year-2014,FALSE)*1000 -> 2065862 | C12: UNPD, Population Projections, Medium Variant, 2019 Revision | D12: =VLOOKUP(Country,Women_Age_15_24,Start_Year-2014,FALSE)*1000 -> 2065862 | E12: UNPD, Population Projections, Medium Variant, 2019 Revision
A13: =INDEX(Translation!$B$1:$E$582,Translation!$A$104,Language) -> Young Men (15-24) | B13: =VLOOKUP(Country,Men_Age_15_24,Start_Year-2014,FALSE)*1000 -> 2063522 | C13: UNPD, Population Projections, Medium Variant, 2019 Revision | D13: =VLOOKUP(Country,Men_Age_15_24,Start_Year-2014,FALSE)*1000 -> 2063522 | E13: UNPD, Population Projections, Medium Variant, 2019 Revision
A14: =INDEX(Translation!$B$1:$E$582,Translation!$A$105,Language) -> Women (25-34) | B14: =(VLOOKUP(Country,Women_Age_25_29,Start_Year-2014,FALSE)+VLOOKUP(Country,Women_Age_30_34,Start_Year-2014,FALSE))*1000 -> 1432392 | C14: UNPD, Population Projections, Medium Variant, 2019 Revision | D14: =(VLOOKUP(Country,Women_Age_25_29,Start_Year-2014,FALSE)+VLOOKUP(Country,Women_Age_30_34,Start_Year-2014,FALSE))*1000 -> 1432392 | E14: UNPD, Population Projections, Medium Variant, 2019 Revision
A15: =INDEX(Translation!$B$1:$E$582,Translation!$A$106,Language) -> Men (25-34) | B15: =(VLOOKUP(Country,Men_Age_25_29,Start_Year-2014,FALSE)+VLOOKUP(Country,Men_Age_30_34,Start_Year-2014,FALSE))*1000 -> 1377109 | C15: UNPD, Population Projections, Medium Variant, 2019 Revision | D15: =(VLOOKUP(Country,Men_Age_25_29,Start_Year-2014,FALSE)+VLOOKUP(Country,Men_Age_30_34,Start_Year-2014,FALSE))*1000 -> 1377109 | E15: UNPD, Population Projections, Medium Variant, 2019 Revision
A16: =INDEX(Translation!$B$1:$E$582,Translation!$A$107,Language) -> Women (35-49) | B16: =B8-B12-B14 -> 1330702 | C16: UNPD, Population Projections, Medium Variant, 2019 Revision | D16: =D8-D12-D14 -> 1330702 | E16: UNPD, Population Projections, Medium Variant, 2019 Revision
A17: =INDEX(Translation!$B$1:$E$582,Translation!$A$108,Language) -> Men (35-49) | B17: =B9-B13-B15 -> 1270156 | C17: UNPD, Population Projections, Medium Variant, 2019 Revision | D17: =D9-D13-D15 -> 1270156 | E17: UNPD, Population Projections, Medium Variant, 2019 Revision
A18: =INDEX(Translation!$B$1:$E$582,Translation!$A$109,Language) -> Women (50-64) | B18: =B10-B8 -> 576762 | C18: UNPD, Population Projections, Medium Variant, 2019 Revision | D18: =D10-D8 -> 576762 | E18: UNPD, Population Projections, Medium Variant, 2019 Revision
A19: =INDEX(Translation!$B$1:$E$582,Translation!$A$110,Language) -> Men (50-64) | B19: =B11-B9 -> 520921 | C19: UNPD, Population Projections, Medium Variant, 2019 Revision | D19: =D11-D9 -> 520921 | E19: UNPD, Population Projections, Medium Variant, 2019 Revision
A20: =INDEX(Translation!$B$1:$E$582,Translation!$A$111,Language) -> Young Women (15-17) | B20: =VLOOKUP(Country,Women_Age_15_17,Start_Year-2013,FALSE)*1000 -> 703707 | C20: UNPD, Population Projections, Medium Variant, 2019 Revision | D20: =VLOOKUP(Country,Women_Age_15_17,Start_Year-2013,FALSE)*1000 -> 703707 | E20: UNPD, Population Projections, Medium Variant, 2019 Revision
A21: =INDEX(Translation!$B$1:$E$582,Translation!$A$112,Language) -> 2. Marital Status
A22: =INDEX(Translation!$B$1:$E$582,Translation!$A$113,Language) -> % of Women 15-49 Married or in Union | B22: =VLOOKUP(Country,'4. Marital Status'!$A$9:$H$213,3,FALSE)/100 -> 0.559 | C22: =VLOOKUP(Country, '4. Marital Status'!$A$9:$H$210,2,FALSE) -> 2018 DHS | D22: =VLOOKUP(Country,'4. Marital Status'!$A$9:$H$213,3,FALSE)/100 -> 0.559 | E22: =VLOOKUP(Country, '4. Marital Status'!$A$9:$H$210,2,FALSE) -> 2018 DHS
A23: =INDEX(Translation!$B$1:$E$582,Translation!$A$114,Language) -> % of Men 15-49 Married or in Union | B23: =VLOOKUP(Country,'4. Marital Status'!$A$9:$H$213,4,FALSE)/100 -> 0.499 | C23: =VLOOKUP(Country, '4. Marital Status'!$A$9:$H$210,2,FALSE) -> 2018 DHS | D23: =VLOOKUP(Country,'4. Marital Status'!$A$9:$H$213,4,FALSE)/100 -> 0.499 | E23: =VLOOKUP(Country, '4. Marital Status'!$A$9:$H$210,2,FALSE) -> 2018 DHS
A24: 3. HIV and PLHIV | G24: Consult UNAIDS AIDSINFO for the most recent country specific HIV and PLHIV data
A25: =INDEX(Translation!$B$1:$E$582,Translation!$A$116,Language) -> Number of Women (age 15+) who are HIV+ | B25: =VLOOKUP(Country,'9. People Living with HIV'!$A$5:$J$176,2,FALSE) -> 780000 | C25: AIDSINFO 2023 - UNAIDS Spectrum estimates for 2021 | D25: =VLOOKUP(Country,'9. People Living with HIV'!$A$5:$J$176,2,FALSE) -> 780000 | E25: AIDSINFO 2023 - UNAIDS Spectrum estimates for 2021 | G25: https://aidsinfo.unaids.org/
A26: =INDEX(Translation!$B$1:$E$582,Translation!$A$117,Language) -> Number of Men (age 15+) who are HIV+ | B26: =VLOOKUP(Country,'9. People Living with HIV'!$A$5:$J$176,3,FALSE) -> 480000 | C26: AIDSINFO 2023 - UNAIDS Spectrum estimates for 2021 | D26: =VLOOKUP(Country,'9. People Living with HIV'!$A$5:$J$176,3,FALSE) -> 480000 | E26: AIDSINFO 2023 - UNAIDS Spectrum estimates for 2021
A27: =INDEX(Translation!$B$1:$E$582,Translation!$A$118,Language) -> % of PLHIV (men and Women) Married or in Union in a Concordant Partnership | B27: =VLOOKUP(Country,'10. HIV Status of Couples'!$B$4:$F$90,3,FALSE) -> 0.078 | C27: =VLOOKUP(Country,'10. HIV Status of Couples'!$B$5:$J$204,2,FALSE) -> 2018 DHS | D27: =VLOOKUP(Country,'10. HIV Status of Couples'!$B$4:$F$90,3,FALSE) -> 0.078 | E27: =VLOOKUP(Country,'10. HIV Status of Couples'!$B$5:$J$204,2,FALSE) -> 2018 DHS
A28: =INDEX(Translation!$B$1:$E$582,Translation!$A$119,Language) -> % of Women LHIV Married or in Union in a Discordant Partnership | B28: =VLOOKUP(Country,'10. HIV Status of Couples'!$B$4:$F$90,4,FALSE) -> 0.031 | C28: =VLOOKUP(Country,'10. HIV Status of Couples'!$B$5:$J$204,2,FALSE) -> 2018 DHS | D28: =VLOOKUP(Country,'10. HIV Status of Couples'!$B$4:$F$90,4,FALSE) -> 0.031 | E28: =VLOOKUP(Country,'10. HIV Status of Couples'!$B$5:$J$204,2,FALSE) -> 2018 DHS
A29: =INDEX(Translation!$B$1:$E$582,Translation!$A$120,Language) -> % of Men LHIV Married or in Union in a Discordant Partnership | B29: =VLOOKUP(Country,'10. HIV Status of Couples'!$B$4:$F$90,5,FALSE) -> 0.045 | C29: =VLOOKUP(Country,'10. HIV Status of Couples'!$B$5:$J$204,2,FALSE) -> 2018 DHS | D29: =VLOOKUP(Country,'10. HIV Status of Couples'!$B$4:$F$90,5,FALSE) -> 0.045 | E29: =VLOOKUP(Country,'10. HIV Status of Couples'!$B$5:$J$204,2,FALSE) -> 2018 DHS
A30: =INDEX(Translation!$B$1:$E$582,Translation!$A$121,Language) -> % of PLHIV who know their HIV status (First 90) | B30: =VLOOKUP(Country,'12. HIV Viral Suppression'!$A$5:$N$187,2,FALSE) -> 0.91 | C30: AIDSINFO 2023 - UNAIDS Spectrum estimates for 2021 | D30: =VLOOKUP(Country,'12. HIV Viral Suppression'!$A$5:$N$187,2,FALSE) -> 0.91 | E30: AIDSINFO 2023 - UNAIDS Spectrum estimates for 2021
A31: =INDEX(Translation!$B$1:$E$582,Translation!$A$122,Language) -> % of PLHIV on ART (Second 90) | B31: =VLOOKUP(Country,'12. HIV Viral Suppression'!$A$5:$N$187,3,FALSE) -> 0.98 | C31: AIDSINFO 2023 - UNAIDS Spectrum estimates for 2021 | D31: =VLOOKUP(Country,'12. HIV Viral Suppression'!$A$5:$N$187,3,FALSE) -> 0.98 | E31: AIDSINFO 2023 - UNAIDS Spectrum estimates for 2021
A32: =INDEX(Translation!$B$1:$E$582,Translation!$A$123,Language) -> % of PLHIV with Suppressed Viral Load (Third 90) | B32: =VLOOKUP(Country,'12. HIV Viral Suppression'!$A$5:$N$187,4,FALSE) -> 0.96 | C32: AIDSINFO 2023 - UNAIDS Spectrum estimates for 2021 | D32: =VLOOKUP(Country,'12. HIV Viral Suppression'!$A$5:$N$187,4,FALSE) -> 0.96 | E32: AIDSINFO 2023 - UNAIDS Spectrum estimates for 2021
A33: % of PLHIV (age 15+) with Suppressed Viral Load (of all PLHIV) | B33: =B30*B31*B32 -> 0.856128 | C33: Tool Calculations | D33: =D30*D31*D32 -> 0.856128 | E33: Tool Calculations
A34: # PLHIV (age 15+) with Suppressed Viral Load (all PLHIV) | B34: =(B25+B26)*B33 -> 1078721.28 | C34: Tool Calculations | D34: =(D25+D26)*D33 -> 1078721.28 | E34: Tool Calculations
A35: PLHIV Couples 15-64y (concordant) | B35: ='10. HIV Status of Couples'!$W$4 -> 171078.3117 | C35: Tool Calculations | D35: ='10. HIV Status of Couples'!$W$4 -> 171078.3117 | E35: Tool Calculations
A36: PLHIV Couples 15-64y (discordant) | B36: ='10. HIV Status of Couples'!$Z$4 -> 166691.6883 | C36: Tool Calculations | D36: ='10. HIV Status of Couples'!$Z$4 -> 166691.6883 | E36: Tool Calculations
A37: =INDEX(Translation!$B$1:$E$582,Translation!$A$124,Language) -> PLHIV Couples 15-64y (concordant & discordant) | B37: =B35+B36 -> 337770 | C37: Tool Calculations | D37: =D35+D36 -> 337770 | E37: Tool Calculations
A38: PLHIV Couples 15-64y (concordant & discordant) TARGET YEAR | B38: ='10. HIV Status of Couples'!$T$9 -> 355685.5118 | C38: Tool Calculations | D38: ='10. HIV Status of Couples'!$T$9 -> 355685.5118 | E38: Tool Calculations
A39: # PLHIV Couples not virally suppressed | B39: =B37*(1-B33) -> 48595.64544 | C39: Tool Calculations (proxy estimate of PLHIV couples not virally suppressed) | D39: =D37*(1-D33) -> 48595.64544 | E39: Tool Calculations (proxy estimate of PLHIV couples not virally suppressed)
A40: =INDEX(Translation!$B$1:$E$582,Translation!$A$125,Language) -> 4. Sexual Activity
A41: =INDEX(Translation!$B$1:$E$582,Translation!$A$126,Language) -> % of Women (15-49) Sexually Active in the last Year | B41: =VLOOKUP(Country,'5. Sexual Activity'!$A$6:$BW$88,3,FALSE) -> 0.752 | C41: =VLOOKUP(Country,'5. Sexual Activity'!$A$3:$BL$87,2,FALSE) -> 2018 DHS | D41: =VLOOKUP(Country,'5. Sexual Activity'!$A$6:$BW$88,3,FALSE) -> 0.752 | E41: =VLOOKUP(Country,'5. Sexual Activity'!$A$3:$BL$87,2,FALSE) -> 2018 DHS
A42: =INDEX(Translation!$B$1:$E$582,Translation!$A$127,Language) -> % of Men (15-49) Sexually Active in the last Year | B42: =VLOOKUP(Country,'5. Sexual Activity'!$A$6:$BW$88,15,FALSE) -> 0.746 | C42: =VLOOKUP(Country,'5. Sexual Activity'!$A$3:$BL$87,2,FALSE) -> 2018 DHS | D42: =VLOOKUP(Country,'5. Sexual Activity'!$A$6:$BW$88,15,FALSE) -> 0.746 | E42: =VLOOKUP(Country,'5. Sexual Activity'!$A$3:$BL$87,2,FALSE) -> 2018 DHS
A43: =INDEX(Translation!$B$1:$E$582,Translation!$A$128,Language) -> % of Young Women (15-24) Sexually Active in the last Year | B43: =VLOOKUP(Country,'5. Sexual Activity'!$A$6:$BW$88,11,FALSE) -> 0.598 | C43: =VLOOKUP(Country,'5. Sexual Activity'!$A$3:$BL$87,2,FALSE) -> 2018 DHS | D43: =VLOOKUP(Country,'5. Sexual Activity'!$A$6:$BW$88,11,FALSE) -> 0.598 | E43: =VLOOKUP(Country,'5. Sexual Activity'!$A$3:$BL$87,2,FALSE) -> 2018 DHS
A44: =INDEX(Translation!$B$1:$E$582,Translation!$A$129,Language) -> % of Young Men (15-24) Sexually Active in the last Year | B44: =VLOOKUP(Country,'5. Sexual Activity'!$A$6:$BW$88,23,FALSE) -> 0.497 | C44: =VLOOKUP(Country,'5. Sexual Activity'!$A$3:$BL$87,2,FALSE) -> 2018 DHS | D44: =VLOOKUP(Country,'5. Sexual Activity'!$A$6:$BW$88,23,FALSE) -> 0.497 | E44: =VLOOKUP(Country,'5. Sexual Activity'!$A$3:$BL$87,2,FALSE) -> 2018 DHS
A45: =INDEX(Translation!$B$1:$E$582,Translation!$A$130,Language) -> % of Women (25-34) Sexually Active in the last Year | B45: =VLOOKUP(Country,'5. Sexual Activity'!$A$6:$BW$88,12,FALSE) -> 0.894 | C45: =VLOOKUP(Country,'5. Sexual Activity'!$A$3:$BL$87,2,FALSE) -> 2018 DHS | D45: =VLOOKUP(Country,'5. Sexual Activity'!$A$6:$BW$88,12,FALSE) -> 0.894 | E45: =VLOOKUP(Country,'5. Sexual Activity'!$A$3:$BL$87,2,FALSE) -> 2018 DHS
A46: =INDEX(Translation!$B$1:$E$582,Translation!$A$131,Language) -> % of Men (25-34) Sexually Active in the last Year | B46: =VLOOKUP(Country,'5. Sexual Activity'!$A$6:$BW$87,24,FALSE) -> 0.918 | C46: =VLOOKUP(Country,'5. Sexual Activity'!$A$3:$BL$87,2,FALSE) -> 2018 DHS | D46: =VLOOKUP(Country,'5. Sexual Activity'!$A$6:$BW$87,24,FALSE) -> 0.918 | E46: =VLOOKUP(Country,'5. Sexual Activity'!$A$3:$BL$87,2,FALSE) -> 2018 DHS
A47: =INDEX(Translation!$B$1:$E$582,Translation!$A$132,Language) -> % of Women (35-49) Sexually Active in the last Year | B47: =VLOOKUP(Country,'5. Sexual Activity'!$A$6:$BW$88,13,FALSE) -> 0.833 | C47: =VLOOKUP(Country,'5. Sexual Activity'!$A$3:$BL$87,2,FALSE) -> 2018 DHS | D47: =VLOOKUP(Country,'5. Sexual Activity'!$A$6:$BW$88,13,FALSE) -> 0.833 | E47: =VLOOKUP(Country,'5. Sexual Activity'!$A$3:$BL$87,2,FALSE) -> 2018 DHS
A48: =INDEX(Translation!$B$1:$E$582,Translation!$A$133,Language) -> % of Men (35-49) Sexually Active in the last Year | B48: =VLOOKUP(Country,'5. Sexual Activity'!$A$6:$BW$88,25,FALSE) -> 0.949 | C48: =VLOOKUP(Country,'5. Sexual Activity'!$A$3:$BL$87,2,FALSE) -> 2018 DHS | D48: =VLOOKUP(Country,'5. Sexual Activity'!$A$6:$BW$88,25,FALSE) -> 0.949 | E48: =VLOOKUP(Country,'5. Sexual Activity'!$A$3:$BL$87,2,FALSE) -> 2018 DHS
A49: =INDEX(Translation!$B$1:$E$582,Translation!$A$134,Language) -> % of Women (50-64) Sexually Active in the last Year | B49: =VLOOKUP(Country,'5. Sexual Activity'!$A$6:$BW$88,14,FALSE) -> 0.79135 | C49: =VLOOKUP(Country,'5. Sexual Activity'!$A$3:$BL$87,2,FALSE)&" (Assumed to be 90% of 45-49 Rate)" -> 2018 DHS (Assumed to be 90% of 45-49 Rate) | D49: =VLOOKUP(Country,'5. Sexual Activity'!$A$6:$BW$88,14,FALSE) -> 0.79135 | E49: =VLOOKUP(Country,'5. Sexual Activity'!$A$3:$BL$87,2,FALSE)&" (Assumed to be 90% of 45-49 Rate)" -> 2018 DHS (Assumed to be 90% of 45-49 Rate)
A50: =INDEX(Translation!$B$1:$E$582,Translation!$A$135,Language) -> % of Men (50-64) Sexually Active in the last Year | B50: =VLOOKUP(Country,'5. Sexual Activity'!$A$6:$BW$88,26,FALSE) -> 0.8505 | C50: =VLOOKUP(Country,'5. Sexual Activity'!$A$3:$BL$87,2,FALSE)&" (Assumed to be 90% of 45-49 Rate)" -> 2018 DHS (Assumed to be 90% of 45-49 Rate) | D50: =VLOOKUP(Country,'5. Sexual Activity'!$A$6:$BW$88,26,FALSE) -> 0.8505 | E50: =VLOOKUP(Country,'5. Sexual Activity'!$A$3:$BL$87,2,FALSE)&" (Assumed to be 90% of 45-49 Rate)" -> 2018 DHS (Assumed to be 90% of 45-49 Rate)
A51: =INDEX(Translation!$B$1:$E$582,Translation!$A$136,Language) -> 5. Higher Risk Sex (with a non-marital, non-cohabiting partner)
A52: =INDEX(Translation!$B$1:$E$582,Translation!$A$137,Language) -> % of Sexually Active Women (15-49) that had Higher-Risk Sex in the last Year | B52: =VLOOKUP(Country,'6. Higher Risk Sex'!$A$5:$AF$70,3,FALSE) -> 0.255 | C52: =VLOOKUP(Country,'6. Higher Risk Sex'!$A$2:$AF$66,2,FALSE) -> 2018 DHS | D52: =VLOOKUP(Country,'6. Higher Risk Sex'!$A$5:$AF$70,3,FALSE) -> 0.255 | E52: =VLOOKUP(Country,'6. Higher Risk Sex'!$A$2:$AF$66,2,FALSE) -> 2018 DHS
A53: =INDEX(Translation!$B$1:$E$582,Translation!$A$138,Language) -> % of Sexually Active Men (15-49) that had Higher-Risk Sex in the last Year | B53: =VLOOKUP(Country,'6. Higher Risk Sex'!$A$5:$AF$70,18,FALSE) -> 0.447 | C53: =VLOOKUP(Country,'6. Higher Risk Sex'!$A$2:$AF$66,2,FALSE) -> 2018 DHS | D53: =VLOOKUP(Country,'6. Higher Risk Sex'!$A$5:$AF$70,18,FALSE) -> 0.447 | E53: =VLOOKUP(Country,'6. Higher Risk Sex'!$A$2:$AF$66,2,FALSE) -> 2018 DHS
A54: =INDEX(Translation!$B$1:$E$582,Translation!$A$139,Language) -> Average % Higher-Risk Sex among SA 15-49 year olds | B54: =AVERAGE(B52:B53) -> 0.351 | C54: Tool calculation: Straight average of male and female rate (adjustment for men who have sex with sex workers and for male over-reporting and female under-reporting of sex with non-regualr partners) | D54: =AVERAGE(D52:D53) -> 0.351 | E54: Average of male and female rate
A55: =INDEX(Translation!$B$1:$E$582,Translation!$A$140,Language) -> % of Sexually Active Young Women (15-24) that had Higher-Risk Sex in the last Year | B55: =VLOOKUP(Country,'6. Higher Risk Sex'!$A$5:$AF$70,14,FALSE) -> 0.443 | C55: =VLOOKUP(Country,'6. Higher Risk Sex'!$A$2:$AF$66,2,FALSE) -> 2018 DHS | D55: =VLOOKUP(Country,'6. Higher Risk Sex'!$A$5:$AF$70,14,FALSE) -> 0.443 | E55: =VLOOKUP(Country,'6. Higher Risk Sex'!$A$2:$AF$66,2,FALSE) -> 2018 DHS
A56: =INDEX(Translation!$B$1:$E$582,Translation!$A$141,Language) -> % of Sexually Active Young Men (15-24) that had Higher-Risk Sex in the last Year | B56: =VLOOKUP(Country,'6. Higher Risk Sex'!$A$5:$AF$70,29,FALSE) -> 0.842 | C56: =VLOOKUP(Country,'6. Higher Risk Sex'!$A$2:$AF$66,2,FALSE) -> 2018 DHS | D56: =VLOOKUP(Country,'6. Higher Risk Sex'!$A$5:$AF$70,29,FALSE) -> 0.842 | E56: =VLOOKUP(Country,'6. Higher Risk Sex'!$A$2:$AF$66,2,FALSE) -> 2018 DHS
A57: =INDEX(Translation!$B$1:$E$582,Translation!$A$142,Language) -> Average % Higher-Risk Sex among SA 15-24 year olds | B57: =AVERAGE(B55:B56) -> 0.6425 | C57: Tool calculation: Straight average of male and female rate (adjustment for men sex woth sex workers and for M and F resp. over and under reporting) | D57: =AVERAGE(D55:D56) -> 0.6425 | E57: Average of male and female rate
A58: =INDEX(Translation!$B$1:$E$582,Translation!$A$143,Language) -> % of Sexually Active Women (25-34) that had Higher-Risk Sex in the last Year | B58: =VLOOKUP(Country,'6. Higher Risk Sex'!$A$5:$AF$70,15,FALSE) -> 0.188 | C58: =VLOOKUP(Country,'6. Higher Risk Sex'!$A$2:$AF$66,2,FALSE) -> 2018 DHS | D58: =VLOOKUP(Country,'6. Higher Risk Sex'!$A$5:$AF$70,15,FALSE) -> 0.188 | E58: =VLOOKUP(Country,'6. Higher Risk Sex'!$A$2:$AF$66,2,FALSE) -> 2018 DHS
A59: =INDEX(Translation!$B$1:$E$582,Translation!$A$144,Language) -> % of Sexually Active Men (25-34) that had Higher-Risk Sex in the last Year | B59: =VLOOKUP(Country,'6. Higher Risk Sex'!$A$5:$AF$70,30,FALSE) -> 0.377 | C59: =VLOOKUP(Country,'6. Higher Risk Sex'!$A$2:$AF$66,2,FALSE) -> 2018 DHS | D59: =VLOOKUP(Country,'6. Higher Risk Sex'!$A$5:$AF$70,30,FALSE) -> 0.377 | E59: =VLOOKUP(Country,'6. Higher Risk Sex'!$A$2:$AF$66,2,FALSE) -> 2018 DHS
A60: =INDEX(Translation!$B$1:$E$582,Translation!$A$145,Language) -> Average % Higher-Risk Sex among SA 25-34 year olds | B60: =AVERAGE(B58:B59) -> 0.2825 | C60: Tool calculation: Straight average of male and female rate (adjustment for men sex woth sex workers and for M and F resp. over and under reporting) | D60: =AVERAGE(D58:D59) -> 0.2825 | E60: Average of male and female rate
A61: =INDEX(Translation!$B$1:$E$582,Translation!$A$146,Language) -> % of Sexually Active Women (35-49) that had Higher-Risk Sex in the last Year | B61: =VLOOKUP(Country,'6. Higher Risk Sex'!$A$5:$AF$70,16,FALSE) -> 0.129 | C61: =VLOOKUP(Country,'6. Higher Risk Sex'!$A$2:$AF$66,2,FALSE) -> 2018 DHS | D61: =VLOOKUP(Country,'6. Higher Risk Sex'!$A$5:$AF$70,16,FALSE) -> 0.129 | E61: =VLOOKUP(Country,'6. Higher Risk Sex'!$A$2:$AF$66,2,FALSE) -> 2018 DHS
A62: =INDEX(Translation!$B$1:$E$582,Translation!$A$147,Language) -> % of Sexually Active Men (35-49) that had Higher-Risk Sex in the last Year | B62: =VLOOKUP(Country,'6. Higher Risk Sex'!$A$5:$AF$70,31,FALSE) -> 0.207 | C62: =VLOOKUP(Country,'6. Higher Risk Sex'!$A$2:$AF$66,2,FALSE) -> 2018 DHS | D62: =VLOOKUP(Country,'6. Higher Risk Sex'!$A$5:$AF$70,31,FALSE) -> 0.207 | E62: =VLOOKUP(Country,'6. Higher Risk Sex'!$A$2:$AF$66,2,FALSE) -> 2018 DHS
A63: =INDEX(Translation!$B$1:$E$582,Translation!$A$148,Language) -> Average % Higher-Risk Sex among SA 35-49 year olds | B63: =AVERAGE(B61:B62) -> 0.168 | C63: Tool calculation: Straight average of male and female rate (adjustment for men sex woth sex workers and for M and F resp. over and under reporting) | D63: =AVERAGE(D61:D62) -> 0.168 | E63: Average of male and female rate
A64: =INDEX(Translation!$B$1:$E$582,Translation!$A$149,Language) -> % of Sexually Active Women (50-64) that had Higher-Risk Sex in the last Year | B64: =VLOOKUP(Country,'6. Higher Risk Sex'!$A$5:$AF$70,17,FALSE) -> 0.093 | C64: =VLOOKUP(Country,'6. Higher Risk Sex'!$A$2:$AF$66,2,FALSE) -> 2018 DHS | D64: =VLOOKUP(Country,'6. Higher Risk Sex'!$A$5:$AF$70,17,FALSE) -> 0.093 | E64: =VLOOKUP(Country,'6. Higher Risk Sex'!$A$2:$AF$66,2,FALSE) -> 2018 DHS
A65: =INDEX(Translation!$B$1:$E$582,Translation!$A$150,Language) -> % of Sexually Active Men (50-64) that had Higher-Risk Sex in the last Year | B65: =VLOOKUP(Country,'6. Higher Risk Sex'!$A$5:$AF$70,32,FALSE) -> 0.119 | C65: =VLOOKUP(Country,'6. Higher Risk Sex'!$A$2:$AF$66,2,FALSE) -> 2018 DHS | D65: =VLOOKUP(Country,'6. Higher Risk Sex'!$A$5:$AF$70,32,FALSE) -> 0.119 | E65: =VLOOKUP(Country,'6. Higher Risk Sex'!$A$2:$AF$66,2,FALSE) -> 2018 DHS
A66: =INDEX(Translation!$B$1:$E$582,Translation!$A$151,Language) -> Average % Higher-Risk Sex among SA 50-64 year olds | B66: =AVERAGE(B64:B65) -> 0.106 | C66: Tool calculation: Straight average of male and female rate (adjustment for men sex woth sex workers and for M and F resp. over and under reporting) | D66: =AVERAGE(D64:D65) -> 0.106 | E66: Average of male and female rate
A67: Men&Women (15-49) with NR Partners | B67: =((B$8*B$41*B$54)+((B$9*(1-B$90))*B$42*B$54))/2 -> 1244805.408 | C67: Number of M/F pairs engaging in sex with non-regular partner (adjusted for MSM) | D67: =((D$8*D$41*D$54)+((D$9*(1-D$90))*D$42*D$54))/2 -> 1244805.408 | E67: Number of M/F pairs engaging in sex with non-regular partner (adjusted for MSM) | G67: =D68+D69+D70 -> 1271001.646 | H67: =G67/D67 -> 1.021044444 | I67: <== Quality check Total NR partners 15-49 = (15-24)+(25-34)+(35-49) [Small discrepancy is normal]
A68: Young People (15-24) with NR Partners | B68: =((B$12*B$43*B$57)+((B$13*(1-B$90))*B$44*B$57))/2 -> 721390.1186 | C68: Number of M/F pairs engaging in sex with non-regular partner (adjusted for MSM) | D68: =((D$12*D$43*D$57)+((D$13*(1-D$90))*D$44*D$57))/2 -> 721390.1186 | E68: Number of M/F pairs engaging in sex with non-regular partner (adjusted for MSM)
A69: Men&Women (25-34) with NR Partners | B69: =((B$14*B$45*B$60)+((B$15*(1-B$90))*B$46*B$60))/2 -> 356766.6678 | C69: Number of M/F pairs engaging in sex with non-regular partner (adjusted for MSM) | D69: =((D$14*D$45*D$60)+((D$15*(1-D$90))*D$46*D$60))/2 -> 356766.6678 | E69: Number of M/F pairs engaging in sex with non-regular partner (adjusted for MSM)
A70: Men&Women (35-49) with NR Partners | B70: =((B$16*B$47*B$63)+((B$17*(1-B$90))*B$48*B$63))/2 -> 192844.8597 | C70: Number of M/F pairs engaging in sex with non-regular partner (adjusted for MSM) | D70: =((D$16*D$47*D$63)+((D$17*(1-D$90))*D$48*D$63))/2 -> 192844.8597 | E70: Number of M/F pairs engaging in sex with non-regular partner (adjusted for MSM)
A71: Men&Women (50-64) with NR Partners | B71: =((B$18*B$48*B$66)+((B$19*(1-B$90))*B$49*B$66))/2 -> 50529.90897 | C71: Number of M/F pairs engaging in sex with non-regular partner (adjusted for MSM) | D71: =((D$18*D$48*D$66)+((D$19*(1-D$90))*D$49*D$66))/2 -> 50529.90897 | E71: Number of M/F pairs engaging in sex with non-regular partner (adjusted for MSM)
A72: =INDEX(Translation!$B$1:$E$582,Translation!$A$156,Language) -> 6. Family Planning
A73: =INDEX(Translation!$B$1:$E$582,Translation!$A$157,Language) -> % of Couples Using Modern Method of Contraception (of all married/cohabiting) | B73: =VLOOKUP(Country,'8. FP'!$A$6:$G$147,3,FALSE) -> 0.471 | C73: =VLOOKUP(Country,'8. FP'!$A$6:$G$147,7,FALSE) -> Zambia 2018 Demographic and Health Survey (DHS) | D73: =VLOOKUP(Country,'8. FP'!$A$6:$G$147,3,FALSE) -> 0.471 | E73: =VLOOKUP(Country,'8. FP'!$A$6:$G$147,7,FALSE) -> Zambia 2018 Demographic and Health Survey (DHS)
A74: Target for % of women (couples) who have their need for family planning satisfied with modern method (CPR) | B74: =VLOOKUP(Country,'8. FP'!$A$6:$G$147,3,FALSE) -> 0.471 | C74: Current baseline rate (B73) used as default target rate | D74: =VLOOKUP(Country,'8. FP'!$A$6:$G$147,3,FALSE) -> 0.471 | E74: Current baseline rate (B73) used as default target rate | G74: Target to be set by user based on national FP targets
A75: =INDEX(Translation!$B$1:$E$582,Translation!$A$158,Language) -> % of Couples Using Traditional FP Method | B75: =VLOOKUP(Country,'8. FP'!$A$6:$G$147,6,FALSE) -> 0.024 | C75: =VLOOKUP(Country,'8. FP'!$A$6:$G$147,7,FALSE) -> Zambia 2018 Demographic and Health Survey (DHS) | D75: =VLOOKUP(Country,'8. FP'!$A$6:$G$147,6,FALSE) -> 0.024 | E75: =VLOOKUP(Country,'8. FP'!$A$6:$G$147,7,FALSE) -> Zambia 2018 Demographic and Health Survey (DHS)
A76: =INDEX(Translation!$B$1:$E$582,Translation!$A$159,Language) -> % of Couples with Unmet Need for Contraception (of all married/cohabiting) | B76: =VLOOKUP(Country,'8. FP'!$A$6:$G$147,5,FALSE) -> 0.03 | C76: =VLOOKUP(Country,'8. FP'!$A$6:$G$147,7,FALSE) -> Zambia 2018 Demographic and Health Survey (DHS) | D76: =VLOOKUP(Country,'8. FP'!$A$6:$G$147,5,FALSE) -> 0.03 | E76: =VLOOKUP(Country,'8. FP'!$A$6:$G$147,7,FALSE) -> Zambia 2018 Demographic and Health Survey (DHS)
A77: =INDEX(Translation!$B$1:$E$582,Translation!$A$160,Language) -> % of Couples with Unmet Need for Modern Contraception | B77: =B75+B76 -> 0.054 | C77: =INDEX(Translation!$B$1:$E$582,Translation!$A$161,Language) -> Couples with expressed need + currently using non-efficient (traditional) methods | D77: =D75+D76 -> 0.054 | E77: =INDEX(Translation!$B$1:$E$582,Translation!$A$161,Language) -> Couples with expressed need + currently using non-efficient (traditional) methods
A78: Target for Unmet Need for Modern Contraception (by target year) | B78: =B77 -> 0.054 | C78: Current baseline rate (B77) used as default target rate | D78: =D77 -> 0.054 | E78: Current baseline rate (B77) used as default target rate | G78: Target to be set by user based on national FP targets
A79: =INDEX(Translation!$B$1:$E$582,Translation!$A$162,Language) -> % Share Condoms Make up of Modern Method Mix (Current Users) | B79: =VLOOKUP(Country,'8. FP'!$A$6:$G$147,4,FALSE)/VLOOKUP(Country,'8. FP'!$A$6:$G$147,3,FALSE) -> 0.06369426752 | C79: =VLOOKUP(Country,'8. FP'!$A$6:$G$147,7,FALSE) -> Zambia 2018 Demographic and Health Survey (DHS) | D79: =VLOOKUP(Country,'8. FP'!$A$6:$G$147,4,FALSE)/VLOOKUP(Country,'8. FP'!$A$6:$G$147,3,FALSE) -> 0.06369426752 | E79: =VLOOKUP(Country,'8. FP'!$A$6:$G$147,7,FALSE) -> Zambia 2018 Demographic and Health Survey (DHS)
A80: # Couples using Modern Method for FP (Baseline) | B80: =(((B$8*B$22)+(B$9*B$23))/2)*B$73 -> 1189291.277 | C80: Tool Calculations | D80: =(((D$8*D$22)+(D$9*D$23))/2)*D$73 -> 1189291.277 | E80: Tool Calculations
A81: # Couples using Modern Method for FP (Target year) | B81: =((((B$8*B$22)+(B$9*B$23))/2)*B$74)*(1+Pop_Growth) -> 1369000.46 | C81: Tool Calculations | D81: =((((D$8*D$22)+(D$9*D$23))/2)*D$74)*(1+Pop_Growth) -> 1369000.46 | E81: Tool Calculations
A82: =INDEX(Translation!$B$1:$E$581,Translation!$A$163,Language) -> Couples Using Condoms for FP | B82: =(B$8*B$22+B$9*B$23)/2*B$73*B$79 -> 75751.03675 | C82: Tool Calculations | D82: =(((D$8*D$22)+(D$9*D$23))/2)*D$73*D$79 -> 75751.03675 | E82: Tool Calculations
A83: # Couples with Unmet Need for Modern Contraception | B83: =(((B$8*B$22)+(B$9*B$23))/2)*B$77 -> 136351.8662 | C83: Tool Calculations | D83: =(((D$8*D$22)+(D$9*D$23))/2)*D$77 -> 136351.8662 | E83: Tool Calculations
A84: # Couples with Unmet Need for Modern Contraception (by Target year) | B84: =(((B$8*B$22)+(B$9*B$23))/2)*B$78*(1+B6) -> 156955.4668 | C84: Tool Calculations | D84: =(((D$8*D$22)+(D$9*D$23))/2)*D$78*(1+D6) -> 156955.4668 | E84: Tool Calculations
A85: =INDEX(Translation!$B$1:$E$581,Translation!$A$164,Language) -> Couples With Unmet Need for FP Condoms | B85: =(B$8*B$22+B$12*B$23)/2*B$77*B$79 -> 6415.08227 | C85: Tool calculation: assuming the same % share of condoms in method mix for future users as % among current modern method FP users | D85: =(((D$8*D$22)+(D$12*D$23))/2)*D$77*D$79 -> 6415.08227 | E85: Tool calculation: assuming the same % share of condoms in method mix for future users as % among current modern method FP users
A86: Couples with Unmet Need for FP with condoms based on Target for reduction of unmet need for Modern Contraception | B86: =(((B$8*B$22)+(B$9*B$23))/2)*B$78*B79 -> 8684.832239 | C86: Tool Calculations | D86: =(((D$8*D$22)+(D$9*D$23))/2)*D$78*D79 -> 8684.832239 | E86: Tool Calculations | G86: Consult UNAIDS AIDSINFO and Key Population Atlas for most recent country specific KP size estimates and condom use data
A87: =INDEX(Translation!$B$1:$E$582,Translation!$A$165,Language) -> 7. Key populations | H87: https://aidsinfo.unaids.org/ | J87: https://kpatlas.unaids.org/dashboard
A88: =INDEX(Translation!$B$1:$E$582,Translation!$A$166,Language) -> % of Women Age 18-49 that are Sex Workers | B88: 0.01 | C88: Default Assumption: 1% of Female Population (age 18-49). Use country-specific data if available | D88: 0.01 | E88: Default Assumption: 1% of Female Population (age 18-49). Use country-specific data if available | G88: =D89/(D8-D20) -> 0.01 | H88: If user wants to enter SW data as absolute number rather than as a percentage, formula in cell D81 should be changed to D87/(D8-D20) to see %.
A89: =INDEX(Translation!$B$1:$E$582,Translation!$A$167,Language) -> Women Age 18-49 that are Sex Workers | B89: =B88*(B$8-B$20) -> 41252.49 | C89: Default Assumption: 1% of Female Population (age 18-49). Use country-specific data if available | D89: =D88*(D$8-D$20) -> 41252.49 | E89: Default Assumption: 1% of Female Population (age 18-49). Use country-specific data if available | G89: =VLOOKUP(Country,'13. KP data'!$A$5:$AF$175,17,FALSE) -> 18000 | H89: =VLOOKUP(Country,'13. KP data'!$A$5:$AF$175,32,FALSE) -> Country specific data, AIDS INFO, most recent data 2019
A90: =INDEX(Translation!$B$1:$E$582,Translation!$A$168,Language) -> % of Men Age 15-64 that have Sex with Men | B90: 0.015 | C90: Default Assumption: 1.5% of Male Population (age 15-64). Use country-specific data if available | D90: 0.015 | E90: Default Assumption: 1.5% of Male Population (age 15-64). Use country-specific data if available | G90: =D91/D11 -> 0.015 | H90: If user wants to enter MSM data as absolute number rather than as a percentage, formula in cell D83 should be changed to D89/ D11 to see %.
A91: =INDEX(Translation!$B$1:$E$582,Translation!$A$169,Language) -> Men Age 15-64 that have Sex with Men | B91: =B90*B11 -> 78475.62 | C91: Default Assumption: 1.5% of Male Population (age 15-64). Use country-specific data if available | D91: =D90*D11 -> 78475.62 | E91: Default Assumption: 1.5% of Male Population (age 15-64). Use country-specific data if available | G91: =VLOOKUP(Country,'13. KP data'!$A$5:$AF$175,20,FALSE) -> 6500 | H91: =VLOOKUP(Country,'13. KP data'!$A$5:$AF$175,32,FALSE) -> Country specific data, AIDS INFO, most recent data 2019
A92: =INDEX(Translation!$B$1:$E$582,Translation!$A$171,Language) -> People who Inject Drugs (PWID) | B92: 0 | C92: Enter last available estimate of population size | D92: 0 | E92: Enter last available estimate of population size | G92: =VLOOKUP(Country,'13. KP data'!$A$5:$AF$175,24,FALSE) -> 2300 | H92: =VLOOKUP(Country,'13. KP data'!$A$5:$AF$175,32,FALSE) -> Country specific data, AIDS INFO, most recent data 2019
A93: =INDEX(Translation!$B$1:$E$582,Translation!$A$172,Language) -> Transgender (TG) | B93: 0 | C93: Enter last available estimate of population size | D93: 0 | E93: Enter last available estimate of population size | G93: =VLOOKUP(Country,'13. KP data'!$A$5:$AF$175,28,FALSE) -> ... | H93: =VLOOKUP(Country,'13. KP data'!$A$5:$AF$175,32,FALSE) -> Country specific data, AIDS INFO, most recent data 2019
A94: People Diagnosed with an STI | B94: 0 | C94: Enter last available estimate of population size | D94: 0 | E94: Enter last available estimate of population size
A95: Prisoners | B95: 0 | C95: Enter last available estimate of population size | D95: 0 | E95: Enter last available estimate of population size
A96: People living with disabilities | B96: 0 | C96: Enter last available estimate of population size | D96: 0 | E96: Enter last available estimate of population size
A97: =INDEX(Translation!$B$1:$E$582,Translation!$A$174,Language) -> Other [Please Specify]: | B97: 0 | C97: Enter last available estimate of population size | D97: 0 | E97: Enter last available estimate of population size | G97: To add a priority population write the descriptoion/label in cell A95 and provide baseline value in cell D95
A98: =INDEX(Translation!$B$1:$E$582,Translation!$A$174,Language) -> Other [Please Specify]: | B98: 0 | C98: Enter last available estimate of population size | D98: 0 | E98: Enter last available estimate of population size | G98: To add a priority population write the descriptoion/label in cell A96 and provide baseline value in cell D96
A99: =INDEX(Translation!$B$1:$E$582,Translation!$A$175,Language) -> 8. Condom Use Baseline
A100: =INDEX(Translation!$B$1:$E$582,Translation!$A$176,Language) -> PLHIV Couples | B100: =VLOOKUP(Country,'13. KP data'!$A$5:$AF$175,7,FALSE) -> 0.4 | C100: =VLOOKUP(Country,'13. KP data'!$A$5:$AE$175,8,FALSE) -> Sub-regional proxy estimate (UNAIDS), replace with national data or estimate, if available | D100: =VLOOKUP(Country,'13. KP data'!$A$5:$AF$175,7,FALSE) -> 0.4 | E100: =VLOOKUP(Country,'13. KP data'!$A$5:$AE$175,8,FALSE) -> Sub-regional proxy estimate (UNAIDS), replace with national data or estimate, if available
A101: =INDEX(Translation!$B$1:$E$582,Translation!$A$177,Language) -> Sex workers | B101: =VLOOKUP(Country,'13. KP data'!$A$5:$AF$175,3,FALSE) -> 0.7 | C101: =VLOOKUP(Country,'13. KP data'!$A$5:$AE$175,8,FALSE) -> Sub-regional proxy estimate (UNAIDS), replace with national data or estimate, if available | D101: =VLOOKUP(Country,'13. KP data'!$A$5:$AF$175,3,FALSE) -> 0.7 | E101: Sub-regional proxy estimate (UNAIDS), replace with national data or estimate, if available | G101: =VLOOKUP(Country,'13. KP data'!$A$5:$AE$175,9,FALSE) -> 0.785 | H101: =VLOOKUP(Country,'13. KP data'!$A$5:$AF$175,32,FALSE) -> Country specific data, AIDS INFO, most recent data 2019
A102: =INDEX(Translation!$B$1:$E$582,Translation!$A$178,Language) -> Men Having Sex with Men (MSM) | B102: =VLOOKUP(Country,'13. KP data'!$A$5:$AF$175,4,FALSE) -> 0.55 | C102: =VLOOKUP(Country,'13. KP data'!$A$5:$AE$175,8,FALSE) -> Sub-regional proxy estimate (UNAIDS), replace with national data or estimate, if available | D102: =VLOOKUP(Country,'13. KP data'!$A$5:$AF$175,4,FALSE) -> 0.55 | E102: Sub-regional proxy estimate (UNAIDS), replace with national data or estimate, if available | G102: =VLOOKUP(Country,'13. KP data'!$A$5:$AE$175,11,FALSE) -> ... | H102: =VLOOKUP(Country,'13. KP data'!$A$5:$AF$175,32,FALSE) -> Country specific data, AIDS INFO, most recent data 2019
A103: Women15-49 | B103: =VLOOKUP(Country,'7. Condom Use for HRS'!$A$5:$AF$83,3,FALSE) -> 0.345 | C103: =VLOOKUP(Country,'7. Condom Use for HRS'!$A$5:$AF$83,2,FALSE) -> 2018 DHS | D103: =VLOOKUP(Country,'7. Condom Use for HRS'!$A$5:$AF$83,3,FALSE) -> 0.345 | E103: =VLOOKUP(Country,'7. Condom Use for HRS'!$A$5:$AF$83,2,FALSE) -> 2018 DHS
A104: Men 15-49 | B104: =VLOOKUP(Country,'7. Condom Use for HRS'!$A$5:$AF$83,18,FALSE) -> 0.535 | C104: =VLOOKUP(Country,'7. Condom Use for HRS'!$A$5:$AF$83,2,FALSE) -> 2018 DHS | D104: =VLOOKUP(Country,'7. Condom Use for HRS'!$A$5:$AF$83,18,FALSE) -> 0.535 | E104: =VLOOKUP(Country,'7. Condom Use for HRS'!$A$5:$AF$83,2,FALSE) -> 2018 DHS
A105: Women15-24 | B105: =VLOOKUP(Country,'7. Condom Use for HRS'!$A$5:$AF$83,14,FALSE) -> 0.337 | C105: =VLOOKUP(Country,'7. Condom Use for HRS'!$A$5:$AF$83,2,FALSE) -> 2018 DHS | D105: =VLOOKUP(Country,'7. Condom Use for HRS'!$A$5:$AF$83,14,FALSE) -> 0.337 | E105: =VLOOKUP(Country,'7. Condom Use for HRS'!$A$5:$AF$83,2,FALSE) -> 2018 DHS
A106: Men 15-24 | B106: =VLOOKUP(Country,'7. Condom Use for HRS'!$A$5:$AF$83,29,FALSE) -> 0.492 | C106: =VLOOKUP(Country,'7. Condom Use for HRS'!$A$5:$AF$83,2,FALSE) -> 2018 DHS | D106: =VLOOKUP(Country,'7. Condom Use for HRS'!$A$5:$AF$83,29,FALSE) -> 0.492 | E106: =VLOOKUP(Country,'7. Condom Use for HRS'!$A$5:$AF$83,2,FALSE) -> 2018 DHS
A107: Women 25-34 | B107: =VLOOKUP(Country,'7. Condom Use for HRS'!$A$5:$AF$83,15,FALSE) -> 0.36 | C107: =VLOOKUP(Country,'7. Condom Use for HRS'!$A$5:$AF$83,2,FALSE) -> 2018 DHS | D107: =VLOOKUP(Country,'7. Condom Use for HRS'!$A$5:$AF$83,15,FALSE) -> 0.36 | E107: =VLOOKUP(Country,'7. Condom Use for HRS'!$A$5:$AF$83,2,FALSE) -> 2018 DHS
A108: Men 25-34 | B108: =VLOOKUP(Country,'7. Condom Use for HRS'!$A$5:$AF$83,30,FALSE) -> 0.626 | C108: =VLOOKUP(Country,'7. Condom Use for HRS'!$A$5:$AF$83,2,FALSE) -> 2018 DHS | D108: =VLOOKUP(Country,'7. Condom Use for HRS'!$A$5:$AF$83,30,FALSE) -> 0.626 | E108: =VLOOKUP(Country,'7. Condom Use for HRS'!$A$5:$AF$83,2,FALSE) -> 2018 DHS
A109: Women 35-49 | B109: =VLOOKUP(Country,'7. Condom Use for HRS'!$A$5:$AF$83,16,FALSE) -> 0.35 | C109: =VLOOKUP(Country,'7. Condom Use for HRS'!$A$5:$AF$83,2,FALSE) -> 2018 DHS | D109: =VLOOKUP(Country,'7. Condom Use for HRS'!$A$5:$AF$83,16,FALSE) -> 0.35 | E109: =VLOOKUP(Country,'7. Condom Use for HRS'!$A$5:$AF$83,2,FALSE) -> 2018 DHS
A110: Men 35-49 | B110: =VLOOKUP(Country,'7. Condom Use for HRS'!$A$5:$AF$83,31,FALSE) -> 0.52 | C110: =VLOOKUP(Country,'7. Condom Use for HRS'!$A$5:$AF$83,2,FALSE) -> 2018 DHS | D110: =VLOOKUP(Country,'7. Condom Use for HRS'!$A$5:$AF$83,31,FALSE) -> 0.52 | E110: =VLOOKUP(Country,'7. Condom Use for HRS'!$A$5:$AF$83,2,FALSE) -> 2018 DHS
A111: Women 50-64 | B111: =VLOOKUP(Country,'7. Condom Use for HRS'!$A$5:$AF$83,17,FALSE) -> 0.28125 | C111: =VLOOKUP(Country,'7. Condom Use for HRS'!$A$5:$AF$83,2,FALSE) -> 2018 DHS | D111: =VLOOKUP(Country,'7. Condom Use for HRS'!$A$5:$AF$83,17,FALSE) -> 0.28125 | E111: =VLOOKUP(Country,'7. Condom Use for HRS'!$A$5:$AF$83,2,FALSE) -> 2018 DHS
A112: Men 50-64 | B112: =VLOOKUP(Country,'7. Condom Use for HRS'!$A$5:$AF$83,32,FALSE) -> 0.369 | C112: =VLOOKUP(Country,'7. Condom Use for HRS'!$A$5:$AF$83,2,FALSE) -> 2018 DHS | D112: =VLOOKUP(Country,'7. Condom Use for HRS'!$A$5:$AF$83,32,FALSE) -> 0.369 | E112: =VLOOKUP(Country,'7. Condom Use for HRS'!$A$5:$AF$83,2,FALSE) -> 2018 DHS
A113: Men&Women (15-49 ) with NR Partners | B113: =((B103*B$8*B$41*B$54)+(B104*B$9*B$42*B$54))/((B$8*B$41*B$54)+(B$9*B$42*B$54)) -> 0.4384428029 | C113: weighted average | D113: =((D103*D$8*D$41*D$54)+(D104*D$9*D$42*D$54))/((D$8*D$41*D$54)+(D$9*D$42*D$54)) -> 0.4384428029 | E113: weighted average
A114: =INDEX(Translation!$B$1:$E$582,Translation!$A$179,Language) -> Young People (15-24) with NR Partners (pairs) | B114: =((B105*B$12*B$43*B$57)+(B106*B$13*B$44*B$57))/((B$12*B$43*B$57)+(B$13*B$44*B$57)) -> 0.4073080571 | C114: weighted average | D114: =((D105*D$12*D$43*D$57)+(D106*D$13*D$44*D$57))/((D$12*D$43*D$57)+(D$13*D$44*D$57)) -> 0.4073080571 | E114: weighted average
A115: =INDEX(Translation!$B$1:$E$582,Translation!$A$180,Language) -> Men&Women (25-34) with NR Partners (pairs) | B115: =((B107*B$12*B$43*B$57)+(B108*B$13*B$44*B$57))/((B$12*B$43*B$57)+(B$13*B$44*B$57)) -> 0.480657698 | C115: weighted average | D115: =((D107*D$12*D$43*D$57)+(D108*D$13*D$44*D$57))/((D$12*D$43*D$57)+(D$13*D$44*D$57)) -> 0.480657698 | E115: weighted average
A116: =INDEX(Translation!$B$1:$E$582,Translation!$A$181,Language) -> Men&Women (35-49) with NR Partners (pairs) | B116: =((B109*B$12*B$43*B$57)+(B110*B$13*B$44*B$57))/((B$12*B$43*B$57)+(B$13*B$44*B$57)) -> 0.4271120626 | C116: weighted average | D116: =((D109*D$12*D$43*D$57)+(D110*D$13*D$44*D$57))/((D$12*D$43*D$57)+(D$13*D$44*D$57)) -> 0.4271120626 | E116: weighted average
A117: =INDEX(Translation!$B$1:$E$582,Translation!$A$182,Language) -> Men&Women (50-64) with NR Partners (pairs) | B117: =((B111*B$12*B$43*B$57)+(B112*B$13*B$44*B$57))/((B$12*B$43*B$57)+(B$13*B$44*B$57)) -> 0.3210534323 | C117: weighted average | D117: =((D111*D$12*D$43*D$57)+(D112*D$13*D$44*D$57))/((D$12*D$43*D$57)+(D$13*D$44*D$57)) -> 0.3210534323 | E117: weighted average
A118: =INDEX(Translation!$B$1:$E$582,Translation!$A$184,Language) -> Couples Using Condoms for FP | B118: 1 | C118: By definition 100% - all couples who use condoms for FP are considered using condoms systematically | D118: 1 | E118: By definition 100% - all couples who use condoms for FP are considered using condoms systematically
A119: =INDEX(Translation!$B$1:$E$582,Translation!$A185,Language) -> Couples With Unmet Need for FP Condoms | B119: 0 | C119: By definiition 0% - need is not meet | D119: 0 | E119: By definiition 0% - need is not meet
A120: =INDEX(Translation!$B$1:$E$582,Translation!$A$187,Language) -> People who Inject Drugs (PWID) | B120: =VLOOKUP(Country,'13. KP data'!$A$5:$AF$175,5,FALSE) -> 0.4 | C120: =VLOOKUP(Country,'13. KP data'!$A$5:$AE$175,8,FALSE) -> Sub-regional proxy estimate (UNAIDS), replace with national data or estimate, if available | D120: =VLOOKUP(Country,'13. KP data'!$A$5:$AF$175,5,FALSE) -> 0.4 | E120: Sub-regional proxy estimate (UNAIDS), replace with national data or estimate, if available | G120: =VLOOKUP(Country,'13. KP data'!$A$5:$AE$175,13,FALSE) -> ... | H120: =VLOOKUP(Country,'13. KP data'!$A$5:$AF$175,32,FALSE) -> Country specific data, AIDS INFO, most recent data 2019
A121: =INDEX(Translation!$B$1:$E$582,Translation!$A$188,Language) -> Transgender (TG) | B121: =VLOOKUP(Country,'13. KP data'!$A$5:$AF$175,6,FALSE) -> 0.45 | C121: =VLOOKUP(Country,'13. KP data'!$A$5:$AE$175,8,FALSE) -> Sub-regional proxy estimate (UNAIDS), replace with national data or estimate, if available | D121: =VLOOKUP(Country,'13. KP data'!$A$5:$AF$175,6,FALSE) -> 0.45 | E121: =VLOOKUP(Country,'13. KP data'!$A$5:$AE$175,8,FALSE) -> Sub-regional proxy estimate (UNAIDS), replace with national data or estimate, if available | G121: =VLOOKUP(Country,'13. KP data'!$A$5:$AE$175,15,FALSE) -> ... | H121: =VLOOKUP(Country,'13. KP data'!$A$5:$AF$175,32,FALSE) -> Country specific data, AIDS INFO, most recent data 2019
A122: People Diagnosed with an STI | B122: 0 | C122: Enter last available estimate of population size | D122: 0 | E122: Enter last available estimate of population size
A123: Prisoners | B123: 0 | C123: Enter last available estimate of population size | D123: 0 | E123: Enter last available estimate of population size
A124: People living with disabilities | B124: 0 | C124: Enter last available estimate of population size | D124: 0 | E124: Enter last available estimate of population size
A125: =A97 -> Other [Please Specify]: | B125: 0 | C125: Enter last available estimate of population size | D125: 0 | E125: Enter last available estimate of population size
A126: =A98 -> Other [Please Specify]: | B126: 0 | C126: Enter last available estimate of population size | D126: 0 | E126: Enter last available estimate of population size

Sheet 3. Condom Requirements
A1: =INDEX(Translation!$B$1:$E$581,Translation!$A$192,Language) -> Condom Consumption Baseline and Targets | C1: ='Cover Sheet'!$B$2 -> CNET Version 5.0 [2023-2027] - (20 February 2023 - Excel for Office 365) | Q1: 2022 Gap analysis
A2: =Country -> Zambia | B2: =INDEX(Translation!$B$1:$E$581,Translation!$A$193,Language) -> Size of population in 2022 | C2: =INDEX(Translation!$B$1:$E$581,Translation!$A$194,Language) -> Size of Population in 2027 | D2: =INDEX(Translation!$B$1:$E$581,Translation!$A$195,Language) -> Baseline Coverage (% condom use at last sex) | E2: =INDEX(Translation!$B$1:$E$581,Translation!$A$196,Language) -> Target Coverage in 2027 | F2: =INDEX(Translation!$B$1:$E$581,Translation!$A$197,Language) -> Annual No. of Sex Acts Requiring Protection | G2: =INDEX(Translation!$B$1:$E$581,Translation!$A$198,Language) -> Wastage | H2: =INDEX(Translation!$B$1:$E$581,Translation!$A$199,Language) -> BASELINE: Total Condoms Used | I2: =INDEX(Translation!$B$1:$E$581,Translation!$A$202,Language) -> Total Condoms Required in 2023 | J2: =INDEX(Translation!$B$1:$E$581,Translation!$A$203,Language) -> Total Condoms Required in 2024 | K2: =INDEX(Translation!$B$1:$E$581,Translation!$A$204,Language) -> Total Condoms Required in 2025 | L2: =INDEX(Translation!$B$1:$E$581,Translation!$A$205,Language) -> Total Condoms Required in 2026 | M2: =INDEX(Translation!$B$1:$E$581,Translation!$A$206,Language) -> Total Condoms Required in 2027 | N2: =INDEX(Translation!$B$1:$E$581,Translation!$A$207,Language) -> % of Total Condoms Required in 2027 | Q2: Total Condom Need in 2022 (90% condom use targets) | R2: 2022 Condom Gap (use vs need) [H-Q] | S2: % Gap | T2: Total Condom Need in 2022 (country 2027 targets) | U2: 2022 Condom Gap (use vs need) [H-Q] | V2: % Gap | AK2: GRAPH DATA | AT2: 2022 Baseline | AU2: 2025 Target
D3: 2022 | E3: 2027 | H3: 2022 | I3: =Start_Year -> 2023 | J3: =I3+1 -> 2024 | K3: =J3+1 -> 2025 | L3: 2026 | M3: =Target_Year -> 2027 | Q3: 2022 | T3: 2022 | AK3: Condom Baseline and Target by Population
A4: =INDEX(Translation!$B$1:$E$581,Translation!$A$34,Language) -> Key Populations | AL4: =Start_Year -> 2023 | AM4: =AL4+1 -> 2024 | AN4: =AM4+1 -> 2025 | AO4: =AN4+1 -> 2026 | AP4: =+Target_Year -> 2027 | AT4: Condom use 60%: recommended treshhold | AU4: Condom use 90%: recommended target
A5: =INDEX(Translation!$B$1:$E$581,Translation!$A$50,Language) -> PLHIV Couples | B5: ='2. Demographic Data'!$D$37 -> 337770 | C5: ='2. Demographic Data'!$D$38 -> 355685.5118 | D5: ='2. Demographic Data'!$D$100 -> 0.4 | E5: 0.75 | F5: 100 | G5: 0.2 | H5: =B5*D5*F5*(1+G5) -> 16212960 | I5: =IF(I$3>Target_Year,0,IF(I$3=Target_Year,$C5*$E5*$F5*(1+$G5),H5+($M5-$H5)/(Target_Year-2022))) -> 19372707.21 | J5: 22532454.42 | K5: 25692201.64 | L5: 28851948.85 | M5: =$C5*$E5*$F5*(1+$G5) -> 32011696.06 | N5: =M5/M$21 -> 0.2233296406 | Q5: =B5*90%*F5*(1+G5) -> 36479160 | R5: =H5-Q5 -> -20266200 | S5: =R5/Q5 -> -0.5555555556 | T5: =B5*E5*F5*(1+G5) -> 30399300 | U5: =H5-T5 -> -14186340 | V5: =U5/T5 -> -0.4666666667 | AK5: =$A$5 -> PLHIV Couples | AL5: =I$5 -> 19372707.21 | AM5: =J$5 -> 22532454.42 | AN5: =K$5 -> 25692201.64 | AO5: =L$5 -> 28851948.85 | AP5: =M$5 -> 32011696.06 | AT5: 0.6 | AU5: 0.9
A6: =INDEX(Translation!$B$1:$E$581,Translation!$A$51,Language) -> Sex workers | B6: ='2. Demographic Data'!$D$89 -> 41252.49 | C6: =B6*(1+Pop_Growth) -> 47485.99345 | D6: ='2. Demographic Data'!$D$101 -> 0.7 | E6: 0.9 | F6: 450 | G6: =$G$5 -> 0.2 | H6: =B6*D6*F6*(1+G6) -> 15593441.22 | I6: 17090391.54 | J6: 18587341.86 | K6: 20084292.18 | L6: 21581242.5 | M6: =$C6*$E6*$F6*(1+$G6) -> 23078192.82 | N6: =M6/M$21 -> 0.1610050432 | Q6: =B6*95%*F6*(1+G6) -> 21162527.37 | R6: =H6-Q6 -> -5569086.15 | S6: =R6/Q6 -> -0.2631578947 | T6: =B6*E6*F6*(1+G6) -> 20048710.14 | U6: =H6-T6 -> -4455268.92 | V6: =U6/T6 -> -0.2222222222 | AK6: =$A$6 -> Sex workers | AL6: =I$6 -> 17090391.54 | AM6: =J$6 -> 18587341.86 | AN6: =K$6 -> 20084292.18 | AO6: =L$6 -> 21581242.5 | AP6: =M$6 -> 23078192.82 | AT6: 0.6 | AU6: 0.9
A7: =INDEX(Translation!$B$1:$E$581,Translation!$A$52,Language) -> Men Having Sex with Men (MSM) | B7: ='2. Demographic Data'!$D$91 -> 78475.62 | C7: =B7*(1+Pop_Growth) -> 90333.76597 | D7: ='2. Demographic Data'!$D$102 -> 0.55 | E7: 0.75 | F7: 100 | G7: =$G$5 -> 0.2 | H7: 5179390.92 | I7: 5769520.523 | J7: 6359650.127 | K7: 6949779.73 | L7: 7539909.334 | M7: 8130038.937 | N7: =M7/M$21 -> 0.05671922756 | Q7: =B7*90%*F7*(1+G7) -> 8475366.96 | R7: -3295976.04 | S7: =R7/Q7 -> -0.3888888889 | T7: =B7*E7*F7*(1+G7) -> 7062805.8 | U7: =H7-T7 -> -1883414.88 | V7: =U7/T7 -> -0.2666666667 | AK7: =$A$7 -> Men Having Sex with Men (MSM) | AL7: =I$7 -> 5769520.523 | AM7: =J$7 -> 6359650.127 | AN7: =K$7 -> 6949779.73 | AO7: =L$7 -> 7539909.334 | AP7: =M$7 -> 8130038.937 | AT7: 0.6 | AU7: 0.9
A8: =INDEX(Translation!$B$1:$E$581,Translation!$A$38,Language) -> People who have Sex with Non-Regular Partners [PAIRS] | AK8: =INDEX(Translation!$B$1:$E$581,Translation!$A$53,Language) -> Young People (15-24) with NR Partners (pairs) | AL8: =I$9 -> 21577313.55 | AM8: =$J$9 -> 25524946.64 | AN8: =K9 -> 29472579.73 | AO8: =L9 -> 33420212.83 | AP8: =M9 -> 37367845.92 | AT8: 0.6 | AU8: 0.9
A9: =INDEX(Translation!$B$1:$E$581,Translation!$A$53,Language) -> Young People (15-24) with NR Partners (pairs) | B9: ='2. Demographic Data'!$D$68 -> 721390.1186 | C9: =B9*(1+Pop_Growth) -> 830396.5759 | D9: ='2. Demographic Data'!$D$114 -> 0.4073080571 | E9: 0.75 | F9: 50 | G9: =$G$5 -> 0.2 | H9: =B9*D9*F9*(1+G9) -> 17629680.46 | I9: =IF(I$3>Target_Year,0,IF(I$3=Target_Year,$C9*$E9*$F9*(1+$G9),H9+($M9-$H9)/(Target_Year-2022))) -> 21577313.55 | J9: 25524946.64 | K9: 29472579.73 | L9: 33420212.83 | M9: =$C9*$E9*$F9*(1+$G9) -> 37367845.92 | N9: =M9/M$21 -> 0.2606968272 | Q9: =B9*90%*F9*(1+G9) -> 38955066.4 | R9: =H9-Q9 -> -21325385.95 | S9: =R9/Q9 -> -0.5474354921 | T9: =B9*E9*F9*(1+G9) -> 32462555.34 | U9: =H9-T9 -> -14832874.88 | V9: =U9/T9 -> -0.4569225905 | AK9: =INDEX(Translation!$B$1:$E$581,Translation!$A$183,Language) -> Men&Women (25-64 ) with NR Partners (pairs) | AL9: =SUM(I$10:I$12) -> 19180885.26 | AM9: =SUM(J$10:J$12) -> 22157461.81 | AN9: =SUM(K$10:K$12) -> 25134038.35 | AO9: =SUM(L$10:L$12) -> 28110614.9 | AP9: =SUM(M$10:M$12) -> 31087191.45 | AT9: 0.6 | AU9: 0.9
A10: =INDEX(Translation!$B$1:$E$581,Translation!$A$54,Language) -> Men&Women (25-34) with NR Partners (pairs) | B10: ='2. Demographic Data'!$D$69 -> 356766.6678 | C10: =B10*(1+Pop_Growth) -> 410676.2925 | D10: ='2. Demographic Data'!$D$115 -> 0.480657698 | E10: 0.75 | F10: 50 | G10: =$G$5 -> 0.2 | H10: 10288958.72 | I10: 11927253.61 | J10: 13565548.5 | K10: 15203843.39 | L10: 16842138.28 | M10: 18480433.16 | N10: =M10/M$21 -> 0.1289287668 | Q10: 19265400.06 | R10: -8976441.345 | S10: =R10/Q10 -> -0.4659358911 | T10: =B10*E10*F10*(1+G10) -> 16054500.05 | U10: =H10-T10 -> -5765541.335 | V10: =U10/T10 -> -0.3591230693 | AK10: =INDEX(Translation!$B$1:$E$581,Translation!$A$57,Language) -> Couples Using Condoms for FP | AL10: =SUM($I$14:$I$15) -> 9604771.009 | AM10: =SUM(J$14:J$15) -> 10119417.61 | AN10: =SUM(K$14:K$15) -> 10634064.21 | AO10: =SUM(L$14:L$15) -> 11148710.8 | AP10: =SUM(M$14:M$15) -> 11663357.4 | AT10: 0.6 | AU10: 0.9
A11: =INDEX(Translation!$B$1:$E$581,Translation!$A$55,Language) -> Men&Women (35-49) with NR Partners (pairs) | B11: ='2. Demographic Data'!$D$70 -> 192844.8597 | C11: =B11*(1+Pop_Growth) -> 221984.897 | D11: ='2. Demographic Data'!$D$116 -> 0.4271120626 | E11: 0.75 | F11: 50 | G11: =$G$5 -> 0.2 | H11: 4941981.948 | I11: 5951449.632 | J11: 6960917.315 | K11: 7970384.999 | L11: 8979852.683 | M11: 9989320.366 | N11: =M11/M$21 -> 0.06969050695 | Q11: 10413622.42 | R11: -5471640.476 | S11: =R11/Q11 -> -0.5254310415 | T11: =B11*E11*F11*(1+G11) -> 8678018.687 | U11: =H11-T11 -> -3736036.739 | V11: =U11/T11 -> -0.4305172498 | AK11: =INDEX(Translation!$B$1:$E$581,Translation!$A$186,Language) -> Other | AL11: =SUM($I$17:$I$20) -> 0 | AM11: =SUM(J$17:J20) -> 0 | AN11: =SUM(K$17:K20) -> 0 | AO11: =SUM(L$17:L20) -> 0 | AP11: =SUM(M$17:M20) -> 0 | AT11: 0.6 | AU11: 0.9
A12: =INDEX(Translation!$B$1:$E$581,Translation!$A$56,Language) -> Men&Women (50-64) with NR Partners (pairs) | B12: ='2. Demographic Data'!$D$71 -> 50529.90897 | C12: =B12*(1+Pop_Growth) -> 58165.28715 | D12: ='2. Demographic Data'!$D$117 -> 0.3210534323 | E12: 0.75 | F12: 50 | G12: =$G$5 -> 0.2 | H12: 973368.0426 | I12: 1302182.018 | J12: 1630995.994 | K12: 1959809.97 | L12: 2288623.946 | M12: 2617437.922 | N12: =M12/M$21 -> 0.01826055917 | Q12: 2728615.084 | R12: -1755247.042 | S12: =R12/Q12 -> -0.6432739641 | T12: =B12*E12*F12*(1+G12) -> 2273845.904 | U12: =H12-T12 -> -1300477.861 | V12: =U12/T12 -> -0.5719287569 | AK12: TOTAL | AL12: =SUM(AL5:AL11) -> 92595589.09 | AM12: =SUM(AM5:AM11) -> 105281272.5 | AN12: =SUM(AN5:AN11) -> 117966955.8 | AO12: 130652639.2 | AP12: 143338322.6 | AT12: 0.6 | AU12: 0.9
A13: =INDEX(Translation!$B$1:$E$581,Translation!$A$43,Language) -> Couples Using Condoms for Family Planning | AT13: 0.6 | AU13: 0.9
A14: =INDEX(Translation!$B$1:$E$581,Translation!$A$57,Language) -> Couples Using Condoms for FP | B14: ='2. Demographic Data'!$D$80 -> 1189291.277 | C14: =B14*(1+Pop_Growth) -> 1369000.46 | D14: ='2. Demographic Data'!$D$79 -> 0.06369426752 | E14: =D14 -> 0.06369426752 | F14: 100 | G14: =$G$5 -> 0.2 | H14: =B14*D14*F14*(1+G14) -> 9090124.411 | I14: =IF(I$3>Target_Year,0,IF(I$3=Target_Year,$C14*$E14*$F14*(1+$G14),H14+($M14-$H14)/(Target_Year-2022))) -> 9364839.085 | J14: 9639553.76 | K14: 9914268.435 | L14: 10188983.11 | M14: =$C14*$E14*$F14*(1+$G14) -> 10463697.78 | N14: =M14/M$21 -> 0.07300000164 | Q14: =B14*D14*F14*(1+G14) -> 9090124.411 | R14: =H14-Q14 -> 0 | S14: =R14/Q14 -> 0 | T14: =B14*E14*F14*(1+G14) -> 9090124.411 | U14: =H14-T14 -> 0 | V14: =U14/T14 -> 0 | AK14: =INDEX(Translation!$B$1:$E$581,Translation!$A$210,Language) -> Comparison of Different Scenarios | AT14: 0.6 | AU14: 0.9
A15: =INDEX(Translation!$B$1:$E$581,Translation!$A$58,Language) -> Couples With Unmet Need for FP Condoms | B15: ='2. Demographic Data'!$D$83 -> 136351.8662 | C15: =B15*(1+Pop_Growth) -> 156955.4668 | D15: ='2. Demographic Data'!$D$119 -> 0 | E15: =E14 -> 0.06369426752 | F15: 100 | G15: =$G$5 -> 0.2 | H15: =B15*D15*F15*(1+G15) -> 0 | I15: 239931.9237 | J15: 479863.8475 | K15: 719795.7712 | L15: 959727.6949 | M15: =$C15*$E15*$F15*(1+$G15) -> 1199659.619 | N15: =M15/M$21 -> 0.00836942694 | Q15: =B15*E15*F15*(1+G15) -> 1042179.869 | R15: -1042179.869 | S15: =R15/Q15 -> -1 | T15: =B15*E15*F15*(1+G15) -> 1042179.869 | U15: =H15-T15 -> -1042179.869 | V15: =U15/T15 -> -1 | AL15: =Start_Year -> 2023 | AM15: =AL15+1 -> 2024 | AN15: =AM15+1 -> 2025 | AO15: =AN15+1 -> 2026 | AP15: =+Target_Year -> 2027 | AT15: 0.6 | AU15: 0.9
A16: =INDEX(Translation!$B$1:$E$581,Translation!$A$46,Language) -> Other Key Populations and Populations at High Risk | AK16: =INDEX(Translation!$B$1:$E$581,Translation!$A$211,Language) -> Country Targets | AL16: =I$27 -> 92595589.09 | AM16: =J$27 -> 105281272.5 | AN16: =K$27 -> 117966955.8 | AO16: =L$27 -> 130652639.2 | AP16: =M$27 -> 143338322.6 | AT16: 0.6 | AU16: 0.9
A17: ='2. Demographic Data'!$A$92 -> People who Inject Drugs (PWID) | B17: ='2. Demographic Data'!$D$92 -> 0 | C17: =B17*(1+Pop_Growth) -> 0 | D17: ='2. Demographic Data'!$D$120 -> 0.4 | E17: 0.75 | F17: 100 | G17: =$G$5 -> 0.2 | H17: =B17*D17*F17*(1+G17) -> 0 | I17: =IF(I$3>Target_Year,0,IF(I$3=Target_Year,$C17*$E17*$F17*(1+$G17),H17+($M17-$H17)/(Target_Year-2022))) -> 0 | J17: 0 | K17: 0 | L17: 0 | M17: =$C17*$E17*$F17*(1+$G17) -> 0 | N17: =M17/M$21 -> 0 | Q17: =B17*90%*F17*(1+G17) -> 0 | R17: =H17-Q17 -> 0 | S17: =R17/Q17 ->  | T17: =B17*E17*F17*(1+G17) -> 0 | U17: =H17-T17 -> 0 | V17: =U17/T17 ->  | AK17: =INDEX(Translation!$B$1:$E$581,Translation!$A$212,Language) -> 60% Condom Use Target | AL17: =I$28 -> 87482445.1 | AM17: =J$28 -> 95054984.49 | AN17: =K$28 -> 102627523.9 | AO17: =L$28 -> 110200063.3 | AP17: =M$28 -> 117772602.6 | AT17: 0.6 | AU17: 0.9
A18: ='2. Demographic Data'!$A$93 -> Transgender (TG) | B18: ='2. Demographic Data'!$D$93 -> 0 | C18: =B18*(1+Pop_Growth) -> 0 | D18: ='2. Demographic Data'!$D$121 -> 0.45 | E18: 0.75 | F18: 100 | G18: =$G$5 -> 0.2 | H18: 0 | I18: 0 | J18: 0 | K18: 0 | L18: 0 | M18: 0 | N18: =M18/M$21 -> 0 | Q18: 0 | R18: 0 | S18: =R18/Q18 ->  | T18: =B18*E18*F18*(1+G18) -> 0 | U18: =H18-T18 -> 0 | V18: =U18/T18 ->  | AK18: =INDEX(Translation!$B$1:$E$581,Translation!$A$213,Language) -> 90% Condom Use Target | AL18: =I$29 -> 97911354.12 | AM18: =J$29 -> 115912802.5 | AN18: =K$29 -> 133914250.9 | AO18: =L$29 -> 151915699.3 | AP18: =M$29 -> 169917147.7 | AT18: 0.6 | AU18: 0.9
A19: ='2. Demographic Data'!$A$97 -> Other [Please Specify]: | B19: ='2. Demographic Data'!$D$97 -> 0 | C19: =B19*(1+Pop_Growth) -> 0 | D19: ='2. Demographic Data'!$D$125 -> 0 | E19: 0.75 | F19: 100 | G19: =$G$5 -> 0.2 | H19: 0 | I19: 0 | J19: 0 | K19: 0 | L19: 0 | M19: 0 | N19: =M19/M$21 -> 0 | Q19: 0 | R19: 0 | S19: =R19/Q19 ->  | T19: =B19*E19*F19*(1+G19) -> 0 | U19: =H19-T19 -> 0 | V19: =U19/T19 ->  | AK19: =INDEX(Translation!$B$1:$E$581,Translation!$A$214,Language) -> 100% Condom Use / Total Need (No Wastage) | AL19: =I$30 -> 83623518.87 | AM19: =J$30 -> 100655449.6 | AN19: =K$30 -> 117687380.4 | AO19: =L$30 -> 134719311.2 | AP19: =M$30 -> 151751242 | AT19: 0.6 | AU19: 0.9
A20: ='2. Demographic Data'!$A$98 -> Other [Please Specify]: | B20: ='2. Demographic Data'!$D$98 -> 0 | C20: =B20*(1+Pop_Growth) -> 0 | D20: ='2. Demographic Data'!$D$126 -> 0 | E20: 0.75 | F20: 100 | G20: 0.2 | H20: 0 | I20: 0 | J20: 0 | K20: 0 | L20: 0 | M20: 0 | N20: 0 | Q20: 0 | R20: 0 | S20: =R20/Q20 ->  | T20: =B20*E20*F20*(1+G20) -> 0 | U20: =H20-T20 -> 0 | V20: =U20/T20 ->  | AT20: 0.6 | AU20: 0.9
A21: =INDEX(Translation!$B$1:$E$581,Translation!$A$208,Language) -> Overall Total: Country Target | H21: =SUM(H5:H20) -> 79909905.72 | I21: =IF(Quality_Condom_Availability_Data="High",'1. Condom Availability'!$B$7,SUM('3. Condom Requirements'!I5:I20)) -> 92595589.09 | J21: =SUM(J5:J20) -> 105281272.5 | K21: =SUM(K5:K20) -> 117966955.8 | L21: =SUM(L5:L20) -> 130652639.2 | M21: =SUM(M5:M20) -> 143338322.6 | Q21: =SUM(Q5:Q20) -> 147612062.6 | R21: =H21-Q21 -> -67702156.87 | S21: =R21/Q21 -> -0.4586492166 | T21: =SUM(T5:T20) -> 127112040.2 | U21: =H21-T21 -> -47202134.48 | V21: =U21/T21 -> -0.3713427493 | AK21: GRAPH HEADINGS
A22: =INDEX(Translation!$B$1:$E$581,Translation!$A$209,Language) -> Annual Increase in Condom Requirement (%) | H22: =H21/H21 -> 1 | I22: =I21/$H21 -> 1.158749823 | J22: =J21/$H21 -> 1.317499646 | K22: =K21/$H21 -> 1.476249468 | L22: 1.634999291 | M22: 1.793749114 | Q22: =Q21/Q21 -> 1 | T22: =T21/T21 -> 1 | AK22: =INDEX(Translation!$B$1:$E$581,Translation!$A$233,Language) -> Condom Requirements per TMA pillar: Baseline and Target scenarios
A23: Avg nbr of condoms needed per adult men 15-64y per year | H23: =H21/'2. Demographic Data'!D11 -> 15.27415248 | I23: =I21/(('2. Demographic Data'!D11*(1+'2. Demographic Data'!D7))) -> 17.20898177 | J23: =J21/(('2. Demographic Data'!D11*(1+'2. Demographic Data'!D7+'2. Demographic Data'!D7))) -> 19.03957697 | K23: =K21/(('2. Demographic Data'!D11*(1+'2. Demographic Data'!D7+'2. Demographic Data'!D7+'2. Demographic Data'!D7))) -> 20.77414017 | L23: =L21/(('2. Demographic Data'!D11*(1+'2. Demographic Data'!D7+'2. Demographic Data'!D7+'2. Demographic Data'!D7+'2. Demographic Data'!D7))) -> 22.4200349 | M23: =M21/(('2. Demographic Data'!D11*(1+'2. Demographic Data'!D7+'2. Demographic Data'!D7+'2. Demographic Data'!D7+'2. Demographic Data'!D7+'2. Demographic Data'!D7))) -> 23.98389064 | Q23: =Q21/'2. Demographic Data'!$D$11 -> 28.2148894 | T23: =T21/'2. Demographic Data'!$D$11 -> 24.29647071
AK24: Total Condom Need 2022 (baseline) to 2027'
D25: =INDEX(Translation!$B$1:$E$581,Translation!$A$210,Language) -> Comparison of Different Scenarios | H25: BASELINE
H26: 2022 | I26: =Start_Year -> 2023 | J26: =I26+1 -> 2024 | K26: =J26+1 -> 2025 | L26: =K26+1 -> 2026 | M26: =+Target_Year -> 2027
A27: =(C5*E5)+(C6*E6)+(C7*E7)+(C9*E9)+(C10*E10)+(C11*E11)+(C12*E12)+(C17*E17)+(C18*E18)+(C19*E19)+(C20*E20) -> 1518169.142 | B27: =A27/(C21-C15-C14) -> -0.9948971101 | D27: =INDEX(Translation!$B$1:$E$581,Translation!$A$211,Language) -> Country Targets | H27: =H21 -> 79909905.72 | I27: =I21 -> 92595589.09 | J27: =J21 -> 105281272.5 | K27: 117966955.8 | L27: =L21 -> 130652639.2 | M27: 143338322.6 | AK27: 2022 Condom Use Baseline and 2027 Targets
D28: =INDEX(Translation!$B$1:$E$581,Translation!$A$212,Language) -> 60% Condom Use Target | H28: ='3a. Alternative Scenarios'!H$45 -> 79909905.72 | I28: ='3a. Alternative Scenarios'!I$45 -> 87482445.1 | J28: ='3a. Alternative Scenarios'!J$45 -> 95054984.49 | K28: ='3a. Alternative Scenarios'!K$45 -> 102627523.9 | L28: ='3a. Alternative Scenarios'!L$45 -> 110200063.3 | M28: ='3a. Alternative Scenarios'!M$45 -> 117772602.6 | AK28: Avg number of condoms needed per adult man 15-64y per year'
D29: =INDEX(Translation!$B$1:$E$581,Translation!$A$213,Language) -> 90% Condom Use Target | H29: ='3a. Alternative Scenarios'!H$68 -> 79909905.72 | I29: ='3a. Alternative Scenarios'!I$68 -> 97911354.12 | J29: ='3a. Alternative Scenarios'!J$68 -> 115912802.5 | K29: ='3a. Alternative Scenarios'!K$68 -> 133914250.9 | L29: ='3a. Alternative Scenarios'!L$68 -> 151915699.3 | M29: ='3a. Alternative Scenarios'!M$68 -> 169917147.7
D30: =INDEX(Translation!$B$1:$E$581,Translation!$A$214,Language) -> 100% Condom Use / Total Need (No Wastage) | H30: ='3a. Alternative Scenarios'!H$91 -> 66591588.1 | I30: ='3a. Alternative Scenarios'!I$91 -> 83623518.87 | J30: ='3a. Alternative Scenarios'!J$91 -> 100655449.6 | K30: ='3a. Alternative Scenarios'!K$91 -> 117687380.4 | L30: ='3a. Alternative Scenarios'!L$91 -> 134719311.2 | M30: ='3a. Alternative Scenarios'!M$91 -> 151751242
B32: Manually update baseline in cell B35 with C35 value | H32: Manually update baseline in cell H35 with I35 value | M32: Manually update baseline in cell M35 with N35 value | AK32: Total condom need 2022-2027: 3 scenario's
A33: =INDEX(Translation!$B$1:$E$581,Translation!$A$215,Language) -> Female Condoms | E33: =INDEX(Translation!$B$1:$E$581,Translation!$A$221,Language) -> Extra Lubricants | K33: =INDEX(Translation!$B$1:$E$581,Translation!$A$227,Language) -> Specialty Condoms | AK33: Total Condom need 2023: Distribution (%) per population
A34: =INDEX(Translation!$B$1:$E$581,Translation!$A$216,Language) -> Female Condoms As % of Total Condoms | E34: =INDEX(Translation!$B$1:$E$581,Translation!$A$222,Language) -> Lubricant Sachets as % of Total Condoms | K34: =INDEX(Translation!$B$1:$E$581,Translation!$A$228,Language) -> Speciality Condoms As % of Total Condoms
A35: =INDEX(Translation!$B$1:$E$581,Translation!$A$217,Language) -> Baseline 2022 | B35: 0.01 | C35: ='1. Condom Availability'!C10 ->  | E35: =INDEX(Translation!$B$1:$E$581,Translation!$A$223,Language) -> Baseline 2022 | H35: 0.01 | I35: ='1. Condom Availability'!C12 ->  | K35: =INDEX(Translation!$B$1:$E$581,Translation!$A$229,Language) -> Baseline 2022 | M35: 0.01 | N35: ='1. Condom Availability'!C11 -> 
A36: =INDEX(Translation!$B$1:$E$581,Translation!$A$218,Language) -> Target 2027 | B36: 0.05 | E36: =INDEX(Translation!$B$1:$E$581,Translation!$A$224,Language) -> Target 2027 | H36: 0.1 | K36: =INDEX(Translation!$B$1:$E$581,Translation!$A$230,Language) -> Target 2027 | M36: 0.05
A37: =INDEX(Translation!$B$1:$E$581,Translation!$A$219,Language) -> Total Female Condoms 2022 | B37: =$H$21*B35 -> 799099.0572 | E37: =INDEX(Translation!$B$1:$E$581,Translation!$A$225,Language) -> Total Sachets Baseline 2022 | H37: =$H$21*H35 -> 799099.0572 | K37: =INDEX(Translation!$B$1:$E$581,Translation!$A$231,Language) -> Total Speciality Condoms Baseline 2022 | M37: =$H$21*M35 -> 799099.0572
A38: =INDEX(Translation!$B$1:$E$581,Translation!$A$220,Language) -> Total Female Condoms Required in 2027 | B38: =$M$21*B36 -> 7166916.129 | E38: =INDEX(Translation!$B$1:$E$581,Translation!$A$226,Language) -> Total Sachets Required in 2027 | H38: =$M$21*H36 -> 14333832.26 | K38: =INDEX(Translation!$B$1:$E$581,Translation!$A$232,Language) -> Total Speciality Required in 2027 | M38: =$M$21*M36 -> 7166916.129
A130: QUALITY CHECK | B130: =INDEX(Translation!$B$1:$E$581,Translation!$A$193,Language) -> Size of population in 2022 | C130: =INDEX(Translation!$B$1:$E$581,Translation!$A$194,Language) -> Size of Population in 2027 | D130: =INDEX(Translation!$B$1:$E$581,Translation!$A$195,Language) -> Baseline Coverage (% condom use at last sex) | E130: =INDEX(Translation!$B$1:$E$581,Translation!$A$196,Language) -> Target Coverage in 2027 | F130: =INDEX(Translation!$B$1:$E$581,Translation!$A$197,Language) -> Annual No. of Sex Acts Requiring Protection | G130: =INDEX(Translation!$B$1:$E$581,Translation!$A$198,Language) -> Wastage | H130: =INDEX(Translation!$B$1:$E$581,Translation!$A$199,Language) -> BASELINE: Total Condoms Used | I130: =INDEX(Translation!$B$1:$E$581,Translation!$A$202,Language) -> Total Condoms Required in 2023 | J130: =INDEX(Translation!$B$1:$E$581,Translation!$A$203,Language) -> Total Condoms Required in 2024 | K130: =INDEX(Translation!$B$1:$E$581,Translation!$A$204,Language) -> Total Condoms Required in 2025 | L130: =INDEX(Translation!$B$1:$E$581,Translation!$A$205,Language) -> Total Condoms Required in 2026 | M130: =INDEX(Translation!$B$1:$E$581,Translation!$A$206,Language) -> Total Condoms Required in 2027
D131: 2022 | H131: 2022 | I131: =Start_Year -> 2023 | J131: =I131+1 -> 2024 | K131: =J131+1 -> 2025 | L131: =K131+1 -> 2026 | M131: =Target_Year -> 2027
A132: People (15-49) with NR Partners (sum of sub groups) | B132: =SUM(B9:B11) -> 1271001.646 | C132: =SUM(C9:C11) -> 1463057.766 | H132: =SUM(H9:H11) -> 32860621.12 | I132: 39456016.79 | J132: 46051412.45 | K132: 52646808.12 | L132: 59242203.78 | M132: 65837599.45
A134: People (15-49) with NR Partners (direct etsimate) | B134: ='2. Demographic Data'!B67 -> 1244805.408 | C134: =B134*(1+Pop_Growth) -> 1432903.116 | D134: ='2. Demographic Data'!B113 -> 0.4384428029 | E134: 0.75 | F134: 50 | G134: =$G$5 -> 0.2 | H134: =B134*D134*F134*(1+G134) -> 32746558.33 | I134: =IF(I$3>Target_Year,0,IF(I$3=Target_Year,$C134*$E134*$F134*(1+$G134),H134+($M134-$H134)/(Target_Year-2022))) -> 39093374.7 | J134: =IF(J$3>Target_Year,0,IF(J$3=Target_Year,$C134*$E134*$F134*(1+$G134),I134+($M134-$H134)/(Target_Year-2022))) -> 45440191.08 | K134: =IF(K$3>Target_Year,0,IF(K$3=Target_Year,$C134*$E134*$F134*(1+$G134),J134+($M134-$H134)/(Target_Year-2022))) -> 51787007.45 | L134: =IF(L$3>Target_Year,0,IF(L$3=Target_Year,$C134*$E134*$F134*(1+$G134),K134+($M134-$H134)/(Target_Year-2022))) -> 58133823.83 | M134: =$C134*$E134*$F134*(1+$G134) -> 64480640.2
F136: Difference | H136: =100%-(H132/H134) -> -0.003483199484 | M136: =100%-(M132/M134) -> -0.02104444434
H137: Small discrepancy is normal | M137: Small discrepancy is normal
A189: BACKUP
A191: =Country -> Zambia | B191: =INDEX(Translation!$B$1:$E$581,Translation!$A$193,Language) -> Size of population in 2022 | C191: =INDEX(Translation!$B$1:$E$581,Translation!$A$194,Language) -> Size of Population in 2027 | D191: =INDEX(Translation!$B$1:$E$581,Translation!$A$195,Language) -> Baseline Coverage (% condom use at last sex) | E191: =INDEX(Translation!$B$1:$E$581,Translation!$A$196,Language) -> Target Coverage in 2027 | F191: =INDEX(Translation!$B$1:$E$581,Translation!$A$197,Language) -> Annual No. of Sex Acts Requiring Protection | G191: =INDEX(Translation!$B$1:$E$581,Translation!$A$198,Language) -> Wastage | H191: =INDEX(Translation!$B$1:$E$581,Translation!$A$199,Language) -> BASELINE: Total Condoms Used | I191: =INDEX(Translation!$B$1:$E$581,Translation!$A$202,Language) -> Total Condoms Required in 2023 | J191: =INDEX(Translation!$B$1:$E$581,Translation!$A$203,Language) -> Total Condoms Required in 2024 | K191: =INDEX(Translation!$B$1:$E$581,Translation!$A$204,Language) -> Total Condoms Required in 2025 | L191: =INDEX(Translation!$B$1:$E$581,Translation!$A$205,Language) -> Total Condoms Required in 2026 | M191: =INDEX(Translation!$B$1:$E$581,Translation!$A$206,Language) -> Total Condoms Required in 2027 | N191: =INDEX(Translation!$B$1:$E$581,Translation!$A$207,Language) -> % of Total Condoms Required in 2027
D192: 2022 | H192: 2022 | I192: =Start_Year -> 2023 | J192: =I192+1 -> 2024 | K192: =J192+1 -> 2025 | L192: =K192+1 -> 2026 | M192: =Target_Year -> 2027
A193: =INDEX(Translation!$B$1:$E$581,Translation!$A$34,Language) -> Key Populations
A194: =INDEX(Translation!$B$1:$E$581,Translation!$A$50,Language) -> PLHIV Couples | B194: ='2. Demographic Data'!$D$37 -> 337770 | C194: =B194*(1+Pop_Growth) -> 388809.1121 | D194: ='2. Demographic Data'!$D$100 -> 0.4 | E194: 0.75 | F194: 100 | G194: 0.2 | H194: =B194*D194*F194*(1+G194) -> 16212960 | I194: =IF(I$3>Target_Year,0,IF(I$3=Target_Year,$C194*$E194*$F194*(1+$G194),H194+($M194-$H194)/(Target_Year-2022))) -> 19968932.02 | J194: 23724904.03 | K194: 27480876.05 | L194: 31236848.07 | M194: =$C194*$E194*$F194*(1+$G194) -> 34992820.09 | N194: =M194/M$21 -> 0.2441274563
A195: =INDEX(Translation!$B$1:$E$581,Translation!$A$51,Language) -> Sex workers | B195: ='2. Demographic Data'!$D$89 -> 41252.49 | C195: =B195*(1+Pop_Growth) -> 47485.99345 | D195: ='2. Demographic Data'!$D$101 -> 0.7 | E195: 0.9 | F195: 450 | G195: =$G194 -> 0.2 | H195: 15593441.22 | I195: 17090391.54 | J195: 18587341.86 | K195: 20084292.18 | L195: 21581242.5 | M195: 23078192.82 | N195: =M195/M$21 -> 0.1610050432
A196: =INDEX(Translation!$B$1:$E$581,Translation!$A$52,Language) -> Men Having Sex with Men (MSM) | B196: ='2. Demographic Data'!$D$91 -> 78475.62 | C196: =B196*(1+Pop_Growth) -> 90333.76597 | D196: ='2. Demographic Data'!$D$102 -> 0.55 | E196: 0.75 | F196: 100 | G196: =$G194 -> 0.2 | H196: 5179390.92 | I196: 5769520.523 | J196: 6359650.127 | K196: 6949779.73 | L196: 7539909.334 | M196: 8130038.937 | N196: =M196/M$21 -> 0.05671922756
A197: =INDEX(Translation!$B$1:$E$581,Translation!$A$38,Language) -> People who have Sex with Non-Regular Partners [PAIRS]
A198: =INDEX(Translation!$B$1:$E$581,Translation!$A$53,Language) -> Young People (15-24) with NR Partners (pairs) | B198: ='2. Demographic Data'!$D$68 -> 721390.1186 | C198: =B198*(1+Pop_Growth) -> 830396.5759 | D198: ='2. Demographic Data'!$D$114 -> 0.4073080571 | E198: 0.75 | F198: 50 | G198: =G194 -> 0.2 | H198: =B198*D198*F198*(1+G198) -> 17629680.46 | I198: =IF(I$3>Target_Year,0,IF(I$3=Target_Year,$C198*$E198*$F198*(1+$G198),H198+($M198-$H198)/(Target_Year-2022))) -> 21577313.55 | J198: 25524946.64 | K198: 29472579.73 | L198: 33420212.83 | M198: =$C198*$E198*$F198*(1+$G198) -> 37367845.92 | N198: =M198/M$21 -> 0.2606968272
A199: =INDEX(Translation!$B$1:$E$581,Translation!$A$54,Language) -> Men&Women (25-34) with NR Partners (pairs) | B199: ='2. Demographic Data'!$D$69 -> 356766.6678 | C199: =B199*(1+Pop_Growth) -> 410676.2925 | D199: ='2. Demographic Data'!$D$115 -> 0.480657698 | E199: 0.75 | F199: 50 | G199: =G194 -> 0.2 | H199: 10288958.72 | I199: 11927253.61 | J199: 13565548.5 | K199: 15203843.39 | L199: 16842138.28 | M199: 18480433.16 | N199: =M199/M$21 -> 0.1289287668
A200: =INDEX(Translation!$B$1:$E$581,Translation!$A$55,Language) -> Men&Women (35-49) with NR Partners (pairs) | B200: ='2. Demographic Data'!$D$70 -> 192844.8597 | C200: =B200*(1+Pop_Growth) -> 221984.897 | D200: ='2. Demographic Data'!$D$116 -> 0.4271120626 | E200: 0.75 | F200: 50 | G200: =G194 -> 0.2 | H200: 4941981.948 | I200: 5951449.632 | J200: 6960917.315 | K200: 7970384.999 | L200: 8979852.683 | M200: 9989320.366 | N200: =M200/M$21 -> 0.06969050695
A201: =INDEX(Translation!$B$1:$E$581,Translation!$A$56,Language) -> Men&Women (50-64) with NR Partners (pairs) | B201: ='2. Demographic Data'!$D$71 -> 50529.90897 | C201: =B201*(1+Pop_Growth) -> 58165.28715 | D201: ='2. Demographic Data'!$D$117 -> 0.3210534323 | E201: 0.75 | F201: 50 | G201: =G194 -> 0.2 | H201: 973368.0426 | I201: 1302182.018 | J201: 1630995.994 | K201: 1959809.97 | L201: 2288623.946 | M201: 2617437.922 | N201: =M201/M$21 -> 0.01826055917
A202: =INDEX(Translation!$B$1:$E$581,Translation!$A$43,Language) -> Couples Using Condoms for Family Planning
A203: =INDEX(Translation!$B$1:$E$581,Translation!$A$57,Language) -> Couples Using Condoms for FP | B203: ='2. Demographic Data'!$D$80 -> 1189291.277 | C203: =B203*(1+Pop_Growth) -> 1369000.46 | D203: ='2. Demographic Data'!$B$79 -> 0.06369426752 | E203: =D203 -> 0.06369426752 | F203: 100 | G203: =G194 -> 0.2 | H203: =B203*D203*F203*(1+G203) -> 9090124.411 | I203: =IF(I$3>Target_Year,0,IF(I$3=Target_Year,$C203*$E203*$F203*(1+$G203),H203+($M203-$H203)/(Target_Year-2022))) -> 9364839.085 | J203: 9639553.76 | K203: 9914268.435 | L203: 10188983.11 | M203: =$C203*$E203*$F203*(1+$G203) -> 10463697.78 | N203: =M203/M$21 -> 0.07300000164
A204: =INDEX(Translation!$B$1:$E$581,Translation!$A$58,Language) -> Couples With Unmet Need for FP Condoms | B204: ='2. Demographic Data'!$D$83 -> 136351.8662 | C204: =B204*(1+Pop_Growth) -> 156955.4668 | D204: ='2. Demographic Data'!$D$119 -> 0 | E204: =E203 -> 0.06369426752 | F204: 100 | G204: =G194 -> 0.2 | H204: 0 | I204: 239931.9237 | J204: 479863.8475 | K204: 719795.7712 | L204: 959727.6949 | M204: 1199659.619 | N204: =M204/M$21 -> 0.00836942694
A205: =INDEX(Translation!$B$1:$E$581,Translation!$A$46,Language) -> Other Key Populations and Populations at High Risk
A206: ='2. Demographic Data'!$A$92 -> People who Inject Drugs (PWID) | B206: ='2. Demographic Data'!$D$92 -> 0 | C206: =B206*(1+Pop_Growth) -> 0 | D206: ='2. Demographic Data'!$D$120 -> 0.4 | E206: 0.75 | F206: 100 | G206: =G194 -> 0.2 | H206: =B206*D206*F206*(1+G206) -> 0 | I206: =IF(I$3>Target_Year,0,IF(I$3=Target_Year,$C206*$E206*$F206*(1+$G206),H206+($M206-$H206)/(Target_Year-2022))) -> 0 | J206: 0 | K206: 0 | L206: 0 | M206: =$C206*$E206*$F206*(1+$G206) -> 0 | N206: =M206/M$21 -> 0
A207: ='2. Demographic Data'!$A$93 -> Transgender (TG) | B207: ='2. Demographic Data'!$D$93 -> 0 | C207: =B207*(1+Pop_Growth) -> 0 | D207: ='2. Demographic Data'!$D$121 -> 0.45 | E207: 0.75 | F207: 100 | G207: =G194 -> 0.2 | H207: 0 | I207: 0 | J207: 0 | K207: 0 | L207: 0 | M207: 0 | N207: =M207/M$21 -> 0
A208: ='2. Demographic Data'!$A$97 -> Other [Please Specify]: | B208: ='2. Demographic Data'!$D$97 -> 0 | C208: =B208*(1+Pop_Growth) -> 0 | D208: ='2. Demographic Data'!$D$125 -> 0 | E208: 0.75 | F208: 100 | G208: =G194 -> 0.2 | H208: 0 | I208: 0 | J208: 0 | K208: 0 | L208: 0 | M208: 0 | N208: =M208/M$21 -> 0
A209: ='2. Demographic Data'!$A$98 -> Other [Please Specify]: | B209: ='2. Demographic Data'!$D$98 -> 0 | C209: =B209*(1+Pop_Growth) -> 0 | D209: ='2. Demographic Data'!$D$126 -> 0 | E209: 0.75 | F209: 100 | G209: =G194 -> 0.2 | H209: 0 | I209: 0 | J209: 0 | K209: 0 | L209: 0 | M209: 0 | N209: 0
A210: =INDEX(Translation!$B$1:$E$581,Translation!$A$208,Language) -> Overall Total: Country Target | B210: =SUM(B194:B209) -> 3104672.808 | C210: =SUM(C194:C209) -> 3573807.851 | H210: =SUM(H194:H207) -> 79909905.72 | I210: =IF(Quality_Condom_Availability_Data="High",'1. Condom Availability'!$B$7,SUM('3. Condom Requirements'!I194:I209)) -> 93191813.9 | J210: =SUM(J194:J209) -> 106473722.1 | K210: =SUM(K194:K209) -> 119755630.3 | L210: 133037538.4 | M210: 146319446.6
D212: =INDEX(Translation!$B$1:$E$581,Translation!$A$210,Language) -> Comparison of Different Scenarios
I213: =Start_Year -> 2023 | J213: =I213+1 -> 2024 | K213: =J213+1 -> 2025 | L213: =K213+1 -> 2026 | M213: =+Target_Year -> 2027
D214: =INDEX(Translation!$B$1:$E$581,Translation!$A$211,Language) -> Country Targets | I214: =I209 -> 0 | J214: =J209 -> 0 | K214: 0 | L214: 0 | M214: 0
D215: =INDEX(Translation!$B$1:$E$581,Translation!$A$212,Language) -> 60% Condom Use Target | I215: ='3a. Alternative Scenarios'!I$45 -> 87482445.1 | J215: ='3a. Alternative Scenarios'!J$45 -> 95054984.49 | K215: ='3a. Alternative Scenarios'!K$45 -> 102627523.9 | L215: ='3a. Alternative Scenarios'!L$45 -> 110200063.3 | M215: ='3a. Alternative Scenarios'!M$45 -> 117772602.6
D216: =INDEX(Translation!$B$1:$E$581,Translation!$A$213,Language) -> 90% Condom Use Target | I216: ='3a. Alternative Scenarios'!I$68 -> 97911354.12 | J216: ='3a. Alternative Scenarios'!J$68 -> 115912802.5 | K216: ='3a. Alternative Scenarios'!K$68 -> 133914250.9 | L216: ='3a. Alternative Scenarios'!L$68 -> 151915699.3 | M216: ='3a. Alternative Scenarios'!M$68 -> 169917147.7
D217: =INDEX(Translation!$B$1:$E$581,Translation!$A$214,Language) -> 100% Condom Use / Total Need (No Wastage) | I217: ='3a. Alternative Scenarios'!I$91 -> 83623518.87 | J217: ='3a. Alternative Scenarios'!J$91 -> 100655449.6 | K217: ='3a. Alternative Scenarios'!K$91 -> 117687380.4 | L217: ='3a. Alternative Scenarios'!L$91 -> 134719311.2 | M217: ='3a. Alternative Scenarios'!M$91 -> 151751242
A220: =INDEX(Translation!$B$1:$E$581,Translation!$A$215,Language) -> Female Condoms | D220: =INDEX(Translation!$B$1:$E$581,Translation!$A$221,Language) -> Extra Lubricants | I220: =INDEX(Translation!$B$1:$E$581,Translation!$A$227,Language) -> Specialty Condoms
A221: =INDEX(Translation!$B$1:$E$581,Translation!$A$216,Language) -> Female Condoms As % of Total Condoms | D221: =INDEX(Translation!$B$1:$E$581,Translation!$A$222,Language) -> Lubricant Sachets as % of Total Condoms | I221: =INDEX(Translation!$B$1:$E$581,Translation!$A$228,Language) -> Speciality Condoms As % of Total Condoms
A222: =INDEX(Translation!$B$1:$E$581,Translation!$A$217,Language) -> Baseline 2022 | B222: 0.01 | D222: =INDEX(Translation!$B$1:$E$581,Translation!$A$223,Language) -> Baseline 2022 | F222: 0.01 | I222: =INDEX(Translation!$B$1:$E$581,Translation!$A$229,Language) -> Baseline 2022 | K222: 0.01
A223: =INDEX(Translation!$B$1:$E$581,Translation!$A$218,Language) -> Target 2027 | B223: 0.05 | D223: =INDEX(Translation!$B$1:$E$581,Translation!$A$224,Language) -> Target 2027 | F223: 0.1 | I223: =INDEX(Translation!$B$1:$E$581,Translation!$A$230,Language) -> Target 2027 | K223: 0.05
A224: =INDEX(Translation!$B$1:$E$581,Translation!$A$219,Language) -> Total Female Condoms 2022 | D224: =INDEX(Translation!$B$1:$E$581,Translation!$A$225,Language) -> Total Sachets Baseline 2022 | F224: =$I$21*F222 -> 925955.8909 | I224: =INDEX(Translation!$B$1:$E$581,Translation!$A$231,Language) -> Total Speciality Condoms Baseline 2022 | K224: =$I$21*K222 -> 925955.8909
A225: =INDEX(Translation!$B$1:$E$581,Translation!$A$220,Language) -> Total Female Condoms Required in 2027 | D225: =INDEX(Translation!$B$1:$E$581,Translation!$A$226,Language) -> Total Sachets Required in 2027 | F225: =$M$21*F223 -> 14333832.26 | I225: =INDEX(Translation!$B$1:$E$581,Translation!$A$232,Language) -> Total Speciality Required in 2027 | K225: =$M$21*K223 -> 7166916.129

Sheet 3a. Alternative Scenarios
A1: =INDEX(Translation!$B$1:$E$581,Translation!$A$237,Language) -> Alternative Scenarios | D1: ='Cover Sheet'!$B$2 -> CNET Version 5.0 [2023-2027] - (20 February 2023 - Excel for Office 365) | Q1: 2022 Gap analysis
A3: Country defined Condom Use Target for 2025 | B3: =INDEX(Translation!$B$1:$E$581,Translation!$A$193,Language) -> Size of population in 2022 | C3: =INDEX(Translation!$B$1:$E$581,Translation!$A$194,Language) -> Size of Population in 2027 | D3: =INDEX(Translation!$B$1:$E$581,Translation!$A$195,Language) -> Baseline Coverage (% condom use at last sex) | E3: =INDEX(Translation!$B$1:$E$581,Translation!$A$196,Language) -> Target Coverage in 2027 | F3: =INDEX(Translation!$B$1:$E$581,Translation!$A$197,Language) -> Annual No. of Sex Acts Requiring Protection | G3: =INDEX(Translation!$B$1:$E$581,Translation!$A$198,Language) -> Wastage | H3: =INDEX(Translation!$B$1:$E$581,Translation!$A$201,Language) -> Total Condoms Used in 2022 | I3: =INDEX(Translation!$B$1:$E$581,Translation!$A$202,Language) -> Total Condoms Required in 2023 | J3: =INDEX(Translation!$B$1:$E$581,Translation!$A$203,Language) -> Total Condoms Required in 2024 | K3: =INDEX(Translation!$B$1:$E$581,Translation!$A$204,Language) -> Total Condoms Required in 2025 | L3: =INDEX(Translation!$B$1:$E$581,Translation!$A$205,Language) -> Total Condoms Required in 2026 | M3: =INDEX(Translation!$B$1:$E$581,Translation!$A$206,Language) -> Total Condoms Required in 2027 | N3: =INDEX(Translation!$B$1:$E$581,Translation!$A$207,Language) -> % of Total Condoms Required in 2027 | Q3: Total Condom Need in 2022 (Country 2027 Targets) | R3: 2022 Condom Gap (use vs need) | S3: % Gap | T3: Total Condom Need in 2022 (90% Target) | U3: 2022 Condom Gap (use vs need) | V3: % Gap
D4: 2022 | E4: =""&Target_Year -> 2027 | H4: 2022 | I4: =Start_Year -> 2023 | J4: =I4+1 -> 2024 | K4: =J4+1 -> 2025 | L4: =K4+1 -> 2026 | M4: =Target_Year -> 2027 | Q4: 2022 | R4: 2022 | T4: 2022 | U4: 2022
A5: =INDEX(Translation!$B$1:$E$581,Translation!$A$34,Language) -> Key Populations | K5: End Sub
A6: =INDEX(Translation!$B$1:$E$581,Translation!$A$50,Language) -> PLHIV Couples | B6: ='2. Demographic Data'!$D$37 -> 337770 | C6: ='2. Demographic Data'!$D$38 -> 355685.5118 | D6: ='2. Demographic Data'!$D$100 -> 0.4 | E6: ='3. Condom Requirements'!E5 -> 0.75 | F6: ='3. Condom Requirements'!$F$5 -> 100 | G6: ='3. Condom Requirements'!$G$5 -> 0.2 | H6: =B6*D6*F6*(1+G6) -> 16212960 | I6: =IF(I$27>Target_Year,0,IF(I$27=Target_Year,$C6*$E6*$F6*(1+$G6),H6+($M6-$H6)/(Target_Year-2022))) -> 19372707.21 | J6: 22532454.42 | K6: 25692201.64 | L6: 28851948.85 | M6: =$C6*$E6*$F6*(1+$G6) -> 32011696.06 | N6: =M6/M$45 -> 0.2718093626 | Q6: =B6*E6*F6*(1+G6) -> 30399300 | R6: =H6-Q6 -> -14186340 | S6: =R6/Q6 -> -0.4666666667 | T6: =Q52 -> 36479160 | U6: =H6-T6 -> -20266200 | V6: =U6/T6 -> -0.5555555556
A7: =INDEX(Translation!$B$1:$E$581,Translation!$A$51,Language) -> Sex workers | B7: ='2. Demographic Data'!$D$89 -> 41252.49 | C7: =B7*(1+Pop_Growth) -> 47485.99345 | D7: ='2. Demographic Data'!$D$101 -> 0.7 | E7: ='3. Condom Requirements'!E6 -> 0.9 | F7: ='3. Condom Requirements'!$F$6 -> 450 | G7: =$G$29 -> 0.2 | H7: =B7*D7*F7*(1+G7) -> 15593441.22 | I7: 17090391.54 | J7: 18587341.86 | K7: 20084292.18 | L7: 21581242.5 | M7: =$C7*$E7*$F7*(1+$G7) -> 23078192.82 | N7: =M7/M$45 -> 0.1959555304 | Q7: =B7*E7*F7*(1+G7) -> 20048710.14 | R7: =H7-Q7 -> -4455268.92 | S7: =R7/Q7 -> -0.2222222222 | T7: =Q53 -> 21162527.37 | U7: =H7-T7 -> -5569086.15 | V7: =U7/T7 -> -0.2631578947
A8: =INDEX(Translation!$B$1:$E$581,Translation!$A$52,Language) -> Men Having Sex with Men (MSM) | B8: ='2. Demographic Data'!$D$91 -> 78475.62 | C8: =B8*(1+Pop_Growth) -> 90333.76597 | D8: ='2. Demographic Data'!$D$102 -> 0.55 | E8: ='3. Condom Requirements'!E7 -> 0.75 | F8: ='3. Condom Requirements'!$F$7 -> 100 | G8: =$G$29 -> 0.2 | H8: =B8*D8*F8*(1+G8) -> 5179390.92 | I8: 5769520.523 | J8: 6359650.127 | K8: 6949779.73 | L8: 7539909.334 | M8: =$C8*$E8*$F8*(1+$G8) -> 8130038.937 | N8: =M8/M$45 -> 0.06903166572 | Q8: =B8*E8*F8*(1+G8) -> 7062805.8 | R8: -1883414.88 | S8: =R8/Q8 -> -0.2666666667 | T8: 8475366.96 | U8: =H8-T8 -> -3295976.04 | V8: =U8/T8 -> -0.3888888889
A9: =INDEX(Translation!$B$1:$E$581,Translation!$A$38,Language) -> People who have Sex with Non-Regular Partners [PAIRS] | T9: 0
A10: =INDEX(Translation!$B$1:$E$581,Translation!$A$53,Language) -> Young People (15-24) with NR Partners (pairs) | B10: ='2. Demographic Data'!$D$68 -> 721390.1186 | C10: =B10*(1+Pop_Growth) -> 830396.5759 | D10: ='2. Demographic Data'!$D$114 -> 0.4073080571 | E10: ='3. Condom Requirements'!E9 -> 0.75 | F10: ='3. Condom Requirements'!$F$9 -> 50 | G10: =$G$29 -> 0.2 | H10: =B10*D10*F10*(1+G10) -> 17629680.46 | I10: =IF(I$27>Target_Year,0,IF(I$27=Target_Year,$C10*$E10*$F10*(1+$G10),H10+($M10-$H10)/(Target_Year-2022))) -> 21577313.55 | J10: 25524946.64 | K10: 29472579.73 | L10: 33420212.83 | M10: =$C10*$E10*$F10*(1+$G10) -> 37367845.92 | N10: =M10/M$45 -> 0.317288105 | Q10: =B10*E10*F10*(1+G10) -> 32462555.34 | R10: =H10-Q10 -> -14832874.88 | S10: =R10/Q10 -> -0.4569225905 | T10: 38955066.4 | U10: =T10-H10 -> 21325385.95 | V10: =U10/T10 -> 0.5474354921
A11: =INDEX(Translation!$B$1:$E$581,Translation!$A$54,Language) -> Men&Women (25-34) with NR Partners (pairs) | B11: ='2. Demographic Data'!$D$69 -> 356766.6678 | C11: =B11*(1+Pop_Growth) -> 410676.2925 | D11: ='2. Demographic Data'!$D$115 -> 0.480657698 | E11: ='3. Condom Requirements'!E10 -> 0.75 | F11: ='3. Condom Requirements'!$F$12 -> 50 | G11: =$G$29 -> 0.2 | H11: =B11*D11*F11*(1+G11) -> 10288958.72 | I11: 11927253.61 | J11: 13565548.5 | K11: 15203843.39 | L11: 16842138.28 | M11: =$C11*$E11*$F11*(1+$G11) -> 18480433.16 | N11: =M11/M$45 -> 0.1569162331 | Q11: 16054500.05 | R11: -5765541.335 | S11: =R11/Q11 -> -0.3591230693 | T11: 19265400.06 | U11: =T11-H11 -> 8976441.345 | V11: =U11/T11 -> 0.4659358911
A12: =INDEX(Translation!$B$1:$E$581,Translation!$A$55,Language) -> Men&Women (35-49) with NR Partners (pairs) | B12: ='2. Demographic Data'!$D$70 -> 192844.8597 | C12: =B12*(1+Pop_Growth) -> 221984.897 | D12: ='2. Demographic Data'!$D$116 -> 0.4271120626 | E12: ='3. Condom Requirements'!E11 -> 0.75 | F12: ='3. Condom Requirements'!$F$12 -> 50 | G12: =$G$29 -> 0.2 | H12: =B12*D12*F12*(1+G12) -> 4941981.948 | I12: 5951449.632 | J12: 6960917.315 | K12: 7970384.999 | L12: 8979852.683 | M12: =$C12*$E12*$F12*(1+$G12) -> 9989320.366 | N12: =M12/M$45 -> 0.08481871116 | Q12: 8678018.687 | R12: -3736036.739 | S12: =R12/Q12 -> -0.4305172498 | T12: 10413622.42 | U12: 5471640.476 | V12: =U12/T12 -> 0.5254310415
A13: =INDEX(Translation!$B$1:$E$581,Translation!$A$56,Language) -> Men&Women (50-64) with NR Partners (pairs) | B13: ='2. Demographic Data'!$D$71 -> 50529.90897 | C13: =B13*(1+Pop_Growth) -> 58165.28715 | D13: ='2. Demographic Data'!$D$117 -> 0.3210534323 | E13: ='3. Condom Requirements'!E12 -> 0.75 | F13: ='3. Condom Requirements'!$F$12 -> 50 | G13: =$G$29 -> 0.2 | H13: =B13*D13*F13*(1+G13) -> 973368.0426 | I13: 1302182.018 | J13: 1630995.994 | K13: 1959809.97 | L13: 2288623.946 | M13: =$C13*$E13*$F13*(1+$G13) -> 2617437.922 | N13: =M13/M$45 -> 0.02222450606 | Q13: 2273845.904 | R13: -1300477.861 | S13: =R13/Q13 -> -0.5719287569 | T13: 2728615.084 | U13: 1755247.042 | V13: =U13/T13 -> 0.6432739641
A14: =INDEX(Translation!$B$1:$E$581,Translation!$A$43,Language) -> Couples Using Condoms for Family Planning | T14: 0
A15: =INDEX(Translation!$B$1:$E$581,Translation!$A$57,Language) -> Couples Using Condoms for FP | B15: ='2. Demographic Data'!$D$80 -> 1189291.277 | C15: =B15*(1+Pop_Growth) -> 1369000.46 | D15: ='2. Demographic Data'!$D$79 -> 0.06369426752 | E15: ='3. Condom Requirements'!$E$14 -> 0.06369426752 | F15: ='3. Condom Requirements'!$F$14 -> 100 | G15: =$G$29 -> 0.2 | H15: =B15*D15*F15*(1+G15) -> 9090124.411 | I15: =IF(I$27>Target_Year,0,IF(I$27=Target_Year,$C15*$E15*$F15*(1+$G15),H15+($M15-$H15)/(Target_Year-2022))) -> 9364839.085 | J15: 9639553.76 | K15: 9914268.435 | L15: 10188983.11 | M15: =$C15*$E15*$F15*(1+$G15) -> 10463697.78 | N15: =M15/M$45 -> 0.08884662094 | Q15: =B15*E15*F15*(1+G15) -> 9090124.411 | R15: =H15-Q15 -> 0 | S15: =R15/Q15 -> 0 | T15: 9090124.411 | U15: =T15-H15 -> 0 | V15: =U15/T15 -> 0
A16: =INDEX(Translation!$B$1:$E$581,Translation!$A$58,Language) -> Couples With Unmet Need for FP Condoms | B16: ='2. Demographic Data'!$D$83 -> 136351.8662 | C16: =B16*(1+Pop_Growth) -> 156955.4668 | D16: ='2. Demographic Data'!$D$119 -> 0 | E16: ='3. Condom Requirements'!$E$15 -> 0.06369426752 | F16: ='3. Condom Requirements'!$F$15 -> 100 | G16: =$G$29 -> 0.2 | H16: =B16*D16*F16*(1+G16) -> 0 | I16: 239931.9237 | J16: 479863.8475 | K16: 719795.7712 | L16: 959727.6949 | M16: =$C16*$E16*$F16*(1+$G16) -> 1199659.619 | N16: =M16/M$45 -> 0.0101862368 | Q16: 1042179.869 | R16: -1042179.869 | S16: =R16/Q16 -> -1 | T16: 1042179.869 | U16: =T16-H16 -> 1042179.869 | V16: =U16/T16 -> 1
A17: =INDEX(Translation!$B$1:$E$581,Translation!$A$46,Language) -> Other Key Populations and Populations at High Risk | T17: 0
A18: ='2. Demographic Data'!$A$92 -> People who Inject Drugs (PWID) | B18: ='2. Demographic Data'!$D$92 -> 0 | C18: =B18*(1+Pop_Growth) -> 0 | D18: ='2. Demographic Data'!$D$120 -> 0.4 | E18: ='3. Condom Requirements'!E17 -> 0.75 | F18: ='3. Condom Requirements'!$F$17 -> 100 | G18: =$G$29 -> 0.2 | H18: =B18*D18*F18*(1+G18) -> 0 | I18: =IF(I$27>Target_Year,0,IF(I$27=Target_Year,$C18*$E18*$F18*(1+$G18),H18+($M18-$H18)/(Target_Year-2022))) -> 0 | J18: 0 | K18: 0 | L18: 0 | M18: =$C18*$E18*$F18*(1+$G18) -> 0 | N18: =M18/M$45 -> 0 | Q18: =B18*E18*F18*(1+G18) -> 0 | R18: =H18-Q18 -> 0 | S18: =R18/Q18 ->  | T18: 0 | U18: =T18-H18 -> 0 | V18: =U18/T18 -> 
A19: ='2. Demographic Data'!$A$93 -> Transgender (TG) | B19: ='2. Demographic Data'!$D$93 -> 0 | C19: =B19*(1+Pop_Growth) -> 0 | D19: ='2. Demographic Data'!$D$121 -> 0.45 | E19: ='3. Condom Requirements'!E18 -> 0.75 | F19: ='3. Condom Requirements'!$F$18 -> 100 | G19: =$G$29 -> 0.2 | H19: =B19*D19*F19*(1+G19) -> 0 | I19: 0 | J19: 0 | K19: 0 | L19: 0 | M19: =$C19*$E19*$F19*(1+$G19) -> 0 | N19: =M19/M$45 -> 0 | Q19: 0 | R19: 0 | S19: =R19/Q19 ->  | T19: 0 | U19: 0 | V19: =U19/T19 -> 
A20: ='2. Demographic Data'!$A$97 -> Other [Please Specify]: | B20: ='2. Demographic Data'!$D$97 -> 0 | C20: =B20*(1+Pop_Growth) -> 0 | D20: ='2. Demographic Data'!$D$125 -> 0 | E20: ='3. Condom Requirements'!E19 -> 0.75 | F20: ='3. Condom Requirements'!$F$19 -> 100 | G20: =$G$29 -> 0.2 | H20: =B20*D20*F20*(1+G20) -> 0 | I20: 0 | J20: 0 | K20: 0 | L20: 0 | M20: =$C20*$E20*$F20*(1+$G20) -> 0 | N20: =M20/M$45 -> 0 | Q20: 0 | R20: 0 | S20: =R20/Q20 ->  | T20: 0 | U20: 0 | V20: =U20/T20 -> 
A21: ='2. Demographic Data'!$A$98 -> Other [Please Specify]: | B21: ='2. Demographic Data'!$D$98 -> 0 | C21: =B21*(1+Pop_Growth) -> 0 | D21: ='2. Demographic Data'!$D$126 -> 0 | E21: ='3. Condom Requirements'!E20 -> 0.75 | F21: ='3. Condom Requirements'!$F$20 -> 100 | G21: =$G$29 -> 0.2 | H21: =B21*D21*F21*(1+G21) -> 0 | I21: 0 | J21: 0 | K21: 0 | L21: 0 | M21: =$C21*$E21*$F21*(1+$G21) -> 0 | N21: =M21/M$45 -> 0 | Q21: 0 | R21: 0 | S21: =R21/Q21 ->  | T21: 0 | U21: 0 | V21: =U21/T21 -> 
A22: =INDEX(Translation!$B$1:$E$581,Translation!$A$212,Language) -> 60% Condom Use Target | B22: =SUM(B6:B21) -> 3104672.808 | C22: =SUM(C6:C21) -> 3540684.251 | H22: =SUM(H6:H21) -> 79909905.72 | I22: =IF(Quality_Condom_Availability_Data="High",'1. Condom Availability'!$B$7,SUM(I6:I21)) -> 92595589.09 | J22: =SUM(J6:J21) -> 105281272.5 | K22: =SUM(K6:K21) -> 117966955.8 | L22: 130652639.2 | M22: 143338322.6 | Q22: =SUM(Q6:Q21) -> 127112040.2 | R22: -47202134.48 | S22: =R22/Q22 -> -0.3713427493 | T22: 147612062.6 | U22: =H22-T22 -> -67702156.87 | V22: =U22/T22 -> -0.4586492166
A23: =INDEX(Translation!$B$1:$E$581,Translation!$A$209,Language) -> Annual Increase in Condom Requirement (%) | H23: =H22/H22 -> 1 | I23: =I22/$H22 -> 1.158749823 | J23: =J22/$H22 -> 1.317499646 | K23: =K22/$H22 -> 1.476249468 | L23: 1.634999291 | M23: 1.793749114 | Q23: =Q22/Q22 -> 1 | T23: 1
A24: Avg nbr of condoms needed per adult men 15-64y per year | H24: =H22/'2. Demographic Data'!$D$11 -> 15.27415248 | I24: =I22/(('2. Demographic Data'!$D$11*(1+'2. Demographic Data'!$D$7))) -> 17.20898177 | J24: =J22/(('2. Demographic Data'!$D$11*(1+'2. Demographic Data'!$D$7+'2. Demographic Data'!$D$7))) -> 19.03957697 | K24: =K22/(('2. Demographic Data'!$D$11*(1+'2. Demographic Data'!$D$7+'2. Demographic Data'!$D$7+'2. Demographic Data'!$D$7))) -> 20.77414017 | L24: =L22/(('2. Demographic Data'!$D$11*(1+'2. Demographic Data'!$D$7+'2. Demographic Data'!$D$7+'2. Demographic Data'!$D$7+'2. Demographic Data'!$D$7))) -> 22.4200349 | M24: =M22/(('2. Demographic Data'!$D$11*(1+'2. Demographic Data'!$D$7+'2. Demographic Data'!$D$7+'2. Demographic Data'!$D$7+'2. Demographic Data'!$D$7+'2. Demographic Data'!$D$7))) -> 23.98389064 | Q24: =Q22/'2. Demographic Data'!$D$11 -> 24.29647071 | T24: 28.2148894
A26: a) 60% Condom Use Target | B26: =INDEX(Translation!$B$1:$E$581,Translation!$A$193,Language) -> Size of population in 2022 | C26: =INDEX(Translation!$B$1:$E$581,Translation!$A$194,Language) -> Size of Population in 2027 | D26: =INDEX(Translation!$B$1:$E$581,Translation!$A$195,Language) -> Baseline Coverage (% condom use at last sex) | E26: =INDEX(Translation!$B$1:$E$581,Translation!$A$196,Language) -> Target Coverage in 2027 | F26: =INDEX(Translation!$B$1:$E$581,Translation!$A$197,Language) -> Annual No. of Sex Acts Requiring Protection | G26: =INDEX(Translation!$B$1:$E$581,Translation!$A$198,Language) -> Wastage | H26: =INDEX(Translation!$B$1:$E$581,Translation!$A$201,Language) -> Total Condoms Used in 2022 | I26: =INDEX(Translation!$B$1:$E$581,Translation!$A$202,Language) -> Total Condoms Required in 2023 | J26: =INDEX(Translation!$B$1:$E$581,Translation!$A$203,Language) -> Total Condoms Required in 2024 | K26: =INDEX(Translation!$B$1:$E$581,Translation!$A$204,Language) -> Total Condoms Required in 2025 | L26: =INDEX(Translation!$B$1:$E$581,Translation!$A$205,Language) -> Total Condoms Required in 2026 | M26: =INDEX(Translation!$B$1:$E$581,Translation!$A$206,Language) -> Total Condoms Required in 2027 | N26: =INDEX(Translation!$B$1:$E$581,Translation!$A$207,Language) -> % of Total Condoms Required in 2027 | Q26: Total Condom Need in 2022 (60% Target) | R26: 2022 Condom Gap (use vs need) | S26: % Gap
D27: 2022 | E27: =""&Target_Year -> 2027 | H27: 2022 | I27: =Start_Year -> 2023 | J27: =I27+1 -> 2024 | K27: =J27+1 -> 2025 | L27: 2026 | M27: =Target_Year -> 2027 | Q27: 2022 | R27: 2022
A28: =INDEX(Translation!$B$1:$E$581,Translation!$A$34,Language) -> Key Populations | K28: End Sub
A29: =INDEX(Translation!$B$1:$E$581,Translation!$A$50,Language) -> PLHIV Couples | B29: ='2. Demographic Data'!$D$37 -> 337770 | C29: ='2. Demographic Data'!$D$38 -> 355685.5118 | D29: ='2. Demographic Data'!$D$100 -> 0.4 | E29: 0.6 | F29: ='3. Condom Requirements'!$F$5 -> 100 | G29: ='3. Condom Requirements'!$G$5 -> 0.2 | H29: =B29*D29*F29*(1+G29) -> 16212960 | I29: =IF(I$27>Target_Year,0,IF(I$27=Target_Year,$C29*$E29*$F29*(1+$G29),H29+($M29-$H29)/(Target_Year-2022))) -> 18092239.37 | J29: 19971518.74 | K29: 21850798.11 | L29: 23730077.48 | M29: =$C29*$E29*$F29*(1+$G29) -> 25609356.85 | N29: =M29/M$45 -> 0.2174474901 | Q29: =B29*E29*F29*(1+G29) -> 24319440 | R29: =H29-Q29 -> -8106480 | S29: =R29/Q29 -> -0.3333333333
A30: =INDEX(Translation!$B$1:$E$581,Translation!$A$51,Language) -> Sex workers | B30: ='2. Demographic Data'!$D$89 -> 41252.49 | C30: =B30*(1+Pop_Growth) -> 47485.99345 | D30: ='2. Demographic Data'!$D$101 -> 0.7 | E30: 0.75 | F30: ='3. Condom Requirements'!$F$6 -> 450 | G30: =$G$29 -> 0.2 | H30: =B30*D30*F30*(1+G30) -> 15593441.22 | I30: 16321118.45 | J30: 17048795.67 | K30: 17776472.9 | L30: 18504150.12 | M30: =$C30*$E30*$F30*(1+$G30) -> 19231827.35 | N30: =M30/M$45 -> 0.1632962753 | Q30: =B30*E30*F30*(1+G30) -> 16707258.45 | R30: =H30-Q30 -> -1113817.23 | S30: =R30/Q30 -> -0.06666666667
A31: =INDEX(Translation!$B$1:$E$581,Translation!$A$52,Language) -> Men Having Sex with Men (MSM) | B31: ='2. Demographic Data'!$D$91 -> 78475.62 | C31: =B31*(1+Pop_Growth) -> 90333.76597 | D31: ='2. Demographic Data'!$D$102 -> 0.55 | E31: 0.6 | F31: ='3. Condom Requirements'!$F$7 -> 100 | G31: =$G$29 -> 0.2 | H31: =B31*D31*F31*(1+G31) -> 5179390.92 | I31: 5444318.966 | J31: 5709247.012 | K31: 5974175.058 | L31: 6239103.104 | M31: =$C31*$E31*$F31*(1+$G31) -> 6504031.15 | N31: =M31/M$45 -> 0.05522533258 | Q31: =B31*E31*F31*(1+G31) -> 5650244.64 | R31: -470853.72 | S31: =R31/Q31 -> -0.08333333333
A32: =INDEX(Translation!$B$1:$E$581,Translation!$A$38,Language) -> People who have Sex with Non-Regular Partners [PAIRS]
A33: =INDEX(Translation!$B$1:$E$581,Translation!$A$53,Language) -> Young People (15-24) with NR Partners (pairs) | B33: ='2. Demographic Data'!$D$68 -> 721390.1186 | C33: =B33*(1+Pop_Growth) -> 830396.5759 | D33: ='2. Demographic Data'!$D$114 -> 0.4073080571 | E33: 0.6 | F33: ='3. Condom Requirements'!$F$9 -> 50 | G33: =$G$29 -> 0.2 | H33: =B33*D33*F33*(1+G33) -> 17629680.46 | I33: =IF(I$27>Target_Year,0,IF(I$27=Target_Year,$C33*$E33*$F33*(1+$G33),H33+($M33-$H33)/(Target_Year-2022))) -> 20082599.71 | J33: 22535518.97 | K33: 24988438.22 | L33: 27441357.48 | M33: =$C33*$E33*$F33*(1+$G33) -> 29894276.73 | N33: =M33/M$45 -> 0.253830484 | Q33: =B33*E33*F33*(1+G33) -> 25970044.27 | R33: =H33-Q33 -> -8340363.811 | S33: =R33/Q33 -> -0.3211532381
A34: =INDEX(Translation!$B$1:$E$581,Translation!$A$54,Language) -> Men&Women (25-34) with NR Partners (pairs) | B34: ='2. Demographic Data'!$D$69 -> 356766.6678 | C34: =B34*(1+Pop_Growth) -> 410676.2925 | D34: ='2. Demographic Data'!$D$115 -> 0.480657698 | E34: 0.6 | F34: ='3. Condom Requirements'!$F$12 -> 50 | G34: =$G$29 -> 0.2 | H34: =B34*D34*F34*(1+G34) -> 10288958.72 | I34: 11188036.28 | J34: 12087113.84 | K34: 12986191.41 | L34: 13885268.97 | M34: =$C34*$E34*$F34*(1+$G34) -> 14784346.53 | N34: =M34/M$45 -> 0.1255329864 | Q34: 12843600.04 | R34: -2554641.324 | S34: =R34/Q34 -> -0.1989038366
A35: =INDEX(Translation!$B$1:$E$581,Translation!$A$55,Language) -> Men&Women (35-49) with NR Partners (pairs) | B35: ='2. Demographic Data'!$D$70 -> 192844.8597 | C35: =B35*(1+Pop_Growth) -> 221984.897 | D35: ='2. Demographic Data'!$D$116 -> 0.4271120626 | E35: 0.6 | F35: ='3. Condom Requirements'!$F$12 -> 50 | G35: =$G$29 -> 0.2 | H35: =B35*D35*F35*(1+G35) -> 4941981.948 | I35: 5551876.817 | J35: 6161771.686 | K35: 6771666.555 | L35: 7381561.424 | M35: =$C35*$E35*$F35*(1+$G35) -> 7991456.293 | N35: =M35/M$45 -> 0.06785496893 | Q35: 6942414.949 | R35: -2000433.001 | S35: =R35/Q35 -> -0.2881465623
A36: =INDEX(Translation!$B$1:$E$581,Translation!$A$56,Language) -> Men&Women (50-64) with NR Partners (pairs) | B36: ='2. Demographic Data'!$D$71 -> 50529.90897 | C36: =B36*(1+Pop_Growth) -> 58165.28715 | D36: ='2. Demographic Data'!$D$117 -> 0.3210534323 | E36: 0.6 | F36: ='3. Condom Requirements'!$F$12 -> 50 | G36: =$G$29 -> 0.2 | H36: =B36*D36*F36*(1+G36) -> 973368.0426 | I36: 1197484.502 | J36: 1421600.96 | K36: 1645717.419 | L36: 1869833.878 | M36: =$C36*$E36*$F36*(1+$G36) -> 2093950.337 | N36: =M36/M$45 -> 0.01777960485 | Q36: 1819076.723 | R36: -845708.6803 | S36: =R36/Q36 -> -0.4649109461
A37: =INDEX(Translation!$B$1:$E$581,Translation!$A$43,Language) -> Couples Using Condoms for Family Planning
A38: =INDEX(Translation!$B$1:$E$581,Translation!$A$57,Language) -> Couples Using Condoms for FP | B38: ='2. Demographic Data'!$D$80 -> 1189291.277 | C38: =B38*(1+Pop_Growth) -> 1369000.46 | D38: ='2. Demographic Data'!$D$79 -> 0.06369426752 | E38: ='3. Condom Requirements'!$E$14 -> 0.06369426752 | F38: ='3. Condom Requirements'!$F$14 -> 100 | G38: =$G$29 -> 0.2 | H38: =B38*D38*F38*(1+G38) -> 9090124.411 | I38: =IF(I$27>Target_Year,0,IF(I$27=Target_Year,$C38*$E38*$F38*(1+$G38),H38+($M38-$H38)/(Target_Year-2022))) -> 9364839.085 | J38: 9639553.76 | K38: 9914268.435 | L38: 10188983.11 | M38: =$C38*$E38*$F38*(1+$G38) -> 10463697.78 | N38: =M38/M$45 -> 0.08884662094 | Q38: 9090124.411 | R38: =H38-Q38 -> 0 | S38: =R38/Q38 -> 0
A39: =INDEX(Translation!$B$1:$E$581,Translation!$A$58,Language) -> Couples With Unmet Need for FP Condoms | B39: ='2. Demographic Data'!$D$83 -> 136351.8662 | C39: =B39*(1+Pop_Growth) -> 156955.4668 | D39: ='2. Demographic Data'!$D$119 -> 0 | E39: ='3. Condom Requirements'!$E$15 -> 0.06369426752 | F39: ='3. Condom Requirements'!$F$15 -> 100 | G39: =$G$29 -> 0.2 | H39: =B39*D39*F39*(1+G39) -> 0 | I39: 239931.9237 | J39: 479863.8475 | K39: 719795.7712 | L39: 959727.6949 | M39: =$C39*$E39*$F39*(1+$G39) -> 1199659.619 | N39: =M39/M$45 -> 0.0101862368 | Q39: 1042179.869 | R39: -1042179.869 | S39: =R39/Q39 -> -1
A40: =INDEX(Translation!$B$1:$E$581,Translation!$A$46,Language) -> Other Key Populations and Populations at High Risk
A41: ='2. Demographic Data'!$A$92 -> People who Inject Drugs (PWID) | B41: ='2. Demographic Data'!$D$92 -> 0 | C41: =B41*(1+Pop_Growth) -> 0 | D41: ='2. Demographic Data'!$D$120 -> 0.4 | E41: 0.6 | F41: ='3. Condom Requirements'!$F$17 -> 100 | G41: =$G$29 -> 0.2 | H41: =B41*D41*F41*(1+G41) -> 0 | I41: =IF(I$27>Target_Year,0,IF(I$27=Target_Year,$C41*$E41*$F41*(1+$G41),H41+($M41-$H41)/(Target_Year-2022))) -> 0 | J41: 0 | K41: 0 | L41: 0 | M41: =$C41*$E41*$F41*(1+$G41) -> 0 | N41: =M41/M$45 -> 0 | Q41: 0 | R41: =H41-Q41 -> 0 | S41: =R41/Q41 -> 
A42: ='2. Demographic Data'!$A$93 -> Transgender (TG) | B42: ='2. Demographic Data'!$D$93 -> 0 | C42: =B42*(1+Pop_Growth) -> 0 | D42: ='2. Demographic Data'!$D$121 -> 0.45 | E42: 0.6 | F42: ='3. Condom Requirements'!$F$18 -> 100 | G42: =$G$29 -> 0.2 | H42: =B42*D42*F42*(1+G42) -> 0 | I42: 0 | J42: 0 | K42: 0 | L42: 0 | M42: =$C42*$E42*$F42*(1+$G42) -> 0 | N42: =M42/M$45 -> 0 | Q42: 0 | R42: 0 | S42: =R42/Q42 -> 
A43: ='2. Demographic Data'!$A$97 -> Other [Please Specify]: | B43: ='2. Demographic Data'!$D$97 -> 0 | C43: =B43*(1+Pop_Growth) -> 0 | D43: ='2. Demographic Data'!$D$125 -> 0 | E43: 0.6 | F43: ='3. Condom Requirements'!$F$19 -> 100 | G43: =$G$29 -> 0.2 | H43: =B43*D43*F43*(1+G43) -> 0 | I43: 0 | J43: 0 | K43: 0 | L43: 0 | M43: =$C43*$E43*$F43*(1+$G43) -> 0 | N43: =M43/M$45 -> 0 | Q43: 0 | R43: 0 | S43: =R43/Q43 -> 
A44: ='2. Demographic Data'!$A$98 -> Other [Please Specify]: | B44: ='2. Demographic Data'!$D$98 -> 0 | C44: =B44*(1+Pop_Growth) -> 0 | D44: ='2. Demographic Data'!$D$126 -> 0 | E44: 0.6 | F44: ='3. Condom Requirements'!$F$20 -> 100 | G44: =$G$29 -> 0.2 | H44: =B44*D44*F44*(1+G44) -> 0 | I44: 0 | J44: 0 | K44: 0 | L44: 0 | M44: =$C44*$E44*$F44*(1+$G44) -> 0 | N44: =M44/M$45 -> 0 | Q44: 0 | R44: 0 | S44: =R44/Q44 -> 
A45: =INDEX(Translation!$B$1:$E$581,Translation!$A$212,Language) -> 60% Condom Use Target | B45: =SUM(B29:B44) -> 3104672.808 | C45: =SUM(C29:C44) -> 3540684.251 | H45: =SUM(H29:H44) -> 79909905.72 | I45: =IF(Quality_Condom_Availability_Data="High",'1. Condom Availability'!$B$7,SUM(I29:I44)) -> 87482445.1 | J45: =SUM(J29:J44) -> 95054984.49 | K45: =SUM(K29:K44) -> 102627523.9 | L45: 110200063.3 | M45: 117772602.6 | Q45: =SUM(Q29:Q44) -> 104384383.4 | R45: -24474477.64 | S45: =R45/Q45 -> -0.2344649348
A46: =INDEX(Translation!$B$1:$E$581,Translation!$A$209,Language) -> Annual Increase in Condom Requirement (%) | H46: =H45/H45 -> 1 | I46: =I45/$H45 -> 1.094763463 | J46: =J45/$H45 -> 1.189526926 | K46: =K45/$H45 -> 1.284290389 | L46: 1.379053852 | M46: 1.473817315 | Q46: =Q45/Q45 -> 1
A47: Avg nbr of condoms needed per adult men 15-64y per year | H47: =H45/'2. Demographic Data'!$D$11 -> 15.27415248 | I47: =I45/(('2. Demographic Data'!$D$11*(1+'2. Demographic Data'!$D$7))) -> 16.2586989 | J47: =J45/(('2. Demographic Data'!$D$11*(1+'2. Demographic Data'!$D$7+'2. Demographic Data'!$D$7))) -> 17.19020535 | K47: =K45/(('2. Demographic Data'!$D$11*(1+'2. Demographic Data'!$D$7+'2. Demographic Data'!$D$7+'2. Demographic Data'!$D$7))) -> 18.07284549 | L47: =L45/(('2. Demographic Data'!$D$11*(1+'2. Demographic Data'!$D$7+'2. Demographic Data'!$D$7+'2. Demographic Data'!$D$7+'2. Demographic Data'!$D$7))) -> 18.91036629 | M47: =M45/(('2. Demographic Data'!$D$11*(1+'2. Demographic Data'!$D$7+'2. Demographic Data'!$D$7+'2. Demographic Data'!$D$7+'2. Demographic Data'!$D$7+'2. Demographic Data'!$D$7))) -> 19.70614119 | Q47: =Q45/'2. Demographic Data'!$D$11 -> 19.95225715
A49: b) 90% Condom Use Target | B49: =INDEX(Translation!$B$1:$E$581,Translation!$A$193,Language) -> Size of population in 2022 | C49: =INDEX(Translation!$B$1:$E$581,Translation!$A$194,Language) -> Size of Population in 2027 | D49: =INDEX(Translation!$B$1:$E$581,Translation!$A$195,Language) -> Baseline Coverage (% condom use at last sex) | E49: =INDEX(Translation!$B$1:$E$581,Translation!$A$196,Language) -> Target Coverage in 2027 | F49: =INDEX(Translation!$B$1:$E$581,Translation!$A$197,Language) -> Annual No. of Sex Acts Requiring Protection | G49: =INDEX(Translation!$B$1:$E$581,Translation!$A$198,Language) -> Wastage | H49: =INDEX(Translation!$B$1:$E$581,Translation!$A$201,Language) -> Total Condoms Used in 2022 | I49: =INDEX(Translation!$B$1:$E$581,Translation!$A$202,Language) -> Total Condoms Required in 2023 | J49: =INDEX(Translation!$B$1:$E$581,Translation!$A$203,Language) -> Total Condoms Required in 2024 | K49: =INDEX(Translation!$B$1:$E$581,Translation!$A$204,Language) -> Total Condoms Required in 2025 | L49: =INDEX(Translation!$B$1:$E$581,Translation!$A$205,Language) -> Total Condoms Required in 2026 | M49: =INDEX(Translation!$B$1:$E$581,Translation!$A$206,Language) -> Total Condoms Required in 2027 | N49: =INDEX(Translation!$B$1:$E$581,Translation!$A$207,Language) -> % of Total Condoms Required in 2027 | Q49: Total Condom Need in 2022 (90% Target) | R49: 2022 Condom Gap (use vs need) | S49: % Gap
D50: 2022 | E50: =""&Target_Year -> 2027 | H50: 2022 | I50: =Start_Year -> 2023 | J50: =I50+1 -> 2024 | K50: =J50+1 -> 2025 | L50: =K50+1 -> 2026 | M50: =Target_Year -> 2027 | Q50: 2022 | R50: 2022
A51: =INDEX(Translation!$B$1:$E$581,Translation!$A$34,Language) -> Key Populations
A52: =INDEX(Translation!$B$1:$E$581,Translation!$A$50,Language) -> PLHIV Couples | B52: ='2. Demographic Data'!$D$37 -> 337770 | C52: =B52*(1+Pop_Growth) -> 388809.1121 | D52: ='2. Demographic Data'!$D$100 -> 0.4 | E52: 0.9 | F52: ='3. Condom Requirements'!$F$5 -> 100 | G52: ='3. Condom Requirements'!$G$5 -> 0.2 | H52: =B52*D52*F52*(1+G52) -> 16212960 | I52: =IF(I$27>Target_Year,0,IF(I$27=Target_Year,$C52*$E52*$F52*(1+$G52),H52+($M52-$H52)/(Target_Year-2022))) -> 21368644.82 | J52: 26524329.64 | K52: 31680014.46 | L52: 36835699.28 | M52: =$C52*$E52*$F52*(1+$G52) -> 41991384.1 | N52: =M52/M$45 -> 0.3565462863 | Q52: =B52*E52*F52*(1+G52) -> 36479160 | R52: =H52-Q52 -> -20266200 | S52: =R52/Q52 -> -0.5555555556
A53: =INDEX(Translation!$B$1:$E$581,Translation!$A$51,Language) -> Sex workers | B53: ='2. Demographic Data'!$D$89 -> 41252.49 | C53: =B53*(1+Pop_Growth) -> 47485.99345 | D53: ='2. Demographic Data'!$D$101 -> 0.7 | E53: 0.95 | F53: ='3. Condom Requirements'!$F$6 -> 450 | G53: =$G$29 -> 0.2 | H53: =B53*D53*F53*(1+G53) -> 15593441.22 | I53: 17346815.9 | J53: 19100190.59 | K53: 20853565.27 | L53: 22606939.96 | M53: =$C53*$E53*$F53*(1+$G53) -> 24360314.64 | N53: =M53/M$45 -> 0.2068419487 | Q53: =B53*E53*F53*(1+G53) -> 21162527.37 | R53: =H53-Q53 -> -5569086.15 | S53: =R53/Q53 -> -0.2631578947
A54: =INDEX(Translation!$B$1:$E$581,Translation!$A$52,Language) -> Men Having Sex with Men (MSM) | B54: ='2. Demographic Data'!$D$91 -> 78475.62 | C54: =B54*(1+Pop_Growth) -> 90333.76597 | D54: ='2. Demographic Data'!$D$102 -> 0.55 | E54: 0.9 | F54: ='3. Condom Requirements'!$F$7 -> 100 | G54: =$G$29 -> 0.2 | H54: =B54*D54*F54*(1+G54) -> 5179390.92 | I54: 6094722.081 | J54: 7010053.242 | K54: 7925384.403 | L54: 8840715.564 | M54: =$C54*$E54*$F54*(1+$G54) -> 9756046.725 | N54: =M54/M$45 -> 0.08283799887 | Q54: 8475366.96 | R54: -3295976.04 | S54: =R54/Q54 -> -0.3888888889
A55: =INDEX(Translation!$B$1:$E$581,Translation!$A$38,Language) -> People who have Sex with Non-Regular Partners [PAIRS]
A56: =INDEX(Translation!$B$1:$E$581,Translation!$A$53,Language) -> Young People (15-24) with NR Partners (pairs) | B56: ='2. Demographic Data'!$D$68 -> 721390.1186 | C56: =B56*(1+Pop_Growth) -> 830396.5759 | D56: ='2. Demographic Data'!$D$114 -> 0.4073080571 | E56: 0.9 | F56: ='3. Condom Requirements'!$F$9 -> 50 | G56: =$G$29 -> 0.2 | H56: =B56*D56*F56*(1+G56) -> 17629680.46 | I56: =IF(I$27>Target_Year,0,IF(I$27=Target_Year,$C56*$E56*$F56*(1+$G56),H56+($M56-$H56)/(Target_Year-2022))) -> 23072027.39 | J56: 28514374.31 | K56: 33956721.24 | L56: 39399068.17 | M56: =$C56*$E56*$F56*(1+$G56) -> 44841415.1 | N56: =M56/M$45 -> 0.380745726 | Q56: =B56*E56*F56*(1+G56) -> 38955066.4 | R56: =H56-Q56 -> -21325385.95 | S56: =R56/Q56 -> -0.5474354921
A57: =INDEX(Translation!$B$1:$E$581,Translation!$A$54,Language) -> Men&Women (25-34) with NR Partners (pairs) | B57: ='2. Demographic Data'!$D$69 -> 356766.6678 | C57: =B57*(1+Pop_Growth) -> 410676.2925 | D57: ='2. Demographic Data'!$D$115 -> 0.480657698 | E57: 0.9 | F57: ='3. Condom Requirements'!$F$12 -> 50 | G57: =$G$29 -> 0.2 | H57: =B57*D57*F57*(1+G57) -> 10288958.72 | I57: 12666470.93 | J57: 15043983.15 | K57: 17421495.37 | L57: 19799007.58 | M57: =$C57*$E57*$F57*(1+$G57) -> 22176519.8 | N57: =M57/M$45 -> 0.1882994797 | Q57: 19265400.06 | R57: -8976441.345 | S57: =R57/Q57 -> -0.4659358911
A58: =INDEX(Translation!$B$1:$E$581,Translation!$A$55,Language) -> Men&Women (35-49) with NR Partners (pairs) | B58: ='2. Demographic Data'!$D$70 -> 192844.8597 | C58: =B58*(1+Pop_Growth) -> 221984.897 | D58: ='2. Demographic Data'!$D$116 -> 0.4271120626 | E58: 0.9 | F58: ='3. Condom Requirements'!$F$12 -> 50 | G58: =$G$29 -> 0.2 | H58: =B58*D58*F58*(1+G58) -> 4941981.948 | I58: 6351022.446 | J58: 7760062.945 | K58: 9169103.443 | L58: 10578143.94 | M58: =$C58*$E58*$F58*(1+$G58) -> 11987184.44 | N58: =M58/M$45 -> 0.1017824534 | Q58: 10413622.42 | R58: -5471640.476 | S58: =R58/Q58 -> -0.5254310415
A59: =INDEX(Translation!$B$1:$E$581,Translation!$A$56,Language) -> Men&Women (50-64) with NR Partners (pairs) | B59: ='2. Demographic Data'!$D$71 -> 50529.90897 | C59: =B59*(1+Pop_Growth) -> 58165.28715 | D59: ='2. Demographic Data'!$D$117 -> 0.3210534323 | E59: 0.9 | F59: ='3. Condom Requirements'!$F$12 -> 50 | G59: =$G$29 -> 0.2 | H59: =B59*D59*F59*(1+G59) -> 973368.0426 | I59: 1406879.535 | J59: 1840391.028 | K59: 2273902.521 | L59: 2707414.013 | M59: =$C59*$E59*$F59*(1+$G59) -> 3140925.506 | N59: =M59/M$45 -> 0.02666940728 | Q59: 2728615.084 | R59: -1755247.042 | S59: =R59/Q59 -> -0.6432739641
A60: =INDEX(Translation!$B$1:$E$581,Translation!$A$43,Language) -> Couples Using Condoms for Family Planning
A61: =INDEX(Translation!$B$1:$E$581,Translation!$A$57,Language) -> Couples Using Condoms for FP | B61: ='2. Demographic Data'!$D$80 -> 1189291.277 | C61: =B61*(1+Pop_Growth) -> 1369000.46 | D61: ='2. Demographic Data'!$D$79 -> 0.06369426752 | E61: ='3. Condom Requirements'!$E$14 -> 0.06369426752 | F61: ='3. Condom Requirements'!$F$14 -> 100 | G61: =$G$29 -> 0.2 | H61: =B61*D61*F61*(1+G61) -> 9090124.411 | I61: =IF(I$27>Target_Year,0,IF(I$27=Target_Year,$C61*$E61*$F61*(1+$G61),H61+($M61-$H61)/(Target_Year-2022))) -> 9364839.085 | J61: 9639553.76 | K61: 9914268.435 | L61: 10188983.11 | M61: =$C61*$E61*$F61*(1+$G61) -> 10463697.78 | N61: =M61/M$45 -> 0.08884662094 | Q61: 9090124.411 | R61: =H61-Q61 -> 0 | S61: =R61/Q61 -> 0
A62: =INDEX(Translation!$B$1:$E$581,Translation!$A$58,Language) -> Couples With Unmet Need for FP Condoms | B62: ='2. Demographic Data'!$D$83 -> 136351.8662 | C62: =B62*(1+Pop_Growth) -> 156955.4668 | D62: ='2. Demographic Data'!$D$119 -> 0 | E62: ='3. Condom Requirements'!$E$15 -> 0.06369426752 | F62: ='3. Condom Requirements'!$F$15 -> 100 | G62: =$G$29 -> 0.2 | H62: =B62*D62*F62*(1+G62) -> 0 | I62: 239931.9237 | J62: 479863.8475 | K62: 719795.7712 | L62: 959727.6949 | M62: =$C62*$E62*$F62*(1+$G62) -> 1199659.619 | N62: =M62/M$45 -> 0.0101862368 | Q62: 1042179.869 | R62: -1042179.869 | S62: =R62/Q62 -> -1
A63: =INDEX(Translation!$B$1:$E$581,Translation!$A$46,Language) -> Other Key Populations and Populations at High Risk
A64: ='2. Demographic Data'!$A$92 -> People who Inject Drugs (PWID) | B64: ='2. Demographic Data'!$D$92 -> 0 | C64: =B64*(1+Pop_Growth) -> 0 | D64: ='2. Demographic Data'!$D$120 -> 0.4 | E64: 0.9 | F64: ='3. Condom Requirements'!$F$17 -> 100 | G64: =$G$29 -> 0.2 | H64: =B64*D64*F64*(1+G64) -> 0 | I64: =IF(I$27>Target_Year,0,IF(I$27=Target_Year,$C64*$E64*$F64*(1+$G64),H64+($M64-$H64)/(Target_Year-2022))) -> 0 | J64: 0 | K64: 0 | L64: 0 | M64: =$C64*$E64*$F64*(1+$G64) -> 0 | N64: =M64/M$45 -> 0 | Q64: 0 | R64: =H64-Q64 -> 0 | S64: =R64/Q64 -> 
A65: ='2. Demographic Data'!$A$93 -> Transgender (TG) | B65: ='2. Demographic Data'!$D$93 -> 0 | C65: =B65*(1+Pop_Growth) -> 0 | D65: ='2. Demographic Data'!$D$121 -> 0.45 | E65: 0.9 | F65: ='3. Condom Requirements'!$F$18 -> 100 | G65: =$G$29 -> 0.2 | H65: =B65*D65*F65*(1+G65) -> 0 | I65: 0 | J65: 0 | K65: 0 | L65: 0 | M65: =$C65*$E65*$F65*(1+$G65) -> 0 | N65: =M65/M$45 -> 0 | Q65: 0 | R65: 0 | S65: =R65/Q65 -> 
A66: ='2. Demographic Data'!$A$97 -> Other [Please Specify]: | B66: ='2. Demographic Data'!$D$97 -> 0 | C66: =B66*(1+Pop_Growth) -> 0 | D66: ='2. Demographic Data'!$D$125 -> 0 | E66: 0.9 | F66: ='3. Condom Requirements'!$F$19 -> 100 | G66: =$G$29 -> 0.2 | H66: =B66*D66*F66*(1+G66) -> 0 | I66: 0 | J66: 0 | K66: 0 | L66: 0 | M66: =$C66*$E66*$F66*(1+$G66) -> 0 | N66: =M66/M$45 -> 0 | Q66: 0 | R66: 0 | S66: =R66/Q66 -> 
A67: ='2. Demographic Data'!$A$98 -> Other [Please Specify]: | B67: ='2. Demographic Data'!$D$98 -> 0 | C67: =B67*(1+Pop_Growth) -> 0 | D67: ='2. Demographic Data'!$D$126 -> 0 | E67: 0.9 | F67: ='3. Condom Requirements'!$F$20 -> 100 | G67: =$G$29 -> 0.2 | H67: =B67*D67*F67*(1+G67) -> 0 | I67: 0 | J67: 0 | K67: 0 | L67: 0 | M67: =$C67*$E67*$F67*(1+$G67) -> 0 | N67: =M67/M$45 -> 0 | Q67: 0 | R67: 0 | S67: =R67/Q67 -> 
A68: =INDEX(Translation!$B$1:$E$581,Translation!$A$213,Language) -> 90% Condom Use Target | B68: =SUM(B52:B67) -> 3104672.808 | C68: =SUM(C52:C67) -> 3573807.851 | H68: =SUM(H52:H67) -> 79909905.72 | I68: =IF(Quality_Condom_Availability_Data="High",'1. Condom Availability'!$B$7,SUM(I52:I67)) -> 97911354.12 | J68: =SUM(J52:J67) -> 115912802.5 | K68: =SUM(K52:K67) -> 133914250.9 | L68: =SUM(L52:L67) -> 151915699.3 | M68: =SUM(M52:M67) -> 169917147.7 | Q68: =SUM(Q52:Q67) -> 147612062.6 | R68: -67702156.87 | S68: =R68/Q68 -> -0.4586492166
A69: =INDEX(Translation!$B$1:$E$581,Translation!$A$209,Language) -> Annual Increase in Condom Requirement (%) | H69: =H68/H68 -> 1 | I69: =I68/$H68 -> 1.225271801 | J69: =J68/$H68 -> 1.450543603 | K69: =K68/$H68 -> 1.675815404 | L69: =L68/$H68 -> 1.901087205 | M69: =M68/$H68 -> 2.126359006 | Q69: =Q68/Q68 -> 1
A70: Avg nbr of condoms needed per adult men 15-64y per year | H70: =H68/'2. Demographic Data'!$D$11 -> 15.27415248 | I70: =I68/(('2. Demographic Data'!$D$11*(1+'2. Demographic Data'!$D$7))) -> 18.19692195 | J70: =J68/(('2. Demographic Data'!$D$11*(1+'2. Demographic Data'!$D$7+'2. Demographic Data'!$D$7))) -> 20.96223453 | K70: =K68/(('2. Demographic Data'!$D$11*(1+'2. Demographic Data'!$D$7+'2. Demographic Data'!$D$7+'2. Demographic Data'!$D$7))) -> 23.58248036 | L70: =L68/(('2. Demographic Data'!$D$11*(1+'2. Demographic Data'!$D$7+'2. Demographic Data'!$D$7+'2. Demographic Data'!$D$7+'2. Demographic Data'!$D$7))) -> 26.06878285 | M70: =M68/(('2. Demographic Data'!$D$11*(1+'2. Demographic Data'!$D$7+'2. Demographic Data'!$D$7+'2. Demographic Data'!$D$7+'2. Demographic Data'!$D$7+'2. Demographic Data'!$D$7))) -> 28.43115655 | Q70: =Q68/'2. Demographic Data'!$D$11 -> 28.2148894
A72: c) 100% Condom Use Target / Total Need (No Wastage) | B72: =INDEX(Translation!$B$1:$E$581,Translation!$A$193,Language) -> Size of population in 2022 | C72: =INDEX(Translation!$B$1:$E$581,Translation!$A$194,Language) -> Size of Population in 2027 | D72: =INDEX(Translation!$B$1:$E$581,Translation!$A$195,Language) -> Baseline Coverage (% condom use at last sex) | E72: =INDEX(Translation!$B$1:$E$581,Translation!$A$196,Language) -> Target Coverage in 2027 | F72: =INDEX(Translation!$B$1:$E$581,Translation!$A$197,Language) -> Annual No. of Sex Acts Requiring Protection | G72: =INDEX(Translation!$B$1:$E$581,Translation!$A$198,Language) -> Wastage | H72: =INDEX(Translation!$B$1:$E$581,Translation!$A$201,Language) -> Total Condoms Used in 2022 | I72: =INDEX(Translation!$B$1:$E$581,Translation!$A$202,Language) -> Total Condoms Required in 2023 | J72: =INDEX(Translation!$B$1:$E$581,Translation!$A$203,Language) -> Total Condoms Required in 2024 | K72: =INDEX(Translation!$B$1:$E$581,Translation!$A$204,Language) -> Total Condoms Required in 2025 | L72: =INDEX(Translation!$B$1:$E$581,Translation!$A$205,Language) -> Total Condoms Required in 2026 | M72: =INDEX(Translation!$B$1:$E$581,Translation!$A$206,Language) -> Total Condoms Required in 2027 | N72: =INDEX(Translation!$B$1:$E$581,Translation!$A$207,Language) -> % of Total Condoms Required in 2027 | Q72: Total Condom Need in 2022 (100% Target) | R72: 2022 Condom Gap (use vs need) | S72: % Gap
D73: 2022 | E73: =""&Target_Year -> 2027 | H73: 2022 | I73: =Start_Year -> 2023 | J73: =I73+1 -> 2024 | K73: =J73+1 -> 2025 | L73: =K73+1 -> 2026 | M73: =Target_Year -> 2027 | Q73: 2022 | R73: 2022
A74: =INDEX(Translation!$B$1:$E$581,Translation!$A$34,Language) -> Key Populations
A75: =INDEX(Translation!$B$1:$E$581,Translation!$A$50,Language) -> PLHIV Couples | B75: ='2. Demographic Data'!$D$37 -> 337770 | C75: ='2. Demographic Data'!$D$38 -> 355685.5118 | D75: ='2. Demographic Data'!$D$100 -> 0.4 | E75: 1 | F75: ='3. Condom Requirements'!$F$5 -> 100 | G75: 0 | H75: =B75*D75*F75*(1+G75) -> 13510800 | I75: =IF(I$27>Target_Year,0,IF(I$27=Target_Year,$C75*$E75*$F75*(1+$G75),H75+($M75-$H75)/(Target_Year-2022))) -> 17922350.24 | J75: 22333900.47 | K75: 26745450.71 | L75: 31157000.94 | M75: =$C75*$E75*$F75*(1+$G75) -> 35568551.18 | N75: =M75/M$45 -> 0.3020104029 | Q75: =B75*E75*F75*(1+G75) -> 33777000 | R75: =H75-Q75 -> -20266200 | S75: =R75/Q75 -> -0.6
A76: =INDEX(Translation!$B$1:$E$581,Translation!$A$51,Language) -> Sex workers | B76: ='2. Demographic Data'!$D$89 -> 41252.49 | C76: =B76*(1+Pop_Growth) -> 47485.99345 | D76: ='2. Demographic Data'!$D$101 -> 0.7 | E76: 1 | F76: ='3. Condom Requirements'!$F$6 -> 450 | G76: 0 | H76: 12994534.35 | I76: 14669366.89 | J76: 16344199.43 | K76: 18019031.97 | L76: 19693864.51 | M76: 21368697.05 | N76: =M76/M$45 -> 0.1814403059 | Q76: =B76*E76*F76*(1+G76) -> 18563620.5 | R76: =H76-Q76 -> -5569086.15 | S76: =R76/Q76 -> -0.3
A77: =INDEX(Translation!$B$1:$E$581,Translation!$A$52,Language) -> Men Having Sex with Men (MSM) | B77: ='2. Demographic Data'!$D$91 -> 78475.62 | C77: =B77*(1+Pop_Growth) -> 90333.76597 | D77: ='2. Demographic Data'!$D$102 -> 0.55 | E77: 1 | F77: ='3. Condom Requirements'!$F$7 -> 100 | G77: 0 | H77: 4316159.1 | I77: 5259602.599 | J77: 6203046.099 | K77: 7146489.598 | L77: 8089933.098 | M77: 9033376.597 | N77: =M77/M$45 -> 0.07670185081 | Q77: 7847562 | R77: -3531402.9 | S77: =R77/Q77 -> -0.45
A78: =INDEX(Translation!$B$1:$E$581,Translation!$A$38,Language) -> People who have Sex with Non-Regular Partners [PAIRS] | E78: 1
A79: =INDEX(Translation!$B$1:$E$581,Translation!$A$53,Language) -> Young People (15-24) with NR Partners (pairs) | B79: ='2. Demographic Data'!$D$68 -> 721390.1186 | C79: =B79*(1+Pop_Growth) -> 830396.5759 | D79: ='2. Demographic Data'!$D$114 -> 0.4073080571 | E79: 1 | F79: ='3. Condom Requirements'!$F$9 -> 50 | G79: 0 | H79: =B79*D79*F79*(1+G79) -> 14691400.38 | I79: =IF(I$27>Target_Year,0,IF(I$27=Target_Year,$C79*$E79*$F79*(1+$G79),H79+($M79-$H79)/(Target_Year-2022))) -> 20057086.06 | J79: 25422771.75 | K79: 30788457.43 | L79: 36154143.11 | M79: =$C79*$E79*$F79*(1+$G79) -> 41519828.8 | N79: =M79/M$45 -> 0.3525423389 | Q79: =B79*E79*F79*(1+G79) -> 36069505.93 | R79: =H79-Q79 -> -21378105.55 | S79: =R79/Q79 -> -0.5926919429
A80: =INDEX(Translation!$B$1:$E$581,Translation!$A$54,Language) -> Men&Women (25-34) with NR Partners (pairs) | B80: ='2. Demographic Data'!$D$69 -> 356766.6678 | C80: =B80*(1+Pop_Growth) -> 410676.2925 | D80: ='2. Demographic Data'!$D$115 -> 0.480657698 | E80: 1 | F80: ='3. Condom Requirements'!$F$12 -> 50 | G80: 0 | H80: 8574132.264 | I80: 10966068.74 | J80: 13358005.21 | K80: 15749941.68 | L80: 18141878.15 | M80: 20533814.63 | N80: =M80/M$45 -> 0.1743513701 | Q80: 17838333.39 | R80: -9264201.127 | S80: =R80/Q80 -> -0.519342302
A81: =INDEX(Translation!$B$1:$E$581,Translation!$A$55,Language) -> Men&Women (35-49) with NR Partners (pairs) | B81: ='2. Demographic Data'!$D$70 -> 192844.8597 | C81: =B81*(1+Pop_Growth) -> 221984.897 | D81: ='2. Demographic Data'!$D$116 -> 0.4271120626 | E81: 1 | F81: ='3. Condom Requirements'!$F$12 -> 50 | G81: 0 | H81: 4118318.29 | I81: 5514503.602 | J81: 6910688.915 | K81: 8306874.227 | L81: 9703059.539 | M81: 11099244.85 | N81: =M81/M$45 -> 0.0942430124 | Q81: 9642242.985 | R81: -5523924.695 | S81: =R81/Q81 -> -0.5728879374
A82: =INDEX(Translation!$B$1:$E$581,Translation!$A$56,Language) -> Men&Women (50-64) with NR Partners (pairs) | B82: ='2. Demographic Data'!$D$71 -> 50529.90897 | C82: =B82*(1+Pop_Growth) -> 58165.28715 | D82: ='2. Demographic Data'!$D$117 -> 0.3210534323 | E82: 1 | F82: ='3. Condom Requirements'!$F$12 -> 50 | G82: 0 | H82: 811140.0355 | I82: 1230564.9 | J82: 1649989.764 | K82: 2069414.629 | L82: 2488839.493 | M82: 2908264.357 | N82: =M82/M$45 -> 0.02469389563 | Q82: 2526495.448 | R82: -1715355.413 | S82: =R82/Q82 -> -0.6789465677
A83: =INDEX(Translation!$B$1:$E$581,Translation!$A$43,Language) -> Couples Using Condoms for Family Planning
A84: =INDEX(Translation!$B$1:$E$581,Translation!$A$57,Language) -> Couples Using Condoms for FP | B84: ='2. Demographic Data'!$D$80 -> 1189291.277 | C84: =B84*(1+Pop_Growth) -> 1369000.46 | D84: ='2. Demographic Data'!$D$79 -> 0.06369426752 | E84: ='3. Condom Requirements'!$E$14 -> 0.06369426752 | F84: ='3. Condom Requirements'!$F$14 -> 100 | G84: 0 | H84: =B84*D84*F84*(1+G84) -> 7575103.675 | I84: =IF(I$27>Target_Year,0,IF(I$27=Target_Year,$C84*$E84*$F84*(1+$G84),H84+($M84-$H84)/(Target_Year-2022))) -> 7804032.571 | J84: 8032961.467 | K84: 8261890.363 | L84: 8490819.258 | M84: =$C84*$E84*$F84*(1+$G84) -> 8719748.154 | N84: =M84/M$45 -> 0.07403885079 | Q84: 7575103.675 | R84: =H84-Q84 -> 0 | S84: =R84/Q84 -> 0
A85: =INDEX(Translation!$B$1:$E$581,Translation!$A$58,Language) -> Couples With Unmet Need for FP Condoms | B85: ='2. Demographic Data'!$D$83 -> 136351.8662 | C85: =B85*(1+Pop_Growth) -> 156955.4668 | D85: ='2. Demographic Data'!$D$119 -> 0 | E85: ='3. Condom Requirements'!$E$15 -> 0.06369426752 | F85: ='3. Condom Requirements'!$F$15 -> 100 | G85: 0 | H85: 0 | I85: 199943.2698 | J85: 399886.5395 | K85: 599829.8093 | L85: 799773.0791 | M85: 999716.3489 | N85: =M85/M$45 -> 0.008488530663 | Q85: 868483.2239 | R85: -868483.2239 | S85: =R85/Q85 -> -1
A86: =INDEX(Translation!$B$1:$E$581,Translation!$A$46,Language) -> Other Key Populations and Populations at High Risk
A87: ='2. Demographic Data'!$A$92 -> People who Inject Drugs (PWID) | B87: ='2. Demographic Data'!$D$92 -> 0 | C87: =B87*(1+Pop_Growth) -> 0 | D87: ='2. Demographic Data'!$D$120 -> 0.4 | E87: 1 | F87: ='3. Condom Requirements'!$F$17 -> 100 | G87: 0 | H87: =B87*D87*F87*(1+G87) -> 0 | I87: =IF(I$27>Target_Year,0,IF(I$27=Target_Year,$C87*$E87*$F87*(1+$G87),H87+($M87-$H87)/(Target_Year-2022))) -> 0 | J87: 0 | K87: 0 | L87: 0 | M87: =$C87*$E87*$F87*(1+$G87) -> 0 | N87: =M87/M$45 -> 0 | Q87: 0 | R87: =H87-Q87 -> 0 | S87: =R87/Q87 -> 
A88: ='2. Demographic Data'!$A$93 -> Transgender (TG) | B88: ='2. Demographic Data'!$D$93 -> 0 | C88: =B88*(1+Pop_Growth) -> 0 | D88: ='2. Demographic Data'!$D$121 -> 0.45 | E88: 1 | F88: ='3. Condom Requirements'!$F$18 -> 100 | G88: 0 | H88: 0 | I88: 0 | J88: 0 | K88: 0 | L88: 0 | M88: 0 | N88: =M88/M$45 -> 0 | Q88: 0 | R88: 0 | S88: =R88/Q88 -> 
A89: ='2. Demographic Data'!$A$97 -> Other [Please Specify]: | B89: ='2. Demographic Data'!$D$97 -> 0 | C89: =B89*(1+Pop_Growth) -> 0 | D89: ='2. Demographic Data'!$D$125 -> 0 | E89: 1 | F89: ='3. Condom Requirements'!$F$19 -> 100 | G89: 0 | H89: 0 | I89: 0 | J89: 0 | K89: 0 | L89: 0 | M89: 0 | N89: =M89/M$45 -> 0 | Q89: 0 | R89: 0 | S89: =R89/Q89 -> 
A90: ='2. Demographic Data'!$A$98 -> Other [Please Specify]: | B90: ='2. Demographic Data'!$D$98 -> 0 | C90: =B90*(1+Pop_Growth) -> 0 | D90: ='2. Demographic Data'!$D$126 -> 0 | E90: 1 | F90: ='3. Condom Requirements'!$F$20 -> 100 | G90: 0 | H90: 0 | I90: 0 | J90: 0 | K90: 0 | L90: 0 | M90: 0 | N90: =M90/M$45 -> 0 | Q90: 0 | R90: 0 | S90: =R90/Q90 -> 
A91: =INDEX(Translation!$B$1:$E$581,Translation!$A$214,Language) -> 100% Condom Use / Total Need (No Wastage) | B91: =SUM(B75:B90) -> 3104672.808 | C91: =SUM(C75:C90) -> 3540684.251 | H91: =SUM(H75:H90) -> 66591588.1 | I91: =IF(Quality_Condom_Availability_Data="High",'1. Condom Availability'!$B$7,SUM(I75:I90)) -> 83623518.87 | J91: =SUM(J75:J90) -> 100655449.6 | K91: 117687380.4 | L91: 134719311.2 | M91: 151751242 | Q91: =SUM(Q75:Q90) -> 134708347.2 | R91: -68116759.06 | S91: =R91/Q91 -> -0.5056610113
A92: =INDEX(Translation!$B$1:$E$581,Translation!$A$209,Language) -> Annual Increase in Condom Requirement (%) | H92: =H91/H91 -> 1 | I92: =I91/$H91 -> 1.255767001 | J92: =J91/$H91 -> 1.511534002 | K92: =K91/$H91 -> 1.767301003 | L92: =L91/$H91 -> 2.023068004 | M92: =M91/$H91 -> 2.278835005 | Q92: =Q91/Q91 -> 1
A93: Avg nbr of condoms needed per adult men 15-64y per year | H93: =H91/'2. Demographic Data'!$D$11 -> 12.7284604 | I93: =I91/(('2. Demographic Data'!$D$11*(1+'2. Demographic Data'!$D$7))) -> 15.54151365 | J93: =J91/(('2. Demographic Data'!$D$11*(1+'2. Demographic Data'!$D$7+'2. Demographic Data'!$D$7))) -> 18.20302069 | K93: =K91/(('2. Demographic Data'!$D$11*(1+'2. Demographic Data'!$D$7+'2. Demographic Data'!$D$7+'2. Demographic Data'!$D$7))) -> 20.72490656 | L93: =L91/(('2. Demographic Data'!$D$11*(1+'2. Demographic Data'!$D$7+'2. Demographic Data'!$D$7+'2. Demographic Data'!$D$7+'2. Demographic Data'!$D$7))) -> 23.11787712 | M93: =M91/(('2. Demographic Data'!$D$11*(1+'2. Demographic Data'!$D$7+'2. Demographic Data'!$D$7+'2. Demographic Data'!$D$7+'2. Demographic Data'!$D$7+'2. Demographic Data'!$D$7))) -> 25.39157098 | Q93: =Q91/'2. Demographic Data'!$D$11 -> 25.74844528
A95: d) 35% Condom Use Target | B95: =INDEX(Translation!$B$1:$E$581,Translation!$A$193,Language) -> Size of population in 2022 | C95: =INDEX(Translation!$B$1:$E$581,Translation!$A$194,Language) -> Size of Population in 2027 | D95: =INDEX(Translation!$B$1:$E$581,Translation!$A$195,Language) -> Baseline Coverage (% condom use at last sex) | E95: =INDEX(Translation!$B$1:$E$581,Translation!$A$196,Language) -> Target Coverage in 2027 | F95: =INDEX(Translation!$B$1:$E$581,Translation!$A$197,Language) -> Annual No. of Sex Acts Requiring Protection | G95: =INDEX(Translation!$B$1:$E$581,Translation!$A$198,Language) -> Wastage | H95: =INDEX(Translation!$B$1:$E$581,Translation!$A$201,Language) -> Total Condoms Used in 2022 | I95: =INDEX(Translation!$B$1:$E$581,Translation!$A$202,Language) -> Total Condoms Required in 2023 | J95: =INDEX(Translation!$B$1:$E$581,Translation!$A$203,Language) -> Total Condoms Required in 2024 | K95: =INDEX(Translation!$B$1:$E$581,Translation!$A$204,Language) -> Total Condoms Required in 2025 | L95: =INDEX(Translation!$B$1:$E$581,Translation!$A$205,Language) -> Total Condoms Required in 2026 | M95: =INDEX(Translation!$B$1:$E$581,Translation!$A$206,Language) -> Total Condoms Required in 2027 | N95: =INDEX(Translation!$B$1:$E$581,Translation!$A$207,Language) -> % of Total Condoms Required in 2027 | Q95: Total Condom Need in 2022 (35% Target) | R95: 2022 Condom Gap (use vs need) | S95: % Gap
D96: 2022 | E96: 2027 | H96: 2022 | I96: =Start_Year -> 2023 | J96: =I96+1 -> 2024 | K96: =J96+1 -> 2025 | L96: =K96+1 -> 2026 | M96: =Target_Year -> 2027 | Q96: 2022 | R96: 2022
A97: =INDEX(Translation!$B$1:$E$581,Translation!$A$34,Language) -> Key Populations | K97: End Sub
A98: =INDEX(Translation!$B$1:$E$581,Translation!$A$50,Language) -> PLHIV Couples | B98: ='2. Demographic Data'!$D$37 -> 337770 | C98: ='2. Demographic Data'!$D$38 -> 355685.5118 | D98: ='2. Demographic Data'!$D$100 -> 0.4 | E98: 0.35 | F98: ='3. Condom Requirements'!$F$5 -> 100 | G98: ='3. Condom Requirements'!$G$5 -> 0.2 | H98: =B98*D98*F98*(1+G98) -> 16212960 | I98: =IF(I$27>Target_Year,0,IF(I$27=Target_Year,$C98*$E98*$F98*(1+$G98),H98+($M98-$H98)/(Target_Year-2022))) -> 15958126.3 | J98: 15703292.6 | K98: 15448458.9 | L98: 15193625.2 | M98: =$C98*$E98*$F98*(1+$G98) -> 14938791.5 | N98: =M98/M$45 -> 0.1268443692 | Q98: =B98*E98*F98*(1+G98) -> 14186340 | R98: =H98-Q98 -> 2026620 | S98: =R98/Q98 -> 0.1428571429
A99: =INDEX(Translation!$B$1:$E$581,Translation!$A$51,Language) -> Sex workers | B99: ='2. Demographic Data'!$D$89 -> 41252.49 | C99: =B99*(1+Pop_Growth) -> 47485.99345 | D99: ='2. Demographic Data'!$D$101 -> 0.7 | E99: 0.5 | F99: ='3. Condom Requirements'!$F$6 -> 450 | G99: =$G$29 -> 0.2 | H99: =B99*D99*F99*(1+G99) -> 15593441.22 | I99: 15038996.62 | J99: 14484552.02 | K99: 13930107.43 | L99: 13375662.83 | M99: =$C99*$E99*$F99*(1+$G99) -> 12821218.23 | N99: =M99/M$45 -> 0.1088641836 | Q99: =B99*E99*F99*(1+G99) -> 11138172.3 | R99: =H99-Q99 -> 4455268.92 | S99: =R99/Q99 -> 0.4
A100: =INDEX(Translation!$B$1:$E$581,Translation!$A$52,Language) -> Men Having Sex with Men (MSM) | B100: ='2. Demographic Data'!$D$91 -> 78475.62 | C100: =B100*(1+Pop_Growth) -> 90333.76597 | D100: ='2. Demographic Data'!$D$102 -> 0.55 | E100: 0.35 | F100: ='3. Condom Requirements'!$F$7 -> 100 | G100: =$G$29 -> 0.2 | H100: =B100*D100*F100*(1+G100) -> 5179390.92 | I100: 4902316.37 | J100: 4625241.82 | K100: 4348167.27 | L100: 4071092.721 | M100: =$C100*$E100*$F100*(1+$G100) -> 3794018.171 | N100: =M100/M$45 -> 0.03221477734 | Q100: 3295976.04 | R100: 1883414.88 | S100: =R100/Q100 -> 0.5714285714
A101: =INDEX(Translation!$B$1:$E$581,Translation!$A$38,Language) -> People who have Sex with Non-Regular Partners [PAIRS]
A102: =INDEX(Translation!$B$1:$E$581,Translation!$A$53,Language) -> Young People (15-24) with NR Partners (pairs) | B102: ='2. Demographic Data'!$D$68 -> 721390.1186 | C102: =B102*(1+Pop_Growth) -> 830396.5759 | D102: ='2. Demographic Data'!$D$114 -> 0.4073080571 | E102: 0.35 | F102: ='3. Condom Requirements'!$F$9 -> 50 | G102: =$G$29 -> 0.2 | H102: =B102*D102*F102*(1+G102) -> 17629680.46 | I102: =IF(I$27>Target_Year,0,IF(I$27=Target_Year,$C102*$E102*$F102*(1+$G102),H102+($M102-$H102)/(Target_Year-2022))) -> 17591409.98 | J102: 17553139.51 | K102: 17514869.04 | L102: 17476598.57 | M102: =$C102*$E102*$F102*(1+$G102) -> 17438328.09 | N102: =M102/M$45 -> 0.1480677823 | Q102: =B102*E102*F102*(1+G102) -> 15149192.49 | R102: =H102-Q102 -> 2480487.967 | S102: =R102/Q102 -> 0.1637373061
A103: =INDEX(Translation!$B$1:$E$581,Translation!$A$54,Language) -> Men&Women (25-34) with NR Partners (pairs) | B103: ='2. Demographic Data'!$D$69 -> 356766.6678 | C103: =B103*(1+Pop_Growth) -> 410676.2925 | D103: ='2. Demographic Data'!$D$115 -> 0.480657698 | E103: 0.35 | F103: ='3. Condom Requirements'!$F$12 -> 50 | G103: =$G$29 -> 0.2 | H103: =B103*D103*F103*(1+G103) -> 10288958.72 | I103: 9956007.402 | J103: 9623056.088 | K103: 9290104.773 | L103: 8957153.458 | M103: =$C103*$E103*$F103*(1+$G103) -> 8624202.143 | N103: =M103/M$45 -> 0.07322757543 | Q103: 7492100.024 | R103: 2796858.693 | S103: =R103/Q103 -> 0.3733077087
A104: =INDEX(Translation!$B$1:$E$581,Translation!$A$55,Language) -> Men&Women (35-49) with NR Partners (pairs) | B104: ='2. Demographic Data'!$D$70 -> 192844.8597 | C104: =B104*(1+Pop_Growth) -> 221984.897 | D104: ='2. Demographic Data'!$D$116 -> 0.4271120626 | E104: 0.35 | F104: ='3. Condom Requirements'!$F$12 -> 50 | G104: =$G$29 -> 0.2 | H104: =B104*D104*F104*(1+G104) -> 4941981.948 | I104: 4885922.126 | J104: 4829862.304 | K104: 4773802.482 | L104: 4717742.66 | M104: =$C104*$E104*$F104*(1+$G104) -> 4661682.838 | N104: =M104/M$45 -> 0.03958206521 | Q104: 4049742.054 | R104: 892239.8942 | S104: =R104/Q104 -> 0.220320179
A105: =INDEX(Translation!$B$1:$E$581,Translation!$A$56,Language) -> Men&Women (50-64) with NR Partners (pairs) | B105: ='2. Demographic Data'!$D$71 -> 50529.90897 | C105: =B105*(1+Pop_Growth) -> 58165.28715 | D105: ='2. Demographic Data'!$D$117 -> 0.3210534323 | E105: 0.35 | F105: ='3. Condom Requirements'!$F$12 -> 50 | G105: =$G$29 -> 0.2 | H105: =B105*D105*F105*(1+G105) -> 973368.0426 | I105: 1022988.64 | J105: 1072609.238 | K105: 1122229.835 | L105: 1171850.433 | M105: =$C105*$E105*$F105*(1+$G105) -> 1221471.03 | N105: =M105/M$45 -> 0.01037143616 | Q105: 1061128.088 | R105: -87760.04573 | S105: =R105/Q105 -> -0.08270447903
A106: =INDEX(Translation!$B$1:$E$581,Translation!$A$43,Language) -> Couples Using Condoms for Family Planning
A107: =INDEX(Translation!$B$1:$E$581,Translation!$A$57,Language) -> Couples Using Condoms for FP | B107: ='2. Demographic Data'!$D$80 -> 1189291.277 | C107: =B107*(1+Pop_Growth) -> 1369000.46 | D107: ='2. Demographic Data'!$D$79 -> 0.06369426752 | E107: ='3. Condom Requirements'!$E$14 -> 0.06369426752 | F107: ='3. Condom Requirements'!$F$14 -> 100 | G107: =$G$29 -> 0.2 | H107: =B107*D107*F107*(1+G107) -> 9090124.411 | I107: =IF(I$27>Target_Year,0,IF(I$27=Target_Year,$C107*$E107*$F107*(1+$G107),H107+($M107-$H107)/(Target_Year-2022))) -> 9364839.085 | J107: 9639553.76 | K107: 9914268.435 | L107: 10188983.11 | M107: =$C107*$E107*$F107*(1+$G107) -> 10463697.78 | N107: =M107/M$45 -> 0.08884662094 | Q107: 9090124.411 | R107: =H107-Q107 -> 0 | S107: =R107/Q107 -> 0
A108: =INDEX(Translation!$B$1:$E$581,Translation!$A$58,Language) -> Couples With Unmet Need for FP Condoms | B108: ='2. Demographic Data'!$D$83 -> 136351.8662 | C108: =B108*(1+Pop_Growth) -> 156955.4668 | D108: ='2. Demographic Data'!$D$119 -> 0 | E108: ='3. Condom Requirements'!$E$15 -> 0.06369426752 | F108: ='3. Condom Requirements'!$F$15 -> 100 | G108: =$G$29 -> 0.2 | H108: =B108*D108*F108*(1+G108) -> 0 | I108: 239931.9237 | J108: 479863.8475 | K108: 719795.7712 | L108: 959727.6949 | M108: =$C108*$E108*$F108*(1+$G108) -> 1199659.619 | N108: =M108/M$45 -> 0.0101862368 | Q108: 1042179.869 | R108: -1042179.869 | S108: =R108/Q108 -> -1
A109: =INDEX(Translation!$B$1:$E$581,Translation!$A$46,Language) -> Other Key Populations and Populations at High Risk
A110: ='2. Demographic Data'!$A$92 -> People who Inject Drugs (PWID) | B110: ='2. Demographic Data'!$D$92 -> 0 | C110: =B110*(1+Pop_Growth) -> 0 | D110: ='2. Demographic Data'!$D$120 -> 0.4 | E110: 0.35 | F110: ='3. Condom Requirements'!$F$17 -> 100 | G110: =$G$29 -> 0.2 | H110: =B110*D110*F110*(1+G110) -> 0 | I110: =IF(I$27>Target_Year,0,IF(I$27=Target_Year,$C110*$E110*$F110*(1+$G110),H110+($M110-$H110)/(Target_Year-2022))) -> 0 | J110: 0 | K110: 0 | L110: 0 | M110: =$C110*$E110*$F110*(1+$G110) -> 0 | N110: =M110/M$45 -> 0 | Q110: 0 | R110: =H110-Q110 -> 0 | S110: =R110/Q110 -> 
A111: ='2. Demographic Data'!$A$93 -> Transgender (TG) | B111: ='2. Demographic Data'!$D$93 -> 0 | C111: =B111*(1+Pop_Growth) -> 0 | D111: ='2. Demographic Data'!$D$121 -> 0.45 | E111: 0.35 | F111: ='3. Condom Requirements'!$F$18 -> 100 | G111: =$G$29 -> 0.2 | H111: =B111*D111*F111*(1+G111) -> 0 | I111: 0 | J111: 0 | K111: 0 | L111: 0 | M111: =$C111*$E111*$F111*(1+$G111) -> 0 | N111: =M111/M$45 -> 0 | Q111: 0 | R111: 0 | S111: =R111/Q111 -> 
A112: ='2. Demographic Data'!$A$97 -> Other [Please Specify]: | B112: ='2. Demographic Data'!$D$97 -> 0 | C112: =B112*(1+Pop_Growth) -> 0 | D112: ='2. Demographic Data'!$D$125 -> 0 | E112: 0.35 | F112: ='3. Condom Requirements'!$F$19 -> 100 | G112: =$G$29 -> 0.2 | H112: =B112*D112*F112*(1+G112) -> 0 | I112: 0 | J112: 0 | K112: 0 | L112: 0 | M112: =$C112*$E112*$F112*(1+$G112) -> 0 | N112: =M112/M$45 -> 0 | Q112: 0 | R112: 0 | S112: =R112/Q112 -> 
A113: ='2. Demographic Data'!$A$98 -> Other [Please Specify]: | B113: ='2. Demographic Data'!$D$98 -> 0 | C113: =B113*(1+Pop_Growth) -> 0 | D113: ='2. Demographic Data'!$D$126 -> 0 | E113: 0.35 | F113: ='3. Condom Requirements'!$F$20 -> 100 | G113: =$G$29 -> 0.2 | H113: =B113*D113*F113*(1+G113) -> 0 | I113: 0 | J113: 0 | K113: 0 | L113: 0 | M113: =$C113*$E113*$F113*(1+$G113) -> 0 | N113: =M113/M$45 -> 0 | Q113: 0 | R113: 0 | S113: =R113/Q113 -> 
A114: =INDEX(Translation!$B$1:$E$581,Translation!$A$212,Language) -> 60% Condom Use Target | B114: =SUM(B98:B113) -> 3104672.808 | C114: =SUM(C98:C113) -> 3540684.251 | H114: =SUM(H98:H113) -> 79909905.72 | I114: =IF(Quality_Condom_Availability_Data="High",'1. Condom Availability'!$B$7,SUM(I98:I113)) -> 78960538.45 | J114: =SUM(J98:J113) -> 78011171.19 | K114: =SUM(K98:K113) -> 77061803.93 | L114: 76112436.67 | M114: 75163069.41 | Q114: =SUM(Q98:Q113) -> 66504955.28 | R114: 13404950.44 | S114: =R114/Q114 -> 0.2015631825
A115: =INDEX(Translation!$B$1:$E$581,Translation!$A$209,Language) -> Annual Increase in Condom Requirement (%) | H115: =H114/H114 -> 1 | I115: =I114/$H114 -> 0.9881195297 | J115: =J114/$H114 -> 0.9762390594 | K115: =K114/$H114 -> 0.9643585891 | L115: =L114/$H114 -> 0.9524781188 | M115: =M114/$H114 -> 0.9405976485 | Q115: =Q114/Q114 -> 1
A116: Avg nbr of condoms needed per adult men 15-64y per year | H116: =H114/'2. Demographic Data'!$D$11 -> 15.27415248 | I116: =I114/(('2. Demographic Data'!$D$11*(1+'2. Demographic Data'!$D$7))) -> 14.67489413 | J116: =J114/(('2. Demographic Data'!$D$11*(1+'2. Demographic Data'!$D$7+'2. Demographic Data'!$D$7))) -> 14.10791932 | K116: =K114/(('2. Demographic Data'!$D$11*(1+'2. Demographic Data'!$D$7+'2. Demographic Data'!$D$7+'2. Demographic Data'!$D$7))) -> 13.5706877 | L116: =L114/(('2. Demographic Data'!$D$11*(1+'2. Demographic Data'!$D$7+'2. Demographic Data'!$D$7+'2. Demographic Data'!$D$7+'2. Demographic Data'!$D$7))) -> 13.06091861 | M116: =M114/(('2. Demographic Data'!$D$11*(1+'2. Demographic Data'!$D$7+'2. Demographic Data'!$D$7+'2. Demographic Data'!$D$7+'2. Demographic Data'!$D$7+'2. Demographic Data'!$D$7))) -> 12.57655876 | Q116: =Q114/'2. Demographic Data'!$D$11 -> 12.71190121
A118: e) 75% Condom Use Target | B118: =INDEX(Translation!$B$1:$E$581,Translation!$A$193,Language) -> Size of population in 2022 | C118: =INDEX(Translation!$B$1:$E$581,Translation!$A$194,Language) -> Size of Population in 2027 | D118: =INDEX(Translation!$B$1:$E$581,Translation!$A$195,Language) -> Baseline Coverage (% condom use at last sex) | E118: =INDEX(Translation!$B$1:$E$581,Translation!$A$196,Language) -> Target Coverage in 2027 | F118: =INDEX(Translation!$B$1:$E$581,Translation!$A$197,Language) -> Annual No. of Sex Acts Requiring Protection | G118: =INDEX(Translation!$B$1:$E$581,Translation!$A$198,Language) -> Wastage | H118: =INDEX(Translation!$B$1:$E$581,Translation!$A$201,Language) -> Total Condoms Used in 2022 | I118: =INDEX(Translation!$B$1:$E$581,Translation!$A$202,Language) -> Total Condoms Required in 2023 | J118: =INDEX(Translation!$B$1:$E$581,Translation!$A$203,Language) -> Total Condoms Required in 2024 | K118: =INDEX(Translation!$B$1:$E$581,Translation!$A$204,Language) -> Total Condoms Required in 2025 | L118: =INDEX(Translation!$B$1:$E$581,Translation!$A$205,Language) -> Total Condoms Required in 2026 | M118: =INDEX(Translation!$B$1:$E$581,Translation!$A$206,Language) -> Total Condoms Required in 2027 | N118: =INDEX(Translation!$B$1:$E$581,Translation!$A$207,Language) -> % of Total Condoms Required in 2027 | Q118: Total Condom Need in 2022 (75% Target) | R118: 2022 Condom Gap (use vs need) | S118: % Gap
D119: 2022 | E119: 2027 | H119: 2022 | I119: =Start_Year -> 2023 | J119: =I119+1 -> 2024 | K119: =J119+1 -> 2025 | L119: =K119+1 -> 2026 | M119: =Target_Year -> 2027 | Q119: 2022 | R119: 2022
A120: =INDEX(Translation!$B$1:$E$581,Translation!$A$34,Language) -> Key Populations | K120: End Sub
A121: =INDEX(Translation!$B$1:$E$581,Translation!$A$50,Language) -> PLHIV Couples | B121: ='2. Demographic Data'!$D$37 -> 337770 | C121: ='2. Demographic Data'!$D$38 -> 355685.5118 | D121: ='2. Demographic Data'!$D$100 -> 0.4 | E121: 0.75 | F121: ='3. Condom Requirements'!$F$5 -> 100 | G121: ='3. Condom Requirements'!$G$5 -> 0.2 | H121: =B121*D121*F121*(1+G121) -> 16212960 | I121: =IF(I$27>Target_Year,0,IF(I$27=Target_Year,$C121*$E121*$F121*(1+$G121),H121+($M121-$H121)/(Target_Year-2022))) -> 19372707.21 | J121: 22532454.42 | K121: 25692201.64 | L121: 28851948.85 | M121: =$C121*$E121*$F121*(1+$G121) -> 32011696.06 | N121: =M121/M$45 -> 0.2718093626 | Q121: =B121*E121*F121*(1+G121) -> 30399300 | R121: =H121-Q121 -> -14186340 | S121: =R121/Q121 -> -0.4666666667
A122: =INDEX(Translation!$B$1:$E$581,Translation!$A$51,Language) -> Sex workers | B122: ='2. Demographic Data'!$D$89 -> 41252.49 | C122: =B122*(1+Pop_Growth) -> 47485.99345 | D122: ='2. Demographic Data'!$D$101 -> 0.7 | E122: 0.9 | F122: ='3. Condom Requirements'!$F$6 -> 450 | G122: =$G$29 -> 0.2 | H122: =B122*D122*F122*(1+G122) -> 15593441.22 | I122: 17090391.54 | J122: 18587341.86 | K122: 20084292.18 | L122: 21581242.5 | M122: =$C122*$E122*$F122*(1+$G122) -> 23078192.82 | N122: =M122/M$45 -> 0.1959555304 | Q122: =B122*E122*F122*(1+G122) -> 20048710.14 | R122: =H122-Q122 -> -4455268.92 | S122: =R122/Q122 -> -0.2222222222
A123: =INDEX(Translation!$B$1:$E$581,Translation!$A$52,Language) -> Men Having Sex with Men (MSM) | B123: ='2. Demographic Data'!$D$91 -> 78475.62 | C123: =B123*(1+Pop_Growth) -> 90333.76597 | D123: ='2. Demographic Data'!$D$102 -> 0.55 | E123: 0.75 | F123: ='3. Condom Requirements'!$F$7 -> 100 | G123: =$G$29 -> 0.2 | H123: =B123*D123*F123*(1+G123) -> 5179390.92 | I123: 5769520.523 | J123: 6359650.127 | K123: 6949779.73 | L123: 7539909.334 | M123: =$C123*$E123*$F123*(1+$G123) -> 8130038.937 | N123: =M123/M$45 -> 0.06903166572 | Q123: 7062805.8 | R123: -1883414.88 | S123: =R123/Q123 -> -0.2666666667
A124: =INDEX(Translation!$B$1:$E$581,Translation!$A$38,Language) -> People who have Sex with Non-Regular Partners [PAIRS]
A125: =INDEX(Translation!$B$1:$E$581,Translation!$A$53,Language) -> Young People (15-24) with NR Partners (pairs) | B125: ='2. Demographic Data'!$D$68 -> 721390.1186 | C125: =B125*(1+Pop_Growth) -> 830396.5759 | D125: ='2. Demographic Data'!$D$114 -> 0.4073080571 | E125: 0.75 | F125: ='3. Condom Requirements'!$F$9 -> 50 | G125: =$G$29 -> 0.2 | H125: =B125*D125*F125*(1+G125) -> 17629680.46 | I125: =IF(I$27>Target_Year,0,IF(I$27=Target_Year,$C125*$E125*$F125*(1+$G125),H125+($M125-$H125)/(Target_Year-2022))) -> 21577313.55 | J125: 25524946.64 | K125: 29472579.73 | L125: 33420212.83 | M125: =$C125*$E125*$F125*(1+$G125) -> 37367845.92 | N125: =M125/M$45 -> 0.317288105 | Q125: =B125*E125*F125*(1+G125) -> 32462555.34 | R125: =H125-Q125 -> -14832874.88 | S125: =R125/Q125 -> -0.4569225905
A126: =INDEX(Translation!$B$1:$E$581,Translation!$A$54,Language) -> Men&Women (25-34) with NR Partners (pairs) | B126: ='2. Demographic Data'!$D$69 -> 356766.6678 | C126: =B126*(1+Pop_Growth) -> 410676.2925 | D126: ='2. Demographic Data'!$D$115 -> 0.480657698 | E126: 0.75 | F126: ='3. Condom Requirements'!$F$12 -> 50 | G126: =$G$29 -> 0.2 | H126: =B126*D126*F126*(1+G126) -> 10288958.72 | I126: 11927253.61 | J126: 13565548.5 | K126: 15203843.39 | L126: 16842138.28 | M126: =$C126*$E126*$F126*(1+$G126) -> 18480433.16 | N126: =M126/M$45 -> 0.1569162331 | Q126: 16054500.05 | R126: -5765541.335 | S126: =R126/Q126 -> -0.3591230693
A127: =INDEX(Translation!$B$1:$E$581,Translation!$A$55,Language) -> Men&Women (35-49) with NR Partners (pairs) | B127: ='2. Demographic Data'!$D$70 -> 192844.8597 | C127: =B127*(1+Pop_Growth) -> 221984.897 | D127: ='2. Demographic Data'!$D$116 -> 0.4271120626 | E127: 0.75 | F127: ='3. Condom Requirements'!$F$12 -> 50 | G127: =$G$29 -> 0.2 | H127: =B127*D127*F127*(1+G127) -> 4941981.948 | I127: 5951449.632 | J127: 6960917.315 | K127: 7970384.999 | L127: 8979852.683 | M127: =$C127*$E127*$F127*(1+$G127) -> 9989320.366 | N127: =M127/M$45 -> 0.08481871116 | Q127: 8678018.687 | R127: -3736036.739 | S127: =R127/Q127 -> -0.4305172498
A128: =INDEX(Translation!$B$1:$E$581,Translation!$A$56,Language) -> Men&Women (50-64) with NR Partners (pairs) | B128: ='2. Demographic Data'!$D$71 -> 50529.90897 | C128: =B128*(1+Pop_Growth) -> 58165.28715 | D128: ='2. Demographic Data'!$D$117 -> 0.3210534323 | E128: 0.75 | F128: ='3. Condom Requirements'!$F$12 -> 50 | G128: =$G$29 -> 0.2 | H128: =B128*D128*F128*(1+G128) -> 973368.0426 | I128: 1302182.018 | J128: 1630995.994 | K128: 1959809.97 | L128: 2288623.946 | M128: =$C128*$E128*$F128*(1+$G128) -> 2617437.922 | N128: =M128/M$45 -> 0.02222450606 | Q128: 2273845.904 | R128: -1300477.861 | S128: =R128/Q128 -> -0.5719287569
A129: =INDEX(Translation!$B$1:$E$581,Translation!$A$43,Language) -> Couples Using Condoms for Family Planning
A130: =INDEX(Translation!$B$1:$E$581,Translation!$A$57,Language) -> Couples Using Condoms for FP | B130: ='2. Demographic Data'!$D$80 -> 1189291.277 | C130: =B130*(1+Pop_Growth) -> 1369000.46 | D130: ='2. Demographic Data'!$D$79 -> 0.06369426752 | E130: ='3. Condom Requirements'!$E$14 -> 0.06369426752 | F130: ='3. Condom Requirements'!$F$14 -> 100 | G130: =$G$29 -> 0.2 | H130: =B130*D130*F130*(1+G130) -> 9090124.411 | I130: =IF(I$27>Target_Year,0,IF(I$27=Target_Year,$C130*$E130*$F130*(1+$G130),H130+($M130-$H130)/(Target_Year-2022))) -> 9364839.085 | J130: 9639553.76 | K130: 9914268.435 | L130: 10188983.11 | M130: =$C130*$E130*$F130*(1+$G130) -> 10463697.78 | N130: =M130/M$45 -> 0.08884662094 | Q130: 9090124.411 | R130: =H130-Q130 -> 0 | S130: =R130/Q130 -> 0
A131: =INDEX(Translation!$B$1:$E$581,Translation!$A$58,Language) -> Couples With Unmet Need for FP Condoms | B131: ='2. Demographic Data'!$D$83 -> 136351.8662 | C131: =B131*(1+Pop_Growth) -> 156955.4668 | D131: ='2. Demographic Data'!$D$119 -> 0 | E131: ='3. Condom Requirements'!$E$15 -> 0.06369426752 | F131: ='3. Condom Requirements'!$F$15 -> 100 | G131: =$G$29 -> 0.2 | H131: =B131*D131*F131*(1+G131) -> 0 | I131: 239931.9237 | J131: 479863.8475 | K131: 719795.7712 | L131: 959727.6949 | M131: =$C131*$E131*$F131*(1+$G131) -> 1199659.619 | N131: =M131/M$45 -> 0.0101862368 | Q131: 1042179.869 | R131: -1042179.869 | S131: =R131/Q131 -> -1
A132: =INDEX(Translation!$B$1:$E$581,Translation!$A$46,Language) -> Other Key Populations and Populations at High Risk
A133: ='2. Demographic Data'!$A$92 -> People who Inject Drugs (PWID) | B133: ='2. Demographic Data'!$D$92 -> 0 | C133: =B133*(1+Pop_Growth) -> 0 | D133: ='2. Demographic Data'!$D$120 -> 0.4 | E133: 0.75 | F133: ='3. Condom Requirements'!$F$17 -> 100 | G133: =$G$29 -> 0.2 | H133: =B133*D133*F133*(1+G133) -> 0 | I133: =IF(I$27>Target_Year,0,IF(I$27=Target_Year,$C133*$E133*$F133*(1+$G133),H133+($M133-$H133)/(Target_Year-2022))) -> 0 | J133: 0 | K133: 0 | L133: 0 | M133: =$C133*$E133*$F133*(1+$G133) -> 0 | N133: =M133/M$45 -> 0 | Q133: 0 | R133: =H133-Q133 -> 0 | S133: =R133/Q133 -> 
A134: ='2. Demographic Data'!$A$93 -> Transgender (TG) | B134: ='2. Demographic Data'!$D$93 -> 0 | C134: =B134*(1+Pop_Growth) -> 0 | D134: ='2. Demographic Data'!$D$121 -> 0.45 | E134: 0.75 | F134: ='3. Condom Requirements'!$F$18 -> 100 | G134: =$G$29 -> 0.2 | H134: =B134*D134*F134*(1+G134) -> 0 | I134: 0 | J134: 0 | K134: 0 | L134: 0 | M134: =$C134*$E134*$F134*(1+$G134) -> 0 | N134: =M134/M$45 -> 0 | Q134: 0 | R134: 0 | S134: =R134/Q134 -> 
A135: ='2. Demographic Data'!$A$97 -> Other [Please Specify]: | B135: ='2. Demographic Data'!$D$97 -> 0 | C135: =B135*(1+Pop_Growth) -> 0 | D135: ='2. Demographic Data'!$D$125 -> 0 | E135: 0.75 | F135: ='3. Condom Requirements'!$F$19 -> 100 | G135: =$G$29 -> 0.2 | H135: =B135*D135*F135*(1+G135) -> 0 | I135: 0 | J135: 0 | K135: 0 | L135: 0 | M135: =$C135*$E135*$F135*(1+$G135) -> 0 | N135: =M135/M$45 -> 0 | Q135: 0 | R135: 0 | S135: =R135/Q135 -> 
A136: ='2. Demographic Data'!$A$98 -> Other [Please Specify]: | B136: ='2. Demographic Data'!$D$98 -> 0 | C136: =B136*(1+Pop_Growth) -> 0 | D136: ='2. Demographic Data'!$D$126 -> 0 | E136: 0.75 | F136: ='3. Condom Requirements'!$F$20 -> 100 | G136: =$G$29 -> 0.2 | H136: =B136*D136*F136*(1+G136) -> 0 | I136: 0 | J136: 0 | K136: 0 | L136: 0 | M136: =$C136*$E136*$F136*(1+$G136) -> 0 | N136: =M136/M$45 -> 0 | Q136: 0 | R136: 0 | S136: =R136/Q136 -> 
A137: =INDEX(Translation!$B$1:$E$581,Translation!$A$212,Language) -> 60% Condom Use Target | B137: =SUM(B121:B136) -> 3104672.808 | C137: =SUM(C121:C136) -> 3540684.251 | H137: =SUM(H121:H136) -> 79909905.72 | I137: =IF(Quality_Condom_Availability_Data="High",'1. Condom Availability'!$B$7,SUM(I121:I136)) -> 92595589.09 | J137: =SUM(J121:J136) -> 105281272.5 | K137: =SUM(K121:K136) -> 117966955.8 | L137: 130652639.2 | M137: 143338322.6 | Q137: =SUM(Q121:Q136) -> 127112040.2 | R137: -47202134.48 | S137: =R137/Q137 -> -0.3713427493
A138: =INDEX(Translation!$B$1:$E$581,Translation!$A$209,Language) -> Annual Increase in Condom Requirement (%) | H138: =H137/H137 -> 1 | I138: =I137/$H137 -> 1.158749823 | J138: =J137/$H137 -> 1.317499646 | K138: =K137/$H137 -> 1.476249468 | L138: =L137/$H137 -> 1.634999291 | M138: =M137/$H137 -> 1.793749114 | Q138: =Q137/Q137 -> 1
A139: Avg nbr of condoms needed per adult men 15-64y per year | H139: =H137/'2. Demographic Data'!$D$11 -> 15.27415248 | I139: =I137/(('2. Demographic Data'!$D$11*(1+'2. Demographic Data'!$D$7))) -> 17.20898177 | J139: =J137/(('2. Demographic Data'!$D$11*(1+'2. Demographic Data'!$D$7+'2. Demographic Data'!$D$7))) -> 19.03957697 | K139: =K137/(('2. Demographic Data'!$D$11*(1+'2. Demographic Data'!$D$7+'2. Demographic Data'!$D$7+'2. Demographic Data'!$D$7))) -> 20.77414017 | L139: =L137/(('2. Demographic Data'!$D$11*(1+'2. Demographic Data'!$D$7+'2. Demographic Data'!$D$7+'2. Demographic Data'!$D$7+'2. Demographic Data'!$D$7))) -> 22.4200349 | M139: =M137/(('2. Demographic Data'!$D$11*(1+'2. Demographic Data'!$D$7+'2. Demographic Data'!$D$7+'2. Demographic Data'!$D$7+'2. Demographic Data'!$D$7+'2. Demographic Data'!$D$7))) -> 23.98389064 | Q139: =Q137/'2. Demographic Data'!$D$11 -> 24.29647071
A226: BACKUP
B227: =INDEX(Translation!$B$1:$E$581,Translation!$A$193,Language) -> Size of population in 2022 | C227: =INDEX(Translation!$B$1:$E$581,Translation!$A$194,Language) -> Size of Population in 2027 | D227: =INDEX(Translation!$B$1:$E$581,Translation!$A$195,Language) -> Baseline Coverage (% condom use at last sex) | E227: =INDEX(Translation!$B$1:$E$581,Translation!$A$196,Language) -> Target Coverage in 2027 | F227: =INDEX(Translation!$B$1:$E$581,Translation!$A$197,Language) -> Annual No. of Sex Acts Requiring Protection | G227: =INDEX(Translation!$B$1:$E$581,Translation!$A$198,Language) -> Wastage | H227: =INDEX(Translation!$B$1:$E$581,Translation!$A$201,Language) -> Total Condoms Used in 2022 | I227: =INDEX(Translation!$B$1:$E$581,Translation!$A$202,Language) -> Total Condoms Required in 2023 | J227: =INDEX(Translation!$B$1:$E$581,Translation!$A$203,Language) -> Total Condoms Required in 2024 | K227: =INDEX(Translation!$B$1:$E$581,Translation!$A$204,Language) -> Total Condoms Required in 2025 | L227: =INDEX(Translation!$B$1:$E$581,Translation!$A$205,Language) -> Total Condoms Required in 2026 | M227: =INDEX(Translation!$B$1:$E$581,Translation!$A$206,Language) -> Total Condoms Required in 2027 | N227: =INDEX(Translation!$B$1:$E$581,Translation!$A$207,Language) -> % of Total Condoms Required in 2027
H228: 2022 | I228: =Start_Year -> 2023 | J228: =I228+1 -> 2024 | K228: =J228+1 -> 2025 | L228: =K228+1 -> 2026 | M228: =Target_Year -> 2027
A229: =INDEX(Translation!$B$1:$E$581,Translation!$A$34,Language) -> Key Populations | K229: End Sub
A230: =INDEX(Translation!$B$1:$E$581,Translation!$A$50,Language) -> PLHIV Couples | B230: ='2. Demographic Data'!$D$37 -> 337770 | C230: =B230*(1+Pop_Growth) -> 388809.1121 | D230: ='2. Demographic Data'!$D$100 -> 0.4 | E230: 0.6 | F230: ='3. Condom Requirements'!$F$5 -> 100 | G230: ='3. Condom Requirements'!$G$5 -> 0.2 | H230: =B230*D230*F230*(1+G230) -> 16212960 | I230: =IF(I$27>Target_Year,0,IF(I$27=Target_Year,$C230*$E230*$F230*(1+$G230),H230+($M230-$H230)/(Target_Year-2022))) -> 18569219.21 | J230: 20925478.43 | K230: 23281737.64 | L230: 25637996.86 | M230: =$C230*$E230*$F230*(1+$G230) -> 27994256.07 | N230: =M230/M$45 -> 0.2376975242
A231: =INDEX(Translation!$B$1:$E$581,Translation!$A$51,Language) -> Sex workers | B231: ='2. Demographic Data'!$D$89 -> 41252.49 | C231: =B231*(1+Pop_Growth) -> 47485.99345 | D231: ='2. Demographic Data'!$D$101 -> 0.7 | E231: 0.75 | F231: ='3. Condom Requirements'!$F$6 -> 450 | G231: =$G$29 -> 0.2 | H231: 15593441.22 | I231: 16321118.45 | J231: 17048795.67 | K231: 17776472.9 | L231: 18504150.12 | M231: 19231827.35 | N231: =M231/M$45 -> 0.1632962753
A232: =INDEX(Translation!$B$1:$E$581,Translation!$A$52,Language) -> Men Having Sex with Men (MSM) | B232: ='2. Demographic Data'!$D$91 -> 78475.62 | C232: =B232*(1+Pop_Growth) -> 90333.76597 | D232: ='2. Demographic Data'!$D$102 -> 0.55 | E232: 0.6 | F232: ='3. Condom Requirements'!$F$7 -> 100 | G232: =$G$29 -> 0.2 | H232: 5179390.92 | I232: 5444318.966 | J232: 5709247.012 | K232: 5974175.058 | L232: 6239103.104 | M232: 6504031.15 | N232: =M232/M$45 -> 0.05522533258
A233: =INDEX(Translation!$B$1:$E$581,Translation!$A$38,Language) -> People who have Sex with Non-Regular Partners [PAIRS]
A234: =INDEX(Translation!$B$1:$E$581,Translation!$A$53,Language) -> Young People (15-24) with NR Partners (pairs) | B234: ='2. Demographic Data'!$D$68 -> 721390.1186 | C234: =B234*(1+Pop_Growth) -> 830396.5759 | D234: ='2. Demographic Data'!$D$114 -> 0.4073080571 | E234: 0.6 | F234: ='3. Condom Requirements'!$F$9 -> 50 | G234: =$G$29 -> 0.2 | H234: =B234*D234*F234*(1+G234) -> 17629680.46 | I234: =IF(I$27>Target_Year,0,IF(I$27=Target_Year,$C234*$E234*$F234*(1+$G234),H234+($M234-$H234)/(Target_Year-2022))) -> 20082599.71 | J234: 22535518.97 | K234: 24988438.22 | L234: 27441357.48 | M234: =$C234*$E234*$F234*(1+$G234) -> 29894276.73 | N234: =M234/M$45 -> 0.253830484
A235: =INDEX(Translation!$B$1:$E$581,Translation!$A$54,Language) -> Men&Women (25-34) with NR Partners (pairs) | B235: ='2. Demographic Data'!$D$69 -> 356766.6678 | C235: =B235*(1+Pop_Growth) -> 410676.2925 | D235: ='2. Demographic Data'!$D$115 -> 0.480657698 | E235: 0.6 | F235: ='3. Condom Requirements'!$F$12 -> 50 | G235: =$G$29 -> 0.2 | H235: 10288958.72 | I235: 11188036.28 | J235: 12087113.84 | K235: 12986191.41 | L235: 13885268.97 | M235: 14784346.53 | N235: =M235/M$45 -> 0.1255329864
A236: =INDEX(Translation!$B$1:$E$581,Translation!$A$55,Language) -> Men&Women (35-49) with NR Partners (pairs) | B236: ='2. Demographic Data'!$D$70 -> 192844.8597 | C236: =B236*(1+Pop_Growth) -> 221984.897 | D236: ='2. Demographic Data'!$D$116 -> 0.4271120626 | E236: 0.6 | F236: ='3. Condom Requirements'!$F$12 -> 50 | G236: =$G$29 -> 0.2 | H236: 4941981.948 | I236: 5551876.817 | J236: 6161771.686 | K236: 6771666.555 | L236: 7381561.424 | M236: 7991456.293 | N236: =M236/M$45 -> 0.06785496893
A237: =INDEX(Translation!$B$1:$E$581,Translation!$A$56,Language) -> Men&Women (50-64) with NR Partners (pairs) | B237: ='2. Demographic Data'!$D$71 -> 50529.90897 | C237: =B237*(1+Pop_Growth) -> 58165.28715 | D237: ='2. Demographic Data'!$D$117 -> 0.3210534323 | E237: 0.6 | F237: ='3. Condom Requirements'!$F$12 -> 50 | G237: =$G$29 -> 0.2 | H237: =B237*D237*F237*(1+G237) -> 973368.0426 | I237: =IF(Quality_Condom_Availability_Data="High",H237*$I$45/$H$45,H237) -> 973368.0426 | J237: =IF(J$73>Target_Year,0,IF(J$73=Target_Year,$C237*$E237*$F237*(1+$G237),I237+($M237-$I237)/(Target_Year-Start_Year))) -> 1253513.616 | K237: =IF(K$73>Target_Year,0,IF(K$73=Target_Year,$C237*$E237*$F237*(1+$G237),J237+($M237-$I237)/(Target_Year-Start_Year))) -> 1533659.19 | L237: =IF(L$73>Target_Year,0,IF(L$73=Target_Year,$C237*$E237*$F237*(1+$G237),K237+($M237-$I237)/(Target_Year-Start_Year))) -> 1813804.764 | M237: =C237*E237*F237*(1+G237) -> 2093950.337 | N237: =M237/M$45 -> 0.01777960485
A238: =INDEX(Translation!$B$1:$E$581,Translation!$A$43,Language) -> Couples Using Condoms for Family Planning
A239: =INDEX(Translation!$B$1:$E$581,Translation!$A$57,Language) -> Couples Using Condoms for FP | B239: ='2. Demographic Data'!$D$82 -> 75751.03675 | C239: =B239*(1+Pop_Growth) -> 87197.48154 | D239: ='2. Demographic Data'!$B$79 -> 0.06369426752 | E239: =D239 -> 0.06369426752 | F239: ='3. Condom Requirements'!$F$14 -> 100 | G239: =$G$29 -> 0.2 | H239: =B239*D239*F239*(1+G239) -> 578988.816 | I239: =IF(Quality_Condom_Availability_Data="High",H239*$I$45/$H$45,H239) -> 578988.816 | J239: =IF(J$73>Target_Year,0,IF(J$73=Target_Year,$C239*$E239*$F239*(1+$G239),I239+($M239-$I239)/(Target_Year-Start_Year))) -> 600861.0034 | K239: =IF(K$73>Target_Year,0,IF(K$73=Target_Year,$C239*$E239*$F239*(1+$G239),J239+($M239-$I239)/(Target_Year-Start_Year))) -> 622733.1909 | L239: =IF(L$73>Target_Year,0,IF(L$73=Target_Year,$C239*$E239*$F239*(1+$G239),K239+($M239-$I239)/(Target_Year-Start_Year))) -> 644605.3784 | M239: =C239*E239*F239*(1+G239) -> 666477.5659 | N239: =M239/M$45 -> 0.005659020442
A240: =INDEX(Translation!$B$1:$E$581,Translation!$A$58,Language) -> Couples With Unmet Need for FP Condoms | B240: ='2. Demographic Data'!$D$85 -> 6415.08227 | C240: =B240*(1+Pop_Growth) -> 7384.440422 | D240: ='2. Demographic Data'!$D$119 -> 0 | E240: =E239 -> 0.06369426752 | F240: ='3. Condom Requirements'!$F$15 -> 100 | G240: =$G$29 -> 0.2 | H240: =B240*D240*F240*(1+G240) -> 0 | I240: =IF(Quality_Condom_Availability_Data="High",H240*$I$45/$H$45,H240) -> 0 | J240: 14110.39571 | K240: 28220.79142 | L240: 42331.18713 | M240: =C240*E240*F240*(1+G240) -> 56441.58284 | N240: =M240/M$45 -> 0.0004792420442
A241: =INDEX(Translation!$B$1:$E$581,Translation!$A$46,Language) -> Other Key Populations and Populations at High Risk
A242: ='2. Demographic Data'!$A$92 -> People who Inject Drugs (PWID) | B242: ='2. Demographic Data'!$D$92 -> 0 | C242: =B242*(1+Pop_Growth) -> 0 | D242: ='2. Demographic Data'!$D$120 -> 0.4 | E242: 0.6 | F242: ='3. Condom Requirements'!$F$17 -> 100 | G242: =$G$29 -> 0.2 | H242: =B242*D242*F242*(1+G242) -> 0 | I242: =IF(Quality_Condom_Availability_Data="High",H242*$I$45/$H$45,H242) -> 0 | J242: =IF(J$73>Target_Year,0,IF(J$73=Target_Year,$C242*$E242*$F242*(1+$G242),I242+($M242-$I242)/(Target_Year-Start_Year))) -> 0 | K242: =IF(K$73>Target_Year,0,IF(K$73=Target_Year,$C242*$E242*$F242*(1+$G242),J242+($M242-$I242)/(Target_Year-Start_Year))) -> 0 | L242: =IF(L$73>Target_Year,0,IF(L$73=Target_Year,$C242*$E242*$F242*(1+$G242),K242+($M242-$I242)/(Target_Year-Start_Year))) -> 0 | M242: =C242*E242*F242*(1+G242) -> 0 | N242: =M242/M$45 -> 0
A243: ='2. Demographic Data'!$A$93 -> Transgender (TG) | B243: ='2. Demographic Data'!$D$93 -> 0 | C243: =B243*(1+Pop_Growth) -> 0 | D243: ='2. Demographic Data'!$D$121 -> 0.45 | E243: 0.6 | F243: ='3. Condom Requirements'!$F$18 -> 100 | G243: =$G$29 -> 0.2 | H243: 0 | I243: =IF(Quality_Condom_Availability_Data="High",H243*$I$45/$H$45,H243) -> 0 | J243: 0 | K243: 0 | L243: 0 | M243: 0 | N243: =M243/M$45 -> 0
A244: ='2. Demographic Data'!$A$97 -> Other [Please Specify]: | B244: ='2. Demographic Data'!$D$97 -> 0 | C244: =B244*(1+Pop_Growth) -> 0 | D244: ='2. Demographic Data'!$D$125 -> 0 | E244: 0.6 | F244: ='3. Condom Requirements'!$F$17 -> 100 | G244: =$G$29 -> 0.2 | H244: 0 | I244: =IF(Quality_Condom_Availability_Data="High",H244*$I$45/$H$45,H244) -> 0 | J244: 0 | K244: 0 | L244: 0 | M244: 0 | N244: =M244/M$45 -> 0
A245: ='2. Demographic Data'!$A$98 -> Other [Please Specify]: | B245: ='2. Demographic Data'!$D$98 -> 0 | C245: =B245*(1+Pop_Growth) -> 0 | D245: ='2. Demographic Data'!$D$126 -> 0 | E245: 0.6 | F245: ='3. Condom Requirements'!$F$18 -> 100 | G245: =$G$29 -> 0.2 | H245: 0 | I245: =IF(Quality_Condom_Availability_Data="High",H245*$I$45/$H$45,H245) -> 0 | J245: 0 | K245: 0 | L245: 0 | M245: 0 | N245: =M245/M$45 -> 0
A246: =INDEX(Translation!$B$1:$E$581,Translation!$A$212,Language) -> 60% Condom Use Target | B246: =SUM(B230:B245) -> 1861195.784 | C246: =SUM(C230:C245) -> 2142433.846 | H246: =SUM(H230:H245) -> 71398770.12 | I246: =IF(Quality_Condom_Availability_Data="High",'1. Condom Availability'!$B$7,SUM(I230:I245)) -> 78709526.29 | J246: =SUM(J230:J245) -> 86336410.62 | K246: =SUM(K230:K245) -> 93963294.95 | L246: 101590179.3 | M246: 109217063.6
A247: =INDEX(Translation!$B$1:$E$581,Translation!$A$209,Language) -> Annual Increase in Condom Requirement (%) | I247: =I246/$I246 -> 1 | J247: =J246/$I246 -> 1.096899126 | K247: =K246/$I246 -> 1.193798253 | L247: 1.290697379 | M247: 1.387596505
A250: b) 90% Condom Use Target
B251: =INDEX(Translation!$B$1:$E$581,Translation!$A$193,Language) -> Size of population in 2022 | C251: =INDEX(Translation!$B$1:$E$581,Translation!$A$194,Language) -> Size of Population in 2027 | D251: =INDEX(Translation!$B$1:$E$581,Translation!$A$195,Language) -> Baseline Coverage (% condom use at last sex) | E251: =INDEX(Translation!$B$1:$E$581,Translation!$A$196,Language) -> Target Coverage in 2027 | F251: =INDEX(Translation!$B$1:$E$581,Translation!$A$197,Language) -> Annual No. of Sex Acts Requiring Protection | G251: =INDEX(Translation!$B$1:$E$581,Translation!$A$198,Language) -> Wastage | H251: =INDEX(Translation!$B$1:$E$581,Translation!$A$201,Language) -> Total Condoms Used in 2022 | I251: =INDEX(Translation!$B$1:$E$581,Translation!$A$202,Language) -> Total Condoms Required in 2023 | J251: =INDEX(Translation!$B$1:$E$581,Translation!$A$203,Language) -> Total Condoms Required in 2024 | K251: =INDEX(Translation!$B$1:$E$581,Translation!$A$204,Language) -> Total Condoms Required in 2025 | L251: =INDEX(Translation!$B$1:$E$581,Translation!$A$205,Language) -> Total Condoms Required in 2026 | M251: =INDEX(Translation!$B$1:$E$581,Translation!$A$206,Language) -> Total Condoms Required in 2027 | N251: =INDEX(Translation!$B$1:$E$581,Translation!$A$207,Language) -> % of Total Condoms Required in 2027
H252: 2022 | I252: =Start_Year -> 2023 | J252: =I252+1 -> 2024 | K252: =J252+1 -> 2025 | L252: =K252+1 -> 2026 | M252: =Target_Year -> 2027
A253: =INDEX(Translation!$B$1:$E$581,Translation!$A$34,Language) -> Key Populations
A254: =INDEX(Translation!$B$1:$E$581,Translation!$A$50,Language) -> PLHIV Couples | B254: ='2. Demographic Data'!$D$37 -> 337770 | C254: =B254*(1+Pop_Growth) -> 388809.1121 | D254: ='2. Demographic Data'!$D$100 -> 0.4 | E254: 0.9 | F254: ='3. Condom Requirements'!$F$5 -> 100 | G254: ='3. Condom Requirements'!$G$5 -> 0.2 | H254: =B254*D254*F254*(1+G254) -> 16212960 | I254: =IF(Quality_Condom_Availability_Data="High",H254*$I$45/$H$45,H254) -> 16212960 | J254: =IF(J$73>Target_Year,0,IF(J$73=Target_Year,$C254*$E254*$F254*(1+$G254),I254+($M254-$I254)/(Target_Year-Start_Year))) -> 22657566.03 | K254: =IF(K$73>Target_Year,0,IF(K$73=Target_Year,$C254*$E254*$F254*(1+$G254),J254+($M254-$I254)/(Target_Year-Start_Year))) -> 29102172.05 | L254: =IF(L$73>Target_Year,0,IF(L$73=Target_Year,$C254*$E254*$F254*(1+$G254),K254+($M254-$I254)/(Target_Year-Start_Year))) -> 35546778.08 | M254: =C254*E254*F254*(1+G254) -> 41991384.1 | N254: =M254/M$45 -> 0.3565462863
A255: =INDEX(Translation!$B$1:$E$581,Translation!$A$51,Language) -> Sex workers | B255: ='2. Demographic Data'!$D$89 -> 41252.49 | C255: =B255*(1+Pop_Growth) -> 47485.99345 | D255: ='2. Demographic Data'!$D$101 -> 0.7 | E255: 0.95 | F255: ='3. Condom Requirements'!$F$6 -> 450 | G255: =$G$29 -> 0.2 | H255: 15593441.22 | I255: =IF(Quality_Condom_Availability_Data="High",H255*$I$45/$H$45,H255) -> 15593441.22 | J255: 17785159.58 | K255: 19976877.93 | L255: 22168596.29 | M255: 24360314.64 | N255: =M255/M$45 -> 0.2068419487
A256: =INDEX(Translation!$B$1:$E$581,Translation!$A$52,Language) -> Men Having Sex with Men (MSM) | B256: ='2. Demographic Data'!$D$91 -> 78475.62 | C256: =B256*(1+Pop_Growth) -> 90333.76597 | D256: ='2. Demographic Data'!$D$102 -> 0.55 | E256: 0.9 | F256: ='3. Condom Requirements'!$F$7 -> 100 | G256: =$G$29 -> 0.2 | H256: 5179390.92 | I256: =IF(Quality_Condom_Availability_Data="High",H256*$I$45/$H$45,H256) -> 5179390.92 | J256: 6323554.871 | K256: 7467718.822 | L256: 8611882.774 | M256: 9756046.725 | N256: =M256/M$45 -> 0.08283799887
A257: =INDEX(Translation!$B$1:$E$581,Translation!$A$38,Language) -> People who have Sex with Non-Regular Partners [PAIRS]
A258: =INDEX(Translation!$B$1:$E$581,Translation!$A$53,Language) -> Young People (15-24) with NR Partners (pairs) | B258: ='2. Demographic Data'!$D$68 -> 721390.1186 | C258: =B258*(1+Pop_Growth) -> 830396.5759 | D258: ='2. Demographic Data'!$D$114 -> 0.4073080571 | E258: 0.9 | F258: ='3. Condom Requirements'!$F$9 -> 50 | G258: =$G$29 -> 0.2 | H258: =B258*D258*F258*(1+G258) -> 17629680.46 | I258: =IF(Quality_Condom_Availability_Data="High",H258*$I$45/$H$45,H258) -> 17629680.46 | J258: =IF(J$73>Target_Year,0,IF(J$73=Target_Year,$C258*$E258*$F258*(1+$G258),I258+($M258-$I258)/(Target_Year-Start_Year))) -> 24432614.12 | K258: =IF(K$73>Target_Year,0,IF(K$73=Target_Year,$C258*$E258*$F258*(1+$G258),J258+($M258-$I258)/(Target_Year-Start_Year))) -> 31235547.78 | L258: =IF(L$73>Target_Year,0,IF(L$73=Target_Year,$C258*$E258*$F258*(1+$G258),K258+($M258-$I258)/(Target_Year-Start_Year))) -> 38038481.44 | M258: =C258*E258*F258*(1+G258) -> 44841415.1 | N258: =M258/M$45 -> 0.380745726
A259: =INDEX(Translation!$B$1:$E$581,Translation!$A$54,Language) -> Men&Women (25-34) with NR Partners (pairs) | B259: ='2. Demographic Data'!$D$69 -> 356766.6678 | C259: =B259*(1+Pop_Growth) -> 410676.2925 | D259: ='2. Demographic Data'!$D$115 -> 0.480657698 | E259: 0.9 | F259: ='3. Condom Requirements'!$F$12 -> 50 | G259: =$G$29 -> 0.2 | H259: 10288958.72 | I259: =IF(Quality_Condom_Availability_Data="High",H259*$I$45/$H$45,H259) -> 10288958.72 | J259: 13260848.99 | K259: 16232739.26 | L259: 19204629.53 | M259: 22176519.8 | N259: =M259/M$45 -> 0.1882994797
A260: =INDEX(Translation!$B$1:$E$581,Translation!$A$55,Language) -> Men&Women (35-49) with NR Partners (pairs) | B260: ='2. Demographic Data'!$D$70 -> 192844.8597 | C260: =B260*(1+Pop_Growth) -> 221984.897 | D260: ='2. Demographic Data'!$D$116 -> 0.4271120626 | E260: 0.9 | F260: ='3. Condom Requirements'!$F$12 -> 50 | G260: =$G$29 -> 0.2 | H260: 4941981.948 | I260: =IF(Quality_Condom_Availability_Data="High",H260*$I$45/$H$45,H260) -> 4941981.948 | J260: 6703282.571 | K260: 8464583.194 | L260: 10225883.82 | M260: 11987184.44 | N260: =M260/M$45 -> 0.1017824534
A261: =INDEX(Translation!$B$1:$E$581,Translation!$A$56,Language) -> Men&Women (50-64) with NR Partners (pairs) | B261: ='2. Demographic Data'!$D$71 -> 50529.90897 | C261: =B261*(1+Pop_Growth) -> 58165.28715 | D261: ='2. Demographic Data'!$D$117 -> 0.3210534323 | E261: 0.9 | F261: ='3. Condom Requirements'!$F$12 -> 50 | G261: =$G$29 -> 0.2 | H261: 973368.0426 | I261: =IF(Quality_Condom_Availability_Data="High",H261*$I$45/$H$45,H261) -> 973368.0426 | J261: 1515257.408 | K261: 2057146.774 | L261: 2599036.14 | M261: 3140925.506 | N261: =M261/M$45 -> 0.02666940728
A262: =INDEX(Translation!$B$1:$E$581,Translation!$A$43,Language) -> Couples Using Condoms for Family Planning
A263: =INDEX(Translation!$B$1:$E$581,Translation!$A$57,Language) -> Couples Using Condoms for FP | B263: ='2. Demographic Data'!$D$82 -> 75751.03675 | C263: =B263*(1+Pop_Growth) -> 87197.48154 | D263: ='2. Demographic Data'!$B$79 -> 0.06369426752 | E263: =D263 -> 0.06369426752 | F263: ='3. Condom Requirements'!$F$14 -> 100 | G263: =$G$29 -> 0.2 | H263: =B263*D263*F263*(1+G263) -> 578988.816 | I263: =IF(Quality_Condom_Availability_Data="High",H263*$I$45/$H$45,H263) -> 578988.816 | J263: =IF(J$73>Target_Year,0,IF(J$73=Target_Year,$C263*$E263*$F263*(1+$G263),I263+($M263-$I263)/(Target_Year-Start_Year))) -> 600861.0034 | K263: =IF(K$73>Target_Year,0,IF(K$73=Target_Year,$C263*$E263*$F263*(1+$G263),J263+($M263-$I263)/(Target_Year-Start_Year))) -> 622733.1909 | L263: =IF(L$73>Target_Year,0,IF(L$73=Target_Year,$C263*$E263*$F263*(1+$G263),K263+($M263-$I263)/(Target_Year-Start_Year))) -> 644605.3784 | M263: =C263*E263*F263*(1+G263) -> 666477.5659 | N263: =M263/M$45 -> 0.005659020442
A264: =INDEX(Translation!$B$1:$E$581,Translation!$A$58,Language) -> Couples With Unmet Need for FP Condoms | B264: ='2. Demographic Data'!$D$85 -> 6415.08227 | C264: =B264*(1+Pop_Growth) -> 7384.440422 | D264: ='2. Demographic Data'!$D$119 -> 0 | E264: =E263 -> 0.06369426752 | F264: ='3. Condom Requirements'!$F$15 -> 100 | G264: =$G$29 -> 0.2 | H264: 0 | I264: =IF(Quality_Condom_Availability_Data="High",H264*$I$45/$H$45,H264) -> 0 | J264: 14110.39571 | K264: 28220.79142 | L264: 42331.18713 | M264: 56441.58284 | N264: =M264/M$45 -> 0.0004792420442
A265: =INDEX(Translation!$B$1:$E$581,Translation!$A$46,Language) -> Other Key Populations and Populations at High Risk
A266: ='2. Demographic Data'!$A$92 -> People who Inject Drugs (PWID) | B266: ='2. Demographic Data'!$D$92 -> 0 | C266: =B266*(1+Pop_Growth) -> 0 | D266: ='2. Demographic Data'!$D$120 -> 0.4 | E266: 0.9 | F266: ='3. Condom Requirements'!$F$17 -> 100 | G266: =$G$29 -> 0.2 | H266: =B266*D266*F266*(1+G266) -> 0 | I266: =IF(Quality_Condom_Availability_Data="High",H266*$I$45/$H$45,H266) -> 0 | J266: =IF(J$73>Target_Year,0,IF(J$73=Target_Year,$C266*$E266*$F266*(1+$G266),I266+($M266-$I266)/(Target_Year-Start_Year))) -> 0 | K266: =IF(K$73>Target_Year,0,IF(K$73=Target_Year,$C266*$E266*$F266*(1+$G266),J266+($M266-$I266)/(Target_Year-Start_Year))) -> 0 | L266: =IF(L$73>Target_Year,0,IF(L$73=Target_Year,$C266*$E266*$F266*(1+$G266),K266+($M266-$I266)/(Target_Year-Start_Year))) -> 0 | M266: =C266*E266*F266*(1+G266) -> 0 | N266: =M266/M$45 -> 0
A267: ='2. Demographic Data'!$A$93 -> Transgender (TG) | B267: ='2. Demographic Data'!$D$93 -> 0 | C267: =B267*(1+Pop_Growth) -> 0 | D267: ='2. Demographic Data'!$D$121 -> 0.45 | E267: 0.9 | F267: ='3. Condom Requirements'!$F$18 -> 100 | G267: =$G$29 -> 0.2 | H267: 0 | I267: =IF(Quality_Condom_Availability_Data="High",H267*$I$45/$H$45,H267) -> 0 | J267: 0 | K267: 0 | L267: 0 | M267: 0 | N267: =M267/M$45 -> 0
A268: ='2. Demographic Data'!$A$97 -> Other [Please Specify]: | B268: ='2. Demographic Data'!$D$97 -> 0 | C268: =B268*(1+Pop_Growth) -> 0 | D268: ='2. Demographic Data'!$D$125 -> 0 | E268: 0.9 | F268: ='3. Condom Requirements'!$F$17 -> 100 | G268: =$G$29 -> 0.2 | H268: 0 | I268: =IF(Quality_Condom_Availability_Data="High",H268*$I$45/$H$45,H268) -> 0 | J268: 0 | K268: 0 | L268: 0 | M268: 0 | N268: =M268/M$45 -> 0
A269: ='2. Demographic Data'!$A$98 -> Other [Please Specify]: | B269: ='2. Demographic Data'!$D$98 -> 0 | C269: =B269*(1+Pop_Growth) -> 0 | D269: ='2. Demographic Data'!$D$126 -> 0 | E269: 0.9 | F269: ='3. Condom Requirements'!$F$18 -> 100 | G269: =$G$29 -> 0.2 | H269: 0 | I269: =IF(Quality_Condom_Availability_Data="High",H269*$I$45/$H$45,H269) -> 0 | J269: 0 | K269: 0 | L269: 0 | M269: 0 | N269: =M269/M$45 -> 0
A270: =INDEX(Translation!$B$1:$E$581,Translation!$A$213,Language) -> 90% Condom Use Target | B270: =SUM(B254:B269) -> 1861195.784 | C270: =SUM(C254:C269) -> 2142433.846 | H270: =SUM(H254:H269) -> 71398770.12 | I270: =IF(Quality_Condom_Availability_Data="High",'1. Condom Availability'!$B$7,SUM(I254:I269)) -> 71398770.12 | J270: =SUM(J254:J269) -> 93293254.96 | K270: =SUM(K254:K269) -> 115187739.8 | L270: =SUM(L254:L269) -> 137082224.6 | M270: =SUM(M254:M269) -> 158976709.5
A271: =INDEX(Translation!$B$1:$E$581,Translation!$A$209,Language) -> Annual Increase in Condom Requirement (%) | I271: =I270/I270 -> 1 | J271: =J270/$I270 -> 1.306650728 | K271: =K270/$I270 -> 1.613301456 | L271: 1.919952184 | M271: 2.226602912
A274: c) 100% Condom Use Target, No Wastage
B275: =INDEX(Translation!$B$1:$E$581,Translation!$A$193,Language) -> Size of population in 2022 | C275: =INDEX(Translation!$B$1:$E$581,Translation!$A$194,Language) -> Size of Population in 2027 | D275: =INDEX(Translation!$B$1:$E$581,Translation!$A$195,Language) -> Baseline Coverage (% condom use at last sex) | E275: =INDEX(Translation!$B$1:$E$581,Translation!$A$196,Language) -> Target Coverage in 2027 | F275: =INDEX(Translation!$B$1:$E$581,Translation!$A$197,Language) -> Annual No. of Sex Acts Requiring Protection | G275: =INDEX(Translation!$B$1:$E$581,Translation!$A$198,Language) -> Wastage | H275: =INDEX(Translation!$B$1:$E$581,Translation!$A$201,Language) -> Total Condoms Used in 2022 | I275: =INDEX(Translation!$B$1:$E$581,Translation!$A$202,Language) -> Total Condoms Required in 2023 | J275: =INDEX(Translation!$B$1:$E$581,Translation!$A$203,Language) -> Total Condoms Required in 2024 | K275: =INDEX(Translation!$B$1:$E$581,Translation!$A$204,Language) -> Total Condoms Required in 2025 | L275: =INDEX(Translation!$B$1:$E$581,Translation!$A$205,Language) -> Total Condoms Required in 2026 | M275: =INDEX(Translation!$B$1:$E$581,Translation!$A$206,Language) -> Total Condoms Required in 2027 | N275: =INDEX(Translation!$B$1:$E$581,Translation!$A$207,Language) -> % of Total Condoms Required in 2027
H276: 2022 | I276: =Start_Year -> 2023 | J276: =I276+1 -> 2024 | K276: =J276+1 -> 2025 | L276: =K276+1 -> 2026 | M276: =Target_Year -> 2027
A277: =INDEX(Translation!$B$1:$E$581,Translation!$A$34,Language) -> Key Populations
A278: =INDEX(Translation!$B$1:$E$581,Translation!$A$50,Language) -> PLHIV Couples | B278: ='2. Demographic Data'!$D$37 -> 337770 | C278: =B278*(1+Pop_Growth) -> 388809.1121 | D278: ='2. Demographic Data'!$D$100 -> 0.4 | E278: 1 | F278: ='3. Condom Requirements'!$F$5 -> 100 | G278: 0 | H278: =B278*D278*F278*(1+G278) -> 13510800 | I278: =IF(Quality_Condom_Availability_Data="High",H278*$I$45/$H$45,H278) -> 13510800 | J278: =IF(J$73>Target_Year,0,IF(J$73=Target_Year,$C278*$E278*$F278*(1+$G278),I278+($M278-$I278)/(Target_Year-Start_Year))) -> 19853327.8 | K278: =IF(K$73>Target_Year,0,IF(K$73=Target_Year,$C278*$E278*$F278*(1+$G278),J278+($M278-$I278)/(Target_Year-Start_Year))) -> 26195855.6 | L278: =IF(L$73>Target_Year,0,IF(L$73=Target_Year,$C278*$E278*$F278*(1+$G278),K278+($M278-$I278)/(Target_Year-Start_Year))) -> 32538383.41 | M278: =C278*E278*F278*(1+G278) -> 38880911.21 | N278: =M278/M$45 -> 0.3301354503
A279: =INDEX(Translation!$B$1:$E$581,Translation!$A$51,Language) -> Sex workers | B279: ='2. Demographic Data'!$D$89 -> 41252.49 | C279: =B279*(1+Pop_Growth) -> 47485.99345 | D279: ='2. Demographic Data'!$D$101 -> 0.7 | E279: 1 | F279: ='3. Condom Requirements'!$F$6 -> 450 | G279: 0 | H279: 12994534.35 | I279: =IF(Quality_Condom_Availability_Data="High",H279*$I$45/$H$45,H279) -> 12994534.35 | J279: 15088075.03 | K279: 17181615.7 | L279: 19275156.38 | M279: 21368697.05 | N279: =M279/M$45 -> 0.1814403059
A280: =INDEX(Translation!$B$1:$E$581,Translation!$A$52,Language) -> Men Having Sex with Men (MSM) | B280: ='2. Demographic Data'!$D$91 -> 78475.62 | C280: =B280*(1+Pop_Growth) -> 90333.76597 | D280: ='2. Demographic Data'!$D$102 -> 0.55 | E280: 1 | F280: ='3. Condom Requirements'!$F$7 -> 100 | G280: 0 | H280: 4316159.1 | I280: =IF(Quality_Condom_Availability_Data="High",H280*$I$45/$H$45,H280) -> 4316159.1 | J280: 5495463.474 | K280: 6674767.849 | L280: 7854072.223 | M280: 9033376.597 | N280: =M280/M$45 -> 0.07670185081
A281: =INDEX(Translation!$B$1:$E$581,Translation!$A$38,Language) -> People who have Sex with Non-Regular Partners [PAIRS] | E281: 1
A282: =INDEX(Translation!$B$1:$E$581,Translation!$A$53,Language) -> Young People (15-24) with NR Partners (pairs) | B282: ='2. Demographic Data'!$D$68 -> 721390.1186 | C282: =B282*(1+Pop_Growth) -> 830396.5759 | D282: ='2. Demographic Data'!$D$114 -> 0.4073080571 | E282: 1 | F282: ='3. Condom Requirements'!$F$9 -> 50 | G282: 0 | H282: =B282*D282*F282*(1+G282) -> 14691400.38 | I282: =IF(Quality_Condom_Availability_Data="High",H282*$I$45/$H$45,H282) -> 14691400.38 | J282: =IF(J$73>Target_Year,0,IF(J$73=Target_Year,$C282*$E282*$F282*(1+$G282),I282+($M282-$I282)/(Target_Year-Start_Year))) -> 21398507.48 | K282: =IF(K$73>Target_Year,0,IF(K$73=Target_Year,$C282*$E282*$F282*(1+$G282),J282+($M282-$I282)/(Target_Year-Start_Year))) -> 28105614.59 | L282: =IF(L$73>Target_Year,0,IF(L$73=Target_Year,$C282*$E282*$F282*(1+$G282),K282+($M282-$I282)/(Target_Year-Start_Year))) -> 34812721.69 | M282: =C282*E282*F282*(1+G282) -> 41519828.8 | N282: =M282/M$45 -> 0.3525423389
A283: =INDEX(Translation!$B$1:$E$581,Translation!$A$54,Language) -> Men&Women (25-34) with NR Partners (pairs) | B283: ='2. Demographic Data'!$D$69 -> 356766.6678 | C283: =B283*(1+Pop_Growth) -> 410676.2925 | D283: ='2. Demographic Data'!$D$115 -> 0.480657698 | E283: 1 | F283: ='3. Condom Requirements'!$F$12 -> 50 | G283: 0 | H283: 8574132.264 | I283: =IF(Quality_Condom_Availability_Data="High",H283*$I$45/$H$45,H283) -> 8574132.264 | J283: 11564052.86 | K283: 14553973.45 | L283: 17543894.04 | M283: 20533814.63 | N283: =M283/M$45 -> 0.1743513701
A284: =INDEX(Translation!$B$1:$E$581,Translation!$A$55,Language) -> Men&Women (35-49) with NR Partners (pairs) | B284: ='2. Demographic Data'!$D$70 -> 192844.8597 | C284: =B284*(1+Pop_Growth) -> 221984.897 | D284: ='2. Demographic Data'!$D$116 -> 0.4271120626 | E284: 1 | F284: ='3. Condom Requirements'!$F$12 -> 50 | G284: 0 | H284: 4118318.29 | I284: =IF(Quality_Condom_Availability_Data="High",H284*$I$45/$H$45,H284) -> 4118318.29 | J284: 5863549.93 | K284: 7608781.571 | L284: 9354013.211 | M284: 11099244.85 | N284: =M284/M$45 -> 0.0942430124
A285: =INDEX(Translation!$B$1:$E$581,Translation!$A$56,Language) -> Men&Women (50-64) with NR Partners (pairs) | B285: ='2. Demographic Data'!$D$71 -> 50529.90897 | C285: =B285*(1+Pop_Growth) -> 58165.28715 | D285: ='2. Demographic Data'!$D$117 -> 0.3210534323 | E285: 1 | F285: ='3. Condom Requirements'!$F$12 -> 50 | G285: 0 | H285: 811140.0355 | I285: =IF(Quality_Condom_Availability_Data="High",H285*$I$45/$H$45,H285) -> 811140.0355 | J285: 1335421.116 | K285: 1859702.196 | L285: 2383983.277 | M285: 2908264.357 | N285: =M285/M$45 -> 0.02469389563
A286: =INDEX(Translation!$B$1:$E$581,Translation!$A$43,Language) -> Couples Using Condoms for Family Planning
A287: =INDEX(Translation!$B$1:$E$581,Translation!$A$57,Language) -> Couples Using Condoms for FP | B287: ='2. Demographic Data'!$D$82 -> 75751.03675 | C287: =B287*(1+Pop_Growth) -> 87197.48154 | D287: ='2. Demographic Data'!$B$79 -> 0.06369426752 | E287: =D287 -> 0.06369426752 | F287: ='3. Condom Requirements'!$F$14 -> 100 | G287: 0 | H287: =B287*D287*F287*(1+G287) -> 482490.68 | I287: =IF(Quality_Condom_Availability_Data="High",H287*$I$45/$H$45,H287) -> 482490.68 | J287: =IF(J$73>Target_Year,0,IF(J$73=Target_Year,$C287*$E287*$F287*(1+$G287),I287+($M287-$I287)/(Target_Year-Start_Year))) -> 500717.5029 | K287: =IF(K$73>Target_Year,0,IF(K$73=Target_Year,$C287*$E287*$F287*(1+$G287),J287+($M287-$I287)/(Target_Year-Start_Year))) -> 518944.3258 | L287: =IF(L$73>Target_Year,0,IF(L$73=Target_Year,$C287*$E287*$F287*(1+$G287),K287+($M287-$I287)/(Target_Year-Start_Year))) -> 537171.1487 | M287: =C287*E287*F287*(1+G287) -> 555397.9716 | N287: =M287/M$45 -> 0.004715850369
A288: =INDEX(Translation!$B$1:$E$581,Translation!$A$58,Language) -> Couples With Unmet Need for FP Condoms | B288: ='2. Demographic Data'!$D$85 -> 6415.08227 | C288: =B288*(1+Pop_Growth) -> 7384.440422 | D288: ='2. Demographic Data'!$D$119 -> 0 | E288: =E287 -> 0.06369426752 | F288: ='3. Condom Requirements'!$F$15 -> 100 | G288: 0 | H288: 0 | I288: =IF(Quality_Condom_Availability_Data="High",H288*$I$45/$H$45,H288) -> 0 | J288: 11758.66309 | K288: 23517.32618 | L288: 35275.98927 | M288: 47034.65237 | N288: =M288/M$45 -> 0.0003993683701
A289: =INDEX(Translation!$B$1:$E$581,Translation!$A$46,Language) -> Other Key Populations and Populations at High Risk
A290: ='2. Demographic Data'!$A$92 -> People who Inject Drugs (PWID) | B290: ='2. Demographic Data'!$D$92 -> 0 | C290: =B290*(1+Pop_Growth) -> 0 | D290: ='2. Demographic Data'!$D$120 -> 0.4 | E290: 1 | F290: ='3. Condom Requirements'!$F$17 -> 100 | G290: 0 | H290: =B290*D290*F290*(1+G290) -> 0 | I290: =IF(Quality_Condom_Availability_Data="High",H290*$I$45/$H$45,H290) -> 0 | J290: =IF(J$73>Target_Year,0,IF(J$73=Target_Year,$C290*$E290*$F290*(1+$G290),I290+($M290-$I290)/(Target_Year-Start_Year))) -> 0 | K290: =IF(K$73>Target_Year,0,IF(K$73=Target_Year,$C290*$E290*$F290*(1+$G290),J290+($M290-$I290)/(Target_Year-Start_Year))) -> 0 | L290: =IF(L$73>Target_Year,0,IF(L$73=Target_Year,$C290*$E290*$F290*(1+$G290),K290+($M290-$I290)/(Target_Year-Start_Year))) -> 0 | M290: =C290*E290*F290*(1+G290) -> 0 | N290: =M290/M$45 -> 0
A291: ='2. Demographic Data'!$A$93 -> Transgender (TG) | B291: ='2. Demographic Data'!$D$93 -> 0 | C291: =B291*(1+Pop_Growth) -> 0 | D291: ='2. Demographic Data'!$D$121 -> 0.45 | E291: 1 | F291: ='3. Condom Requirements'!$F$18 -> 100 | G291: 0 | H291: 0 | I291: =IF(Quality_Condom_Availability_Data="High",H291*$I$45/$H$45,H291) -> 0 | J291: 0 | K291: 0 | L291: 0 | M291: 0 | N291: =M291/M$45 -> 0
A292: ='2. Demographic Data'!$A$97 -> Other [Please Specify]: | B292: ='2. Demographic Data'!$D$97 -> 0 | C292: =B292*(1+Pop_Growth) -> 0 | D292: ='2. Demographic Data'!$D$125 -> 0 | E292: 1 | F292: ='3. Condom Requirements'!$F$19 -> 100 | G292: 0 | H292: 0 | I292: =IF(Quality_Condom_Availability_Data="High",H292*$I$45/$H$45,H292) -> 0 | J292: 0 | K292: 0 | L292: 0 | M292: 0 | N292: =M292/M$45 -> 0
A293: ='2. Demographic Data'!$A$98 -> Other [Please Specify]: | B293: ='2. Demographic Data'!$D$98 -> 0 | C293: =B293*(1+Pop_Growth) -> 0 | D293: ='2. Demographic Data'!$D$126 -> 0 | E293: 1 | F293: ='3. Condom Requirements'!$F$20 -> 100 | G293: 0 | H293: 0 | I293: =IF(Quality_Condom_Availability_Data="High",H293*$I$45/$H$45,H293) -> 0 | J293: 0 | K293: 0 | L293: 0 | M293: 0 | N293: =M293/M$45 -> 0
A294: =INDEX(Translation!$B$1:$E$581,Translation!$A$214,Language) -> 100% Condom Use / Total Need (No Wastage) | B294: =SUM(B278:B293) -> 1861195.784 | C294: =SUM(C278:C293) -> 2142433.846 | H294: =SUM(H278:H293) -> 59498975.1 | I294: =IF(Quality_Condom_Availability_Data="High",'1. Condom Availability'!$B$7,SUM(I278:I293)) -> 59498975.1 | J294: =SUM(J278:J293) -> 81110873.85 | K294: 102722772.6 | L294: 124334671.4 | M294: 145946570.1
A295: =INDEX(Translation!$B$1:$E$581,Translation!$A$209,Language) -> Annual Increase in Condom Requirement (%) | I295: =I294/I294 -> 1 | J295: =J294/$I294 -> 1.363231446 | K295: =K294/$I294 -> 1.726462892 | L295: 2.089694338 | M295: 2.452925783

Sheet 3b. Female Condoms + Lubricants
A1: =INDEX(Translation!$B$1:$E$581,Translation!$A$238,Language) -> Female and Specialty Condoms + Lubricants
O2: 2022 Baseline availability of Female Condoms, SC and Lubricant (from Condom availabilty sheet) | AK2: 2019 Baselines | AM2: 2025 Targets
A3: ='Cover Sheet'!$B$2 -> CNET Version 5.0 [2023-2027] - (20 February 2023 - Excel for Office 365) | O3: ='1. Condom Availability'!A10 -> No. of Female Condoms | Q3: ='1. Condom Availability'!A12 -> No. of Lubricant Sachets Available | S3: ='1. Condom Availability'!A11 -> No. of Speciality Condoms
M4: ='1. Condom Availability'!B9 -> Current No. Availlable | O4: ='1. Condom Availability'!B10 ->  | Q4: ='1. Condom Availability'!B12 ->  | S4: ='1. Condom Availability'!B11 -> 
M5: ='1. Condom Availability'!C9 -> % of Total Condoms | O5: ='1. Condom Availability'!C10 ->  | Q5: ='1. Condom Availability'!C12 ->  | S5: ='1. Condom Availability'!C11 -> 
M6: Baseline Condoms Used | O6: ='3. Condom Requirements'!B37 -> 799099.0572 | Q6: ='3. Condom Requirements'!H37 -> 799099.0572 | S6: ='3. Condom Requirements'!M37 -> 799099.0572
M7: % of Baseline Condom used | O7: =Female_Condom_Percentage_Baseline -> 0.01 | Q7: =Lubricant_Percentage_Baseline -> 0.01 | S7: =Specialty_Condom_Baseline -> 0.01
A9: =Country -> Zambia | B9: =INDEX(Translation!$B$1:$E$581,Translation!$A$193,Language) -> Size of population in 2022 | C9: =INDEX(Translation!$B$1:$E$581,Translation!$A$194,Language) -> Size of Population in 2027 | D9: =INDEX(Translation!$B$1:$E$581,Translation!$A$195,Language) -> Baseline Coverage (% condom use at last sex) | E9: =INDEX(Translation!$B$1:$E$581,Translation!$A$196,Language) -> Target Coverage in 2027 | F9: =INDEX(Translation!$B$1:$E$581,Translation!$A$197,Language) -> Annual No. of Sex Acts Requiring Protection | G9: =INDEX(Translation!$B$1:$E$581,Translation!$A$198,Language) -> Wastage | H9: =INDEX(Translation!$B$1:$E$581,Translation!$A$201,Language) -> Total Condoms Used in 2022 | I9: =INDEX(Translation!$B$1:$E$581,Translation!$A$202,Language) -> Total Condoms Required in 2023 | J9: =INDEX(Translation!$B$1:$E$581,Translation!$A$203,Language) -> Total Condoms Required in 2024 | K9: =INDEX(Translation!$B$1:$E$581,Translation!$A$204,Language) -> Total Condoms Required in 2025 | L9: =INDEX(Translation!$B$1:$E$581,Translation!$A$205,Language) -> Total Condoms Required in 2026 | M9: =INDEX(Translation!$B$1:$E$581,Translation!$A$206,Language) -> Total Condoms Required in 2027 | N9: =INDEX(Translation!$B$1:$E$581,Translation!$A$207,Language) -> % of Total Condoms Required in 2027 | O9: ="% (Target) Female condoms of total condom need in "&Target_Year -> % (Target) Female condoms of total condom need in 2027 | P9: ="# Female condoms of total condom need in "&Target_Year -> # Female condoms of total condom need in 2027 | Q9: ="% (Target) Lubricant of total condom need in "&Target_Year -> % (Target) Lubricant of total condom need in 2027 | R9: ="# Lubricant of total condom need in "&Target_Year -> # Lubricant of total condom need in 2027 | S9: ="% (Target) Specialty condoms of total condom need in "&Target_Year -> % (Target) Specialty condoms of total condom need in 2027 | T9: ="# Specialty condoms of total condom need in "&Target_Year -> # Specialty condoms of total condom need in 2027 | V9: ="Remaining % of standard male condoms of total condom need in "&Target_Year -> Remaining % of standard male condoms of total condom need in 2027 | W9: ="Remaining # of standard male condoms "&Target_Year -> Remaining # of standard male condoms 2027
H10: 2022 | I10: =Start_Year -> 2023 | J10: =I10+1 -> 2024 | K10: =J10+1 -> 2025 | L10: 2026 | M10: =Target_Year -> 2027 | P10: Female Condom | R10: Lubricant | T10: Special Condoms
A11: =INDEX(Translation!$B$1:$E$581,Translation!$A$34,Language) -> Key Populations
A12: =INDEX(Translation!$B$1:$E$581,Translation!$A$50,Language) -> PLHIV Couples | B12: ='3. Condom Requirements'!B5 -> 337770 | C12: =B12*(1+Pop_Growth) -> 388809.1121 | D12: ='3. Condom Requirements'!D5 -> 0.4 | E12: ='3. Condom Requirements'!E5 -> 0.75 | F12: ='3. Condom Requirements'!F5 -> 100 | G12: ='3. Condom Requirements'!G5 -> 0.2 | H12: ='3. Condom Requirements'!H5 -> 16212960 | I12: ='3. Condom Requirements'!I5 -> 19372707.21 | J12: ='3. Condom Requirements'!J5 -> 22532454.42 | K12: ='3. Condom Requirements'!K5 -> 25692201.64 | L12: ='3. Condom Requirements'!L5 -> 28851948.85 | M12: ='3. Condom Requirements'!M5 -> 32011696.06 | N12: =M12/M$28 -> 0.2233296406 | O12: =Female_Condom_Percentage_Target -> 0.05 | P12: =$M12*O12 -> 1600584.803 | Q12: =Lubricant_Percentage_Target -> 0.1 | R12: =$M12*Q12 -> 3201169.606 | S12: =Specialty_Condom_Target -> 0.05 | T12: =$M12*S12 -> 1600584.803 | V12: =W12/M12 -> 0.9 | W12: =M12-P12-T12 -> 28810526.45
A13: =INDEX(Translation!$B$1:$E$581,Translation!$A$51,Language) -> Sex workers | B13: ='3. Condom Requirements'!B6 -> 41252.49 | C13: =B13*(1+Pop_Growth) -> 47485.99345 | D13: ='3. Condom Requirements'!D6 -> 0.7 | E13: ='3. Condom Requirements'!E6 -> 0.9 | F13: ='3. Condom Requirements'!F6 -> 450 | G13: ='3. Condom Requirements'!G6 -> 0.2 | H13: ='3. Condom Requirements'!H6 -> 15593441.22 | I13: ='3. Condom Requirements'!I6 -> 17090391.54 | J13: ='3. Condom Requirements'!J6 -> 18587341.86 | K13: ='3. Condom Requirements'!K6 -> 20084292.18 | L13: ='3. Condom Requirements'!L6 -> 21581242.5 | M13: ='3. Condom Requirements'!M6 -> 23078192.82 | N13: =M13/M$28 -> 0.1610050432 | O13: =Female_Condom_Percentage_Target -> 0.05 | P13: =$M13*O13 -> 1153909.641 | Q13: 0.25 | R13: 5769548.204 | S13: =Specialty_Condom_Target -> 0.05 | T13: =$M13*S13 -> 1153909.641 | V13: =W13/M13 -> 0.9 | W13: =M13-P13-T13 -> 20770373.54
A14: =INDEX(Translation!$B$1:$E$581,Translation!$A$52,Language) -> Men Having Sex with Men (MSM) | B14: ='3. Condom Requirements'!B7 -> 78475.62 | C14: =B14*(1+Pop_Growth) -> 90333.76597 | D14: ='3. Condom Requirements'!D7 -> 0.55 | E14: ='3. Condom Requirements'!E7 -> 0.75 | F14: ='3. Condom Requirements'!F7 -> 100 | G14: ='3. Condom Requirements'!G7 -> 0.2 | H14: ='3. Condom Requirements'!H7 -> 5179390.92 | I14: ='3. Condom Requirements'!I7 -> 5769520.523 | J14: ='3. Condom Requirements'!J7 -> 6359650.127 | K14: ='3. Condom Requirements'!K7 -> 6949779.73 | L14: ='3. Condom Requirements'!L7 -> 7539909.334 | M14: ='3. Condom Requirements'!M7 -> 8130038.937 | N14: =M14/M$28 -> 0.05671922756 | O14: =Female_Condom_Percentage_Target -> 0.05 | P14: 406501.9469 | Q14: 0.25 | R14: 2032509.734 | S14: =Specialty_Condom_Target -> 0.05 | T14: =$M14*S14 -> 406501.9469 | V14: =W14/M14 -> 0.9 | W14: =M14-P14-T14 -> 7317035.044
A15: =INDEX(Translation!$B$1:$E$581,Translation!$A$38,Language) -> People who have Sex with Non-Regular Partners [PAIRS]
A16: =INDEX(Translation!$B$1:$E$581,Translation!$A$53,Language) -> Young People (15-24) with NR Partners (pairs) | B16: ='3. Condom Requirements'!B9 -> 721390.1186 | C16: =B16*(1+Pop_Growth) -> 830396.5759 | D16: ='3. Condom Requirements'!D9 -> 0.4073080571 | E16: ='3. Condom Requirements'!E9 -> 0.75 | F16: ='3. Condom Requirements'!F9 -> 50 | G16: ='3. Condom Requirements'!G9 -> 0.2 | H16: ='3. Condom Requirements'!H9 -> 17629680.46 | I16: ='3. Condom Requirements'!I9 -> 21577313.55 | J16: ='3. Condom Requirements'!J9 -> 25524946.64 | K16: ='3. Condom Requirements'!K9 -> 29472579.73 | L16: ='3. Condom Requirements'!L9 -> 33420212.83 | M16: ='3. Condom Requirements'!M9 -> 37367845.92 | N16: =M16/M$28 -> 0.2606968272 | O16: =Female_Condom_Percentage_Target -> 0.05 | P16: 1868392.296 | Q16: 0.05 | R16: 1868392.296 | S16: =Specialty_Condom_Target -> 0.05 | T16: =$M16*S16 -> 1868392.296 | V16: =W16/M16 -> 0.9 | W16: =M16-P16-T16 -> 33631061.33
A17: =INDEX(Translation!$B$1:$E$581,Translation!$A$54,Language) -> Men&Women (25-34) with NR Partners (pairs) | B17: ='3. Condom Requirements'!B10 -> 356766.6678 | C17: =B17*(1+Pop_Growth) -> 410676.2925 | D17: ='3. Condom Requirements'!D10 -> 0.480657698 | E17: ='3. Condom Requirements'!E10 -> 0.75 | F17: ='3. Condom Requirements'!F10 -> 50 | G17: ='3. Condom Requirements'!G10 -> 0.2 | H17: ='3. Condom Requirements'!H10 -> 10288958.72 | I17: ='3. Condom Requirements'!I10 -> 11927253.61 | J17: ='3. Condom Requirements'!J10 -> 13565548.5 | K17: ='3. Condom Requirements'!K10 -> 15203843.39 | L17: ='3. Condom Requirements'!L10 -> 16842138.28 | M17: ='3. Condom Requirements'!M10 -> 18480433.16 | N17: =M17/M$28 -> 0.1289287668 | O17: =Female_Condom_Percentage_Target -> 0.05 | P17: 924021.6582 | Q17: 0.05 | R17: 924021.6582 | S17: =Specialty_Condom_Target -> 0.05 | T17: =$M17*S17 -> 924021.6582 | V17: =W17/M17 -> 0.9 | W17: =M17-P17-T17 -> 16632389.85
A18: =INDEX(Translation!$B$1:$E$581,Translation!$A$55,Language) -> Men&Women (35-49) with NR Partners (pairs) | B18: ='3. Condom Requirements'!B11 -> 192844.8597 | C18: =B18*(1+Pop_Growth) -> 221984.897 | D18: ='3. Condom Requirements'!D11 -> 0.4271120626 | E18: ='3. Condom Requirements'!E11 -> 0.75 | F18: ='3. Condom Requirements'!F11 -> 50 | G18: ='3. Condom Requirements'!G11 -> 0.2 | H18: ='3. Condom Requirements'!H11 -> 4941981.948 | I18: ='3. Condom Requirements'!I11 -> 5951449.632 | J18: ='3. Condom Requirements'!J11 -> 6960917.315 | K18: ='3. Condom Requirements'!K11 -> 7970384.999 | L18: ='3. Condom Requirements'!L11 -> 8979852.683 | M18: ='3. Condom Requirements'!M11 -> 9989320.366 | N18: =M18/M$28 -> 0.06969050695 | O18: =Female_Condom_Percentage_Target -> 0.05 | P18: =$M18*O18 -> 499466.0183 | Q18: 0.05 | R18: =$M18*Q18 -> 499466.0183 | S18: =Specialty_Condom_Target -> 0.05 | T18: 499466.0183 | V18: =W18/M18 -> 0.9 | W18: =M18-P18-T18 -> 8990388.33
A19: =INDEX(Translation!$B$1:$E$581,Translation!$A$56,Language) -> Men&Women (50-64) with NR Partners (pairs) | B19: ='3. Condom Requirements'!B12 -> 50529.90897 | C19: =B19*(1+Pop_Growth) -> 58165.28715 | D19: ='3. Condom Requirements'!D12 -> 0.3210534323 | E19: ='3. Condom Requirements'!E12 -> 0.75 | F19: ='3. Condom Requirements'!F12 -> 50 | G19: ='3. Condom Requirements'!G12 -> 0.2 | H19: ='3. Condom Requirements'!H12 -> 973368.0426 | I19: ='3. Condom Requirements'!I12 -> 1302182.018 | J19: ='3. Condom Requirements'!J12 -> 1630995.994 | K19: ='3. Condom Requirements'!K12 -> 1959809.97 | L19: ='3. Condom Requirements'!L12 -> 2288623.946 | M19: ='3. Condom Requirements'!M12 -> 2617437.922 | N19: =M19/M$28 -> 0.01826055917 | O19: =Female_Condom_Percentage_Target -> 0.05 | P19: 130871.8961 | Q19: 0.1 | R19: 261743.7922 | S19: =Specialty_Condom_Target -> 0.05 | T19: =$M19*S19 -> 130871.8961 | V19: =W19/M19 -> 0.9 | W19: =M19-P19-T19 -> 2355694.129
A20: =INDEX(Translation!$B$1:$E$581,Translation!$A$43,Language) -> Couples Using Condoms for Family Planning
A21: =INDEX(Translation!$B$1:$E$581,Translation!$A$57,Language) -> Couples Using Condoms for FP | B21: ='3. Condom Requirements'!B14 -> 1189291.277 | C21: =B21*(1+Pop_Growth) -> 1369000.46 | D21: ='2. Demographic Data'!$B$79 -> 0.06369426752 | E21: ='3. Condom Requirements'!E14 -> 0.06369426752 | F21: ='3. Condom Requirements'!F14 -> 100 | G21: ='3. Condom Requirements'!G14 -> 0.2 | H21: ='3. Condom Requirements'!H14 -> 9090124.411 | I21: ='3. Condom Requirements'!I14 -> 9364839.085 | J21: ='3. Condom Requirements'!J14 -> 9639553.76 | K21: ='3. Condom Requirements'!K14 -> 9914268.435 | L21: ='3. Condom Requirements'!L14 -> 10188983.11 | M21: ='3. Condom Requirements'!M14 -> 10463697.78 | N21: =M21/M$28 -> 0.07300000164 | O21: =Female_Condom_Percentage_Target -> 0.05 | P21: 523184.8892 | Q21: 0.05 | R21: 523184.8892 | S21: =Specialty_Condom_Target -> 0.05 | T21: =$M21*S21 -> 523184.8892 | V21: =W21/M21 -> 0.9 | W21: =M21-P21-T21 -> 9417328.006
A22: =INDEX(Translation!$B$1:$E$581,Translation!$A$58,Language) -> Couples With Unmet Need for FP Condoms | B22: ='3. Condom Requirements'!B15 -> 136351.8662 | C22: =B22*(1+Pop_Growth) -> 156955.4668 | D22: ='2. Demographic Data'!$D$119 -> 0 | E22: ='3. Condom Requirements'!E15 -> 0.06369426752 | F22: ='3. Condom Requirements'!F15 -> 100 | G22: ='3. Condom Requirements'!G15 -> 0.2 | H22: ='3. Condom Requirements'!H15 -> 0 | I22: ='3. Condom Requirements'!I15 -> 239931.9237 | J22: ='3. Condom Requirements'!J15 -> 479863.8475 | K22: ='3. Condom Requirements'!K15 -> 719795.7712 | L22: ='3. Condom Requirements'!L15 -> 959727.6949 | M22: ='3. Condom Requirements'!M15 -> 1199659.619 | N22: =M22/M$28 -> 0.00836942694 | O22: =Female_Condom_Percentage_Target -> 0.05 | P22: 59982.98093 | Q22: 0.05 | R22: 59982.98093 | S22: =Specialty_Condom_Target -> 0.05 | T22: =$M22*S22 -> 59982.98093 | V22: =W22/M22 -> 0.9 | W22: =M22-P22-T22 -> 1079693.657
A23: =INDEX(Translation!$B$1:$E$581,Translation!$A$46,Language) -> Other Key Populations and Populations at High Risk
A24: ='2. Demographic Data'!$A$92 -> People who Inject Drugs (PWID) | B24: ='3. Condom Requirements'!B17 -> 0 | C24: =B24*(1+Pop_Growth) -> 0 | D24: ='2. Demographic Data'!$D$120 -> 0.4 | E24: ='3. Condom Requirements'!E17 -> 0.75 | F24: ='3. Condom Requirements'!F17 -> 100 | G24: ='3. Condom Requirements'!G17 -> 0.2 | H24: ='3. Condom Requirements'!H17 -> 0 | I24: ='3. Condom Requirements'!I17 -> 0 | J24: ='3. Condom Requirements'!J17 -> 0 | K24: ='3. Condom Requirements'!K17 -> 0 | L24: ='3. Condom Requirements'!L17 -> 0 | M24: ='3. Condom Requirements'!M17 -> 0 | N24: =M24/M$28 -> 0 | O24: =Female_Condom_Percentage_Target -> 0.05 | P24: 0 | Q24: =Lubricant_Percentage_Target -> 0.1 | R24: 0 | S24: =Specialty_Condom_Target -> 0.05 | T24: =$M24*S24 -> 0 | V24: =W24/M24 ->  | W24: =M24-P24-T24 -> 0
A25: ='2. Demographic Data'!$A$93 -> Transgender (TG) | B25: ='3. Condom Requirements'!B18 -> 0 | C25: =B25*(1+Pop_Growth) -> 0 | D25: ='2. Demographic Data'!$D$121 -> 0.45 | E25: ='3. Condom Requirements'!E18 -> 0.75 | F25: ='3. Condom Requirements'!F18 -> 100 | G25: ='3. Condom Requirements'!G18 -> 0.2 | H25: ='3. Condom Requirements'!H18 -> 0 | I25: ='3. Condom Requirements'!I18 -> 0 | J25: ='3. Condom Requirements'!J18 -> 0 | K25: ='3. Condom Requirements'!K18 -> 0 | L25: ='3. Condom Requirements'!L18 -> 0 | M25: ='3. Condom Requirements'!M18 -> 0 | N25: =M25/M$28 -> 0 | O25: =Female_Condom_Percentage_Target -> 0.05 | P25: 0 | Q25: 0.25 | R25: 0 | S25: =Specialty_Condom_Target -> 0.05 | T25: =$M25*S25 -> 0 | V25: =W25/M25 ->  | W25: =M25-P25-T25 -> 0
A26: ='2. Demographic Data'!$A$97 -> Other [Please Specify]: | B26: ='3. Condom Requirements'!B19 -> 0 | C26: =B26*(1+Pop_Growth) -> 0 | D26: ='2. Demographic Data'!$D$125 -> 0 | E26: ='3. Condom Requirements'!E19 -> 0.75 | F26: ='3. Condom Requirements'!F19 -> 100 | G26: ='3. Condom Requirements'!G19 -> 0.2 | H26: ='3. Condom Requirements'!H19 -> 0 | I26: ='3. Condom Requirements'!I19 -> 0 | J26: ='3. Condom Requirements'!J19 -> 0 | K26: ='3. Condom Requirements'!K19 -> 0 | L26: ='3. Condom Requirements'!L19 -> 0 | M26: ='3. Condom Requirements'!M19 -> 0 | N26: =M26/M$28 -> 0 | O26: =Female_Condom_Percentage_Target -> 0.05 | P26: =$M26*O26 -> 0 | Q26: =Lubricant_Percentage_Target -> 0.1 | R26: =$M26*Q26 -> 0 | S26: =Specialty_Condom_Target -> 0.05 | T26: =$M26*S26 -> 0 | V26: =W26/M26 ->  | W26: =M26-P26-T26 -> 0
A27: ='2. Demographic Data'!$A$98 -> Other [Please Specify]: | B27: ='3. Condom Requirements'!B20 -> 0 | C27: =B27*(1+Pop_Growth) -> 0 | D27: ='2. Demographic Data'!$D$126 -> 0 | E27: ='3. Condom Requirements'!E20 -> 0.75 | F27: ='3. Condom Requirements'!F20 -> 100 | G27: ='3. Condom Requirements'!G20 -> 0.2 | H27: ='3. Condom Requirements'!H20 -> 0 | I27: ='3. Condom Requirements'!I20 -> 0 | J27: ='3. Condom Requirements'!J20 -> 0 | K27: ='3. Condom Requirements'!K20 -> 0 | L27: ='3. Condom Requirements'!L20 -> 0 | M27: ='3. Condom Requirements'!M20 -> 0 | N27: 0 | O27: =Female_Condom_Percentage_Target -> 0.05 | P27: 0 | Q27: =Lubricant_Percentage_Target -> 0.1 | R27: 0 | S27: =Specialty_Condom_Target -> 0.05 | T27: 0 | V27: =W27/M27 ->  | W27: =M27-P27-T27 -> 0
A28: =INDEX(Translation!$B$1:$E$581,Translation!$A$208,Language) -> Overall Total: Country Target | H28: =SUM(H12:H27) -> 79909905.72 | I28: =IF(Quality_Condom_Availability_Data="High",'1. Condom Availability'!$B$7,SUM('3b. Female Condoms + Lubricants'!I12:I27)) -> 92595589.09 | J28: =SUM(J12:J27) -> 105281272.5 | K28: 117966955.8 | L28: 130652639.2 | M28: 143338322.6 | O28: =P28/$M28 -> 0.05 | P28: =SUM(P12:P27) -> 7166916.129 | Q28: =R28/$M28 -> 0.1056243641 | R28: =SUM(R12:R27) -> 15140019.18 | S28: =T28/$M28 -> 0.05 | T28: =SUM(T12:T27) -> 7166916.129 | V28: =W28/M28 -> 0.9 | W28: =SUM(W12:W27) -> 129004490.3
A29: Annual Increase Condom Requirement (%) | I29: =I28/I28 -> 1 | J29: =J28/$I28 -> 1.137000947 | K29: =K28/$I28 -> 1.274001894 | L29: 1.41100284 | M29: 1.548003787
A113: BACKUP
A122: =Country -> Zambia | B122: =INDEX(Translation!$B$1:$E$581,Translation!$A$193,Language) -> Size of population in 2022 | C122: =INDEX(Translation!$B$1:$E$581,Translation!$A$194,Language) -> Size of Population in 2027 | D122: =INDEX(Translation!$B$1:$E$581,Translation!$A$195,Language) -> Baseline Coverage (% condom use at last sex) | E122: =INDEX(Translation!$B$1:$E$581,Translation!$A$196,Language) -> Target Coverage in 2027 | F122: =INDEX(Translation!$B$1:$E$581,Translation!$A$197,Language) -> Annual No. of Sex Acts Requiring Protection | G122: =INDEX(Translation!$B$1:$E$581,Translation!$A$198,Language) -> Wastage | H122: =INDEX(Translation!$B$1:$E$581,Translation!$A$201,Language) -> Total Condoms Used in 2022 | I122: =INDEX(Translation!$B$1:$E$581,Translation!$A$202,Language) -> Total Condoms Required in 2023 | J122: =INDEX(Translation!$B$1:$E$581,Translation!$A$203,Language) -> Total Condoms Required in 2024 | K122: =INDEX(Translation!$B$1:$E$581,Translation!$A$204,Language) -> Total Condoms Required in 2025 | L122: =INDEX(Translation!$B$1:$E$581,Translation!$A$205,Language) -> Total Condoms Required in 2026 | M122: =INDEX(Translation!$B$1:$E$581,Translation!$A$206,Language) -> Total Condoms Required in 2027 | N122: =INDEX(Translation!$B$1:$E$581,Translation!$A$207,Language) -> % of Total Condoms Required in 2027 | O122: ="% (Target) Female condoms of total condom need in "&Target_Year -> % (Target) Female condoms of total condom need in 2027 | P122: ="# Female condoms of total condom need in "&Target_Year -> # Female condoms of total condom need in 2027 | Q122: ="% (Target) Lubricant of total condom need in "&Target_Year -> % (Target) Lubricant of total condom need in 2027 | R122: ="# Lubricant of total condom need in "&Target_Year -> # Lubricant of total condom need in 2027 | S122: ="% (Target) Special condoms of total condom need in "&Target_Year -> % (Target) Special condoms of total condom need in 2027 | T122: ="# Special condoms of total condom need in "&Target_Year -> # Special condoms of total condom need in 2027
I123: =Start_Year -> 2023 | J123: =I123+1 -> 2024 | K123: =J123+1 -> 2025 | L123: =K123+1 -> 2026 | M123: =Target_Year -> 2027 | P123: Female Condom | R123: Lubricant | T123: Special Condoms
A124: =INDEX(Translation!$B$1:$E$581,Translation!$A$34,Language) -> Key Populations
A125: =INDEX(Translation!$B$1:$E$581,Translation!$A$50,Language) -> PLHIV Couples | B125: ='3. Condom Requirements'!B5 -> 337770 | C125: =B125*(1+Pop_Growth) -> 388809.1121 | D125: ='3. Condom Requirements'!D5 -> 0.4 | E125: ='3. Condom Requirements'!E5 -> 0.75 | F125: ='3. Condom Requirements'!F5 -> 100 | G125: ='3. Condom Requirements'!G5 -> 0.2 | H125: ='3. Condom Requirements'!H5 -> 16212960 | I125: ='3. Condom Requirements'!I5 -> 19372707.21 | J125: ='3. Condom Requirements'!J5 -> 22532454.42 | K125: ='3. Condom Requirements'!K5 -> 25692201.64 | L125: ='3. Condom Requirements'!L5 -> 28851948.85 | M125: ='3. Condom Requirements'!M5 -> 32011696.06 | N125: =M125/M$28 -> 0.2233296406 | O125: =Female_Condom_Percentage_Target -> 0.05 | P125: =$M125*O125 -> 1600584.803 | Q125: =Lubricant_Percentage_Target -> 0.1 | R125: =$M125*Q125 -> 3201169.606 | S125: =Specialty_Condom_Target -> 0.05 | T125: =$M125*S125 -> 1600584.803 | W125: =M125-P125-T125 -> 28810526.45 | X125: =W125/M125 -> 0.9
A126: =INDEX(Translation!$B$1:$E$581,Translation!$A$51,Language) -> Sex workers | B126: ='3. Condom Requirements'!B6 -> 41252.49 | C126: =B126*(1+Pop_Growth) -> 47485.99345 | D126: ='3. Condom Requirements'!D6 -> 0.7 | E126: ='3. Condom Requirements'!E6 -> 0.9 | F126: ='3. Condom Requirements'!F6 -> 450 | G126: ='3. Condom Requirements'!G6 -> 0.2 | H126: =B126*D126*F126*(1+G126) -> 15593441.22 | I126: ='3. Condom Requirements'!I6 -> 17090391.54 | J126: ='3. Condom Requirements'!J6 -> 18587341.86 | K126: ='3. Condom Requirements'!K6 -> 20084292.18 | L126: ='3. Condom Requirements'!L6 -> 21581242.5 | M126: ='3. Condom Requirements'!M6 -> 23078192.82 | N126: =M126/M$28 -> 0.1610050432 | O126: =Female_Condom_Percentage_Target -> 0.05 | P126: =$M126*O126 -> 1153909.641 | Q126: 0.25 | R126: =$M126*Q126 -> 5769548.204 | S126: =Specialty_Condom_Target -> 0.05 | T126: =$M126*S126 -> 1153909.641 | W126: =M126-P126-T126 -> 20770373.54 | X126: =W126/M126 -> 0.9
A127: =INDEX(Translation!$B$1:$E$581,Translation!$A$52,Language) -> Men Having Sex with Men (MSM) | B127: ='3. Condom Requirements'!B7 -> 78475.62 | C127: =B127*(1+Pop_Growth) -> 90333.76597 | D127: ='3. Condom Requirements'!D7 -> 0.55 | E127: ='3. Condom Requirements'!E7 -> 0.75 | F127: ='3. Condom Requirements'!F7 -> 100 | G127: ='3. Condom Requirements'!G7 -> 0.2 | H127: =B127*D127*F127*(1+G127) -> 5179390.92 | I127: ='3. Condom Requirements'!I7 -> 5769520.523 | J127: ='3. Condom Requirements'!J7 -> 6359650.127 | K127: ='3. Condom Requirements'!K7 -> 6949779.73 | L127: ='3. Condom Requirements'!L7 -> 7539909.334 | M127: ='3. Condom Requirements'!M7 -> 8130038.937 | N127: =M127/M$28 -> 0.05671922756 | O127: =Female_Condom_Percentage_Target -> 0.05 | P127: 406501.9469 | Q127: 0.25 | R127: 2032509.734 | S127: =Specialty_Condom_Target -> 0.05 | T127: 406501.9469 | W127: 7317035.044 | X127: 0.9
A128: =INDEX(Translation!$B$1:$E$581,Translation!$A$38,Language) -> People who have Sex with Non-Regular Partners [PAIRS]
A129: =INDEX(Translation!$B$1:$E$581,Translation!$A$53,Language) -> Young People (15-24) with NR Partners (pairs) | B129: ='3. Condom Requirements'!B9 -> 721390.1186 | C129: =B129*(1+Pop_Growth) -> 830396.5759 | D129: ='3. Condom Requirements'!D9 -> 0.4073080571 | E129: ='3. Condom Requirements'!E9 -> 0.75 | F129: ='3. Condom Requirements'!F9 -> 50 | G129: ='3. Condom Requirements'!G9 -> 0.2 | H129: =B129*D129*F129*(1+G129) -> 17629680.46 | I129: ='3. Condom Requirements'!I9 -> 21577313.55 | J129: ='3. Condom Requirements'!J9 -> 25524946.64 | K129: ='3. Condom Requirements'!K9 -> 29472579.73 | L129: ='3. Condom Requirements'!L9 -> 33420212.83 | M129: ='3. Condom Requirements'!M9 -> 37367845.92 | N129: =M129/M$28 -> 0.2606968272 | O129: =Female_Condom_Percentage_Target -> 0.05 | P129: =$M129*O129 -> 1868392.296 | Q129: 0.05 | R129: =$M129*Q129 -> 1868392.296 | S129: =Specialty_Condom_Target -> 0.05 | T129: =$M129*S129 -> 1868392.296 | W129: =M129-P129-T129 -> 33631061.33 | X129: =W129/M129 -> 0.9
A130: =INDEX(Translation!$B$1:$E$581,Translation!$A$54,Language) -> Men&Women (25-34) with NR Partners (pairs) | B130: ='3. Condom Requirements'!B10 -> 356766.6678 | C130: =B130*(1+Pop_Growth) -> 410676.2925 | D130: ='3. Condom Requirements'!D10 -> 0.480657698 | E130: ='3. Condom Requirements'!E10 -> 0.75 | F130: ='3. Condom Requirements'!F10 -> 50 | G130: ='3. Condom Requirements'!G10 -> 0.2 | H130: =B130*D130*F130*(1+G130) -> 10288958.72 | I130: ='3. Condom Requirements'!I10 -> 11927253.61 | J130: ='3. Condom Requirements'!J10 -> 13565548.5 | K130: ='3. Condom Requirements'!K10 -> 15203843.39 | L130: ='3. Condom Requirements'!L10 -> 16842138.28 | M130: ='3. Condom Requirements'!M10 -> 18480433.16 | N130: =M130/M$28 -> 0.1289287668 | O130: =Female_Condom_Percentage_Target -> 0.05 | P130: 924021.6582 | Q130: 0.05 | R130: 924021.6582 | S130: =Specialty_Condom_Target -> 0.05 | T130: 924021.6582 | W130: 16632389.85 | X130: 0.9
A131: =INDEX(Translation!$B$1:$E$581,Translation!$A$55,Language) -> Men&Women (35-49) with NR Partners (pairs) | B131: ='3. Condom Requirements'!B11 -> 192844.8597 | C131: =B131*(1+Pop_Growth) -> 221984.897 | D131: ='3. Condom Requirements'!D11 -> 0.4271120626 | E131: ='3. Condom Requirements'!E11 -> 0.75 | F131: ='3. Condom Requirements'!F11 -> 50 | G131: ='3. Condom Requirements'!G11 -> 0.2 | H131: =B131*D131*F131*(1+G131) -> 4941981.948 | I131: ='3. Condom Requirements'!I11 -> 5951449.632 | J131: ='3. Condom Requirements'!J11 -> 6960917.315 | K131: ='3. Condom Requirements'!K11 -> 7970384.999 | L131: ='3. Condom Requirements'!L11 -> 8979852.683 | M131: ='3. Condom Requirements'!M11 -> 9989320.366 | N131: =M131/M$28 -> 0.06969050695 | O131: =Female_Condom_Percentage_Target -> 0.05 | P131: 499466.0183 | Q131: 0.05 | R131: 499466.0183 | S131: =Specialty_Condom_Target -> 0.05 | T131: 499466.0183 | W131: 8990388.33 | X131: 0.9
A132: =INDEX(Translation!$B$1:$E$581,Translation!$A$56,Language) -> Men&Women (50-64) with NR Partners (pairs) | B132: ='3. Condom Requirements'!B12 -> 50529.90897 | C132: =B132*(1+Pop_Growth) -> 58165.28715 | D132: ='3. Condom Requirements'!D12 -> 0.3210534323 | E132: ='3. Condom Requirements'!E12 -> 0.75 | F132: ='3. Condom Requirements'!F12 -> 50 | G132: ='3. Condom Requirements'!G12 -> 0.2 | H132: =B132*D132*F132*(1+G132) -> 973368.0426 | I132: ='3. Condom Requirements'!I12 -> 1302182.018 | J132: ='3. Condom Requirements'!J12 -> 1630995.994 | K132: ='3. Condom Requirements'!K12 -> 1959809.97 | L132: ='3. Condom Requirements'!L12 -> 2288623.946 | M132: ='3. Condom Requirements'!M12 -> 2617437.922 | N132: =M132/M$28 -> 0.01826055917 | O132: =Female_Condom_Percentage_Target -> 0.05 | P132: 130871.8961 | Q132: =Lubricant_Percentage_Target -> 0.1 | R132: 261743.7922 | S132: =Specialty_Condom_Target -> 0.05 | T132: 130871.8961 | W132: 2355694.129 | X132: 0.9
A133: =INDEX(Translation!$B$1:$E$581,Translation!$A$43,Language) -> Couples Using Condoms for Family Planning
A134: =INDEX(Translation!$B$1:$E$581,Translation!$A$57,Language) -> Couples Using Condoms for FP | B134: ='3. Condom Requirements'!B14 -> 1189291.277 | C134: =B134*(1+Pop_Growth) -> 1369000.46 | D134: ='3. Condom Requirements'!D14 -> 0.06369426752 | E134: ='3. Condom Requirements'!E14 -> 0.06369426752 | F134: ='3. Condom Requirements'!F14 -> 100 | G134: ='3. Condom Requirements'!G14 -> 0.2 | H134: =B134*D134*F134*(1+G134) -> 9090124.411 | I134: ='3. Condom Requirements'!I14 -> 9364839.085 | J134: ='3. Condom Requirements'!J14 -> 9639553.76 | K134: ='3. Condom Requirements'!K14 -> 9914268.435 | L134: ='3. Condom Requirements'!L14 -> 10188983.11 | M134: ='3. Condom Requirements'!M14 -> 10463697.78 | N134: =M134/M$28 -> 0.07300000164 | O134: =Female_Condom_Percentage_Target -> 0.05 | P134: =$M134*O134 -> 523184.8892 | Q134: 0.05 | R134: =$M134*Q134 -> 523184.8892 | S134: =Specialty_Condom_Target -> 0.05 | T134: =$M134*S134 -> 523184.8892 | W134: =M134-P134-T134 -> 9417328.006 | X134: =W134/M134 -> 0.9
A135: =INDEX(Translation!$B$1:$E$581,Translation!$A$58,Language) -> Couples With Unmet Need for FP Condoms | B135: ='3. Condom Requirements'!B15 -> 136351.8662 | C135: =B135*(1+Pop_Growth) -> 156955.4668 | D135: ='3. Condom Requirements'!D15 -> 0 | E135: ='3. Condom Requirements'!E15 -> 0.06369426752 | F135: ='3. Condom Requirements'!F15 -> 100 | G135: ='3. Condom Requirements'!G15 -> 0.2 | H135: =B135*D135*F135*(1+G135) -> 0 | I135: ='3. Condom Requirements'!I15 -> 239931.9237 | J135: ='3. Condom Requirements'!J15 -> 479863.8475 | K135: ='3. Condom Requirements'!K15 -> 719795.7712 | L135: ='3. Condom Requirements'!L15 -> 959727.6949 | M135: ='3. Condom Requirements'!M15 -> 1199659.619 | N135: =M135/M$28 -> 0.00836942694 | O135: =Female_Condom_Percentage_Target -> 0.05 | P135: 59982.98093 | Q135: 0.05 | R135: 59982.98093 | S135: =Specialty_Condom_Target -> 0.05 | T135: 59982.98093 | W135: 1079693.657 | X135: 0.9
A136: =INDEX(Translation!$B$1:$E$581,Translation!$A$46,Language) -> Other Key Populations and Populations at High Risk
A137: ='2. Demographic Data'!$A$92 -> People who Inject Drugs (PWID) | B137: ='3. Condom Requirements'!B17 -> 0 | C137: =B137*(1+Pop_Growth) -> 0 | D137: ='2. Demographic Data'!$D$120 -> 0.4 | E137: ='2. Demographic Data'!$D$120 -> 0.4 | F137: ='3. Condom Requirements'!F17 -> 100 | G137: ='3. Condom Requirements'!G17 -> 0.2 | H137: =B137*D137*F137*(1+G137) -> 0 | I137: ='3. Condom Requirements'!I17 -> 0 | J137: ='3. Condom Requirements'!J17 -> 0 | K137: ='3. Condom Requirements'!K17 -> 0 | L137: ='3. Condom Requirements'!L17 -> 0 | M137: ='3. Condom Requirements'!M17 -> 0 | N137: =M137/M$28 -> 0 | O137: =Female_Condom_Percentage_Target -> 0.05 | P137: =$M137*O137 -> 0 | Q137: =Lubricant_Percentage_Target -> 0.1 | R137: =$M137*Q137 -> 0 | S137: =Specialty_Condom_Target -> 0.05 | T137: =$M137*S137 -> 0 | W137: =M137-P137-T137 -> 0 | X137: =W137/M137 -> 
A138: ='2. Demographic Data'!$A$93 -> Transgender (TG) | B138: ='3. Condom Requirements'!B18 -> 0 | C138: =B138*(1+Pop_Growth) -> 0 | D138: ='2. Demographic Data'!$D$121 -> 0.45 | E138: ='2. Demographic Data'!$D$121 -> 0.45 | F138: ='3. Condom Requirements'!F18 -> 100 | G138: ='3. Condom Requirements'!G18 -> 0.2 | H138: =B138*D138*F138*(1+G138) -> 0 | I138: ='3. Condom Requirements'!I18 -> 0 | J138: ='3. Condom Requirements'!J18 -> 0 | K138: ='3. Condom Requirements'!K18 -> 0 | L138: ='3. Condom Requirements'!L18 -> 0 | M138: ='3. Condom Requirements'!M18 -> 0 | N138: =M138/M$28 -> 0 | O138: =Female_Condom_Percentage_Target -> 0.05 | P138: 0 | Q138: 0.25 | R138: 0 | S138: =Specialty_Condom_Target -> 0.05 | T138: 0 | W138: 0
A139: ='2. Demographic Data'!$A$97 -> Other [Please Specify]: | B139: ='3. Condom Requirements'!B19 -> 0 | C139: =B139*(1+Pop_Growth) -> 0 | D139: ='2. Demographic Data'!$D$125 -> 0 | E139: ='2. Demographic Data'!$D$125 -> 0 | F139: ='3. Condom Requirements'!F19 -> 100 | G139: ='3. Condom Requirements'!G19 -> 0.2 | H139: =B139*D139*F139*(1+G139) -> 0 | I139: ='3. Condom Requirements'!I19 -> 0 | J139: ='3. Condom Requirements'!J19 -> 0 | K139: ='3. Condom Requirements'!K19 -> 0 | L139: ='3. Condom Requirements'!L19 -> 0 | M139: ='3. Condom Requirements'!M19 -> 0 | N139: =M139/M$28 -> 0 | O139: =Female_Condom_Percentage_Target -> 0.05 | P139: 0 | Q139: =Lubricant_Percentage_Target -> 0.1 | R139: 0 | S139: =Specialty_Condom_Target -> 0.05 | T139: 0 | W139: 0
A140: ='2. Demographic Data'!$A$98 -> Other [Please Specify]: | B140: ='3. Condom Requirements'!B20 -> 0 | C140: =B140*(1+Pop_Growth) -> 0 | D140: ='2. Demographic Data'!$D$126 -> 0 | E140: ='2. Demographic Data'!$D$126 -> 0 | F140: ='3. Condom Requirements'!F20 -> 100 | G140: ='3. Condom Requirements'!G20 -> 0.2 | H140: =B140*D140*F140*(1+G140) -> 0 | I140: ='3. Condom Requirements'!I20 -> 0 | J140: ='3. Condom Requirements'!J20 -> 0 | K140: ='3. Condom Requirements'!K20 -> 0 | L140: ='3. Condom Requirements'!L20 -> 0 | M140: ='3. Condom Requirements'!M20 -> 0 | N140: 0 | O140: =Female_Condom_Percentage_Target -> 0.05 | P140: 0 | Q140: =Lubricant_Percentage_Target -> 0.1 | R140: 0 | S140: =Specialty_Condom_Target -> 0.05 | T140: 0 | W140: 0
A141: =INDEX(Translation!$B$1:$E$581,Translation!$A$208,Language) -> Overall Total: Country Target | H141: =SUM(H125:H140) -> 79909905.72 | I141: =IF(Quality_Condom_Availability_Data="High",'1. Condom Availability'!$B$7,SUM('3b. Female Condoms + Lubricants'!I125:I140)) -> 92595589.09 | J141: =SUM(J125:J140) -> 105281272.5 | K141: 117966955.8 | L141: 130652639.2 | M141: 143338322.6 | O141: =P141/$M141 -> 0.05 | P141: =SUM(P125:P140) -> 7166916.129 | Q141: =R141/$M141 -> 0.1056243641 | R141: =SUM(R125:R140) -> 15140019.18 | S141: =T141/$M141 -> 0.05 | T141: =SUM(T125:T140) -> 7166916.129 | W141: =SUM(W125:W140) -> 129004490.3 | X141: 0.9

Sheet 3c. Free Condoms
A1: =INDEX(Translation!$B$1:$E$581,Translation!$A$239,Language) -> Free Condoms | I1: ='Cover Sheet'!$B$2 -> CNET Version 5.0 [2023-2027] - (20 February 2023 - Excel for Office 365)
A2: =Country -> Zambia | B2: =INDEX(Translation!$B$1:$E$581,Translation!$A$193,Language) -> Size of population in 2022 | C2: =INDEX(Translation!$B$1:$E$581,Translation!$A$194,Language) -> Size of Population in 2027 | D2: =INDEX(Translation!$B$1:$E$581,Translation!$A$195,Language) -> Baseline Coverage (% condom use at last sex) | E2: =INDEX(Translation!$B$1:$E$581,Translation!$A$196,Language) -> Target Coverage in 2027 | F2: =INDEX(Translation!$B$1:$E$581,Translation!$A$197,Language) -> Annual No. of Sex Acts Requiring Protection | G2: =INDEX(Translation!$B$1:$E$581,Translation!$A$198,Language) -> Wastage | H2: =INDEX(Translation!$B$1:$E$581,Translation!$A$201,Language) -> Total Condoms Used in 2022 | I2: =INDEX(Translation!$B$1:$E$581,Translation!$A$202,Language) -> Total Condoms Required in 2023 | J2: =INDEX(Translation!$B$1:$E$581,Translation!$A$203,Language) -> Total Condoms Required in 2024 | K2: =INDEX(Translation!$B$1:$E$581,Translation!$A$204,Language) -> Total Condoms Required in 2025 | L2: =INDEX(Translation!$B$1:$E$581,Translation!$A$205,Language) -> Total Condoms Required in 2026 | M2: =INDEX(Translation!$B$1:$E$581,Translation!$A$206,Language) -> Total Condoms Required in 2027 | N2: =INDEX(Translation!$B$1:$E$581,Translation!$A$207,Language) -> % of Total Condoms Required in 2027 | O2: % (Baseline) Free condoms of total condom need in 2022 | P2: ="% (Target) Free condoms of total condom need in "&Target_Year -> % (Target) Free condoms of total condom need in 2027 | Q2: ="# Free condoms of total condom need in "&Target_Year -> # Free condoms of total condom need in 2027
H3: 2022 | I3: =Start_Year -> 2023 | J3: =I3+1 -> 2024 | K3: =J3+1 -> 2025 | L3: 2026 | M3: =Target_Year -> 2027 | O3: 2022 | P3: 2027 | Q3: 2027
A4: =INDEX(Translation!$B$1:$E$581,Translation!$A$34,Language) -> Key Populations
A5: =INDEX(Translation!$B$1:$E$581,Translation!$A$50,Language) -> PLHIV Couples | B5: ='2. Demographic Data'!$D$37 -> 337770 | C5: =B5*(1+Pop_Growth) -> 388809.1121 | D5: ='2. Demographic Data'!$D$100 -> 0.4 | E5: ='3. Condom Requirements'!E5 -> 0.75 | F5: ='3. Condom Requirements'!F5 -> 100 | G5: ='3. Condom Requirements'!G5 -> 0.2 | H5: ='3. Condom Requirements'!H5 -> 16212960 | I5: ='3. Condom Requirements'!I5 -> 19372707.21 | J5: ='3. Condom Requirements'!J5 -> 22532454.42 | K5: ='3. Condom Requirements'!K5 -> 25692201.64 | L5: ='3. Condom Requirements'!L5 -> 28851948.85 | M5: ='3. Condom Requirements'!M5 -> 32011696.06 | N5: =M5/M$21 -> 0.2233296406 | O5: ='1. Condom Availability'!$C$4 ->  | P5: 0.75 | Q5: =$M5*P5 -> 24008772.05
A6: =INDEX(Translation!$B$1:$E$581,Translation!$A$51,Language) -> Sex workers | B6: ='2. Demographic Data'!$D$89 -> 41252.49 | C6: =B6*(1+Pop_Growth) -> 47485.99345 | D6: ='2. Demographic Data'!$D$101 -> 0.7 | E6: ='3. Condom Requirements'!E6 -> 0.9 | F6: ='3. Condom Requirements'!F6 -> 450 | G6: ='3. Condom Requirements'!G6 -> 0.2 | H6: ='3. Condom Requirements'!H6 -> 15593441.22 | I6: ='3. Condom Requirements'!I6 -> 17090391.54 | J6: ='3. Condom Requirements'!J6 -> 18587341.86 | K6: ='3. Condom Requirements'!K6 -> 20084292.18 | L6: ='3. Condom Requirements'!L6 -> 21581242.5 | M6: ='3. Condom Requirements'!M6 -> 23078192.82 | N6: =M6/M$21 -> 0.1610050432 | O6: ='1. Condom Availability'!$C$4 ->  | P6: 0.75 | Q6: =$M6*P6 -> 17308644.61
A7: =INDEX(Translation!$B$1:$E$581,Translation!$A$52,Language) -> Men Having Sex with Men (MSM) | B7: ='2. Demographic Data'!$D$91 -> 78475.62 | C7: =B7*(1+Pop_Growth) -> 90333.76597 | D7: ='2. Demographic Data'!$D$102 -> 0.55 | E7: ='3. Condom Requirements'!E7 -> 0.75 | F7: ='3. Condom Requirements'!F7 -> 100 | G7: ='3. Condom Requirements'!G7 -> 0.2 | H7: ='3. Condom Requirements'!H7 -> 5179390.92 | I7: ='3. Condom Requirements'!I7 -> 5769520.523 | J7: ='3. Condom Requirements'!J7 -> 6359650.127 | K7: ='3. Condom Requirements'!K7 -> 6949779.73 | L7: ='3. Condom Requirements'!L7 -> 7539909.334 | M7: ='3. Condom Requirements'!M7 -> 8130038.937 | N7: =M7/M$21 -> 0.05671922756 | O7: ='1. Condom Availability'!$C$4 ->  | P7: 0.75 | Q7: 6097529.203
A8: =INDEX(Translation!$B$1:$E$581,Translation!$A$38,Language) -> People who have Sex with Non-Regular Partners [PAIRS] | E8: ='3. Condom Requirements'!E8 -> 0 | F8: ='3. Condom Requirements'!F8 -> 0 | G8: ='3. Condom Requirements'!G8 -> 0
A9: =INDEX(Translation!$B$1:$E$581,Translation!$A$53,Language) -> Young People (15-24) with NR Partners (pairs) | B9: ='2. Demographic Data'!$D$68 -> 721390.1186 | C9: =B9*(1+Pop_Growth) -> 830396.5759 | D9: ='2. Demographic Data'!$D$114 -> 0.4073080571 | E9: ='3. Condom Requirements'!E9 -> 0.75 | F9: ='3. Condom Requirements'!F9 -> 50 | G9: ='3. Condom Requirements'!G9 -> 0.2 | H9: ='3. Condom Requirements'!H9 -> 17629680.46 | I9: ='3. Condom Requirements'!I9 -> 21577313.55 | J9: ='3. Condom Requirements'!J9 -> 25524946.64 | K9: ='3. Condom Requirements'!K9 -> 29472579.73 | L9: ='3. Condom Requirements'!L9 -> 33420212.83 | M9: ='3. Condom Requirements'!M9 -> 37367845.92 | N9: =M9/M$21 -> 0.2606968272 | O9: ='1. Condom Availability'!$C$4 ->  | P9: 0.75 | Q9: =$M9*P9 -> 28025884.44
A10: =INDEX(Translation!$B$1:$E$581,Translation!$A$54,Language) -> Men&Women (25-34) with NR Partners (pairs) | B10: ='2. Demographic Data'!$D$69 -> 356766.6678 | C10: =B10*(1+Pop_Growth) -> 410676.2925 | D10: ='2. Demographic Data'!$D$115 -> 0.480657698 | E10: ='3. Condom Requirements'!E10 -> 0.75 | F10: ='3. Condom Requirements'!F10 -> 50 | G10: ='3. Condom Requirements'!G10 -> 0.2 | H10: ='3. Condom Requirements'!H10 -> 10288958.72 | I10: ='3. Condom Requirements'!I10 -> 11927253.61 | J10: ='3. Condom Requirements'!J10 -> 13565548.5 | K10: ='3. Condom Requirements'!K10 -> 15203843.39 | L10: ='3. Condom Requirements'!L10 -> 16842138.28 | M10: ='3. Condom Requirements'!M10 -> 18480433.16 | N10: =M10/M$21 -> 0.1289287668 | O10: ='1. Condom Availability'!$C$4 ->  | P10: 0.75 | Q10: 13860324.87
A11: =INDEX(Translation!$B$1:$E$581,Translation!$A$55,Language) -> Men&Women (35-49) with NR Partners (pairs) | B11: ='2. Demographic Data'!$D$70 -> 192844.8597 | C11: =B11*(1+Pop_Growth) -> 221984.897 | D11: ='2. Demographic Data'!$D$116 -> 0.4271120626 | E11: ='3. Condom Requirements'!E11 -> 0.75 | F11: ='3. Condom Requirements'!F11 -> 50 | G11: ='3. Condom Requirements'!G11 -> 0.2 | H11: ='3. Condom Requirements'!H11 -> 4941981.948 | I11: ='3. Condom Requirements'!I11 -> 5951449.632 | J11: ='3. Condom Requirements'!J11 -> 6960917.315 | K11: ='3. Condom Requirements'!K11 -> 7970384.999 | L11: ='3. Condom Requirements'!L11 -> 8979852.683 | M11: ='3. Condom Requirements'!M11 -> 9989320.366 | N11: =M11/M$21 -> 0.06969050695 | O11: ='1. Condom Availability'!$C$4 ->  | P11: 0.75 | Q11: 7491990.275
A12: =INDEX(Translation!$B$1:$E$581,Translation!$A$56,Language) -> Men&Women (50-64) with NR Partners (pairs) | B12: ='2. Demographic Data'!$D$71 -> 50529.90897 | C12: =B12*(1+Pop_Growth) -> 58165.28715 | D12: ='2. Demographic Data'!$D$117 -> 0.3210534323 | E12: ='3. Condom Requirements'!E12 -> 0.75 | F12: ='3. Condom Requirements'!F12 -> 50 | G12: ='3. Condom Requirements'!G12 -> 0.2 | H12: ='3. Condom Requirements'!H12 -> 973368.0426 | I12: ='3. Condom Requirements'!I12 -> 1302182.018 | J12: ='3. Condom Requirements'!J12 -> 1630995.994 | K12: ='3. Condom Requirements'!K12 -> 1959809.97 | L12: ='3. Condom Requirements'!L12 -> 2288623.946 | M12: ='3. Condom Requirements'!M12 -> 2617437.922 | N12: =M12/M$21 -> 0.01826055917 | O12: ='1. Condom Availability'!$C$4 ->  | P12: 0.75 | Q12: 1963078.441
A13: =INDEX(Translation!$B$1:$E$581,Translation!$A$43,Language) -> Couples Using Condoms for Family Planning | E13: ='3. Condom Requirements'!E13 -> 0 | F13: ='3. Condom Requirements'!F13 -> 0 | G13: ='3. Condom Requirements'!G13 -> 0
A14: =INDEX(Translation!$B$1:$E$581,Translation!$A$57,Language) -> Couples Using Condoms for FP | B14: ='2. Demographic Data'!$D$80 -> 1189291.277 | C14: =B14*(1+Pop_Growth) -> 1369000.46 | D14: ='2. Demographic Data'!$B$79 -> 0.06369426752 | E14: ='3. Condom Requirements'!E14 -> 0.06369426752 | F14: ='3. Condom Requirements'!F14 -> 100 | G14: ='3. Condom Requirements'!G14 -> 0.2 | H14: ='3. Condom Requirements'!H14 -> 9090124.411 | I14: ='3. Condom Requirements'!I14 -> 9364839.085 | J14: ='3. Condom Requirements'!J14 -> 9639553.76 | K14: ='3. Condom Requirements'!K14 -> 9914268.435 | L14: ='3. Condom Requirements'!L14 -> 10188983.11 | M14: ='3. Condom Requirements'!M14 -> 10463697.78 | N14: =M14/M$21 -> 0.07300000164 | O14: ='1. Condom Availability'!$C$4 ->  | P14: 0.75 | Q14: =$M14*P14 -> 7847773.339
A15: =INDEX(Translation!$B$1:$E$581,Translation!$A$58,Language) -> Couples With Unmet Need for FP Condoms | B15: ='2. Demographic Data'!$D$83 -> 136351.8662 | C15: =B15*(1+Pop_Growth) -> 156955.4668 | D15: ='2. Demographic Data'!$D$119 -> 0 | E15: ='3. Condom Requirements'!E15 -> 0.06369426752 | F15: ='3. Condom Requirements'!F15 -> 100 | G15: ='3. Condom Requirements'!G15 -> 0.2 | H15: ='3. Condom Requirements'!H15 -> 0 | I15: ='3. Condom Requirements'!I15 -> 239931.9237 | J15: ='3. Condom Requirements'!J15 -> 479863.8475 | K15: ='3. Condom Requirements'!K15 -> 719795.7712 | L15: ='3. Condom Requirements'!L15 -> 959727.6949 | M15: ='3. Condom Requirements'!M15 -> 1199659.619 | N15: =M15/M$21 -> 0.00836942694 | O15: ='1. Condom Availability'!$C$4 ->  | P15: 0.75 | Q15: 899744.714
A16: =INDEX(Translation!$B$1:$E$581,Translation!$A$46,Language) -> Other Key Populations and Populations at High Risk | E16: ='3. Condom Requirements'!E16 -> 0 | F16: ='3. Condom Requirements'!F16 -> 0 | G16: ='3. Condom Requirements'!G16 -> 0
A17: ='2. Demographic Data'!$A$92 -> People who Inject Drugs (PWID) | B17: ='2. Demographic Data'!$D$92 -> 0 | C17: =B17*(1+Pop_Growth) -> 0 | D17: ='2. Demographic Data'!$D$120 -> 0.4 | E17: ='3. Condom Requirements'!E17 -> 0.75 | F17: ='3. Condom Requirements'!F17 -> 100 | G17: ='3. Condom Requirements'!G17 -> 0.2 | H17: ='3. Condom Requirements'!H17 -> 0 | I17: ='3. Condom Requirements'!I17 -> 0 | J17: ='3. Condom Requirements'!J17 -> 0 | K17: ='3. Condom Requirements'!K17 -> 0 | L17: ='3. Condom Requirements'!L17 -> 0 | M17: ='3. Condom Requirements'!M17 -> 0 | N17: =M17/M$21 -> 0 | O17: ='1. Condom Availability'!$C$4 ->  | P17: 0.75 | Q17: =$M17*P17 -> 0
A18: ='2. Demographic Data'!$A$93 -> Transgender (TG) | B18: ='2. Demographic Data'!$D$93 -> 0 | C18: =B18*(1+Pop_Growth) -> 0 | D18: ='2. Demographic Data'!$D$121 -> 0.45 | E18: ='3. Condom Requirements'!E18 -> 0.75 | F18: ='3. Condom Requirements'!F18 -> 100 | G18: ='3. Condom Requirements'!G18 -> 0.2 | H18: ='3. Condom Requirements'!H18 -> 0 | I18: ='3. Condom Requirements'!I18 -> 0 | J18: ='3. Condom Requirements'!J18 -> 0 | K18: ='3. Condom Requirements'!K18 -> 0 | L18: ='3. Condom Requirements'!L18 -> 0 | M18: ='3. Condom Requirements'!M18 -> 0 | N18: =M18/M$21 -> 0 | O18: ='1. Condom Availability'!$C$4 ->  | P18: 0.75 | Q18: 0
A19: ='2. Demographic Data'!$A$97 -> Other [Please Specify]: | B19: ='2. Demographic Data'!$D$97 -> 0 | C19: =B19*(1+Pop_Growth) -> 0 | D19: ='2. Demographic Data'!$D$125 -> 0 | E19: ='3. Condom Requirements'!E19 -> 0.75 | F19: ='3. Condom Requirements'!F19 -> 100 | G19: ='3. Condom Requirements'!G19 -> 0.2 | H19: ='3. Condom Requirements'!H19 -> 0 | I19: ='3. Condom Requirements'!I19 -> 0 | J19: ='3. Condom Requirements'!J19 -> 0 | K19: ='3. Condom Requirements'!K19 -> 0 | L19: ='3. Condom Requirements'!L19 -> 0 | M19: ='3. Condom Requirements'!M19 -> 0 | N19: =M19/M$21 -> 0 | O19: ='1. Condom Availability'!$C$4 ->  | P19: 0.75 | Q19: 0
A20: ='2. Demographic Data'!$A$98 -> Other [Please Specify]: | B20: ='2. Demographic Data'!$D$98 -> 0 | C20: =B20*(1+Pop_Growth) -> 0 | D20: ='2. Demographic Data'!$D$126 -> 0 | E20: ='3. Condom Requirements'!E20 -> 0.75 | F20: ='3. Condom Requirements'!F20 -> 100 | G20: ='3. Condom Requirements'!G20 -> 0.2 | H20: ='3. Condom Requirements'!H20 -> 0 | I20: ='3. Condom Requirements'!I20 -> 0 | J20: ='3. Condom Requirements'!J20 -> 0 | K20: ='3. Condom Requirements'!K20 -> 0 | L20: ='3. Condom Requirements'!L20 -> 0 | M20: ='3. Condom Requirements'!M20 -> 0 | N20: 0 | O20: ='1. Condom Availability'!$C$4 ->  | P20: 0.75 | Q20: 0
A21: =INDEX(Translation!$B$1:$E$581,Translation!$A$208,Language) -> Overall Total: Country Target | B21: =SUM(B5:B20) -> 3104672.808 | C21: =SUM(C5:C20) -> 3573807.851 | H21: =SUM(H5:H20) -> 79909905.72 | I21: =IF(Quality_Condom_Availability_Data="High",'1. Condom Availability'!$B$7,SUM('3c. Free Condoms'!I5:I20)) -> 92595589.09 | J21: =SUM(J5:J20) -> 105281272.5 | K21: =SUM(K5:K20) -> 117966955.8 | L21: =SUM(L5:L20) -> 130652639.2 | M21: =SUM(M5:M20) -> 143338322.6 | O21: ='1. Condom Availability'!$C$4 ->  | P21: =Q21/M21 -> 0.75 | Q21: =SUM(Q5:Q20) -> 107503741.9
A22: Annual Increase Condom Requirement (%) | H22: =H21/H21 -> 1 | I22: =I21/$H21 -> 1.158749823 | J22: =J21/$H21 -> 1.317499646 | K22: =K21/$H21 -> 1.476249468 | L22: 1.634999291 | M22: 1.793749114
A106: BACKUP
A120: =Country -> Zambia | B120: =INDEX(Translation!$B$1:$E$581,Translation!$A$193,Language) -> Size of population in 2022 | C120: =INDEX(Translation!$B$1:$E$581,Translation!$A$194,Language) -> Size of Population in 2027 | D120: =INDEX(Translation!$B$1:$E$581,Translation!$A$195,Language) -> Baseline Coverage (% condom use at last sex) | E120: =INDEX(Translation!$B$1:$E$581,Translation!$A$196,Language) -> Target Coverage in 2027 | F120: =INDEX(Translation!$B$1:$E$581,Translation!$A$197,Language) -> Annual No. of Sex Acts Requiring Protection | G120: =INDEX(Translation!$B$1:$E$581,Translation!$A$198,Language) -> Wastage | H120: =INDEX(Translation!$B$1:$E$581,Translation!$A$201,Language) -> Total Condoms Used in 2022 | I120: =INDEX(Translation!$B$1:$E$581,Translation!$A$202,Language) -> Total Condoms Required in 2023 | J120: =INDEX(Translation!$B$1:$E$581,Translation!$A$203,Language) -> Total Condoms Required in 2024 | K120: =INDEX(Translation!$B$1:$E$581,Translation!$A$204,Language) -> Total Condoms Required in 2025 | L120: =INDEX(Translation!$B$1:$E$581,Translation!$A$205,Language) -> Total Condoms Required in 2026 | M120: =INDEX(Translation!$B$1:$E$581,Translation!$A$206,Language) -> Total Condoms Required in 2027 | N120: =INDEX(Translation!$B$1:$E$581,Translation!$A$207,Language) -> % of Total Condoms Required in 2027 | O120: % (Baseline) Free condoms of total condom need in 2020 | P120: ="% (Target) Free condoms of total condom need in "&Target_Year -> % (Target) Free condoms of total condom need in 2027 | Q120: ="# Free condoms of total condom need in "&Target_Year -> # Free condoms of total condom need in 2027
I121: =Start_Year -> 2023 | J121: =I121+1 -> 2024 | K121: =J121+1 -> 2025 | L121: =K121+1 -> 2026 | M121: =Target_Year -> 2027 | O121: 2020 | P121: 2025 | Q121: 2025
A122: =INDEX(Translation!$B$1:$E$581,Translation!$A$34,Language) -> Key Populations
A123: =INDEX(Translation!$B$1:$E$581,Translation!$A$50,Language) -> PLHIV Couples | B123: ='2. Demographic Data'!$D$37 -> 337770 | C123: =B123*(1+Pop_Growth) -> 388809.1121 | D123: ='2. Demographic Data'!$D$100 -> 0.4 | E123: ='3. Condom Requirements'!E5 -> 0.75 | F123: ='3. Condom Requirements'!F5 -> 100 | G123: ='3. Condom Requirements'!G5 -> 0.2 | H123: ='3. Condom Requirements'!H5 -> 16212960 | I123: ='3. Condom Requirements'!I5 -> 19372707.21 | J123: ='3. Condom Requirements'!J5 -> 22532454.42 | K123: ='3. Condom Requirements'!K5 -> 25692201.64 | L123: ='3. Condom Requirements'!L5 -> 28851948.85 | M123: ='3. Condom Requirements'!M5 -> 32011696.06 | N123: =M123/M$21 -> 0.2233296406 | O123: ='1. Condom Availability'!$C$4 ->  | P123: 0.75 | Q123: =$M123*P123 -> 24008772.05
A124: =INDEX(Translation!$B$1:$E$581,Translation!$A$51,Language) -> Sex workers | B124: ='2. Demographic Data'!$D$89 -> 41252.49 | C124: =B124*(1+Pop_Growth) -> 47485.99345 | D124: ='2. Demographic Data'!$D$101 -> 0.7 | E124: ='3. Condom Requirements'!E6 -> 0.9 | F124: ='3. Condom Requirements'!F6 -> 450 | G124: ='3. Condom Requirements'!G6 -> 0.2 | H124: ='3. Condom Requirements'!H6 -> 15593441.22 | I124: ='3. Condom Requirements'!I6 -> 17090391.54 | J124: ='3. Condom Requirements'!J6 -> 18587341.86 | K124: ='3. Condom Requirements'!K6 -> 20084292.18 | L124: ='3. Condom Requirements'!L6 -> 21581242.5 | M124: ='3. Condom Requirements'!M6 -> 23078192.82 | N124: =M124/M$21 -> 0.1610050432 | O124: ='1. Condom Availability'!$C$4 ->  | P124: 0.75 | Q124: =$M124*P124 -> 17308644.61
A125: =INDEX(Translation!$B$1:$E$581,Translation!$A$52,Language) -> Men Having Sex with Men (MSM) | B125: ='2. Demographic Data'!$D$91 -> 78475.62 | C125: =B125*(1+Pop_Growth) -> 90333.76597 | D125: ='2. Demographic Data'!$D$102 -> 0.55 | E125: ='3. Condom Requirements'!E7 -> 0.75 | F125: ='3. Condom Requirements'!F7 -> 100 | G125: ='3. Condom Requirements'!G7 -> 0.2 | H125: ='3. Condom Requirements'!H7 -> 5179390.92 | I125: ='3. Condom Requirements'!I7 -> 5769520.523 | J125: ='3. Condom Requirements'!J7 -> 6359650.127 | K125: ='3. Condom Requirements'!K7 -> 6949779.73 | L125: ='3. Condom Requirements'!L7 -> 7539909.334 | M125: ='3. Condom Requirements'!M7 -> 8130038.937 | N125: =M125/M$21 -> 0.05671922756 | O125: ='1. Condom Availability'!$C$4 ->  | P125: 0.75 | Q125: 6097529.203
A126: =INDEX(Translation!$B$1:$E$581,Translation!$A$38,Language) -> People who have Sex with Non-Regular Partners [PAIRS]
A127: =INDEX(Translation!$B$1:$E$581,Translation!$A$53,Language) -> Young People (15-24) with NR Partners (pairs) | B127: ='2. Demographic Data'!$D$68 -> 721390.1186 | C127: =B127*(1+Pop_Growth) -> 830396.5759 | D127: ='2. Demographic Data'!$D$114 -> 0.4073080571 | E127: ='3. Condom Requirements'!E9 -> 0.75 | F127: ='3. Condom Requirements'!F9 -> 50 | G127: ='3. Condom Requirements'!G9 -> 0.2 | H127: ='3. Condom Requirements'!H9 -> 17629680.46 | I127: ='3. Condom Requirements'!I9 -> 21577313.55 | J127: ='3. Condom Requirements'!J9 -> 25524946.64 | K127: ='3. Condom Requirements'!K9 -> 29472579.73 | L127: ='3. Condom Requirements'!L9 -> 33420212.83 | M127: ='3. Condom Requirements'!M9 -> 37367845.92 | N127: =M127/M$21 -> 0.2606968272 | O127: ='1. Condom Availability'!$C$4 ->  | P127: 0.75 | Q127: =$M127*P127 -> 28025884.44
A128: =INDEX(Translation!$B$1:$E$581,Translation!$A$54,Language) -> Men&Women (25-34) with NR Partners (pairs) | B128: ='2. Demographic Data'!$D$69 -> 356766.6678 | C128: =B128*(1+Pop_Growth) -> 410676.2925 | D128: ='2. Demographic Data'!$D$115 -> 0.480657698 | E128: ='3. Condom Requirements'!E10 -> 0.75 | F128: ='3. Condom Requirements'!F10 -> 50 | G128: ='3. Condom Requirements'!G10 -> 0.2 | H128: ='3. Condom Requirements'!H10 -> 10288958.72 | I128: ='3. Condom Requirements'!I10 -> 11927253.61 | J128: ='3. Condom Requirements'!J10 -> 13565548.5 | K128: ='3. Condom Requirements'!K10 -> 15203843.39 | L128: ='3. Condom Requirements'!L10 -> 16842138.28 | M128: ='3. Condom Requirements'!M10 -> 18480433.16 | N128: =M128/M$21 -> 0.1289287668 | O128: ='1. Condom Availability'!$C$4 ->  | P128: 0.75 | Q128: 13860324.87
A129: =INDEX(Translation!$B$1:$E$581,Translation!$A$55,Language) -> Men&Women (35-49) with NR Partners (pairs) | B129: ='2. Demographic Data'!$D$70 -> 192844.8597 | C129: =B129*(1+Pop_Growth) -> 221984.897 | D129: ='2. Demographic Data'!$D$116 -> 0.4271120626 | E129: ='3. Condom Requirements'!E11 -> 0.75 | F129: ='3. Condom Requirements'!F11 -> 50 | G129: ='3. Condom Requirements'!G11 -> 0.2 | H129: ='3. Condom Requirements'!H11 -> 4941981.948 | I129: ='3. Condom Requirements'!I11 -> 5951449.632 | J129: ='3. Condom Requirements'!J11 -> 6960917.315 | K129: ='3. Condom Requirements'!K11 -> 7970384.999 | L129: ='3. Condom Requirements'!L11 -> 8979852.683 | M129: ='3. Condom Requirements'!M11 -> 9989320.366 | N129: =M129/M$21 -> 0.06969050695 | O129: ='1. Condom Availability'!$C$4 ->  | P129: 0.75 | Q129: 7491990.275
A130: =INDEX(Translation!$B$1:$E$581,Translation!$A$56,Language) -> Men&Women (50-64) with NR Partners (pairs) | B130: ='2. Demographic Data'!$D$71 -> 50529.90897 | C130: =B130*(1+Pop_Growth) -> 58165.28715 | D130: ='2. Demographic Data'!$D$117 -> 0.3210534323 | E130: ='3. Condom Requirements'!E12 -> 0.75 | F130: ='3. Condom Requirements'!F12 -> 50 | G130: ='3. Condom Requirements'!G12 -> 0.2 | H130: ='3. Condom Requirements'!H12 -> 973368.0426 | I130: ='3. Condom Requirements'!I12 -> 1302182.018 | J130: ='3. Condom Requirements'!J12 -> 1630995.994 | K130: ='3. Condom Requirements'!K12 -> 1959809.97 | L130: ='3. Condom Requirements'!L12 -> 2288623.946 | M130: ='3. Condom Requirements'!M12 -> 2617437.922 | N130: =M130/M$21 -> 0.01826055917 | O130: ='1. Condom Availability'!$C$4 ->  | P130: 0.75 | Q130: 1963078.441
A131: =INDEX(Translation!$B$1:$E$581,Translation!$A$43,Language) -> Couples Using Condoms for Family Planning
A132: =INDEX(Translation!$B$1:$E$581,Translation!$A$57,Language) -> Couples Using Condoms for FP | B132: ='2. Demographic Data'!$D$80 -> 1189291.277 | C132: =B132*(1+Pop_Growth) -> 1369000.46 | D132: ='2. Demographic Data'!$B$79 -> 0.06369426752 | E132: ='3. Condom Requirements'!E14 -> 0.06369426752 | F132: ='3. Condom Requirements'!F14 -> 100 | G132: ='3. Condom Requirements'!G14 -> 0.2 | H132: ='3. Condom Requirements'!H14 -> 9090124.411 | I132: ='3. Condom Requirements'!I14 -> 9364839.085 | J132: ='3. Condom Requirements'!J14 -> 9639553.76 | K132: ='3. Condom Requirements'!K14 -> 9914268.435 | L132: ='3. Condom Requirements'!L14 -> 10188983.11 | M132: ='3. Condom Requirements'!M14 -> 10463697.78 | N132: =M132/M$21 -> 0.07300000164 | O132: ='1. Condom Availability'!$C$4 ->  | P132: 0.75 | Q132: =$M132*P132 -> 7847773.339
A133: =INDEX(Translation!$B$1:$E$581,Translation!$A$58,Language) -> Couples With Unmet Need for FP Condoms | B133: ='2. Demographic Data'!$D$83 -> 136351.8662 | C133: =B133*(1+Pop_Growth) -> 156955.4668 | D133: ='2. Demographic Data'!$D$119 -> 0 | E133: ='3. Condom Requirements'!E15 -> 0.06369426752 | F133: ='3. Condom Requirements'!F15 -> 100 | G133: ='3. Condom Requirements'!G15 -> 0.2 | H133: ='3. Condom Requirements'!H15 -> 0 | I133: ='3. Condom Requirements'!I15 -> 239931.9237 | J133: ='3. Condom Requirements'!J15 -> 479863.8475 | K133: ='3. Condom Requirements'!K15 -> 719795.7712 | L133: ='3. Condom Requirements'!L15 -> 959727.6949 | M133: ='3. Condom Requirements'!M15 -> 1199659.619 | N133: =M133/M$21 -> 0.00836942694 | O133: ='1. Condom Availability'!$C$4 ->  | P133: 0.75 | Q133: 899744.714
A134: =INDEX(Translation!$B$1:$E$581,Translation!$A$46,Language) -> Other Key Populations and Populations at High Risk
A135: ='2. Demographic Data'!$A$92 -> People who Inject Drugs (PWID) | B135: ='2. Demographic Data'!$D$92 -> 0 | C135: =B135*(1+Pop_Growth) -> 0 | D135: ='2. Demographic Data'!$D$120 -> 0.4 | E135: ='2. Demographic Data'!$D$120 -> 0.4 | F135: ='3. Condom Requirements'!F17 -> 100 | G135: ='3. Condom Requirements'!G17 -> 0.2 | H135: ='3. Condom Requirements'!H17 -> 0 | I135: ='3. Condom Requirements'!I17 -> 0 | J135: ='3. Condom Requirements'!J17 -> 0 | K135: ='3. Condom Requirements'!K17 -> 0 | L135: ='3. Condom Requirements'!L17 -> 0 | M135: ='3. Condom Requirements'!M17 -> 0 | N135: =M135/M$21 -> 0 | O135: ='1. Condom Availability'!$C$4 ->  | P135: 0.75 | Q135: =$M135*P135 -> 0
A136: ='2. Demographic Data'!$A$93 -> Transgender (TG) | B136: ='2. Demographic Data'!$D$93 -> 0 | C136: =B136*(1+Pop_Growth) -> 0 | D136: ='2. Demographic Data'!$D$121 -> 0.45 | E136: ='2. Demographic Data'!$D$121 -> 0.45 | F136: ='3. Condom Requirements'!F18 -> 100 | G136: ='3. Condom Requirements'!G18 -> 0.2 | H136: ='3. Condom Requirements'!H18 -> 0 | I136: ='3. Condom Requirements'!I18 -> 0 | J136: ='3. Condom Requirements'!J18 -> 0 | K136: ='3. Condom Requirements'!K18 -> 0 | L136: ='3. Condom Requirements'!L18 -> 0 | M136: ='3. Condom Requirements'!M18 -> 0 | N136: =M136/M$21 -> 0 | O136: ='1. Condom Availability'!$C$4 ->  | P136: 0.75 | Q136: 0
A137: ='2. Demographic Data'!$A$97 -> Other [Please Specify]: | B137: ='2. Demographic Data'!$D$97 -> 0 | C137: =B137*(1+Pop_Growth) -> 0 | D137: ='2. Demographic Data'!$D$125 -> 0 | E137: ='2. Demographic Data'!$D$125 -> 0 | F137: ='3. Condom Requirements'!F19 -> 100 | G137: ='3. Condom Requirements'!G19 -> 0.2 | H137: ='3. Condom Requirements'!H19 -> 0 | I137: ='3. Condom Requirements'!I19 -> 0 | J137: ='3. Condom Requirements'!J19 -> 0 | K137: ='3. Condom Requirements'!K19 -> 0 | L137: ='3. Condom Requirements'!L19 -> 0 | M137: ='3. Condom Requirements'!M19 -> 0 | N137: =M137/M$21 -> 0 | O137: ='1. Condom Availability'!$C$4 ->  | P137: 0.75 | Q137: 0
A138: ='2. Demographic Data'!$A$98 -> Other [Please Specify]: | B138: ='2. Demographic Data'!$D$98 -> 0 | C138: =B138*(1+Pop_Growth) -> 0 | D138: ='2. Demographic Data'!$D$126 -> 0 | E138: ='2. Demographic Data'!$D$126 -> 0 | F138: ='3. Condom Requirements'!F20 -> 100 | G138: ='3. Condom Requirements'!G20 -> 0.2 | H138: ='3. Condom Requirements'!H20 -> 0 | I138: ='3. Condom Requirements'!I20 -> 0 | J138: ='3. Condom Requirements'!J20 -> 0 | K138: ='3. Condom Requirements'!K20 -> 0 | L138: ='3. Condom Requirements'!L20 -> 0 | M138: ='3. Condom Requirements'!M20 -> 0 | N138: 0 | O138: ='1. Condom Availability'!$C$4 ->  | P138: 0.75 | Q138: 0
A139: =INDEX(Translation!$B$1:$E$581,Translation!$A$208,Language) -> Overall Total: Country Target | B139: =SUM(B123:B138) -> 3104672.808 | C139: =SUM(C123:C138) -> 3573807.851 | H139: =SUM(H123:H138) -> 79909905.72 | I139: =IF(Quality_Condom_Availability_Data="High",'1. Condom Availability'!$B$7,SUM('3c. Free Condoms'!I123:I138)) -> 92595589.09 | J139: =SUM(J123:J138) -> 105281272.5 | K139: =SUM(K123:K138) -> 117966955.8 | L139: =SUM(L123:L138) -> 130652639.2 | M139: =SUM(M123:M138) -> 143338322.6 | O139: ='1. Condom Availability'!$C$4 ->  | P139: =Q139/M139 -> 0.75 | Q139: =SUM(Q123:Q138) -> 107503741.9

Sheet 4. Condom Distribution - TMA
A1: =INDEX(Translation!$B$1:$E$581,Translation!$A$241,Language) -> Condom Distribution - Total Market Approach (TMA) | AJ1: GRAPH DATA
A2: ='Cover Sheet'!$B$2 -> CNET Version 5.0 [2023-2027] - (20 February 2023 - Excel for Office 365)
A3: =INDEX(Translation!$B$1:$E$581,Translation!$A$242,Language) -> Total Condoms Available in 2022 | C3: ='3. Condom Requirements'!$H$21 -> 79909905.72 | D3: Condom use estimate from 3. Condom Requirements
A4: =INDEX(Translation!$B$1:$E$581,Translation!$A$243,Language) -> Total Condoms requirement for 2027: | C4: ='3. Condom Requirements'!$M$21 -> 143338322.6 | AJ4: =INDEX(Translation!$B$1:$E$581,Translation!$A$253,Language) -> Condom Distribution Baseline and Targets per TMA pillar (% of Total)
AK5: =$B$7 -> TMA Baseline 2022 (% per pillar) | AL5: =$D$7 -> TMA Target scenario 2027 (% per pillar)
A6: TMA Scenario: Baseline and Targets | AJ6: =$A$9 -> Public/ Free Distribution | AK6: =$B$9 ->  | AL6: =$D$9 -> 0.75
A7: =Country -> Zambia | B7: =INDEX(Translation!$B$1:$E$581,Translation!$A$244,Language) -> TMA Baseline 2022 (% per pillar) | C7: =INDEX(Translation!$B$1:$E$581,Translation!$A$245,Language) -> # Condoms: 2022 Baseline | D7: =INDEX(Translation!$B$1:$E$581,Translation!$A$247,Language) -> TMA Target scenario 2027 (% per pillar) | E7: =INDEX(Translation!$B$1:$E$581,Translation!$A$248,Language) -> # Condoms: 2027 Target scenario | AJ7: =$A$10 -> Social Marketing | AK7: =$B$10 ->  | AL7: =$D$10 -> 0.15
B8: 2022 | C8: 2022 | D8: =""&Target_Year -> 2027 | E8: =""&Target_Year -> 2027 | AJ8: =$A$11 -> Private Sector | AK8: =$B$11 -> 0.05 | AL8: =$D$11 -> 0.1
A9: =INDEX(Translation!$B$1:$E$581,Translation!$A$249,Language) -> Public/ Free Distribution | B9: ='1. Condom Availability'!$C$4 ->  | C9: =B9*$C$12 ->  | D9: ='3c. Free Condoms'!P21 -> 0.75 | E9: =D9*E$12 -> 107503741.9 | AJ9: =INDEX(Translation!$B$1:$E$581,Translation!$A$252,Language) -> Total | AK9: =$B$12 ->  | AL9: =$D$12 -> 1
A10: =INDEX(Translation!$B$1:$E$581,Translation!$A$250,Language) -> Social Marketing | B10: ='1. Condom Availability'!$C$5 ->  | C10: =B10*$C$12 ->  | D10: =1-D9-D11 -> 0.15 | E10: =D10*E$12 -> 21500748.39
A11: =INDEX(Translation!$B$1:$E$581,Translation!$A$251,Language) -> Private Sector | B11: ='1. Condom Availability'!$C$6 -> 0.05 | C11: 3995495.286 | D11: 0.1 | E11: =D11*E$12 -> 14333832.26
A12: =INDEX(Translation!$B$1:$E$581,Translation!$A$80,Language) -> TOTAL | B12: =SUM(B9:B11) ->  | C12: =C3 -> 79909905.72 | D12: =SUM(D9:D11) -> 1 | E12: =C4 -> 143338322.6 | AJ12: =INDEX(Translation!$B$1:$E$581,Translation!$A$233,Language) -> Condom Requirements per TMA pillar: Baseline and Target scenarios
AK13: =$C$7 -> # Condoms: 2022 Baseline | AL13: =E7 -> # Condoms: 2027 Target scenario
AJ14: =$A$9 -> Public/ Free Distribution | AK14: =$C$9 ->  | AL14: =$E$9 -> 107503741.9
AJ15: =$A$10 -> Social Marketing | AK15: =$C$10 ->  | AL15: =$E$10 -> 21500748.39
AJ16: =$A$11 -> Private Sector | AK16: =$C$11 -> 3995495.286 | AL16: =$E$11 -> 14333832.26
AJ17: TOTAL | AK17: =$C$12 -> 79909905.72 | AL17: =$E$12 -> 143338322.6
A33: TMA by Population: Baseline and Target scenario
C35: Public / Free | D35: Social Marketing | E35: Private sales | G35: Public / Free | H35: Social Marketing | I35: Private sales
A36: =Country -> Zambia | B36: =INDEX(Translation!$B$1:$E$581,Translation!$A$201,Language) -> Total Condoms Used in 2022 | C36: % (Baseline) Free condoms of total condom need in start year | D36: % (Baseline) Social Marketing condoms of total condom need in start year | E36: % (Baseline) Private sector /sales) condoms of total condom need in start year | F36: =INDEX(Translation!$B$1:$E$581,Translation!$A$206,Language) -> Total Condoms Required in 2027 | G36: % (Target) Free condoms of total condom need in Target year | H36: % (Target) Social Marketing condoms of total condom need in Target year | I36: % (Target) Private sector /sales) condoms of total condom need in Target year | J36: Check 100% | K36: ="# Free condoms of total condom need in "&Target_Year -> # Free condoms of total condom need in 2027 | L36: ="# Free condoms of total condom need in "&Target_Year -> # Free condoms of total condom need in 2027 | M36: ="# Free condoms of total condom need in "&Target_Year -> # Free condoms of total condom need in 2027
B37: 2022 | C37: 2022 | D37: 2022 | E37: 2022 | F37: =Target_Year -> 2027 | G37: 2027 | H37: 2027 | I37: 2027 | K37: 2027 | L37: 2027 | M37: 2027 | AG37: PLHIV Couples
A38: =INDEX(Translation!$B$1:$E$581,Translation!$A$34,Language) -> Key Populations | AG38: Sex workers
A39: =INDEX(Translation!$B$1:$E$581,Translation!$A$50,Language) -> PLHIV Couples | B39: ='3. Condom Requirements'!H5 -> 16212960 | C39: ='1. Condom Availability'!$C$4 ->  | D39: ='1. Condom Availability'!$C$5 ->  | E39: ='1. Condom Availability'!$C$6 -> 0.05 | F39: ='3. Condom Requirements'!M5 -> 32011696.06 | G39: ='3c. Free Condoms'!P5 -> 0.75 | H39: =1-G39-I39 -> 0.15 | I39: =$D$11 -> 0.1 | J39: =G39+H39+I39 -> 1 | K39: =$F39*G39 -> 24008772.05 | L39: 4801754.409 | M39: 3201169.606 | AG39: Men Having Sex with Men (MSM)
A40: =INDEX(Translation!$B$1:$E$581,Translation!$A$51,Language) -> Sex workers | B40: ='3. Condom Requirements'!H6 -> 15593441.22 | C40: ='1. Condom Availability'!$C$4 ->  | D40: ='1. Condom Availability'!$C$5 ->  | E40: ='1. Condom Availability'!$C$6 -> 0.05 | F40: ='3. Condom Requirements'!M6 -> 23078192.82 | G40: ='3c. Free Condoms'!P6 -> 0.75 | H40: =1-G40-I40 -> 0.15 | I40: =$D$11 -> 0.1 | J40: =G40+H40+I40 -> 1 | K40: 17308644.61 | L40: 3461728.923 | M40: 2307819.282
A41: =INDEX(Translation!$B$1:$E$581,Translation!$A$52,Language) -> Men Having Sex with Men (MSM) | B41: ='3. Condom Requirements'!H7 -> 5179390.92 | C41: ='1. Condom Availability'!$C$4 ->  | D41: ='1. Condom Availability'!$C$5 ->  | E41: ='1. Condom Availability'!$C$6 -> 0.05 | F41: ='3. Condom Requirements'!M7 -> 8130038.937 | G41: ='3c. Free Condoms'!P7 -> 0.75 | H41: 0.15 | I41: 0.1 | J41: 1 | K41: 6097529.203 | L41: 1219505.841 | M41: 813003.8937 | AG41: Young People (15-24) with NR Partners
A42: =INDEX(Translation!$B$1:$E$581,Translation!$A$38,Language) -> People who have Sex with Non-Regular Partners [PAIRS] | AG42: Men&Women (25-34) with NR Partners
A43: =INDEX(Translation!$B$1:$E$581,Translation!$A$53,Language) -> Young People (15-24) with NR Partners (pairs) | B43: ='3. Condom Requirements'!H9 -> 17629680.46 | C43: ='1. Condom Availability'!$C$4 ->  | D43: ='1. Condom Availability'!$C$5 ->  | E43: ='1. Condom Availability'!$C$6 -> 0.05 | F43: ='3. Condom Requirements'!M9 -> 37367845.92 | G43: ='3c. Free Condoms'!P9 -> 0.75 | H43: =1-G43-I43 -> 0.15 | I43: =$D$11 -> 0.1 | J43: 1 | K43: =$F43*G43 -> 28025884.44 | L43: 5605176.888 | M43: 3736784.592 | AG43: Men&Women (35-49) with NR Partners
A44: =INDEX(Translation!$B$1:$E$581,Translation!$A$54,Language) -> Men&Women (25-34) with NR Partners (pairs) | B44: ='3. Condom Requirements'!H10 -> 10288958.72 | C44: ='1. Condom Availability'!$C$4 ->  | D44: ='1. Condom Availability'!$C$5 ->  | E44: ='1. Condom Availability'!$C$6 -> 0.05 | F44: ='3. Condom Requirements'!M10 -> 18480433.16 | G44: ='3c. Free Condoms'!P10 -> 0.75 | H44: =1-G44-I44 -> 0.15 | I44: 0.1 | J44: 1 | K44: 13860324.87 | L44: 2772064.975 | M44: 1848043.316 | AG44: Men&Women (50-64) with NR Partners
A45: =INDEX(Translation!$B$1:$E$581,Translation!$A$55,Language) -> Men&Women (35-49) with NR Partners (pairs) | B45: ='3. Condom Requirements'!H11 -> 4941981.948 | C45: ='1. Condom Availability'!$C$4 ->  | D45: ='1. Condom Availability'!$C$5 ->  | E45: ='1. Condom Availability'!$C$6 -> 0.05 | F45: ='3. Condom Requirements'!M11 -> 9989320.366 | G45: ='3c. Free Condoms'!P11 -> 0.75 | H45: 0.15 | I45: 0.1 | J45: 1 | K45: 7491990.275 | L45: 1498398.055 | M45: 998932.0366
A46: =INDEX(Translation!$B$1:$E$581,Translation!$A$56,Language) -> Men&Women (50-64) with NR Partners (pairs) | B46: ='3. Condom Requirements'!H12 -> 973368.0426 | C46: ='1. Condom Availability'!$C$4 ->  | D46: ='1. Condom Availability'!$C$5 ->  | E46: ='1. Condom Availability'!$C$6 -> 0.05 | F46: ='3. Condom Requirements'!M12 -> 2617437.922 | G46: ='3c. Free Condoms'!P12 -> 0.75 | H46: 0.15 | I46: 0.1 | J46: 1 | K46: 1963078.441 | L46: 392615.6882 | M46: 261743.7922 | AG46: Couples Using Condoms for FP
A47: =INDEX(Translation!$B$1:$E$581,Translation!$A$43,Language) -> Couples Using Condoms for Family Planning | F47: ='3. Condom Requirements'!M13 -> 0 | AG47: Couples With Unmet Need for FP Condoms
A48: =INDEX(Translation!$B$1:$E$581,Translation!$A$57,Language) -> Couples Using Condoms for FP | B48: ='3. Condom Requirements'!H14 -> 9090124.411 | C48: ='1. Condom Availability'!$C$4 ->  | D48: ='1. Condom Availability'!$C$5 ->  | E48: ='1. Condom Availability'!$C$6 -> 0.05 | F48: ='3. Condom Requirements'!M14 -> 10463697.78 | G48: ='3c. Free Condoms'!P14 -> 0.75 | H48: =1-G48-I48 -> 0.15 | I48: =$D$11 -> 0.1 | J48: 1 | K48: =$F48*G48 -> 7847773.339 | L48: 1569554.668 | M48: 1046369.778
A49: =INDEX(Translation!$B$1:$E$581,Translation!$A$58,Language) -> Couples With Unmet Need for FP Condoms | B49: ='3. Condom Requirements'!H15 -> 0 | C49: ='1. Condom Availability'!$C$4 ->  | D49: ='1. Condom Availability'!$C$5 ->  | E49: ='1. Condom Availability'!$C$6 -> 0.05 | F49: ='3. Condom Requirements'!M15 -> 1199659.619 | G49: ='3c. Free Condoms'!P15 -> 0.75 | H49: 0.15 | I49: 0.1 | J49: 1 | K49: 899744.714 | L49: 179948.9428 | M49: 119965.9619 | AG49: People who Inject Drugs (PWID)
A50: =INDEX(Translation!$B$1:$E$581,Translation!$A$46,Language) -> Other Key Populations and Populations at High Risk | AG50: Transgender (TG)
A51: ='2. Demographic Data'!$A$92 -> People who Inject Drugs (PWID) | B51: ='3. Condom Requirements'!H17 -> 0 | C51: ='1. Condom Availability'!$C$4 ->  | D51: ='1. Condom Availability'!$C$5 ->  | E51: ='1. Condom Availability'!$C$6 -> 0.05 | F51: ='3. Condom Requirements'!M17 -> 0 | G51: ='3c. Free Condoms'!P17 -> 0.75 | H51: =1-G51-I51 -> 0.15 | I51: =$D$11 -> 0.1 | J51: 1 | K51: =$F51*G51 -> 0 | L51: 0 | M51: 0 | AG51: Other [Please Specify]:
A52: ='2. Demographic Data'!$A$93 -> Transgender (TG) | B52: ='3. Condom Requirements'!H18 -> 0 | C52: ='1. Condom Availability'!$C$4 ->  | D52: ='1. Condom Availability'!$C$5 ->  | E52: ='1. Condom Availability'!$C$6 -> 0.05 | F52: ='3. Condom Requirements'!M18 -> 0 | G52: ='3c. Free Condoms'!P18 -> 0.75 | H52: 0.15 | I52: 0.1 | J52: 1 | K52: 0 | L52: 0 | M52: 0 | AG52: Other [Please Specify]:
A53: ='2. Demographic Data'!$A$97 -> Other [Please Specify]: | B53: ='3. Condom Requirements'!H19 -> 0 | C53: ='1. Condom Availability'!$C$4 ->  | D53: ='1. Condom Availability'!$C$5 ->  | E53: ='1. Condom Availability'!$C$6 -> 0.05 | F53: ='3. Condom Requirements'!M19 -> 0 | G53: ='3c. Free Condoms'!P19 -> 0.75 | H53: 0.15 | I53: 0.1 | J53: 1 | K53: 0 | L53: 0 | M53: 0
A54: ='2. Demographic Data'!$A$98 -> Other [Please Specify]: | B54: ='3. Condom Requirements'!H20 -> 0 | C54: ='1. Condom Availability'!$C$4 ->  | D54: ='1. Condom Availability'!$C$5 ->  | E54: ='1. Condom Availability'!$C$6 -> 0.05 | F54: ='3. Condom Requirements'!M20 -> 0 | G54: ='3c. Free Condoms'!P20 -> 0.75 | H54: 0.15 | I54: 0.1 | J54: 1 | K54: 0 | L54: 0 | M54: 0
A55: =INDEX(Translation!$B$1:$E$581,Translation!$A$208,Language) -> Overall Total: Country Target | B55: =SUM(B39:B54) -> 79909905.72 | C55: ='1. Condom Availability'!$C$4 ->  | D55: ='1. Condom Availability'!$C$5 ->  | E55: ='1. Condom Availability'!$C$6 -> 0.05 | F55: =SUM(F39:F54) -> 143338322.6 | G55: =K55/F55 -> 0.75 | H55: =L55/F55 -> 0.15 | I55: =M55/F55 -> 0.1 | J55: 1 | K55: =SUM(K39:K54) -> 107503741.9 | L55: =SUM(L39:L54) -> 21500748.39 | M55: 14333832.26 | N55: =K55+L55+M55 -> 143338322.6 | O55: Check
A56: Annual Increase Condom Requirement (%) | B56: =B55/B55 -> 1 | F56: =F55/$B55 -> 1.793749114 | I56: =G55+H55+I55 -> 1
A143: BACKUP
A147: =Country -> Zambia | B147: =INDEX(Translation!$B$1:$E$581,Translation!$A$201,Language) -> Total Condoms Used in 2022 | C147: % (Baseline) Free condoms of total condom need in 2020 | D147: % (Baseline) Social Marketing condoms of total condom need in 2020 | E147: % (Baseline) Private sector /sales) condoms of total condom need in 2020 | F147: =INDEX(Translation!$B$1:$E$581,Translation!$A$206,Language) -> Total Condoms Required in 2027 | G147: % (Target) Free condoms of total condom need in Target year | H147: % (Target) Social Marketing condoms of total condom need in Target year | I147: % (Target) Private sector /sales) condoms of total condom need in Target year | J147: Check 100% | K147: ="# Free condoms of total condom need in "&Target_Year -> # Free condoms of total condom need in 2027 | L147: ="# Free condoms of total condom need in "&Target_Year -> # Free condoms of total condom need in 2027 | M147: ="# Free condoms of total condom need in "&Target_Year -> # Free condoms of total condom need in 2027
B148: 2020 | C148: 2020 | D148: 2020 | E148: 2020 | F148: =Target_Year -> 2027 | G148: 2027 | H148: 2027 | I148: 2027 | K148: 2027 | L148: 2027 | M148: 2027
A149: =INDEX(Translation!$B$1:$E$581,Translation!$A$34,Language) -> Key Populations
A150: =INDEX(Translation!$B$1:$E$581,Translation!$A$50,Language) -> PLHIV Couples | B150: ='3. Condom Requirements'!H5 -> 16212960 | C150: ='1. Condom Availability'!$C$4 ->  | D150: ='1. Condom Availability'!$C$5 ->  | E150: ='1. Condom Availability'!$C$6 -> 0.05 | F150: ='3. Condom Requirements'!M5 -> 32011696.06 | G150: ='3c. Free Condoms'!P5 -> 0.75 | H150: =1-G150-I150 -> 0.15 | I150: =$D$11 -> 0.1 | J150: =G150+H150+I150 -> 1 | K150: =$F150*G150 -> 24008772.05 | L150: =$F150*H150 -> 4801754.409 | M150: =$F150*I150 -> 3201169.606
A151: =INDEX(Translation!$B$1:$E$581,Translation!$A$51,Language) -> Sex workers | B151: ='3. Condom Requirements'!H6 -> 15593441.22 | C151: ='1. Condom Availability'!$C$4 ->  | D151: ='1. Condom Availability'!$C$5 ->  | E151: ='1. Condom Availability'!$C$6 -> 0.05 | F151: ='3. Condom Requirements'!M6 -> 23078192.82 | G151: ='3c. Free Condoms'!P6 -> 0.75 | H151: =1-G151-I151 -> 0.15 | I151: =$D$11 -> 0.1 | J151: =G151+H151+I151 -> 1 | K151: 17308644.61 | L151: 3461728.923 | M151: 2307819.282
A152: =INDEX(Translation!$B$1:$E$581,Translation!$A$52,Language) -> Men Having Sex with Men (MSM) | B152: ='3. Condom Requirements'!H7 -> 5179390.92 | C152: ='1. Condom Availability'!$C$4 ->  | D152: ='1. Condom Availability'!$C$5 ->  | E152: ='1. Condom Availability'!$C$6 -> 0.05 | F152: ='3. Condom Requirements'!M7 -> 8130038.937 | G152: ='3c. Free Condoms'!P7 -> 0.75 | H152: 0.15 | I152: 0.1 | J152: 1 | K152: 6097529.203 | L152: 1219505.841 | M152: 813003.8937
A153: =INDEX(Translation!$B$1:$E$581,Translation!$A$38,Language) -> People who have Sex with Non-Regular Partners [PAIRS]
A154: =INDEX(Translation!$B$1:$E$581,Translation!$A$53,Language) -> Young People (15-24) with NR Partners (pairs) | B154: ='3. Condom Requirements'!H9 -> 17629680.46 | C154: ='1. Condom Availability'!$C$4 ->  | D154: ='1. Condom Availability'!$C$5 ->  | E154: ='1. Condom Availability'!$C$6 -> 0.05 | F154: ='3. Condom Requirements'!M9 -> 37367845.92 | G154: ='3c. Free Condoms'!P9 -> 0.75 | H154: =1-G154-I154 -> 0.15 | I154: 0.1 | J154: =G154+H154+I154 -> 1 | K154: =$F154*G154 -> 28025884.44 | L154: =$F154*H154 -> 5605176.888 | M154: =$F154*I154 -> 3736784.592
A155: =INDEX(Translation!$B$1:$E$581,Translation!$A$54,Language) -> Men&Women (25-34) with NR Partners (pairs) | B155: ='3. Condom Requirements'!H10 -> 10288958.72 | C155: ='1. Condom Availability'!$C$4 ->  | D155: ='1. Condom Availability'!$C$5 ->  | E155: ='1. Condom Availability'!$C$6 -> 0.05 | F155: ='3. Condom Requirements'!M10 -> 18480433.16 | G155: ='3c. Free Condoms'!P10 -> 0.75 | H155: 0.15 | I155: 0.1 | J155: 1 | K155: 13860324.87 | L155: 2772064.975 | M155: 1848043.316
A156: =INDEX(Translation!$B$1:$E$581,Translation!$A$55,Language) -> Men&Women (35-49) with NR Partners (pairs) | B156: ='3. Condom Requirements'!H11 -> 4941981.948 | C156: ='1. Condom Availability'!$C$4 ->  | D156: ='1. Condom Availability'!$C$5 ->  | E156: ='1. Condom Availability'!$C$6 -> 0.05 | F156: ='3. Condom Requirements'!M11 -> 9989320.366 | G156: ='3c. Free Condoms'!P11 -> 0.75 | H156: 0.15 | I156: 0.1 | J156: 1 | K156: 7491990.275 | L156: 1498398.055 | M156: 998932.0366
A157: =INDEX(Translation!$B$1:$E$581,Translation!$A$56,Language) -> Men&Women (50-64) with NR Partners (pairs) | B157: ='3. Condom Requirements'!H12 -> 973368.0426 | C157: ='1. Condom Availability'!$C$4 ->  | D157: ='1. Condom Availability'!$C$5 ->  | E157: ='1. Condom Availability'!$C$6 -> 0.05 | F157: ='3. Condom Requirements'!M12 -> 2617437.922 | G157: ='3c. Free Condoms'!P12 -> 0.75 | H157: 0.15 | I157: 0.1 | J157: 1 | K157: 1963078.441 | L157: 392615.6882 | M157: 261743.7922
A158: =INDEX(Translation!$B$1:$E$581,Translation!$A$43,Language) -> Couples Using Condoms for Family Planning | F158: ='3. Condom Requirements'!M131 -> 2027
A159: =INDEX(Translation!$B$1:$E$581,Translation!$A$57,Language) -> Couples Using Condoms for FP | B159: ='3. Condom Requirements'!H14 -> 9090124.411 | C159: ='1. Condom Availability'!$C$4 ->  | D159: ='1. Condom Availability'!$C$5 ->  | E159: ='1. Condom Availability'!$C$6 -> 0.05 | F159: ='3. Condom Requirements'!M14 -> 10463697.78 | G159: ='3c. Free Condoms'!P14 -> 0.75 | H159: =1-G159-I159 -> 0.15 | I159: 0.1 | J159: =G159+H159+I159 -> 1 | K159: =$F159*G159 -> 7847773.339 | L159: =$F159*H159 -> 1569554.668 | M159: =$F159*I159 -> 1046369.778
A160: =INDEX(Translation!$B$1:$E$581,Translation!$A$58,Language) -> Couples With Unmet Need for FP Condoms | B160: ='3. Condom Requirements'!H15 -> 0 | C160: ='1. Condom Availability'!$C$4 ->  | D160: ='1. Condom Availability'!$C$5 ->  | E160: ='1. Condom Availability'!$C$6 -> 0.05 | F160: ='3. Condom Requirements'!M15 -> 1199659.619 | G160: ='3c. Free Condoms'!P15 -> 0.75 | H160: 0.15 | I160: 0.1 | J160: 1 | K160: 899744.714 | L160: 179948.9428 | M160: 119965.9619
A161: =INDEX(Translation!$B$1:$E$581,Translation!$A$46,Language) -> Other Key Populations and Populations at High Risk
A162: ='2. Demographic Data'!$A$92 -> People who Inject Drugs (PWID) | B162: ='3. Condom Requirements'!H17 -> 0 | C162: ='1. Condom Availability'!$C$4 ->  | D162: ='1. Condom Availability'!$C$5 ->  | E162: ='1. Condom Availability'!$C$6 -> 0.05 | F162: ='3. Condom Requirements'!M17 -> 0 | G162: ='3c. Free Condoms'!P17 -> 0.75 | H162: =1-G162-I162 -> 0.15 | I162: 0.1 | J162: =G162+H162+I162 -> 1 | K162: =$F162*G162 -> 0 | L162: =$F162*H162 -> 0 | M162: =$F162*I162 -> 0
A163: ='2. Demographic Data'!$A$93 -> Transgender (TG) | B163: ='3. Condom Requirements'!H18 -> 0 | C163: ='1. Condom Availability'!$C$4 ->  | D163: ='1. Condom Availability'!$C$5 ->  | E163: ='1. Condom Availability'!$C$6 -> 0.05 | F163: ='3. Condom Requirements'!M18 -> 0 | G163: ='3c. Free Condoms'!P18 -> 0.75 | H163: 0.15 | I163: 0.1 | J163: 1 | K163: 0 | L163: 0 | M163: 0
A164: ='2. Demographic Data'!$A$97 -> Other [Please Specify]: | B164: ='3. Condom Requirements'!H19 -> 0 | C164: ='1. Condom Availability'!$C$4 ->  | D164: ='1. Condom Availability'!$C$5 ->  | E164: ='1. Condom Availability'!$C$6 -> 0.05 | F164: ='3. Condom Requirements'!M19 -> 0 | G164: ='3c. Free Condoms'!P19 -> 0.75 | H164: 0.15 | I164: 0.1 | J164: 1 | K164: 0 | L164: 0 | M164: 0
A165: ='2. Demographic Data'!$A$98 -> Other [Please Specify]: | B165: ='3. Condom Requirements'!H20 -> 0 | C165: ='1. Condom Availability'!$C$4 ->  | D165: ='1. Condom Availability'!$C$5 ->  | E165: ='1. Condom Availability'!$C$6 -> 0.05 | F165: ='3. Condom Requirements'!M20 -> 0 | G165: ='3c. Free Condoms'!P20 -> 0.75 | H165: 0.15 | I165: 0.1 | J165: 1 | K165: 0 | L165: 0 | M165: 0
A166: =INDEX(Translation!$B$1:$E$581,Translation!$A$208,Language) -> Overall Total: Country Target | B166: =SUM(B150:B165) -> 79909905.72 | C166: ='1. Condom Availability'!$C$4 ->  | D166: ='1. Condom Availability'!$C$5 ->  | E166: ='1. Condom Availability'!$C$6 -> 0.05 | F166: =SUM(F150:F165) -> 143340349.6 | G166: =K166/F166 -> 0.7499893941 | H166: =L166/F166 -> 0.1499978788 | I166: =M166/F166 -> 0.09999858588 | J166: 0.9999858588 | K166: =SUM(K150:K165) -> 107503741.9 | L166: =SUM(L150:L165) -> 21500748.39 | M166: 14333832.26 | N166: =K166+L166+M166 -> 143338322.6 | O166: Check
B178: =INDEX(Translation!$B$1:$E$581,Translation!$A$244,Language) -> TMA Baseline 2022 (% per pillar) | C178: =INDEX(Translation!$B$1:$E$581,Translation!$A$245,Language) -> # Condoms: 2022 Baseline | D178: =INDEX(Translation!$B$1:$E$581,Translation!$A$247,Language) -> TMA Target scenario 2027 (% per pillar) | E178: =INDEX(Translation!$B$1:$E$581,Translation!$A$248,Language) -> # Condoms: 2027 Target scenario
A179: =INDEX(Translation!$B$1:$E$581,Translation!$A$249,Language) -> Public/ Free Distribution | B179: ='1. Condom Availability'!$C$4 ->  | C179: =B179*$C$12 ->  | D179: ='3c. Free Condoms'!P21 -> 0.75 | E179: =D179*E$12 -> 107503741.9
A180: =INDEX(Translation!$B$1:$E$581,Translation!$A$250,Language) -> Social Marketing | B180: ='1. Condom Availability'!$C$5 ->  | C180: =B180*$C$12 ->  | D180: =1-D179-D181 -> 0.15 | E180: =D180*E$12 -> 21500748.39
A181: =INDEX(Translation!$B$1:$E$581,Translation!$A$251,Language) -> Private Sector | B181: ='1. Condom Availability'!$C$6 -> 0.05 | C181: =B181*$C$12 -> 3995495.286 | D181: 0.1 | E181: =D181*E$12 -> 14333832.26
A182: =INDEX(Translation!$B$1:$E$581,Translation!$A$252,Language) -> Total | B182: =SUM(B179:B181) ->  | C182: =E175 -> 0 | D182: =SUM(D179:D181) -> 1 | E182: =E176 -> 0

Sheet 5. Condom Unit Costs
A1: =INDEX(Translation!$B$1:$E$581,Translation!$A$255,Language) -> Unit Costs Condoms | G1: UNFPA Reference List: Condom + Lubricants Unit Costs
B2: =N5 -> UNIT COST USD | G2: https://www.unfpaprocurement.org/products
A3: =INDEX(Translation!$B$1:$E$581,Translation!$A$256,Language) -> Male condom, per piece | B3: =P5 -> 0.03211631944 | G3: Source: UNFPA Catalogue as of 22 February 2023 | P3: Avg Unit cost (USD) used by CNET for Commodity costing
A4: =INDEX(Translation!$B$1:$E$581,Translation!$A$258,Language) -> Speciality Male condom, per piece | B4: =P13 -> 0.03179401479
A5: =INDEX(Translation!$B$1:$E$581,Translation!$A$257,Language) -> Female condom, per piece | B5: =P154 -> 0.3884285714 | G5: MALE CONDOMS STANDARD | I5: PRODUCTNAME | J5: UNFPA Price | K5: CURRENCY | L5: UNITOFMEASURE | M5: UNITS | N5: UNIT COST USD | O5: LAST UPDATED | P5: =AVERAGE(N6:N9) -> 0.03211631944 | Q5: I
A6: Speciality Female condom, per piece | B6: =P163 -> 0.46375 | G6: Male Condoms | H6: STANDARD | I6: Condom 49, Natural, standard | J6: 4.61 | K6: USD | L6: Gross (144 pieces) | M6: 144 | N6: 0.03201388889 | O6: 2022-12-21T06:00:55
A7: Lubricant, per 5ml | B7: =P173 -> 0.04967804672 | G7: Male Condoms | H7: STANDARD | I7: Condom 53, Natural, Standard | J7: 4.61 | K7: USD | L7: Gross (144 pieces) | M7: 144 | N7: 0.03201388889 | O7: 2023-01-10T08:05:31
G8: Male Condoms | H8: STANDARD | I8: Condom 53, Logo Condomize | J8: 4.771 | K8: USD | L8: Gross (144 pieces) | M8: 144 | N8: 0.03313194444 | O8: 2022-12-21T06:00:43
G9: Male Condoms | H9: STANDARD | I9: Condom 49, Rhino Condomize | J9: 4.508 | K9: USD | L9: Gross (144 pieces) | M9: 144 | N9: 0.03130555556 | O9: 2022-12-21T06:00:43
G10: Male Condoms | H10: STANDARD | I10: Condom 49, Natural, None, Thin | J10: 4.748 | K10: USD | L10: Gross (144 pieces) | M10: 144 | N10: 0.03297222222 | O10: 2022-12-21T06:00:44
G11: Male Condoms | H11: STANDARD | I11: Condom 53, Dancers Condomize | J11: 4.771 | K11: USD | L11: Gross (144 pieces) | M11: 144 | N11: 0.03313194444 | O11: 2022-12-21T06:00:45
G13: MALE CONDOMS SPECIALTY | I13: PRODUCTNAME | J13: UNFPA Price | K13: CURRENCY | L13: UNITOFMEASURE | N13: UNIT COST USD | O13: LAST UPDATED | P13: =AVERAGE(N14:N152) -> 0.03179401479
G14: Male Condoms | H14: SPECIALTY | I14: Condom 49, Pink, Jasmine | J14: 4.7 | K14: USD | L14: Gross (144 pieces) | M14: 144 | N14: 0.03263888889 | O14: 2022-12-21T06:00:52
G15: Male Condoms | H15: SPECIALTY | I15: Condom 49, Yellow, Banana | J15: 4.72 | K15: USD | L15: Gross (144 pieces) | M15: 144 | N15: 0.03277777778 | O15: 2022-12-21T06:00:52
G16: Male Condoms | H16: SPECIALTY | I16: Condom 53, Pink, Jasmine | J16: 4.7 | K16: USD | L16: Gross (144 pieces) | M16: 144 | N16: 0.03263888889 | O16: 2022-12-21T06:00:52
G17: Male Condoms | H17: SPECIALTY | I17: Condom 53, Pink, TuttiFrutti | J17: 4.55 | K17: USD | L17: Gross (144 pieces) | M17: 144 | N17: 0.03159722222 | O17: 2022-12-21T06:00:54
G18: Male Condoms | H18: SPECIALTY | I18: Condom 53, Yellow, Banana | J18: 4.77 | K18: USD | L18: Gross (144 pieces) | M18: 144 | N18: 0.033125 | O18: 2022-12-21T06:00:55
G19: Male Condoms | H19: SPECIALTY | I19: Condom 49, Blue | J19: 4.62 | K19: USD | L19: Gross (144 pieces) | M19: 144 | N19: 0.03208333333 | O19: 2022-12-21T06:00:55
G20: Male Condoms | H20: SPECIALTY | I20: Condom 49, Red | J20: 4.693 | K20: USD | L20: Gross (144 pieces) | M20: 144 | N20: 0.03259027778 | O20: 2022-12-21T06:00:55
G21: Male Condoms | H21: SPECIALTY | I21: Condom 49, Yellow | J21: 4.693 | K21: USD | L21: Gross (144 pieces) | M21: 144 | N21: 0.03259027778 | O21: 2022-12-21T06:00:55
G22: Male Condoms | H22: SPECIALTY | I22: Condom 49, Green | J22: 4.62 | K22: USD | L22: Gross (144 pieces) | M22: 144 | N22: 0.03208333333 | O22: 2022-12-21T06:00:55
G23: Male Condoms | H23: SPECIALTY | I23: Condom 49, Natural, Banana, Thin | J23: 4.784 | K23: USD | L23: Gross (144 pieces) | M23: 144 | N23: 0.03322222222 | O23: 2022-12-21T06:00:57
G24: Male Condoms | H24: SPECIALTY | I24: Condom 49, Brown | J24: 4.62 | K24: USD | L24: Gross (144 pieces) | M24: 144 | N24: 0.03208333333 | O24: 2022-12-21T06:00:57
G25: Male Condoms | H25: SPECIALTY | I25: Condom 49, Orange | J25: 4.693 | K25: USD | L25: Gross (144 pieces) | M25: 144 | N25: 0.03259027778 | O25: 2022-12-21T06:00:58
G26: Male Condoms | H26: SPECIALTY | I26: Condom 49, Black | J26: 4.693 | K26: USD | L26: Gross (144 pieces) | M26: 144 | N26: 0.03259027778 | O26: 2022-12-21T06:00:58
G27: Male Condoms | H27: SPECIALTY | I27: Condom 49, Gold | J27: 4.5 | K27: USD | L27: Gross (144 pieces) | M27: 144 | N27: 0.03125 | O27: 2022-12-21T06:01:00
G28: Male Condoms | H28: SPECIALTY | I28: Condom 49, Purple | J28: 4.5 | K28: USD | L28: Gross (144 pieces) | M28: 144 | N28: 0.03125 | O28: 2022-12-21T06:01:00
G29: Male Condoms | H29: SPECIALTY | I29: Condom 49, Light Pink | J29: 4.693 | K29: USD | L29: Gross (144 pieces) | M29: 144 | N29: 0.03259027778 | O29: 2022-12-21T06:01:00
G30: Male Condoms | H30: SPECIALTY | I30: Condom 49, Black, Chocolate | J30: 4.72 | K30: USD | L30: Gross (144 pieces) | M30: 144 | N30: 0.03277777778 | O30: 2022-12-21T06:01:00
G31: Male Condoms | H31: SPECIALTY | I31: Condom 49, Red, Cherry | J31: 4.72 | K31: USD | L31: Gross (144 pieces) | M31: 144 | N31: 0.03277777778 | O31: 2022-12-21T06:01:00
G32: Male Condoms | H32: SPECIALTY | I32: Condom 49, Purple, Grape | J32: 4.6 | K32: USD | L32: Gross (144 pieces) | M32: 144 | N32: 0.03194444444 | O32: 2022-12-21T06:01:00
G33: Male Condoms | H33: SPECIALTY | I33: Condom 49, Yellow, Lemon | J33: 4.7 | K33: USD | L33: Gross (144 pieces) | M33: 144 | N33: 0.03263888889 | O33: 2022-12-21T06:01:01
G34: Male Condoms | H34: SPECIALTY | I34: Condom 49, Green, Mint | J34: 4.72 | K34: USD | L34: Gross (144 pieces) | M34: 144 | N34: 0.03277777778 | O34: 2022-12-21T06:01:01
G35: Male Condoms | H35: SPECIALTY | I35: Condom 49, Orange, Orange | J35: 3.89 | K35: USD | L35: Gross (144 pieces) | M35: 144 | N35: 0.02701388889 | O35: 2022-12-21T06:01:01
G36: Male Condoms | H36: SPECIALTY | I36: Condom 49, Red, Strawberry | J36: 4.72 | K36: USD | L36: Gross (144 pieces) | M36: 144 | N36: 0.03277777778 | O36: 2022-12-21T06:01:03
G37: Male Condoms | H37: SPECIALTY | I37: Condom 49, Pink, TuttiFrutti | J37: 4.6 | K37: USD | L37: Gross (144 pieces) | M37: 144 | N37: 0.03194444444 | O37: 2022-12-21T06:01:03
G38: Male Condoms | H38: SPECIALTY | I38: Condom 49, Blue, Vanilla | J38: 4.72 | K38: USD | L38: Gross (144 pieces) | M38: 144 | N38: 0.03277777778 | O38: 2022-12-21T06:01:04
G39: Male Condoms | H39: SPECIALTY | I39: Condom 49, Yellow, Vanilla | J39: 4.6 | K39: USD | L39: Gross (144 pieces) | M39: 144 | N39: 0.03194444444 | O39: 2022-12-21T06:01:04
G40: Male Condoms | H40: SPECIALTY | I40: Condom 49, Dotted | J40: 4.62 | K40: USD | L40: Gross (144 pieces) | M40: 144 | N40: 0.03208333333 | O40: 2022-12-21T06:01:04
G41: Male Condoms | H41: SPECIALTY | I41: Condom 49, Natural, Apple | J41: 4.6 | K41: USD | L41: Gross (144 pieces) | M41: 144 | N41: 0.03194444444 | O41: 2022-12-21T06:01:04
G42: Male Condoms | H42: SPECIALTY | I42: Condom 49, Natural, Banana | J42: 4.6 | K42: USD | L42: Gross (144 pieces) | M42: 144 | N42: 0.03194444444 | O42: 2022-12-21T06:01:04
G43: Male Condoms | H43: SPECIALTY | I43: Condom 49, Natural, Cherry | J43: 4.289 | K43: USD | L43: Gross (144 pieces) | M43: 144 | N43: 0.02978472222 | O43: 2022-12-21T06:01:07
G44: Male Condoms | H44: SPECIALTY | I44: Condom 49, Natural, Chocolate | J44: 4.51 | K44: USD | L44: Gross (144 pieces) | M44: 144 | N44: 0.03131944444 | O44: 2022-12-21T06:01:07
G45: Male Condoms | H45: SPECIALTY | I45: Condom 49, Natural, Coffee | J45: 4.289 | K45: USD | L45: Gross (144 pieces) | M45: 144 | N45: 0.02978472222 | O45: 2022-12-21T06:00:35
G46: Male Condoms | H46: SPECIALTY | I46: Condom 49, Natural, Grape | J46: 4.6 | K46: USD | L46: Gross (144 pieces) | M46: 144 | N46: 0.03194444444 | O46: 2022-12-21T06:00:35
G47: Male Condoms | H47: SPECIALTY | I47: Condom 49, Natural, Jasmine | J47: 4.51 | K47: USD | L47: Gross (144 pieces) | M47: 144 | N47: 0.03131944444 | O47: 2022-12-21T06:00:35
G48: Male Condoms | H48: SPECIALTY | I48: Condom 49, Natural, Kiwi fruit | J48: 4.289 | K48: USD | L48: Gross (144 pieces) | M48: 144 | N48: 0.02978472222 | O48: 2022-12-21T06:00:35
G49: Male Condoms | H49: SPECIALTY | I49: Condom 49, Natural, Lemon | J49: 4.454 | K49: USD | L49: Gross (144 pieces) | M49: 144 | N49: 0.03093055556 | O49: 2022-12-21T06:00:35
G50: Male Condoms | H50: SPECIALTY | I50: Condom 49, Natural, Mint | J50: 4.6 | K50: USD | L50: Gross (144 pieces) | M50: 144 | N50: 0.03194444444 | O50: 2022-12-21T06:00:35
G51: Male Condoms | H51: SPECIALTY | I51: Condom 49, Natural, Orange | J51: 4.6 | K51: USD | L51: Gross (144 pieces) | M51: 144 | N51: 0.03194444444 | O51: 2022-12-21T06:00:36
G52: Male Condoms | H52: SPECIALTY | I52: Condom 49, Natural, Pinacolada | J52: 4.51 | K52: USD | L52: Gross (144 pieces) | M52: 144 | N52: 0.03131944444 | O52: 2022-12-21T06:00:46
G53: Male Condoms | H53: SPECIALTY | I53: Condom 49, Natural, Rose | J53: 4.454 | K53: USD | L53: Gross (144 pieces) | M53: 144 | N53: 0.03093055556 | O53: 2022-12-21T06:00:46
G54: Male Condoms | H54: SPECIALTY | I54: Condom 49, Natural, Spear Mint | J54: 4.51 | K54: USD | L54: Gross (144 pieces) | M54: 144 | N54: 0.03131944444 | O54: 2022-12-21T06:00:46
G55: Male Condoms | H55: SPECIALTY | I55: Condom 49, Natural, Strawberry | J55: 4.6 | K55: USD | L55: Gross (144 pieces) | M55: 144 | N55: 0.03194444444 | O55: 2022-12-21T06:00:46
G56: Male Condoms | H56: SPECIALTY | I56: Condom 49, Natural, Tutti Frutti | J56: 4.6 | K56: USD | L56: Gross (144 pieces) | M56: 144 | N56: 0.03194444444 | O56: 2022-12-21T06:00:46
G57: Male Condoms | H57: SPECIALTY | I57: Condom 49, Natural, Vanilla | J57: 4.6 | K57: USD | L57: Gross (144 pieces) | M57: 144 | N57: 0.03194444444 | O57: 2022-12-21T06:00:46
G58: Male Condoms | H58: SPECIALTY | I58: Condom 49, Natural, Grape, Thin | J58: 4.784 | K58: USD | L58: Gross (144 pieces) | M58: 144 | N58: 0.03322222222 | O58: 2022-12-21T06:00:47
G59: Male Condoms | H59: SPECIALTY | I59: Condom 49, Natural, Mint, Thin | J59: 4.784 | K59: USD | L59: Gross (144 pieces) | M59: 144 | N59: 0.03322222222 | O59: 2022-12-21T06:00:48
G60: Male Condoms | H60: SPECIALTY | I60: Condom 53, Orange | J60: 4.693 | K60: USD | L60: Gross (144 pieces) | M60: 144 | N60: 0.03259027778 | O60: 2022-12-21T06:00:48
G61: Male Condoms | H61: SPECIALTY | I61: Condom 53, Black | J61: 4.693 | K61: USD | L61: Gross (144 pieces) | M61: 144 | N61: 0.03259027778 | O61: 2022-12-21T06:00:48
G62: Male Condoms | H62: SPECIALTY | I62: Condom 53, Gold | J62: 4.571 | K62: USD | L62: Gross (144 pieces) | M62: 144 | N62: 0.03174305556 | O62: 2022-12-21T06:00:48
G63: Male Condoms | H63: SPECIALTY | I63: Condom 53, Purple | J63: 4.571 | K63: USD | L63: Gross (144 pieces) | M63: 144 | N63: 0.03174305556 | O63: 2022-12-21T06:00:49
G64: Male Condoms | H64: SPECIALTY | I64: Condom 53, Light Pink | J64: 4.693 | K64: USD | L64: Gross (144 pieces) | M64: 144 | N64: 0.03259027778 | O64: 2022-12-21T06:00:49
G65: Male Condoms | H65: SPECIALTY | I65: Condom 53, Black, Chocolate | J65: 4.77 | K65: USD | L65: Gross (144 pieces) | M65: 144 | N65: 0.033125 | O65: 2022-12-21T06:00:49
G66: Male Condoms | H66: SPECIALTY | I66: Condom 53, Red, Cherry | J66: 4.77 | K66: USD | L66: Gross (144 pieces) | M66: 144 | N66: 0.033125 | O66: 2022-12-21T06:00:50
G67: Male Condoms | H67: SPECIALTY | I67: Condom 53, Purple, Grape | J67: 4.612 | K67: USD | L67: Gross (144 pieces) | M67: 144 | N67: 0.03202777778 | O67: 2022-12-21T06:00:50
G68: Male Condoms | H68: SPECIALTY | I68: Condom 53, Yellow, Lemon | J68: 4.612 | K68: USD | L68: Gross (144 pieces) | M68: 144 | N68: 0.03202777778 | O68: 2022-12-21T06:00:50
G69: Male Condoms | H69: SPECIALTY | I69: Condom 53, Green, Mint | J69: 4.77 | K69: USD | L69: Gross (144 pieces) | M69: 144 | N69: 0.033125 | O69: 2022-12-21T06:00:50
G70: Male Condoms | H70: SPECIALTY | I70: Condom 53, Orange, Orange | J70: 4.06 | K70: USD | L70: Gross (144 pieces) | M70: 144 | N70: 0.02819444444 | O70: 2022-12-21T06:00:37
G71: Male Condoms | H71: SPECIALTY | I71: Condom 53, Red, Strawberry | J71: 4.77 | K71: USD | L71: Gross (144 pieces) | M71: 144 | N71: 0.033125 | O71: 2022-12-21T06:00:37
G72: Male Condoms | H72: SPECIALTY | I72: Condom 53, Blue, Vanilla | J72: 4.77 | K72: USD | L72: Gross (144 pieces) | M72: 144 | N72: 0.033125 | O72: 2022-12-21T06:00:37
G73: Male Condoms | H73: SPECIALTY | I73: Condom 53, Yellow, Vanilla | J73: 4.55 | K73: USD | L73: Gross (144 pieces) | M73: 144 | N73: 0.03159722222 | O73: 2022-12-21T06:00:37
G74: Male Condoms | H74: SPECIALTY | I74: Condom 53, Dotted | J74: 4.73 | K74: USD | L74: Gross (144 pieces) | M74: 144 | N74: 0.03284722222 | O74: 2022-12-21T06:00:37
G75: Male Condoms | H75: SPECIALTY | I75: Condom 53, Natural, Apple, Dotted | J75: 4.83 | K75: USD | L75: Gross (144 pieces) | M75: 144 | N75: 0.03354166667 | O75: 2022-12-21T06:00:37
G76: Male Condoms | H76: SPECIALTY | I76: Condom 53, Natural, Banana, Dotted | J76: 4.83 | K76: USD | L76: Gross (144 pieces) | M76: 144 | N76: 0.03354166667 | O76: 2022-12-21T06:00:37
G77: Male Condoms | H77: SPECIALTY | I77: Condom 49, Natural, Strawberry, Thin | J77: 4.784 | K77: USD | L77: Gross (144 pieces) | M77: 144 | N77: 0.03322222222 | O77: 2022-12-21T06:00:40
G78: Male Condoms | H78: SPECIALTY | I78: Condom 49, Natural, Vanilla, Thin | J78: 4.784 | K78: USD | L78: Gross (144 pieces) | M78: 144 | N78: 0.03322222222 | O78: 2022-12-21T06:00:40
G79: Male Condoms | H79: SPECIALTY | I79: Condom 53, Blue | J79: 4.67 | K79: USD | L79: Gross (144 pieces) | M79: 144 | N79: 0.03243055556 | O79: 2022-12-21T06:00:42
G80: Male Condoms | H80: SPECIALTY | I80: Condom 53, Red | J80: 4.693 | K80: USD | L80: Gross (144 pieces) | M80: 144 | N80: 0.03259027778 | O80: 2022-12-21T06:00:42
G81: Male Condoms | H81: SPECIALTY | I81: Condom 53, Yellow | J81: 4.693 | K81: USD | L81: Gross (144 pieces) | M81: 144 | N81: 0.03259027778 | O81: 2022-12-21T06:00:42
G82: Male Condoms | H82: SPECIALTY | I82: Condom 53, Green | J82: 4.67 | K82: USD | L82: Gross (144 pieces) | M82: 144 | N82: 0.03243055556 | O82: 2022-12-21T06:00:42
G83: Male Condoms | H83: SPECIALTY | I83: Condom 53, Violet | J83: 3.96 | K83: USD | L83: Gross (144 pieces) | M83: 144 | N83: 0.0275 | O83: 2022-12-21T06:00:42
G84: Male Condoms | H84: SPECIALTY | I84: Condom 53, Brown | J84: 4.67 | K84: USD | L84: Gross (144 pieces) | M84: 144 | N84: 0.03243055556 | O84: 2022-12-21T06:00:42
G85: Male Condoms | H85: SPECIALTY | I85: Condom 53, Natural, Tutti Frutti, Thin | J85: 4.75 | K85: USD | L85: Gross (144 pieces) | M85: 144 | N85: 0.03298611111 | O85: 2022-12-21T06:00:43
G86: Male Condoms | H86: SPECIALTY | I86: Condom 53, Natural, Vanilla, Thin | J86: 4.75 | K86: USD | L86: Gross (144 pieces) | M86: 144 | N86: 0.03298611111 | O86: 2022-12-21T06:00:43
G87: Male Condoms | H87: SPECIALTY | I87: Condom 53, Natural, None, Thin | J87: 4.55 | K87: USD | L87: Gross (144 pieces) | M87: 144 | N87: 0.03159722222 | O87: 2022-12-21T06:00:44
G88: Male Condoms | H88: SPECIALTY | I88: Condom 53, Natural, Apple, Dotted, Thin | J88: 4.88 | K88: USD | L88: Gross (144 pieces) | M88: 144 | N88: 0.03388888889 | O88: 2022-12-21T06:00:44
G89: Male Condoms | H89: SPECIALTY | I89: Condom 53, Natural, Banana, Dotted, Thin | J89: 4.88 | K89: USD | L89: Gross (144 pieces) | M89: 144 | N89: 0.03388888889 | O89: 2022-12-21T06:00:44
G90: Male Condoms | H90: SPECIALTY | I90: Condom 53, Natural, Cherry, Dotted | J90: 4.83 | K90: USD | L90: Gross (144 pieces) | M90: 144 | N90: 0.03354166667 | O90: 2022-12-21T06:00:44
G91: Male Condoms | H91: SPECIALTY | I91: Condom 53, Natural, Chocolate, Dotted | J91: 4.83 | K91: USD | L91: Gross (144 pieces) | M91: 144 | N91: 0.03354166667 | O91: 2022-12-21T06:00:45
G92: Male Condoms | H92: SPECIALTY | I92: Condom 53 Natural, Coffee, Dotted | J92: 4.774 | K92: USD | L92: Gross (144 pieces) | M92: 144 | N92: 0.03315277778 | O92: 2022-12-21T06:00:45
G93: Male Condoms | H93: SPECIALTY | I93: Condom 53 Natural, Cool Mint, Dotted | J93: 4.83 | K93: USD | L93: Gross (144 pieces) | M93: 144 | N93: 0.03354166667 | O93: 2022-12-21T06:00:45
G94: Male Condoms | H94: SPECIALTY | I94: Condom 53, Natural, Grape, Dotted | J94: 4.75 | K94: USD | L94: Gross (144 pieces) | M94: 144 | N94: 0.03298611111 | O94: 2022-12-21T06:00:46
G95: Male Condoms | H95: SPECIALTY | I95: Condom 53, Natural, Jasmine, Dotted | J95: 4.83 | K95: USD | L95: Gross (144 pieces) | M95: 144 | N95: 0.03354166667 | O95: 2022-12-21T06:00:46
G96: Male Condoms | H96: SPECIALTY | I96: Condom 53, Natural, Kiwi fruit, Dotted | J96: 4.774 | K96: USD | L96: Gross (144 pieces) | M96: 144 | N96: 0.03315277778 | O96: 2022-12-21T06:00:47
G97: Male Condoms | H97: SPECIALTY | I97: Condom 53, Natural, Lemon, Dotted | J97: 4.774 | K97: USD | L97: Gross (144 pieces) | M97: 144 | N97: 0.03315277778 | O97: 2022-12-21T06:00:47
